Workbook

Sheet Version
A1: Version | B1: Release Notes
A2: MonsterBall Stats version v1 | B2: Initital version
A3: MonsterBall Stats version v2 | B3: Added comments
B4: Hands (fumble) and Hands (catch) separated into two separate and tweakable columns
B5: Added Quarterback Stats
B6: Additions
B7: It's good that Matt added Health, Wounding, Speed, Hands (Catch), Hands(Fumble), Tackle Break, Tackle to Quarterback stats. Once the ball has been turned over on fumble or intercepted, Quarterbacks play on defense and these stats are therefore needed.
B8: I've changed the Fastball ability from "100% completion" to "Increases % chance of completion". The reason is that you can't tweak 100%. We may find that having the ability to nudge the odds from 95% to 90% can make the difference in game balance.
B9: I added a new stat, Arm Strength per my notes below. It works quite well, improving the odds of a completion at long range, but doing little to change the odds of completing a short pass (as it should).
B10: I drastically changed the completion formula since the one Matt proposed was really just hypothetical (plugged in as written it results in 0% regardless of distance). The new formula reveals a few important things:
B11: It hits the NFL target of 65%-70% for accuracy of short passes and about 25% - 35% for long passes.
B12: I think there is room to do a lot of experimentation with the final numbers, but they should be tested against actual NFL stats. I did a quick Google search for "Worst Quarterback ever" and got Jake Plummer's 1999 season with a pass completion average of 52%. What was the worse completion percentage I could get on the soak sheet with no defender interference? 50%. Sweet... right on the money.
B13: Problems
B14: Quarterbacks seem to have two sets of redundant stats:
B15: Speed (as listed under Health, Wounding, Speed, Hands (Catch), Hands(Fumble), Tackle Break, Tackle) is identical to Speed (as listed under Speed, Accuracy and Strength)
B16: Strength (as listed under Speed, Accuracy and Strength) is the same as Tackle Break since getting sacked or tackled is the same thing.
B17: I recommend we eliminate one instance of Speed as they are identical and replace the purpose of Strength to mean the distance a Quarterback can throw, measured in extra % chance of completion per yard. (Bonus increases with distance, so there is no added accuracy for short distance throws)
B18: According to the GDD: "QB stats are not related to the teams, so there is no team multiplier applied to the numbers. Their stats go from 1-10". I'm not entirely sure how this figures into their current stats. Matt, could you please give an example of Level 1 QB stats vs a Level 5 QB (including where the exp was spent)? Perhaps then I would understand the relationship better.
A19: MonsterBall Stats version v3 | B19: Added Leveling metrics for Quarterbacks
A21: MonsterBall Stats version v7 | B21: Corrected inverted values for Run blocking, Tackle and Tackle break on the Team Stats page
B22: Tweaked the values of Punch, Dive, Spin and Jump
B23: Added a damage penalty for jumping and spinning
A24: MonsterBall Stats version v8 | B24: Changed old Team names to the new approved Team Names
A25: MonsterBall Stats version v9 | B25: Updated all team Names to current
A26: MonsterBall Stats version v11 | B26: Removed link to old version "MonsterBallStats_v7.xlsx
A27: MonsterBall Stats version v12 | B27: Added exportable 'XML' links to QB, Team and League stats
A28: MonsterBall Stats version v12.1 | B28: Added AI Suggestion Model
B29: Removed outdated artwork to reduce size of spreadsheet
B30: Finished defining game and player states
B31: Added consideration of which play was chosen
B32: AI now chooses Defensive Plays
B33: AI Defensive Players react to different Game States
A34: MonsterBall Stats version v12.3 | B34: Added new state: SCRIMMAGE_BROKEN_PLAY
B35: AI Offensive Players react to different Game States
B36: Added comments to GAME_STATE
A37: MonsterBall Stats version v12.31 | B37: Fixed a bug where QB is not handing off to the runningback on short yardage.
A38: MonsterBall Stats version v12.7 | B38: Added stats for Quarterbacks 10 through 19
A39: MonsterBall Stats version v12.8 | B39: Fixed a bug where "ogre" and "giant" is used to define the same creature type.
A40: MonsterBall Stats version v13.1 | B40: Added Design Interface tab
A41: MonsterBall Stats version v13.11 | B41: Fixed floating point error on League Stats tab: Health variations increased from 1 to 10.
A42: MonsterBall Stats version v13.12 | B42: 1. In Card Tab, Rename First monster type to Team Type
B43: 2. In Card Tab, Rename Second Monster Type to Monster Name
B44: 3. Add a lookup table for Monster Type in League Stat M$25:N$36
B45: 4. In Card Tab, Add a column Monster Type, which is the name being used in the code , after Monster Name
B46: 5. Add a lookup table for Team Type in 'League Stats'!Y$39:AX$54, the last column
B47: 6. In Card Tab, Change TeamType to the name being used in the code
B48: 7. Fix Ogres Cards ( use Giants to fix the problems)
B49: 8. Add export XML scheme for Card,(Macros will copy all values from Card Tab and then export)
A50: MonsterBall Stats version v13.13 | B50: 1. On QB Stats tab, unified stats table to more closely resemble other players (I found there was little need to treat some stats differently).
B51: 2. On the QB and Team Stats tab, to clarify all player stats, I added a "+" symbol to indicate those stats that add to a calculation (such as Carry, which is used in fumble calculation, which depends on the angle of the tackle and stats of the two creatures involved). Those stats that have a hard value I displayed in Bold (such as Speed, which is now displayed as a percentage of the maximum speed used in the game).
B52: 3. On QB Stats tab, Clarified the purpose of (Passing) Speed, Accuracy and (Arm) Strength. Accuracy and (Arm) Strength are used to calculate Pass Completion percentage over distance. The Pass Completion Formula is listed on the QB stats tab as:
B53: 1. Passing Completion = 100 - (LT*2) + Acc + H - (( 5 - Blk)*10) + (AS*Lt)/10.
B54: 4. On QB Stats tab, removed remaining QBs since we are only using 16.
B55: 5. On League Stats tab, removed a few remaining instances of "ogre" used as a monster type. Verified the replacement name "giant" shows up correctly on the cards tab.
B56: 6. On the Cards tab, I added a mechanic to quickly add or delete QB cards.
B57: 7. On the Cards tab, I fixed some calculation errors.
A58: MonsterBall Stats version v13.15 | B58: Restored missing QB entries from Cards tab
A59: MonsterBall Stats version v13.16 | B59: Adding field goal stats from 2018 nfl season
A60: MonsterBall Stats version v14.1 | B60: Changed Bronze, Silver, Gold into 5 Star system: 1,2,3,StarRank 4, StarRank 5
B61: Added Tiers
B62: Added: Catalysts that increase player levels. These remain undefined.
A63: MonsterBall Stats version v14.2 | B63: Changed Card Tier names to StarRank

Sheet Design Interface
B1: Legend | D1: Economy Template - MonsterBall
B2: Inputs
B3: Derived cells
B4: Calculated Values
C5: Inputs | N5: Original Values
C7: Player Base levelup experience | D7: Leveling factor | F7: Average Whammy points gained | G7: Average Points Scored | H7: Average Points Differential | J7: Games played | K7: Win Percentages | O7: Player Base levelup experience | P7: Leveling factor | R7: Average Whammy points gained | S7: Average Points Scored | T7: Average Points Differential | V7: Games played | W7: Win Percentages
C8: 100 | D8: 1.4 | F8: 20 | G8: 20 | H8: 14 | J8: 500 | K8: 0.8 | O8: 100 | P8: 1.4 | R8: 20 | S8: 20 | T8: 14 | V8: 500 | W8: 0.8
C26: Resources
C28: Coins price seed | D28: Price break factor | F28: Coins cost | O28: Coins price seed | P28: Price break factor
C29: 60 | D29: 1.15 | O29: 60 | P29: 1.15
F30: Name | G30: Cost | H30: Coins/$ | I30: Coins purchased
F31: Fist full of Coins | G31: ='EXP & Monetization'!C55 -> 0.99 | H31: ='EXP & Monetization'!D55 -> 111 | I31: ='EXP & Monetization'!E55 -> 110
F32: Helmet full of Coins | G32: ='EXP & Monetization'!C56 -> 2.99 | H32: ='EXP & Monetization'!D56 -> 130 | I32: ='EXP & Monetization'!E56 -> 390
F33: Water Bucket full of Coins | G33: ='EXP & Monetization'!C57 -> 9.99 | H33: ='EXP & Monetization'!D57 -> 156 | I33: ='EXP & Monetization'!E57 -> 1560
F34: Trophy full of Coins | G34: ='EXP & Monetization'!C58 -> 29.99 | H34: ='EXP & Monetization'!D58 -> 185 | I34: ='EXP & Monetization'!E58 -> 5540
F35: Truck load of Coins | G35: ='EXP & Monetization'!C59 -> 99.99 | H35: ='EXP & Monetization'!D59 -> 221 | I35: ='EXP & Monetization'!E59 -> 22120
D48: StarRank 1 Card Rareness | E48: StarRank 2 Card Rareness | F48: StarRank 3 Card Rareness | G48: Off/Def Card Rareness | I48: Target Cards per pack | O48: StarRank 1 Card Rareness | P48: StarRank 2 Card Rareness | Q48: StarRank 3 Card Rareness | R48: Off/Def Card Rareness | T48: Target Cards per pack
C49: Total Weight | D49: 1 | E49: 2 | F49: 3 | G49: 1 | I49: 6 | O49: 1 | P49: 2 | Q49: 3 | R49: 1 | T49: 6
C50: =SUM(D50:G50) -> 1 | D50: =D$49/SUM(D$49:G$49) -> 0.1428571429 | E50: =E$49/SUM(D$49:G$49) -> 0.2857142857 | F50: =F49/SUM(D$49:G$49) -> 0.4285714286 | G50: =G49/SUM(D$49:G$49) -> 0.1428571429
D52: StarRank 1 Card Pack | H52: Total # cards
D53: StarRank 1 Cards | E53: StarRank 2 Cards | F53: StarRank 3 Cards | G53: Off/Def plays
C54: Card Pack Type A - 50% chance | D54: ='EXP & Monetization'!Q120 -> 5 | E54: ='EXP & Monetization'!R120 -> 0 | F54: ='EXP & Monetization'!S120 -> 0 | G54: ='EXP & Monetization'!T120 -> 1 | H54: =SUM(D54:G54) -> 6
C55: Card Pack Type B - 30% chance | D55: ='EXP & Monetization'!Q121 -> 4 | E55: ='EXP & Monetization'!R121 -> 1 | F55: ='EXP & Monetization'!S121 -> 0 | G55: ='EXP & Monetization'!T121 -> 1 | H55: =SUM(D55:G55) -> 6
C56: Card Pack Type C - 20% chance | D56: ='EXP & Monetization'!Q122 -> 3 | E56: ='EXP & Monetization'!R122 -> 1 | F56: ='EXP & Monetization'!S122 -> 1 | G56: ='EXP & Monetization'!T122 -> 1 | H56: =SUM(D56:G56) -> 6
D58: StarRank 2 Card Pack
D59: StarRank 1 Cards | E59: StarRank 2 Cards | F59: StarRank 3 Cards | G59: Off/Def plays
C60: Card Pack Type A - 50% chance | D60: ='EXP & Monetization'!X120 -> 4 | E60: ='EXP & Monetization'!Y120 -> 1 | F60: ='EXP & Monetization'!Z120 -> 0 | G60: ='EXP & Monetization'!AA120 -> 1 | H60: =SUM(D60:G60) -> 6
C61: Card Pack Type B - 30% chance | D61: ='EXP & Monetization'!X121 -> 2 | E61: ='EXP & Monetization'!Y121 -> 2 | F61: ='EXP & Monetization'!Z121 -> 1 | G61: ='EXP & Monetization'!AA121 -> 1 | H61: =SUM(D61:G61) -> 6
C62: Card Pack Type C - 20% chance | D62: ='EXP & Monetization'!X122 -> 0 | E62: ='EXP & Monetization'!Y122 -> 3 | F62: ='EXP & Monetization'!Z122 -> 2 | G62: ='EXP & Monetization'!AA122 -> 1 | H62: =SUM(D62:G62) -> 6
D64: StarRank 3 Card Pack
D65: StarRank 1 Cards | E65: StarRank 2 Cards | F65: StarRank 3 Cards | G65: Off/Def plays
C66: Card Pack Type A - 50% chance | D66: ='EXP & Monetization'!AC120 -> 2 | E66: ='EXP & Monetization'!AD120 -> 1 | F66: ='EXP & Monetization'!AE120 -> 2 | G66: ='EXP & Monetization'!AF120 -> 1 | H66: =SUM(D66:G66) -> 6
C67: Card Pack Type B - 30% chance | D67: ='EXP & Monetization'!AC121 -> 1 | E67: ='EXP & Monetization'!AD121 -> 2 | F67: ='EXP & Monetization'!AE121 -> 2 | G67: ='EXP & Monetization'!AF121 -> 1 | H67: =SUM(D67:G67) -> 6
C68: Card Pack Type C - 20% chance | D68: ='EXP & Monetization'!AC122 -> 0 | E68: ='EXP & Monetization'!AD122 -> 2 | F68: ='EXP & Monetization'!AE122 -> 3 | G68: ='EXP & Monetization'!AF122 -> 1 | H68: =SUM(D68:G68) -> 6
D70: StarRank 4 Card Pack
D71: StarRank 2 Cards | E71: StarRank 3 Cards | F71: StarRank 4 Cards | G71: Off/Def plays
C72: Card Pack Type A - 50% chance | D72: ='EXP & Monetization'!AH120 -> 4 | E72: ='EXP & Monetization'!AI120 -> 1 | F72: ='EXP & Monetization'!AJ120 -> 0 | G72: ='EXP & Monetization'!AK120 -> 1 | H72: =SUM(D72:G72) -> 6
C73: Card Pack Type B - 30% chance | D73: ='EXP & Monetization'!AH121 -> 2 | E73: ='EXP & Monetization'!AI121 -> 2 | F73: ='EXP & Monetization'!AJ121 -> 1 | G73: ='EXP & Monetization'!AK121 -> 1 | H73: =SUM(D73:G73) -> 6
C74: Card Pack Type C - 20% chance | D74: ='EXP & Monetization'!AH122 -> 0 | E74: ='EXP & Monetization'!AI122 -> 3 | F74: ='EXP & Monetization'!AJ122 -> 2 | G74: ='EXP & Monetization'!AK122 -> 1 | H74: =SUM(D74:G74) -> 6
D76: StarRank 5 Card Pack
D77: StarRank 3 Cards | E77: StarRank 4 Cards | F77: StarRank 5 Cards | G77: Off/Def plays
C78: Card Pack Type A - 50% chance | D78: ='EXP & Monetization'!AM120 -> 4 | E78: ='EXP & Monetization'!AN120 -> 1 | F78: ='EXP & Monetization'!AO120 -> 0 | G78: ='EXP & Monetization'!AP120 -> 1 | H78: =SUM(D78:G78) -> 6
C79: Card Pack Type B - 30% chance | D79: ='EXP & Monetization'!AM121 -> 2 | E79: ='EXP & Monetization'!AN121 -> 2 | F79: ='EXP & Monetization'!AO121 -> 1 | G79: ='EXP & Monetization'!AP121 -> 1 | H79: =SUM(D79:G79) -> 6
C80: Card Pack Type C - 20% chance | D80: ='EXP & Monetization'!AM122 -> 0 | E80: ='EXP & Monetization'!AN122 -> 3 | F80: ='EXP & Monetization'!AO122 -> 2 | G80: ='EXP & Monetization'!AP122 -> 1 | H80: =SUM(D80:G80) -> 6

Sheet EXP & Monetization
B1: Gaining EXP:
B3: The QB gains XP from the Whammy meter and by finishing a game. When finishing a game, the EXP will read as follows:
B5: Performance | C5: Total Whammy Meter accumulated / 1000 | G5: Whammy meter will fill up at 10,000. That way the points feel big while playing, but obviously that number is too large for EXP. We assume an average of 20,000 whammy gained per game.
B6: Plus
B7: Victory | C7: 100 + # of Points Scored + point differential*2 | G7: A victory of 20-7 would yield: 100 + 20 + (13*2) = 146 points + whammy meter bonus
B8: OR
B9: Loss | C9: 50 Points + # of Points Scored + point differential*2 | G9: A loss of 7-20 would yield: 50 + 7 = 57 points + whammy meter bonus | AB9: Games played | AC9: Win Percentages | AD9: EXP per game
AB10: ='Design Interface'!J8 -> 500 | AC10: ='Design Interface'!K8 -> 0.8 | AD10: =100*AC10+AC13+(AD13*2)+AB13 -> 148
B11: XP Table: The rate at which players level up is as follows: | G11: Level up based on the idea that the average EXP earned per game is 200 (33% chance of losing with a score of 20, and 66% chance of winning with a score of 20-7, and average Whammy meter being filled up twice[20 points])
B12: ='Design Interface'!C8 -> 100 | C12: Level | D12: XP Cost to level up | E12: Total XP spent | F12: Average Game wins needed to level up | R12: Level | S12: Average Game wins needed to level up | X12: Level | Y12: Hypothetical Exp earned | AA12: Intentional Error message | AB12: Average Whammy gained | AC12: Average Points Scored | AD12: Average Points Differential | AF12: Hypothetical EXP earned
B13: ='Design Interface'!D8 -> 1.4 | C13: <-- Leveling factor | S13: =F13 -> 0 | Y13: =IF(E13>AF$13,AA$13,E13) -> 0 | AB13: ='Design Interface'!F8 -> 20 | AC13: ='Design Interface'!G8 -> 20 | AD13: ='Design Interface'!H8 -> 14 | AF13: =AD10*AB10 -> 74000
B14: Level | C14: 1 | D14: =ROUND((C14*$B$12)^$B$13,-2) -> 600 | E14: =SUM(D$14:D14) -> 600 | F14: =ROUND(E14/$AD$10,0) -> 4 | R14: =C14 -> 1 | S14: 4 | X14: =C14 -> 1 | Y14: 600
B15: Level | C15: 2 | D15: 1700 | E15: =SUM(D$14:D15) -> 2300 | F15: 16 | R15: 2 | S15: 16 | X15: 2 | Y15: 2300
B16: Level | C16: 3 | D16: 2900 | E16: =SUM(D$14:D16) -> 5200 | F16: 35 | R16: 3 | S16: 35 | X16: 3 | Y16: 5200
B17: Level | C17: 4 | D17: 4400 | E17: =SUM(D$14:D17) -> 9600 | F17: 65 | R17: 4 | S17: 65 | X17: 4 | Y17: 9600
B18: Tier 1/ Level | C18: 5 | D18: 6000 | E18: =SUM(D$14:D18) -> 15600 | F18: 105 | R18: 5 | S18: 105 | X18: 5 | Y18: 15600
B19: Level | C19: 6 | D19: 7800 | E19: =SUM(D$14:D19) -> 23400 | F19: 158 | R19: 6 | S19: 158 | X19: 6 | Y19: 23400
B20: Level | C20: 7 | D20: 9600 | E20: =SUM(D$14:D20) -> 33000 | F20: 223 | R20: 7 | S20: 223 | X20: 7 | Y20: 33000
B21: Level | C21: 8 | D21: 11600 | E21: =SUM(D$14:D21) -> 44600 | F21: 301 | R21: 8 | S21: 301 | X21: 8 | Y21: 44600
B22: Level | C22: 9 | D22: 13700 | E22: =SUM(D$14:D22) -> 58300 | F22: 394 | R22: 9 | S22: 394 | X22: 9 | Y22: 58300
B23: Tier 2/ Level | C23: 10 | D23: 15800 | E23: =SUM(D$14:D23) -> 74100 | F23: 501 | R23: 10 | S23: 501 | X23: 10
B24: Level | C24: 11 | D24: 18100 | E24: =SUM(D$14:D24) -> 92200 | F24: 623 | R24: 11 | S24: 623 | X24: 11
B25: Level | C25: 12 | D25: 20500 | E25: =SUM(D$14:D25) -> 112700 | F25: 761 | R25: 12 | S25: 761 | X25: 12
B26: Level | C26: 13 | D26: 22900 | E26: =SUM(D$14:D26) -> 135600 | F26: 916 | R26: 13 | S26: 916 | X26: 13
B27: Level | C27: 14 | D27: 25400 | E27: =SUM(D$14:D27) -> 161000 | F27: 1088 | R27: 14 | S27: 1088 | X27: 14
B28: Tier 3/ Level | C28: 15 | D28: 28000 | E28: =SUM(D$14:D28) -> 189000 | F28: 1277 | R28: 15 | S28: 1277 | X28: 15
B29: Level | C29: 16 | D29: 30600 | E29: =SUM(D$14:D29) -> 219600 | F29: 1484 | R29: 16 | S29: 1484 | X29: 16
B30: Level | C30: 17 | D30: 33300 | E30: =SUM(D$14:D30) -> 252900 | F30: 1709 | R30: 17 | S30: 1709 | X30: 17
B31: Level | C31: 18 | D31: 36100 | E31: =SUM(D$14:D31) -> 289000 | F31: 1953 | R31: 18 | S31: 1953 | X31: 18
B32: Level | C32: 19 | D32: 38900 | E32: =SUM(D$14:D32) -> 327900 | F32: 2216 | R32: 19 | S32: 2216 | X32: 19
B33: Tier 4/ Level | C33: 20 | D33: 41800 | E33: =SUM(D$14:D33) -> 369700 | F33: 2498 | R33: 20 | S33: 2498 | X33: 20
B35: QB Level Increase Schedule | C35: You may increase One Quarterback Stat each level
B37: Player Level Increase Schedule | C37: You may increase Two Player Stats each level.
B39: Player Matching:
B40: It is important to make sure players get matched with players of equal Ability.
B41: There is no Auto Player-Matching mechanism, but the server should try to list evenly matched teams to avoid bottom feeding.
B42: Players can choose their opponents from a list that describe the team's Power Ranking. Power Ranking is determined by the following formula:
B44: Player Power Rank = | C44: (Player Level x 10) + ( average power rank points of all cards owned by the player) = Power rank
B46: Level is a reflection of how many games the player has won measured by XP.
B47: Average Card Cost is a reflection of the average cost of all Powerups and Dunks owned by the player.
B49: Monetization: | X49: Card Pack Cost Table
B50: MGI allows the purchase coins. Coins are the sole currency used to buy Cards and Stamina.
X51: Tier | Y51: Quantity | Z51: XP | AA51: coins
B52: Coins cost | C52: Coins price seed --> | E52: ='Design Interface'!C29 -> 60 | X52: StarRank 1 | Y52: 1 | Z52: =LEFT((Q83*R85),4) -> 1033 | AA52: 0
C53: price break factor --> | E53: ='Design Interface'!D29 -> 1.15 | X53: StarRank 1 | Y53: 2 | Z53: 0 | AA53: =ROUNDUP(Q84*R$85*100,-1) -> 110
B54: Name | C54: Cost | D54: Coins/$ | E54: Coins purchased | X54: StarRank 1 | Y54: 7 | Z54: 0 | AA54: =ROUNDUP(Q85*R$85*100,-1) -> 310
B55: Fist full of Coins | C55: 0.99 | D55: =ROUND(E55/C55,0) -> 111 | E55: =ROUND((E$52*C55)^E$53,-1) -> 110 | X55: StarRank 1 | Y55: 25 | Z55: 0 | AA55: 1040
B56: Helmet full of Coins | C56: 2.99 | D56: =ROUND(E56/C56,0) -> 130 | E56: =ROUND((E$52*C56)^E$53,-1) -> 390 | X56: StarRank 2 | Y56: 1 | Z56: =ROUNDUP((X83*Y85),-2) -> 2100 | AA56: 0
B57: Water Bucket full of Coins | C57: 9.99 | D57: =ROUND(E57/C57,0) -> 156 | E57: =ROUND((E$52*C57)^E$53,-1) -> 1560 | X57: StarRank 2 | Y57: 2 | Z57: 0 | AA57: =ROUNDUP((X84*Y$85)*100,-1) -> 210
B58: Trophy full of Coins | C58: 29.99 | D58: =ROUND(E58/C58,0) -> 185 | E58: =ROUND((E$52*C58)^E$53,-1) -> 5540 | X58: StarRank 2 | Y58: 7 | Z58: 0 | AA58: =ROUNDUP((X85*Y$85)*100,-1) -> 630
B59: Truck load of Coins | C59: 99.99 | D59: =ROUND(E59/C59,0) -> 221 | E59: =ROUND((E$52*C59)^E$53,-1) -> 22120 | X59: StarRank 2 | Y59: 25 | Z59: 0 | AA59: 2100
X60: StarRank 3 | Y60: 1 | Z60: =ROUNDUP((AC83*AD85),-2) -> 3100 | AA60: 0
X61: StarRank 3 | Y61: 2 | Z61: 0 | AA61: =ROUNDUP((AC84*AD$85)*100,-2) -> 400
B62: Stamina cost | X62: StarRank 3 | Y62: 7 | Z62: 0 | AA62: =ROUNDUP((AC85*AD$85)*100,-2) -> 1000
X63: StarRank 3 | Y63: 25 | Z63: 0 | AA63: 3100
B64: Cost | C64: Name | E64: Effect | X64: StarRank 4 | Y64: 1 | Z64: =ROUNDUP((AH83*AI85),-2) -> 4800 | AA64: 0
B65: 50 coins | C65: Dragon Juice | E65: Full Stamina | X65: StarRank 4 | Y65: 2 | Z65: 0 | AA65: =ROUNDUP((AH84*AI$85)*100,-1) -> 480
B66: Stamina | X66: StarRank 4 | Y66: 7 | Z66: 0 | AA66: =ROUNDUP((AH85*AI$85)*100,-1) -> 1440
B67: The player begins each day with a maximum of 8 Stamina. The cost to play one game is 1 Stamina. Stamina heals at a rate of 1 every 1 hour. | X67: StarRank 4 | Y67: 25 | Z67: 0 | AA67: =ROUNDUP((AH86*AI$85)*100,-1) -> 4800
B68: The purpose of limiting the number of games a player game play is to slow the community down to prevent dominance from binge players. Players can spend coins to add Stamina. | X68: StarRank 5 | Y68: 1 | Z68: =ROUNDUP((AM83*AN85),-2) -> 10800 | AA68: 0
Q69: Card Pack XP Cost | X69: StarRank 5 | Y69: 2 | Z69: 0 | AA69: =ROUNDUP((AM84*AN$85)*100,-2) -> 1100
B70: EXP cost | Q70: StarRank 1 | R70: =LEFT((Q83*R85),4) -> 1033 | S70: 0 | T70: 0 | X70: StarRank 5 | Y70: 7 | Z70: 0 | AA70: =ROUNDUP((AM85*AN$85)*100,-2) -> 3300
Q71: StarRank 2 | R71: =ROUNDUP((X83*Y85),-2) -> 2100 | S71: 0 | T71: 0 | X71: StarRank 5 | Y71: 25 | Z71: 0 | AA71: =ROUNDUP((AM86*AN$85)*100,-2) -> 10800
B72: Cost | C72: Name | E72: EXP gained | Q72: StarRank 3 | R72: =ROUNDUP((AC83*AD85),-2) -> 3100 | S72: 0 | T72: 0
B73: 100 coins | C73: Training Camp | E73: 1500 XP
B74: Experience | Q74: Coins Cost
B75: The player can spend experience points in a number of ways: | Q75: StarRank 1 | R75: 0 | S75: 110 coins | T75: 310 coins | U75: 1040 coins
B76: 1) Spend XP to level up. Once Experience Points are spent, they are gone. The amount needed to reach the next level can be found in cells E14:E33 | Q76: StarRank 2 | R76: 0 | S76: =CONCATENATE(ROUNDUP((AE76*AF$85)*100,-1)," coins") -> 0 coins
B77: 2) Spend XP to buy 1 card pack (see above). Once Experience Points are spent, they are gone. | Q77: StarRank 3 | R77: 0
B79: Card Pack Costs | Q79: StarRank 1 Player Card, | R79: StarRank 2 Player Card, | S79: StarRank 3 Player Card, | T79: Offensive or Defensive Play | U79: StarRank 4 Player Card | V79: StarRank 5 Player Card | X79: StarRank 1 Player Card, | Y79: StarRank 2 Player Card, | Z79: StarRank 3 Player Card, | AA79: Offensive or Defensive Play | AC79: StarRank 1 Player Card, | AD79: StarRank 2 Player Card, | AE79: StarRank 3 Player Card, | AF79: Offensive or Defensive Play | AH79: StarRank 2 Player Card, | AI79: StarRank 3 Player Card, | AJ79: StarRank 4 Player Card | AK79: Offensive or Defensive Play | AM79: StarRank 3 Player Card, | AN79: StarRank 4 Player Card | AO79: StarRank 5 Player Card | AP79: Offensive or Defensive Play
Q80: 10 | R80: 50 | S80: 90 | T80: 15 | U80: 200 | V80: 500 | X80: =Q80 -> 10 | Y80: =R80 -> 50 | Z80: =S80 -> 90 | AA80: =T80 -> 15 | AC80: =X80 -> 10 | AD80: =Y80 -> 50 | AE80: =Z80 -> 90 | AF80: =AA80 -> 15 | AH80: =R80 -> 50 | AI80: =S80 -> 90 | AJ80: =U80 -> 200 | AK80: =T80 -> 15 | AM80: =S80 -> 90 | AN80: =U80 -> 200 | AO80: =V80 -> 500 | AP80: =V80 -> 500
B81: Cost | C81: StarRank 1 | E81: Cost | F81: StarRank 2 | H81: Cost | I81: StarRank 3 | K81: Cost | L81: StarRank 4 | N81: Cost | O81: StarRank 5 | Q81: 150 | R81: 350 | S81: 500 | X81: 150 | Y81: 350 | Z81: 500 | AC81: 150 | AD81: 350 | AE81: 500 | AH81: 350 | AI81: 500 | AM81: 500 | AN81: 350
B82: 100 Coins | C82: 1500 XP | E82: 100 Coins | F82: 1500 XP | H82: 100 Coins | I82: 1500 XP | K82: 100 Coins | L82: 1500 XP | N82: 100 Coins | O82: 1500 XP | Q82: 0.99 | X82: 0.99 | AC82: 0.99 | AH82: 0.99 | AM82: 0.99
B83: =CONCATENATE(Z52,Z51) -> 1033 XP | C83: 1 card pack | E83: =CONCATENATE(Z56,Z51) -> 2100 XP | F83: 1 card pack | H83: =CONCATENATE(Z60,Z51) -> 3100 XP | I83: 1 card pack | K83: =CONCATENATE(Z64,Z51) -> 4800 XP | L83: 1 card pack | N83: =CONCATENATE(Z68,Z51) -> 10800 XP | O83: 1 card pack | Q83: 1000 | X83: 1000 | AC83: 1000 | AH83: 1000 | AM83: 1000
B84: =CONCATENATE(AA53,$AA$51) -> 110 coins | C84: 2 card packs | E84: =CONCATENATE(AA57,AA$51) -> 210 coins | F84: 2 card packs | H84: =CONCATENATE(AA61,AA$51) -> 400 coins | I84: 2 card packs | K84: =CONCATENATE(AA65,AA$51) -> 480 coins | L84: 2 card packs | N84: =CONCATENATE(AA69,AA$51) -> 1100 coins | O84: 2 card packs | Q84: 0.99 | S84: =SUM(Q93:S93) -> 50 | X84: 0.99 | Z84: =SUM(X93:Z93) -> 90 | AC84: 0.99 | AE84: =SUM(AC93:AE93) -> 250 | AH84: 0.99 | AJ84: =SUM(AH93:AJ93) -> 290 | AM84: 0.99 | AO84: =SUM(AM93:AO93) -> 560
B85: =CONCATENATE(AA54,$AA$51) -> 310 coins | C85: 7 card packs | E85: =CONCATENATE(AA58,AA$51) -> 630 coins | F85: 7 card packs | H85: =CONCATENATE(AA62,AA$51) -> 1000 coins | I85: 7 card packs | K85: =CONCATENATE(AA66,AA$51) -> 1440 coins | L85: 7 card packs | N85: =CONCATENATE(AA70,AA$51) -> 3300 coins | O85: 7 card packs | Q85: 2.99 | R85: =AVERAGE(S84:S86)/100 -> 1.033333333 | S85: =SUM(Q94:S94) -> 90 | X85: 2.99 | Y85: =AVERAGE(Z84:Z86)/100 -> 2.1 | Z85: =SUM(X94:Z94) -> 210 | AC85: 2.99 | AD85: =AVERAGE(AE84:AE86)/100 -> 3.033333333 | AE85: =SUM(AC94:AE94) -> 290 | AH85: 2.99 | AI85: =AVERAGE(AJ84:AJ86)/100 -> 4.8 | AJ85: =SUM(AH94:AJ94) -> 480 | AM85: 2.99 | AN85: =AVERAGE(AO84:AO86)/100 -> 10.8 | AO85: =SUM(AM94:AO94) -> 1080
B86: =CONCATENATE(AA55,$AA$51) -> 1040 coins | C86: 25 card packs | E86: =CONCATENATE(AA59,AA$51) -> 2100 coins | F86: 25 card packs | H86: =CONCATENATE(AA63,AA$51) -> 3100 coins | I86: 25 card packs | K86: =CONCATENATE(AA67,AA$51) -> 4800 coins | L86: 25 card packs | N86: =CONCATENATE(AA71,AA$51) -> 10800 coins | O86: 25 card packs | Q86: 9.99 | S86: =SUM(Q95:S95) -> 170 | X86: 9.99 | Z86: =SUM(X95:Z95) -> 330 | AC86: 9.99 | AE86: =SUM(AC95:AE95) -> 370 | AH86: 9.99 | AJ86: =SUM(AH95:AJ95) -> 670 | AM86: 9.99 | AO86: =SUM(AM95:AO95) -> 1600
B88: Odds | C88: Assortment | E88: Odds | F88: Assortment | H88: Odds | I88: Assortment | K88: Odds | L88: Assortment | N88: Odds | O88: Assortment
B89: 50% Type A | C89: =CONCATENATE(Q89,Q$79,R89,R$79,S89,S$79,T89,T$79) -> 5 StarRank 1 Player Card, 0 StarRank 2 Player Card, 0 StarRank 3 Player Card, 1 Offensive or Defensive Play | E89: 50% Type A | F89: =CONCATENATE(X89,X$79,Y89,Y$79,Z89,Z$79,AA89,AA$79) -> 4 StarRank 1 Player Card, 1 StarRank 2 Player Card, 0 StarRank 3 Player Card, 1 Offensive or Defensive Play | H89: 50% Type A | I89: =CONCATENATE(AC89,AC$79,AD89,AD$79,AE89,AE$79,AF89,AF$79) -> 2 StarRank 1 Player Card, 1 StarRank 2 Player Card, 2 StarRank 3 Player Card, 1 Offensive or Defensive Play | K89: 50% Type A | L89: =CONCATENATE(AH89,AH$79,AI89,AI$79,AJ89,AJ$79,AK89,AK$79) -> 4 StarRank 2 Player Card, 1 StarRank 3 Player Card, 0StarRank 4 Player Card1 Offensive or Defensive Play | N89: 50% Type A | O89: =CONCATENATE(AM89,AM$79,AN89,AN$79,AO89,AO$79,AP89,AP$79) -> 4 StarRank 3 Player Card, 1StarRank 4 Player Card0StarRank 5 Player Card1 Offensive or Defensive Play | Q89: =Q120 -> 5 | R89: 0 | S89: 0 | T89: 1 | X89: =X120 -> 4 | Y89: 1 | Z89: 0 | AA89: 1 | AC89: =AC120 -> 2 | AD89: 1 | AE89: 2 | AF89: 1 | AH89: =AH120 -> 4 | AI89: 1 | AJ89: 0 | AK89: 1 | AM89: =AM120 -> 4 | AN89: 1 | AO89: 0 | AP89: 1
B90: 30% Type B | C90: =CONCATENATE(Q90,Q$79,R90,R$79,S90,S$79,T90,T$79) -> 4 StarRank 1 Player Card, 1 StarRank 2 Player Card, 0 StarRank 3 Player Card, 1 Offensive or Defensive Play | E90: 30% Type B | F90: =CONCATENATE(X90,X$79,Y90,Y$79,Z90,Z$79,AA90,AA$79) -> 2 StarRank 1 Player Card, 2 StarRank 2 Player Card, 1 StarRank 3 Player Card, 1 Offensive or Defensive Play | H90: 30% Type B | I90: =CONCATENATE(AC90,AC$79,AD90,AD$79,AE90,AE$79,AF90,AF$79) -> 1 StarRank 1 Player Card, 2 StarRank 2 Player Card, 2 StarRank 3 Player Card, 1 Offensive or Defensive Play | K90: 30% Type B | L90: =CONCATENATE(AH90,AH$79,AI90,AI$79,AJ90,AJ$79,AK90,AK$79) -> 2 StarRank 2 Player Card, 2 StarRank 3 Player Card, 1StarRank 4 Player Card1 Offensive or Defensive Play | N90: 30% Type B | O90: =CONCATENATE(AM90,AM$79,AN90,AN$79,AO90,AO$79,AP90,AP$79) -> 2 StarRank 3 Player Card, 2StarRank 4 Player Card1StarRank 5 Player Card1 Offensive or Defensive Play | Q90: 4 | R90: 1 | S90: 0 | T90: 1 | X90: 2 | Y90: 2 | Z90: 1 | AA90: 1 | AC90: 1 | AD90: 2 | AE90: 2 | AF90: 1 | AH90: =AH121 -> 2 | AI90: 2 | AJ90: 1 | AK90: 1 | AM90: =AM121 -> 2 | AN90: 2 | AO90: 1 | AP90: 1
B91: 20% Type C | C91: =CONCATENATE(Q91,Q$79,R91,R$79,S91,S$79,T91,T$79) -> 3 StarRank 1 Player Card, 1 StarRank 2 Player Card, 1 StarRank 3 Player Card, 1 Offensive or Defensive Play | E91: 20% Type C | F91: =CONCATENATE(X91,X$79,Y91,Y$79,Z91,Z$79,AA91,AA$79) -> 0 StarRank 1 Player Card, 3 StarRank 2 Player Card, 2 StarRank 3 Player Card, 1 Offensive or Defensive Play | H91: 20% Type C | I91: =CONCATENATE(AC91,AC$79,AD91,AD$79,AE91,AE$79,AF91,AF$79) -> 0 StarRank 1 Player Card, 2 StarRank 2 Player Card, 3 StarRank 3 Player Card, 1 Offensive or Defensive Play | K91: 20% Type C | L91: =CONCATENATE(AH91,AH$79,AI91,AI$79,AJ91,AJ$79,AK91,AK$79) -> 0 StarRank 2 Player Card, 3 StarRank 3 Player Card, 2StarRank 4 Player Card1 Offensive or Defensive Play | N91: 20% Type C | O91: =CONCATENATE(AM91,AM$79,AN91,AN$79,AO91,AO$79,AP91,AP$79) -> 0 StarRank 3 Player Card, 3StarRank 4 Player Card2StarRank 5 Player Card1 Offensive or Defensive Play | Q91: 3 | R91: 1 | S91: 1 | T91: 1 | X91: 0 | Y91: 3 | Z91: 2 | AA91: 1 | AC91: 0 | AD91: 2 | AE91: 3 | AF91: 1 | AH91: =AH122 -> 0 | AI91: 3 | AJ91: 2 | AK91: 1 | AM91: =AM122 -> 0 | AN91: 3 | AO91: 2 | AP91: 1
B92: Power rank points per card = | C92: =Q80 -> 10 | E92: Power rank points per card = | F92: =R80 -> 50 | H92: Power rank points per card = | I92: =S80 -> 90 | K92: Power rank points per card = | L92: =U80 -> 200 | N92: Power rank points per card = | O92: =V80 -> 500
Q93: =Q89*Q$80 -> 50 | R93: 0 | S93: 0 | X93: =X89*X$80 -> 40 | Y93: 50 | Z93: 0 | AC93: =AC89*AC$80 -> 20 | AD93: =AD89*AD$80 -> 50 | AE93: 180 | AH93: =AH89*AH$80 -> 200 | AI93: =AI89*AI$80 -> 90 | AJ93: 0 | AM93: =AM89*AM$80 -> 360 | AN93: =AN89*AN$80 -> 200 | AO93: 0
B94: How often should players get rare cards? | Q94: 40 | R94: 50 | S94: 0 | X94: 20 | Y94: 100 | Z94: 90 | AC94: 10 | AD94: 100 | AE94: 180 | AH94: =AH90*AH$80 -> 100 | AI94: 180 | AJ94: 200 | AM94: =AM90*AM$80 -> 180 | AN94: 400 | AO94: 500
B95: A: at least once with a 7 card pack. The goal is to statistically give the player at least one StarRank 3 card with each purchse of a 7 card bundle. There are only 15 StarRank 3 cards total, so we want to be judicious in granting them. The game is maxed out once every starter has a StarRank 3 card for every quarter, which is 12 StarRank 3 cards. The whale will want to use 12 *specific* StarRank 3 cards, so they will likely keep collecting until they have the StarRank 3 card lineup they are looking for. If the player is not spending, they are statistically getting a StarRank 3 card every 5 days due to the daily log in bonus. | Q95: 30 | R95: 50 | S95: 90 | X95: 0 | Y95: 150 | Z95: 180 | AC95: 0 | AD95: 100 | AE95: 270 | AH95: =AH91*AH$80 -> 0 | AI95: 270 | AJ95: 400 | AM95: =AM91*AM$80 -> 0 | AN95: 600 | AO95: 1000
Q97: Backup stats from v12.8
Q98: 5 | R98: 0 | S98: 0 | X98: 4 | Y98: 1 | Z98: 0 | AC98: 1 | AD98: 3 | AE98: 1 | AH98: 1 | AI98: 3 | AJ98: 1 | AM98: 1 | AN98: 3 | AO98: 1
B99: How often should a player get cards if they are not spending? | Q99: 4 | R99: 1 | S99: 0 | X99: 2 | Y99: 2 | Z99: 1 | AC99: 0 | AD99: 3 | AE99: 2 | AH99: 0 | AI99: 3 | AJ99: 2 | AM99: 0 | AN99: 3 | AO99: 2
B100: A: "Bonus Card Packs" should be granted on a geometric scale. The goal is to give the player a taste of opening card packs early without breaking the economy. If players are getting free card packs after every game, it keeps them in the game, but it creates no pain points and therefore there is no reason for them to spend money. Therefore, "bonus packs" should be granted as a daily log in bonus. We also need to create 7 and 30 day notifications: "Coach, your team needs you!" | Q100: 3 | R100: 1 | S100: 1 | X100: 0 | Y100: 3 | Z100: 2 | AC100: 0 | AD100: 2 | AE100: 3 | AH100: 0 | AI100: 2 | AJ100: 3 | AM100: 0 | AN100: 2 | AO100: 3
Q102: Cards per pack | S102: Cards per pack Weight
Q103: ='Design Interface'!I49 -> 6 | S103: =Q103/6 -> 1
B105: Consuming Cards
B106: Cards need to be consumeable. The reason for this is that players will get duplicates and there needs to be an incentive to clean unwanted cards out of the inventory. There are two options: | U106: sum | AB106: sum | AG106: sum | AL106: sum | AQ106: sum
Q107: 3 | R107: 1 | S107: 2 | T107: 1 | U107: =SUM(Q107:T107) -> 7 | X107: 4 | Y107: 1 | Z107: 1 | AA107: 1 | AB107: =SUM(X107:AA107) -> 7 | AC107: 3 | AD107: 1 | AE107: 2 | AF107: 1 | AG107: =SUM(AC107:AF107) -> 7 | AH107: 4 | AI107: 1 | AJ107: 1 | AK107: 1 | AL107: =SUM(AH107:AK107) -> 7 | AM107: 4 | AN107: 1 | AO107: 1 | AP107: 1 | AQ107: =SUM(AM107:AP107) -> 7
B108: Card Fusion | Q108: 2 | R108: 2 | S108: 2 | T108: 1 | U108: =SUM(Q108:T108) -> 7 | X108: 2 | Y108: 2 | Z108: 2 | AA108: 1 | AB108: =SUM(X108:AA108) -> 7 | AC108: 2 | AD108: 2 | AE108: 2 | AF108: 1 | AG108: =SUM(AC108:AF108) -> 7 | AH108: 2 | AI108: 2 | AJ108: 2 | AK108: 1 | AL108: =SUM(AH108:AK108) -> 7 | AM108: 2 | AN108: 2 | AO108: 2 | AP108: 1 | AQ108: =SUM(AM108:AP108) -> 7
B109: Players have the option to combine dupes and trash cards to earn XP that you can spend on players.This is done via CARD FUSION below: | Q109: 1 | R109: 2 | S109: 3 | T109: 1 | U109: =SUM(Q109:T109) -> 7 | X109: 0 | Y109: 3 | Z109: 3 | AA109: 1 | AB109: =SUM(X109:AA109) -> 7 | AC109: 1 | AD109: 2 | AE109: 3 | AF109: 1 | AG109: =SUM(AC109:AF109) -> 7 | AH109: 0 | AI109: 3 | AJ109: 3 | AK109: 1 | AL109: =SUM(AH109:AK109) -> 7 | AM109: 0 | AN109: 3 | AO109: 3 | AP109: 1 | AQ109: =SUM(AM109:AP109) -> 7
B110: Card Fusion
B111: =L112 -> StarRank 1 cards | C111: =CONCATENATE(K$111,K112,L112,M$111,M112,N112) -> Combine 3x StarRank 1 cards to earn 1x StarRank 2 cards | K111: Combine | L111: 3x | M111: to earn | N111: 1x | Q111: Card pack weight | X111: Card pack weight | AC111: Card pack weight | AH111: Card pack weight | AM111: Card pack weight
B112: =L113 -> StarRank 2 cards | C112: =CONCATENATE(K$111,K113,L113,M$111,M113,N113) -> Combine 3x StarRank 2 cards to earn 1x StarRank 3 cards | K112: =L$111 -> 3x | L112: StarRank 1 cards | M112: =N$111 -> 1x | N112: StarRank 2 cards | Q112: 12 | R112: -5.2 | S112: -14 | T112: 0 | X112: -0.1 | Y112: 0 | Z112: -7 | AA112: 0 | AC112: -7 | AD112: 0 | AE112: 0 | AF112: 0 | AH112: -1 | AI112: 0 | AJ112: -7 | AK112: 0 | AM112: -1 | AN112: 0 | AO112: -7 | AP112: 0
B113: StarRank 3 cards | C113: =CONCATENATE(K$111,K114,L114,M$111,M114,N114) -> Combine 3x StarRank 3 cards to earn 1x StarRank 4 Cards | K113: =L$111 -> 3x | L113: StarRank 2 cards | M113: =N$111 -> 1x | N113: StarRank 3 cards | Q113: =Q112*$AE$128 -> 1.714285714 | R113: =R112*$AE$128 -> -0.7428571429 | S113: =S112*$AE$128 -> -2 | T113: =T112*$AE$131 -> 0 | X113: =X112*$AE$128 -> -0.01428571429 | Y113: =Y112*$AE$128 -> 0 | Z113: =Z112*$AE$128 -> -1 | AA113: =AA112*$AE$131 -> 0 | AC113: =AC112*$AE$128 -> -1 | AD113: =AD112*$AE$128 -> 0 | AE113: =AE112*$AE$128 -> 0 | AF113: =AF112*$AE$131 -> 0 | AH113: =AH112*$AE$128 -> -0.1428571429 | AI113: =AI112*$AE$128 -> 0 | AJ113: =AJ112*$AE$128 -> -1 | AK113: =AK112*$AE$131 -> 0 | AM113: =AM112*$AE$128 -> -0.1428571429 | AN113: =AN112*$AE$128 -> 0 | AO113: =AO112*$AE$128 -> -1 | AP113: =AP112*$AE$131 -> 0
B114: StarRank 4 Cards | C114: =CONCATENATE(K$111,K115,L115,M$111,M115,N115) -> Combine 3x StarRank 4 Cards to earn 1x StarRank 5 Cards | K114: =L$111 -> 3x | L114: StarRank 3 cards | M114: 1x | N114: StarRank 4 Cards
B115: =N115 -> StarRank 5 Cards | C115: StarRank 5 Cards are already maxed out | K115: =L$111 -> 3x | L115: StarRank 4 Cards | M115: 1x | N115: StarRank 5 Cards | Q115: =Q107+Q$113 -> 4.714285714 | R115: 0.2571428571 | S115: 0 | T115: 1 | X115: =X107+X$113 -> 3.985714286 | Y115: 1 | Z115: 0 | AA115: 1 | AC115: =AC107+AC$113 -> 2 | AD115: 1 | AE115: 2 | AF115: 1 | AH115: =AH107+AH$113 -> 3.857142857 | AI115: =AI107+AI$113 -> 1 | AJ115: =AJ107+AJ$113 -> 0 | AK115: =AK107+AK$113 -> 1 | AM115: =AM107+AM$113 -> 3.857142857 | AN115: 1 | AO115: 0 | AP115: 1
Q116: =Q107+Q$113 -> 4.714285714 | R116: 0.2571428571 | S116: 0 | T116: 1 | X116: =X107+X$113 -> 3.985714286 | Y116: 1 | Z116: 0 | AA116: 1 | AC116: =AC107+AC$113 -> 2 | AD116: 1 | AE116: 2 | AF116: 1 | AH116: =AH107+AH$113 -> 3.857142857 | AI116: 1 | AJ116: 0 | AK116: 1 | AM116: =AM107+AM$113 -> 3.857142857 | AN116: 1 | AO116: 0 | AP116: 1
B117: Trash Cards | Q117: 3.714285714 | R117: 1.257142857 | S117: 0 | T117: 1 | X117: 1.985714286 | Y117: 2 | Z117: 1 | AA117: 1 | AC117: 1 | AD117: 2 | AE117: 2 | AF117: 1 | AH117: 1.857142857 | AI117: 2 | AJ117: 1 | AK117: 1 | AM117: 1.857142857 | AN117: 2 | AO117: 1 | AP117: 1
B118: Players have the option to combine dupes and trash cards to earn XP that you can spend on players.This is done via CARD FUSION below: | Q118: 2.714285714 | R118: 1.257142857 | S118: 1 | T118: 1 | X118: -0.01428571429 | Y118: 3 | Z118: 2 | AA118: 1 | AC118: 0 | AD118: 2 | AE118: 3 | AF118: 1 | AH118: -0.1428571429 | AI118: 3 | AJ118: 2 | AK118: 1 | AM118: =AM109+AM$113 -> -0.1428571429 | AN118: 3 | AO118: 2 | AP118: 1
B119: For each card deleted: | C119: earn | Q119: StarRank 1 Cards | R119: StarRank 2 Cards | S119: StarRank 3 Cards | T119: Off/Def plays | X119: StarRank 1 Cards | Y119: StarRank 2 Cards | Z119: StarRank 3 Cards | AA119: Off/Def plays | AC119: StarRank 1 Cards | AD119: StarRank 2 Cards | AE119: StarRank 3 Cards | AF119: Off/Def plays | AH119: StarRank 1 Cards | AI119: StarRank 2 Cards | AJ119: StarRank 3 Cards | AK119: Off/Def plays | AM119: StarRank 1 Cards | AN119: StarRank 2 Cards | AO119: StarRank 3 Cards | AP119: Off/Def plays
B120: StarRank 1 cards | C120: 100 | D120: XP | Q120: =IF(ROUND(Q115*$S$103,0)<0,0,ROUND(Q115*$S$103,0)) -> 5 | R120: =IF(ROUND(R115*$S$103,0)<0,0,ROUND(R115*$S$103,0)) -> 0 | S120: =IF(ROUND(S115*$S$103,0)<0,0,ROUND(S115*$S$103,0)) -> 0 | T120: =IF(ROUND(T115*$S$103,0)<0,0,ROUND(T115*$S$103,0))-U144 -> 1 | U120: =SUM(Q120:T120) -> 6 | X120: =IF(ROUND(X115*$S$103,0)<0,0,ROUND(X115*$S$103,0)) -> 4 | Y120: =IF(ROUND(Y115*$S$103,0)<0,0,ROUND(Y115*$S$103,0)) -> 1 | Z120: =IF(ROUND(Z115*$S$103,0)<0,0,ROUND(Z115*$S$103,0)) -> 0 | AA120: =IF(ROUND(AA115*$S$103,0)<0,0,ROUND(AA115*$S$103,0))-AB144 -> 1 | AB120: =SUM(X120:AA120) -> 6 | AC120: =IF(ROUND(AC115*$S$103,0)<0,0,ROUND(AC115*$S$103,0)) -> 2 | AD120: =IF(ROUND(AD115*$S$103,0)<0,0,ROUND(AD115*$S$103,0)) -> 1 | AE120: =IF(ROUND(AE115*$S$103,0)<0,0,ROUND(AE115*$S$103,0)) -> 2 | AF120: =IF(ROUND(AF115*$S$103,0)<0,0,ROUND(AF115*$S$103,0))-AG144 -> 1 | AG120: =SUM(AC120:AF120) -> 6 | AH120: =IF(ROUND(AH115*$S$103,0)<0,0,ROUND(AH115*$S$103,0)) -> 4 | AI120: 1 | AJ120: 0 | AK120: =IF(ROUND(AK115*$S$103,0)<0,0,ROUND(AK115*$S$103,0))-AL144 -> 1 | AL120: =SUM(AH120:AK120) -> 6 | AM120: =IF(ROUND(AM115*$S$103,0)<0,0,ROUND(AM115*$S$103,0)) -> 4 | AN120: 1 | AO120: 0 | AP120: =IF(ROUND(AP115*$S$103,0)<0,0,ROUND(AP115*$S$103,0))-AQ144 -> 1 | AQ120: =SUM(AM120:AP120) -> 6
B121: StarRank 2 cards | C121: 200 | D121: XP | Q121: =IF(ROUND(Q117*$S$103,0)<0,0,ROUND(Q117*$S$103,0)) -> 4 | R121: 1 | S121: 0 | T121: =IF(ROUND(T117*$S$103,0)<0,0,ROUND(T117*$S$103,0))-U145 -> 1 | U121: =SUM(Q121:T121) -> 6 | X121: =IF(ROUND(X117*$S$103,0)<0,0,ROUND(X117*$S$103,0)) -> 2 | Y121: 2 | Z121: 1 | AA121: =IF(ROUND(AA117*$S$103,0)<0,0,ROUND(AA117*$S$103,0))-AB145 -> 1 | AB121: =SUM(X121:AA121) -> 6 | AC121: =IF(ROUND(AC117*$S$103,0)<0,0,ROUND(AC117*$S$103,0)) -> 1 | AD121: 2 | AE121: 2 | AF121: =IF(ROUND(AF117*$S$103,0)<0,0,ROUND(AF117*$S$103,0))-AG145 -> 1 | AG121: =SUM(AC121:AF121) -> 6 | AH121: =IF(ROUND(AH117*$S$103,0)<0,0,ROUND(AH117*$S$103,0)) -> 2 | AI121: 2 | AJ121: 1 | AK121: =IF(ROUND(AK117*$S$103,0)<0,0,ROUND(AK117*$S$103,0))-AL145 -> 1 | AL121: =SUM(AH121:AK121) -> 6 | AM121: =IF(ROUND(AM117*$S$103,0)<0,0,ROUND(AM117*$S$103,0)) -> 2 | AN121: 2 | AO121: 1 | AP121: =IF(ROUND(AP117*$S$103,0)<0,0,ROUND(AP117*$S$103,0))-AQ145 -> 1 | AQ121: =SUM(AM121:AP121) -> 6
B122: StarRank 3 cards | C122: 300 | D122: XP | Q122: 3 | R122: 1 | S122: 1 | T122: =IF(ROUND(T118*$S$103,0)<0,0,ROUND(T118*$S$103,0))-U146 -> 1 | U122: =SUM(Q122:T122) -> 6 | X122: 0 | Y122: 3 | Z122: 2 | AA122: =IF(ROUND(AA118*$S$103,0)<0,0,ROUND(AA118*$S$103,0))-AB146 -> 1 | AB122: =SUM(X122:AA122) -> 6 | AC122: 0 | AD122: 2 | AE122: 3 | AF122: =IF(ROUND(AF118*$S$103,0)<0,0,ROUND(AF118*$S$103,0))-AG146 -> 1 | AG122: =SUM(AC122:AF122) -> 6 | AH122: =IF(ROUND(AH118*$S$103,0)<0,0,ROUND(AH118*$S$103,0)) -> 0 | AI122: 3 | AJ122: 2 | AK122: =IF(ROUND(AK118*$S$103,0)<0,0,ROUND(AK118*$S$103,0))-AL146 -> 1 | AL122: =SUM(AH122:AK122) -> 6 | AM122: =IF(ROUND(AM118*$S$103,0)<0,0,ROUND(AM118*$S$103,0)) -> 0 | AN122: 3 | AO122: 2 | AP122: =IF(ROUND(AP118*$S$103,0)<0,0,ROUND(AP118*$S$103,0))-AQ146 -> 1 | AQ122: =SUM(AM122:AP122) -> 6
B123: StarRank 4 cards | C123: 400 | D123: XP | Q123: =AVERAGE(Q120:Q122) -> 4 | R123: =AVERAGE(R120:R122) -> 0.6666666667 | S123: =AVERAGE(S120:S122) -> 0.3333333333 | T123: =AVERAGE(T120:T122) -> 1 | X123: =AVERAGE(X120:X122) -> 2 | Y123: =AVERAGE(Y120:Y122) -> 2 | Z123: =AVERAGE(Z120:Z122) -> 1 | AA123: =AVERAGE(AA120:AA122) -> 1 | AC123: =AVERAGE(AC120:AC122) -> 1 | AD123: =AVERAGE(AD120:AD122) -> 1.666666667 | AE123: =AVERAGE(AE120:AE122) -> 2.333333333 | AF123: =AVERAGE(AF120:AF122) -> 1 | AH123: =AVERAGE(AH120:AH122) -> 2 | AI123: =AVERAGE(AI120:AI122) -> 2 | AJ123: =AVERAGE(AJ120:AJ122) -> 1 | AK123: =AVERAGE(AK120:AK122) -> 1 | AM123: =AVERAGE(AM120:AM122) -> 2 | AN123: =AVERAGE(AN120:AN122) -> 2 | AO123: =AVERAGE(AO120:AO122) -> 1 | AP123: =AVERAGE(AP120:AP122) -> 1
B124: StarRank 5 cards | C124: 500 | D124: XP | T124: =SUM(Q123:T123) -> 6 | AA124: =SUM(X123:AA123) -> 6 | AF124: =SUM(AC123:AF123) -> 6 | AK124: =SUM(AH123:AK123) -> 6 | AP124: =SUM(AM123:AP123) -> 6
B125: Auction Market
B126: Players have the option to trade cards with the player community online. Trades are one for one. | Q126: Card Pack Distribution | R126: StarRank 1 Cards | S126: StarRank 2 Cards | T126: StarRank 3 Cards | U126: StarRank 4 | V126: StarRank 5 | W126: Off/Def plays | AE126: Total Weight
Q127: StarRank 1 Pack | R127: =Q123 -> 4 | S127: =R123 -> 0.6666666667 | T127: =S123 -> 0.3333333333 | U127: 0 | V127: 0 | W127: =T123 -> 1 | AE127: ='Design Interface'!C50 -> 1
Q128: StarRank 2 Pack | R128: =X123 -> 2 | S128: =Y123 -> 2 | T128: =Z123 -> 1 | U128: 0 | V128: 0 | W128: =AA123 -> 1 | AE128: ='Design Interface'!D50 -> 0.1428571429
Q129: StarRank 3 Pack | R129: =AC123 -> 1 | S129: =AD123 -> 1.666666667 | T129: =AE123 -> 2.333333333 | U129: 0 | V129: 0 | W129: =AF123 -> 1 | AE129: ='Design Interface'!E50 -> 0.2857142857
Q130: StarRank 4 Pack | R130: 0 | S130: =AH123 -> 2 | T130: =AI123 -> 2 | U130: =AJ123 -> 1 | V130: 0 | W130: =AK123 -> 1 | AE130: ='Design Interface'!F50 -> 0.4285714286
Q131: StarRank 5 Pack | R131: 0 | S131: 0 | T131: =AM123 -> 2 | U131: =AN123 -> 2 | V131: =AO123 -> 1 | W131: =AP123 -> 1 | AE131: ='Design Interface'!G50 -> 0.1428571429
P134: `
Q142: Card balance | X142: Card balance | AC142: Card balance
Q143: StarRank 1 Cards | R143: StarRank 2 Cards | S143: StarRank 3 Cards | T143: Off/Def plays | X143: StarRank 1 Cards | Y143: StarRank 2 Cards | Z143: StarRank 3 Cards | AA143: Off/Def plays | AC143: StarRank 1 Cards | AD143: StarRank 2 Cards | AE143: StarRank 3 Cards | AF143: Off/Def plays
Q144: =IF(ROUND(Q115*$S$103,0)<0,0,ROUND(Q115*$S$103,0)) -> 5 | R144: =IF(ROUND(R115*$S$103,0)<0,0,ROUND(R115*$S$103,0)) -> 0 | S144: =IF(ROUND(S115*$S$103,0)<0,0,ROUND(S115*$S$103,0)) -> 0 | T144: =IF(ROUND(T115*$S$103,0)<0,0,ROUND(T115*$S$103,0)) -> 1 | U144: =SUM(Q144:T144)-$Q$103 -> 0 | X144: =IF(ROUND(X115*$S$103,0)<0,0,ROUND(X115*$S$103,0)) -> 4 | Y144: =IF(ROUND(Y115*$S$103,0)<0,0,ROUND(Y115*$S$103,0)) -> 1 | Z144: =IF(ROUND(Z115*$S$103,0)<0,0,ROUND(Z115*$S$103,0)) -> 0 | AA144: =IF(ROUND(AA115*$S$103,0)<0,0,ROUND(AA115*$S$103,0)) -> 1 | AB144: =SUM(X144:AA144)-$Q$103 -> 0 | AC144: =IF(ROUND(AC115*$S$103,0)<0,0,ROUND(AC115*$S$103,0)) -> 2 | AD144: =IF(ROUND(AD115*$S$103,0)<0,0,ROUND(AD115*$S$103,0)) -> 1 | AE144: =IF(ROUND(AE115*$S$103,0)<0,0,ROUND(AE115*$S$103,0)) -> 2 | AF144: =IF(ROUND(AF115*$S$103,0)<0,0,ROUND(AF115*$S$103,0)) -> 1 | AG144: =SUM(AC144:AF144)-$Q$103 -> 0
Q145: =IF(ROUND(Q117*$S$103,0)<0,0,ROUND(Q117*$S$103,0)) -> 4 | R145: 1 | S145: 0 | T145: 1 | U145: =SUM(Q145:T145)-$Q$103 -> 0 | X145: =IF(ROUND(X117*$S$103,0)<0,0,ROUND(X117*$S$103,0)) -> 2 | Y145: 2 | Z145: 1 | AA145: 1 | AB145: =SUM(X145:AA145)-$Q$103 -> 0 | AC145: =IF(ROUND(AC117*$S$103,0)<0,0,ROUND(AC117*$S$103,0)) -> 1 | AD145: 2 | AE145: 2 | AF145: 1 | AG145: =SUM(AC145:AF145)-$Q$103 -> 0
Q146: 3 | R146: 1 | S146: 1 | T146: 1 | U146: =SUM(Q146:T146)-$Q$103 -> 0 | X146: 0 | Y146: 3 | Z146: 2 | AA146: 1 | AB146: =SUM(X146:AA146)-$Q$103 -> 0 | AC146: 0 | AD146: 2 | AE146: 3 | AF146: 1 | AG146: =SUM(AC146:AF146)-$Q$103 -> 0

Sheet Quarterback Stats
B1: Quarterback Stats
B2: Instructions:
C3: Use only YELLOW inputs to change stats.
B6: Q | E6: Quarterback | AH6: 1 | AI6: Stat | AN6: Description | AR6: 0 | AS6: 1 | AT6: 2 | AU6: 3 | AV6: 4 | AW6: 5
AH7: 2 | AI7: Health | AN7: Add to total health | AS7: 10 | AT7: 20 | AU7: 30 | AV7: 40 | AW7: 50 | AY7: Health: Add to total health:
B8: Choose QB: | E8: Rock Mason | M8: Power: | N8: =VLOOKUP($E$8,$AI$23:$BX$40,22,FALSE) -> Rock | R8: =VLOOKUP($E$8,$AI$23:$BX$40,23,FALSE) -> Adds seconds to Invulnerability | AH8: 3 | AI8: Wounding | AN8: Adds to base damage | AS8: 2 | AT8: 4 | AU8: 6 | AV8: 8 | AW8: 10 | AY8: Wounding: Adds to base damage
AH9: 4 | AI9: Speed | AN9: Adds % top speed | AS9: 0.05 | AT9: 0.1 | AU9: 0.15 | AV9: 0.2 | AW9: 0.25 | AY9: Speed: Adds % top speed
AH10: 8 | AI10: Catch | AN10: Adds % to catching | AS10: 0.05 | AT10: 0.1 | AU10: 0.15 | AV10: 0.2 | AW10: 0.25 | AY10: Hands (Catch): Adds % to Catch
AH11: 9 | AI11: Carry | AN11: Detracts from fumble% | AS11: 0.01 | AT11: 0.02 | AU11: 0.03 | AV11: 0.04 | AW11: 0.05 | AY11: Hands(Carry): Detracts from fumble%
D12: Current Level: | E12: =MAX(N13:AG13) -> 0 | N12: Level Up! | Q12: Mark an "x" in a single category in the YELLOW fields below. Delete "x's" to clear. | AH12: 10 | AI12: Elusiveness | AN12: Decrease Tackle% | AS12: 0.01 | AT12: 0.03 | AU12: 0.06 | AV12: 0.09 | AW12: 0.12 | AY12: Tackle Break (Elusiveness): Decrease Tackle%
M13: Level: | N13: =IF(COUNTIF(N14:N27,"x")>0,1,0) -> 0 | O13: =IF(COUNTIF(O14:O27,"x")>0,1+COUNTIF($N13:N13,">0"),0) -> 0 | P13: =IF(COUNTIF(P14:P27,"x")>0,1+COUNTIF($N13:O13,">0"),0) -> 0 | Q13: =IF(COUNTIF(Q14:Q27,"x")>0,1+COUNTIF($N13:P13,">0"),0) -> 0 | R13: =IF(COUNTIF(R14:R27,"x")>0,1+COUNTIF($N13:Q13,">0"),0) -> 0 | S13: =IF(COUNTIF(S14:S27,"x")>0,1+COUNTIF($N13:R13,">0"),0) -> 0 | T13: =IF(COUNTIF(T14:T27,"x")>0,1+COUNTIF($N13:S13,">0"),0) -> 0 | U13: =IF(COUNTIF(U14:U27,"x")>0,1+COUNTIF($N13:T13,">0"),0) -> 0 | V13: =IF(COUNTIF(V14:V27,"x")>0,1+COUNTIF($N13:U13,">0"),0) -> 0 | W13: =IF(COUNTIF(W14:W27,"x")>0,1+COUNTIF($N13:V13,">0"),0) -> 0 | X13: =IF(COUNTIF(X14:X27,"x")>0,1+COUNTIF($N13:W13,">0"),0) -> 0 | Y13: =IF(COUNTIF(Y14:Y27,"x")>0,1+COUNTIF($N13:X13,">0"),0) -> 0 | Z13: =IF(COUNTIF(Z14:Z27,"x")>0,1+COUNTIF($N13:Y13,">0"),0) -> 0 | AA13: =IF(COUNTIF(AA14:AA27,"x")>0,1+COUNTIF($N13:Z13,">0"),0) -> 0 | AB13: =IF(COUNTIF(AB14:AB27,"x")>0,1+COUNTIF($N13:AA13,">0"),0) -> 0 | AC13: =IF(COUNTIF(AC14:AC27,"x")>0,1+COUNTIF($N13:AB13,">0"),0) -> 0 | AD13: =IF(COUNTIF(AD14:AD27,"x")>0,1+COUNTIF($N13:AC13,">0"),0) -> 0 | AE13: =IF(COUNTIF(AE14:AE27,"x")>0,1+COUNTIF($N13:AD13,">0"),0) -> 0 | AF13: =IF(COUNTIF(AF14:AF27,"x")>0,1+COUNTIF($N13:AE13,">0"),0) -> 0 | AG13: =IF(COUNTIF(AG14:AG27,"x")>0,1+COUNTIF($N13:AF13,">0"),0) -> 0 | AH13: 11 | AI13: Tackle | AN13: lncrease Tackle% | AS13: 0.02 | AT13: 0.04 | AU13: 0.06 | AV13: 0.08 | AW13: 0.1 | AY13: Tackle: lncrese Tackle%
B14: =AI7 -> Health | E14: =HLOOKUP(F14,$AR$6:$AW$16,2,FALSE) -> 50 | F14: =VLOOKUP($E$8,$AI$23:$AY$40,L14,FALSE)+(COUNTIF(N14:AG14,"x")) -> 5 | L14: 5 | AH14: 12 | AI14: Pass Block | AN14: lncrease% tipping throw | AS14: 0.02 | AT14: 0.04 | AU14: 0.06 | AV14: 0.08 | AW14: 0.1 | AY14: Pass Block: lncrease% tipping throw
B15: Wounding | D15: + | E15: =HLOOKUP(F15,$AR$6:$AW$16,3,FALSE) -> 8 | F15: 4 | L15: 6 | AH15: 13 | AI15: Run Block | AN15: Increase Tackle % | AS15: 0.005 | AT15: 0.01 | AU15: 0.01 | AV15: 0.02 | AW15: 0.025 | AY15: Run Block: Increase Tackle %
B16: Speed | E16: =HLOOKUP(F16,$AR$6:$AW$16,4,FALSE)+0.45 -> 0.6 | F16: 3 | L16: 7 | AH16: 14 | AI16: Impact | AN16: Increase Fumble % | AS16: 0.002 | AT16: 0.005 | AU16: 0.012 | AV16: 0.015 | AW16: 0.02 | AY16: Run Block (Impact Block): Increase Fumble %
B17: Catch | E17: =HLOOKUP(F17,$AR$6:$AW$16,5,FALSE)+0.5 -> 0.6 | F17: 2 | L17: 8 | AI17: Passing Speed | AN17: Adds % top speed | AS17: 0.02 | AT17: 0.04 | AU17: 0.06 | AV17: 0.08 | AW17: 0.1
B18: Carry | D18: + | E18: =HLOOKUP(F18,$AR$6:$AW$16,6,FALSE) -> 0.01 | F18: 1 | L18: 9 | AI18: Accuracy | AN18: Adds % to Accuracy | AS18: 0.05 | AT18: 0.1 | AU18: 0.15 | AV18: 0.2 | AW18: 0.25
B19: Elusiveness | D19: + | E19: =HLOOKUP(F19,$AR$6:$AW$16,7,FALSE) -> 0.12 | F19: 5 | L19: 10 | AI19: Stength | AN19: Adds % to resist Tackle | AS19: 0.02 | AT19: 0.04 | AU19: 0.06 | AV19: 0.08 | AW19: 0.1
B20: Tackle | D20: + | E20: =HLOOKUP(F20,$AR$6:$AW$16,8,FALSE) -> 0.02 | F20: 1 | L20: 11
B21: Pass Block | D21: + | E21: =HLOOKUP(F21,$AR$6:$AW$16,9,FALSE) -> 0.04 | F21: 2 | L21: 12 | AH21: 1 | AI21: 2 | AJ21: 3 | AK21: 4 | AL21: 5 | AM21: 6 | AN21: 7 | AO21: 8 | AP21: 9 | AQ21: 10 | AR21: 11 | AS21: 12 | AT21: 13 | AU21: 14 | AV21: 15 | AW21: 16 | AX21: 17 | AY21: 18
B22: Run Block | D22: + | E22: =HLOOKUP(F22,$AR$6:$AW$16,10,FALSE) -> 0.005 | F22: 1 | L22: 13 | AI22: Quarterback | AM22: H | AN22: W | AO22: S | AP22: C | AQ22: H | AR22: B | AS22: T | AT22: P | AU22: R | AV22: I | AW22: Sp | AX22: Ac | AY22: St | BA22: Creature Type | BB22: Element | BD22: Special Attack
B23: Impact | D23: + | E23: =HLOOKUP(F23,$AR$6:$AW$16,11,FALSE) -> 0.012 | F23: 3 | L23: 14 | AH23: 1 | AI23: Rock Mason | AM23: 5 | AN23: 4 | AO23: 3 | AP23: 2 | AQ23: 1 | AR23: 5 | AS23: 1 | AT23: 2 | AU23: 1 | AV23: 3 | AW23: 1 | AX23: 3 | AY23: 4 | BA23: =VLOOKUP(AI23,'League Stats'!$C$89:$E$999,2,FALSE) -> Hellion | BB23: =VLOOKUP(AI23,'League Stats'!$C$89:$E$999,3,FALSE) -> Fire | BD23: Rock | BE23: Adds seconds to Invulnerability
AH24: 2 | AI24: Big McHuge | AM24: 4 | AN24: 5 | AO24: 4 | AP24: 3 | AQ24: 2 | AR24: 1 | AS24: 3 | AT24: 3 | AU24: 1 | AV24: 2 | AW24: 2 | AX24: 1 | AY24: 4 | BA24: =VLOOKUP(AI24,'League Stats'!$C$89:$E$999,2,FALSE) -> Droid | BB24: =VLOOKUP(AI24,'League Stats'!$C$89:$E$999,3,FALSE) -> Radiation | BD24: Engulf | BE24: Adds to Radiation damage dealt
B25: =AI17 -> Passing Speed | E25: =HLOOKUP(F25,$AR$6:$AW$19,12,FALSE)+0.9 -> 0.92 | F25: =VLOOKUP($E$8,$AI$23:$AY$40,L25,FALSE)+(COUNTIF(N25:AG25,"x")) -> 1 | L25: 15 | AH25: 3 | AI25: Sludge Thunder | AM25: 3 | AN25: 2 | AO25: 5 | AP25: 4 | AQ25: 3 | AR25: 2 | AS25: 5 | AT25: 3 | AU25: 1 | AV25: 1 | AW25: 3 | AX25: 2 | AY25: 1 | BA25: =VLOOKUP(AI25,'League Stats'!$C$89:$E$999,2,FALSE) -> Elemental | BB25: =VLOOKUP(AI25,'League Stats'!$C$89:$E$999,3,FALSE) -> Fire | BD25: Thunder Charge | BE25: Adds to Speed and Jump
B26: =AI18 -> Accuracy | D26: + | E26: =HLOOKUP(F26,$AR$6:$AW$19,13,FALSE) -> 0.15 | F26: =VLOOKUP($E$8,$AI$23:$AY$40,L26,FALSE)+(COUNTIF(N26:AG26,"x")) -> 3 | L26: 16 | AH26: 4 | AI26: Jack Hammer | AM26: 2 | AN26: 3 | AO26: 4 | AP26: 3 | AQ26: 4 | AR26: 3 | AS26: 1 | AT26: 1 | AU26: 2 | AV26: 3 | AW26: 4 | AX26: 3 | AY26: 2 | BA26: =VLOOKUP(AI26,'League Stats'!$C$89:$E$999,2,FALSE) -> Creature | BB26: =VLOOKUP(AI26,'League Stats'!$C$89:$E$999,3,FALSE) -> Poison | BD26: Fast Ball | BE26: Reduces % Meter requisite
B27: =AI19 -> Stength | D27: + | E27: =HLOOKUP(F27,$AR$6:$AW$19,14,FALSE) -> 0.08 | F27: =VLOOKUP($E$8,$AI$23:$AY$40,L27,FALSE)+(COUNTIF(N27:AG27,"x")) -> 4 | L27: 17 | AH27: 5 | AI27: Chunk Bonejaw | AM27: 1 | AN27: 2 | AO27: 3 | AP27: 4 | AQ27: 5 | AR27: 4 | AS27: 1 | AT27: 1 | AU27: 1 | AV27: 2 | AW27: 4 | AX27: 4 | AY27: 3 | BA27: =VLOOKUP(AI27,'League Stats'!$C$89:$E$999,2,FALSE) -> Zombie | BB27: =VLOOKUP(AI27,'League Stats'!$C$89:$E$999,3,FALSE) -> Radiation | BD27: Nuke Blast | BE27: AOE blast with knockback
AH28: 6 | AI28: Tank Thornbristle | AM28: 2 | AN28: 1 | AO28: 2 | AP28: 3 | AQ28: 4 | AR28: 5 | AS28: 1 | AT28: 2 | AU28: 4 | AV28: 1 | AW28: 1 | AX28: 5 | AY28: 4 | BA28: =VLOOKUP(AI28,'League Stats'!$C$89:$E$999,2,FALSE) -> Insectoid | BB28: =VLOOKUP(AI28,'League Stats'!$C$89:$E$999,3,FALSE) -> Acid | BD28: Bristles | BE28: Creates shield of thorns
AH29: 7 | AI29: Slash Bonebody | AM29: 3 | AN29: 2 | AO29: 1 | AP29: 2 | AQ29: 3 | AR29: 4 | AS29: 5 | AT29: 1 | AU29: 3 | AV29: 3 | AW29: 2 | AX29: 1 | AY29: 5 | BA29: =VLOOKUP(AI29,'League Stats'!$C$89:$E$999,2,FALSE) -> Giants | BB29: =VLOOKUP(AI29,'League Stats'!$C$89:$E$999,3,FALSE) -> Ice | BD29: Tank Shot | BE29: Footbal hurts all in line of fire
E30: Odds of completion based on distance | X30: Quarterback Stats | AH30: 8 | AI30: Bash Rockface | AM30: 4 | AN30: 3 | AO30: 2 | AP30: 1 | AQ30: 2 | AR30: 3 | AS30: 4 | AT30: 5 | AU30: 3 | AV30: 2 | AW30: 3 | AX30: 2 | AY30: 1 | BA30: =VLOOKUP(AI30,'League Stats'!$C$89:$E$999,2,FALSE) -> Ghost | BB30: =VLOOKUP(AI30,'League Stats'!$C$89:$E$999,3,FALSE) -> Corruption | BD30: Earthquake | BE30: Earthquake creates obstacles
AH31: 9 | AI31: Beef St John | AM31: 5 | AN31: 4 | AO31: 3 | AP31: 2 | AQ31: 1 | AR31: 2 | AS31: 4 | AT31: 2 | AU31: 2 | AV31: 1 | AW31: 4 | AX31: 3 | AY31: 2 | BA31: =VLOOKUP(AI31,'League Stats'!$C$89:$E$999,2,FALSE) -> Alien | BB31: =VLOOKUP(AI31,'League Stats'!$C$89:$E$999,3,FALSE) -> Electrical | BD31: Beef fest | BE31: Throws beef all over the field
G32: Variables: | J32: 0.08 | K32: Hands (catch) From: 1%, 2%, 4%, 6% or 8% | X32: Acc: QB Accuracy | AH32: 10 | AI32: Dirk Cracklebone | AM32: 3 | AN32: 4 | AO32: 3 | AP32: 2 | AQ32: 1 | AR32: 5 | AS32: 1 | AT32: 2 | AU32: 1 | AV32: 3 | AW32: 1 | AX32: 5 | AY32: 4 | BA32: =VLOOKUP(AI32,'League Stats'!$C$89:$E$999,2,FALSE) -> Sewer Beast | BB32: =VLOOKUP(AI32,'League Stats'!$C$89:$E$999,3,FALSE) -> Acid | BD32: Poison Bomb | BE32: Adds to Acid Damage
Y33: Adds directly to completion % | AH33: 11 | AI33: Vlad Crushnewski | AM33: 4 | AN33: 4 | AO33: 4 | AP33: 3 | AQ33: 2 | AR33: 1 | AS33: 3 | AT33: 3 | AU33: 1 | AV33: 2 | AW33: 2 | AX33: 1 | AY33: 5 | BA33: =VLOOKUP(AI33,'League Stats'!$C$89:$E$999,2,FALSE) -> Vampire | BB33: =VLOOKUP(AI33,'League Stats'!$C$89:$E$999,3,FALSE) -> Corruption | BD33: Dark Fist | BE33: Adds to Corruption Damage
J34: 5 | K34: Distance from Defender From: 1m to 5m | AH34: 12 | AI34: Biff Skullcrusher | AM34: 3 | AN34: 2 | AO34: 5 | AP34: 4 | AQ34: 3 | AR34: 2 | AS34: 5 | AT34: 3 | AU34: 1 | AV34: 1 | AW34: 3 | AX34: 2 | AY34: 1 | BA34: =VLOOKUP(AI34,'League Stats'!$C$89:$E$999,2,FALSE) -> Demonoid | BB34: =VLOOKUP(AI34,'League Stats'!$C$89:$E$999,3,FALSE) -> Fire | BD34: Volcanic Blast | BE34: AOE blast with knockback
X35: LT: Length of Throw | AH35: 13 | AI35: Sling Sawbone | AM35: 2 | AN35: 3 | AO35: 4 | AP35: 5 | AQ35: 4 | AR35: 2 | AS35: 1 | AT35: 1 | AU35: 2 | AV35: 3 | AW35: 4 | AX35: 2 | AY35: 2 | BA35: =VLOOKUP(AI35,'League Stats'!$C$89:$E$999,2,FALSE) -> Undead | BB35: =VLOOKUP(AI35,'League Stats'!$C$89:$E$999,3,FALSE) -> Corruption | BD35: Veil of Shadows | BE35: Creates shield of Corruption
G36: (Acc/LT) x (H) x (1/Blk) | Y36: Reduces completion by 20% every 10 yards | AH36: 14 | AI36: Hawk McKight | AM36: 1 | AN36: 2 | AO36: 3 | AP36: 4 | AQ36: 5 | AR36: 4 | AS36: 1 | AT36: 1 | AU36: 1 | AV36: 2 | AW36: 4 | AX36: 4 | AY36: 3 | BA36: =VLOOKUP(AI36,'League Stats'!$C$89:$E$999,2,FALSE) -> Golem | BB36: =VLOOKUP(AI36,'League Stats'!$C$89:$E$999,3,FALSE) -> Electrical | BD36: Bolt Blitz | BE36: Adds to Electrical Damage
G37: =(G46/G47)*G48*(1/G49) -> 0.00048 | H37: =(H46/H47)*H48*(1/H49) -> 0.00024 | I37: 0.00016 | J37: 0.00012 | K37: 9.6e-05 | L37: 8e-05 | M37: 6.857142857e-05 | N37: 6e-05 | O37: 5.333333333e-05 | P37: 4.8e-05 | Q37: 4.363636364e-05 | R37: 4e-05 | S37: 3.692307692e-05 | T37: 3.428571429e-05 | U37: =(U46/U47)*U48*(1/U49) -> 3.2e-05 | V37: =(V46/V47)*V48*(1/V49) -> 3e-05 | AH37: 15 | AI37: DeShawshank Jones | AM37: 2 | AN37: 1 | AO37: 2 | AP37: 3 | AQ37: 4 | AR37: 5 | AS37: 1 | AT37: 2 | AU37: 4 | AV37: 1 | AW37: 1 | AX37: 5 | AY37: 4 | BA37: =VLOOKUP(AI37,'League Stats'!$C$89:$E$999,2,FALSE) -> Dark Elves | BB37: =VLOOKUP(AI37,'League Stats'!$C$89:$E$999,3,FALSE) -> Poison | BD37: Venom Strike | BE37: Adds to Poison Damage
X38: H: Hands (catch) | AH38: 16 | AI38: Cleave Crippleback | AM38: 3 | AN38: 2 | AO38: 1 | AP38: 2 | AQ38: 3 | AR38: 4 | AS38: 5 | AT38: 1 | AU38: 5 | AV38: 3 | AW38: 2 | AX38: 1 | AY38: 3 | BA38: =VLOOKUP(AI38,'League Stats'!$C$89:$E$999,2,FALSE) -> Monster | BB38: =VLOOKUP(AI38,'League Stats'!$C$89:$E$999,3,FALSE) -> Ice | BD38: Ice Brawl | BE38: Adds to Ice Damage
Y39: Adds directly to completion %
G41: 100 - (LT*2) + Acc + H - (( 5 - Blk)*10) + (AS*Lt)/10 | X41: Blk: Distance from Defender (block)
G42: =IF(0.5-((G47*2)/100)+G46+G48-((5-G49)/10)+(G50*G47)/10<0,0,0.5-((G47*2)/100)+G46+G48-((5-G49)/10)+(G50*G47)/10) -> 0.67 | H42: 0.61 | I42: 0.55 | J42: 0.49 | K42: 0.43 | L42: 0.37 | M42: 0.31 | N42: 0.25 | O42: 0.19 | P42: 0.13 | Q42: 0.07 | R42: 0.01 | S42: 0 | T42: 0 | U42: =IF(0.5-((U47*2)/100)+U46+U48-((5-U49)/10)+(U50*U47)/10<0,0,0.5-((U47*2)/100)+U46+U48-((5-U49)/10)+(U50*U47)/10) -> 0 | V42: =IF(0.5-((V47*2)/100)+V46+V48-((5-V49)/10)+(V50*V47)/10<0,0,0.5-((V47*2)/100)+V46+V48-((5-V49)/10)+(V50*V47)/10) -> 0 | Y42: -40% at 1m, -30% at 2m, -20% at 3m,
Y43: -10% at 4m, and 0% thereafter.
H44: 10 | J44: 20 | L44: 30 | N44: 40 | P44: 50 | R44: 60 | T44: 70
X45: AS: Strength (arm strength)
E46: Acc | G46: =$E$26 -> 0.15 | H46: 0.15 | I46: 0.15 | J46: 0.15 | K46: 0.15 | L46: 0.15 | M46: 0.15 | N46: 0.15 | O46: 0.15 | P46: 0.15 | Q46: 0.15 | R46: 0.15 | S46: 0.15 | T46: 0.15 | U46: 0.15 | V46: 0.15 | Y46: Improves completion by 10% of AS every 10 yards.
E47: Lt | G47: 5 | H47: 10 | I47: 15 | J47: 20 | K47: 25 | L47: 30 | M47: 35 | N47: 40 | O47: 45 | P47: 50 | Q47: 55 | R47: 60 | S47: 65 | T47: 70 | U47: 75 | V47: 80 | Y47: This makes AS irrelevant at short range, but
E48: H | G48: =$J$32 -> 0.08 | H48: 0.08 | I48: 0.08 | J48: 0.08 | K48: 0.08 | L48: 0.08 | M48: 0.08 | N48: 0.08 | O48: 0.08 | P48: 0.08 | Q48: 0.08 | R48: 0.08 | S48: 0.08 | T48: 0.08 | U48: 0.08 | V48: 0.08 | Y48: effective at long range. | AI48: Length of Throw (LT)
E49: Blk | G49: =IF($J$34>5,5,$J$34) -> 5 | H49: 5 | I49: 5 | J49: 5 | K49: 5 | L49: 5 | M49: 5 | N49: 5 | O49: 5 | P49: 5 | Q49: 5 | R49: 5 | S49: 5 | T49: 5 | U49: 5 | V49: 5 | AI49: QB Accuracy (Acc)
E50: AS | G50: =$E$27 -> 0.08 | H50: 0.08 | I50: 0.08 | J50: 0.08 | K50: 0.08 | L50: 0.08 | M50: 0.08 | N50: 0.08 | O50: 0.08 | P50: 0.08 | Q50: 0.08 | R50: 0.08 | S50: 0.08 | T50: 0.08 | U50: 0.08 | V50: 0.08 | X50: Old Pass completion Formula | AI50: Hands (H)
Y51: (Acc/LT) x (H) x (1/Blk) | AI51: Distance from Defender (Blk)
X52: Pass Completion Formula
Y53: 100 - (LT*2) + Acc + H - (( 5 - Blk)*10) + (AS*Lt)/10 | AI53: (Acc/LT) x (H) x (1/Blk)
AI54: Essentially this creates three percentages that decrease the likelihood of the catch.
X55: PS: Passing Speed (arc of the ball)
Y56: QBs with a better PS will have flatter, more direct | AI56: Quarterbacks level up (to level 20) . You spend those points on those 3 variables, plus the strength of the ability.
Y57: arcs which will result in a faster, more direct pass.
AI58: Quarterback | AM58: Ability | AT58: Speed | AW58: Accuracy | AZ58: Strength
AI59: Rock Mason | AM59: Rock: Turn invincible but still | AT59: 1 | AW59: 4 | AZ59: 5
AI60: Big McHuge | AM60: Engulf: Damage all who touch you | AT60: 3 | AW60: 3 | AZ60: 4
AI61: Sludge Thunder | AM61: Thunder Charge: Run very fast | AT61: 5 | AW61: 2 | AZ61: 3
AI62: Jack Hammer | AM62: Reduces % Meter requisite | AT62: 2 | AW62: 5 | AZ62: 3
AI63: Chunk Bonejaw | AM63: AOE blast with knockback | AT63: 4 | AW63: 3 | AZ63: 3
AI64: Tank Thornbristle | AM64: Creates shield of thorns | AT64: 3 | AW64: 4 | AZ64: 3
AI65: Slash Bonebody | AM65: Footbal hurts all in line of fire | AT65: 1 | AW65: 5 | AZ65: 4
AI66: Bash Rockface | AM66: Earthquake creates obstacles | AT66: 4 | AW66: 1 | AZ66: 5
AI67: Beef St John | AM67: Throws beef all over the field | AT67: 3 | AW67: 2 | AZ67: 5
AI70: Rock (33% meter): When you play rock, the QB can’t move, but is invincible to being touched. Great for getting off a pass.
AJ71: Each level increases the amount of time you stay rock. 2s -6s
AI72: Engulf (50% meter): Engulf turns the QB into a flaming creature. Anything which touches it takes damage.
AJ73: Each level increases the amount of damage given
AI74: Thunder Charge (70% meter): QB runs super fast, and his jump move increases drastically.
AJ75: Each level slightly increases speed and jump distance.
AI76: Fast Ball (100% meter): The receiver is guaranteed to catch the ball.
AJ77: Not sure what should increase. I am thinking it could be less % required to use it. Or perhaps the receiver
AJ78: gains a certain amount of invulnerability. Or the ball damages players around the receiver. Not sure.
AI80: Targets:
AJ82: A perfect NFL QB rating requires at least a 77.5% completion rate. http://en.wikipedia.org/wiki/Passer_rating
AJ83: This, therefore defines the upper limit to which we will aim.
AJ85: Completion for 25+ yards = 27.8%: In 2009, teams threw the ball 25 yards or more on 1,261 plays. They completed 350 of those passes, for a completion percentage of 27.8 percent. On those completions, they picked up an average of 42 yards and scored a touchdown 117 times. The pass fell incomplete 744 times, or 59.0 percent of the time. Teams threw interceptions on the passes 9.7 percent of the time.
AJ86: http://www.teamrawdog.com/forums/showthread.php?t=18476

Sheet Team Stats
B1: Team Stats
B2: Instructions:
C3: Use only YELLOW inputs to change stats.
AV4: Mesh Prefixes:
B6: o | E6: Offensive Player | M6: x | P6: Defensive Player | W6: 1 | X6: Stat | AB6: Description | AG6: 0 | AH6: 1 | AI6: 2 | AJ6: 3 | AK6: 4 | AL6: 5 | AV6: LARGE-------------
W7: 2 | X7: Health | AB7: Add to total health | AG7: 0 | AH7: 10 | AI7: 20 | AJ7: 30 | AK7: 40 | AL7: 50 | AV7: Giant | AX7: Frankie | AZ7: 1
B8: Tier 2 | E8: Med Monster 2 | M8: Tier 3 | P8: Fast Monster 2 | W8: 3 | X8: Wounding | AB8: Adds to base damage | AG8: 0 | AH8: 1 | AI8: 2 | AJ8: 3 | AK8: 4 | AL8: 5 | AV8: Massive | AX8: Frankie | AZ8: 2
W9: 4 | X9: Speed | AB9: Adds % top speed | AG9: 0 | AH9: 0.35 | AI9: 0.4 | AJ9: 0.45 | AK9: 0.5 | AL9: 0.55 | AV9: Huge | AX9: Werewolf | AZ9: 3
A10: 4 | B10: =$X7 -> Health | D10: =VLOOKUP(B$8,$AA$72:$AM$75,$A10,FALSE) -> 10 | E10: =HLOOKUP(F10,$AG$6:$AL$16,2,FALSE)+D10 -> 40 | F10: =VLOOKUP($E$8,$X$19:$AL$30,7,FALSE) -> 3 | M10: =X7 -> Health | O10: =VLOOKUP(M$8,$AA$72:$AM$75,$A10,FALSE) -> 20 | P10: =HLOOKUP(Q10,$AG$6:$AL$16,2,FALSE)+O10 -> 40 | Q10: =VLOOKUP($P$8,$X$19:$AL$30,7,FALSE) -> 2 | W10: 5 | X10: Catch | AB10: Adds % to catching | AG10: 0 | AH10: 0.55 | AI10: 0.6 | AJ10: 0.65 | AK10: 0.7 | AL10: 0.75 | AV10: Great | AX10: Werewolf | AZ10: 4
A11: 5 | B11: =$X8 -> Wounding | D11: =VLOOKUP(B$8,$AA$72:$AM$75,$A11,FALSE) -> 1 | E11: =HLOOKUP(F11,$AG$6:$AL$16,3,FALSE)+D11 -> 5 | F11: =VLOOKUP($E$8,$X$19:$AL$30,8,FALSE) -> 4 | M11: =$X8 -> Wounding | O11: =VLOOKUP(M$8,$AA$72:$AM$75,$A11,FALSE) -> 2 | P11: =HLOOKUP(Q11,$AG$6:$AL$16,3,FALSE)+O11 -> 5 | Q11: =VLOOKUP($P$8,$X$19:$AL$30,8,FALSE) -> 3 | W11: 6 | X11: Carry | AB11: Detracts from fumble% | AG11: 0 | AH11: 0.01 | AI11: 0.02 | AJ11: 0.03 | AK11: 0.04 | AL11: 0.05
A12: 6 | B12: Speed | D12: 0.1 | E12: =HLOOKUP(F12,$AG$6:$AL$16,4,FALSE)+D12 -> 0.6 | F12: =VLOOKUP($E$8,$X$19:$AL$30,9,FALSE) -> 4 | M12: Speed | O12: 0.2 | P12: =HLOOKUP(Q12,$AG$6:$AL$16,4,FALSE)+O12 -> 0.75 | Q12: =VLOOKUP($P$8,$X$19:$AL$30,9,FALSE) -> 5 | W12: 7 | X12: Elusiveness | AB12: Decrease Tackle% | AG12: 0 | AH12: 0.01 | AI12: 0.03 | AJ12: 0.06 | AK12: 0.09 | AL12: 0.12
A13: 7 | B13: Catch | D13: 0.02 | E13: =HLOOKUP(F13,$AG$6:$AL$16,5,FALSE)+D13 -> 0.62 | F13: =VLOOKUP($E$8,$X$19:$AL$30,10,FALSE) -> 2 | M13: Catch | O13: 0.04 | P13: =HLOOKUP(Q13,$AG$6:$AL$16,5,FALSE)+O13 -> 0.79 | Q13: =VLOOKUP($P$8,$X$19:$AL$30,10,FALSE) -> 5 | W13: 8 | X13: Tackle | AB13: lncrese Tackle% | AG13: 0 | AH13: 0.02 | AI13: 0.04 | AJ13: 0.06 | AK13: 0.08 | AL13: 0.1 | AP13: Damage: | AQ13: Calculated from Health and Wounding | AV13: MEDIUM-------
A14: 8 | B14: Carry | D14: 0.01 | E14: =HLOOKUP(F14,$AG$6:$AL$16,6,FALSE)+D14 -> 0.04 | F14: =VLOOKUP($E$8,$X$19:$AL$30,11,FALSE) -> 3 | M14: Carry | O14: 0.02 | P14: =HLOOKUP(Q14,$AG$6:$AL$16,6,FALSE)+O14 -> 0.05 | Q14: =VLOOKUP($P$8,$X$19:$AL$30,11,FALSE) -> 3 | W14: 9 | X14: Pass Block | AB14: lncrease% tipping throw | AG14: 0 | AH14: 0.02 | AI14: 0.04 | AJ14: 0.06 | AK14: 0.08 | AL14: 0.1 | AP14: Speed: | AQ14: Calculated from team’s aggregate Speed | AV14: Vicious | AX14: Vampire | AZ14: 1
A15: 9 | B15: Elusiveness | D15: 0.03 | E15: =HLOOKUP(F15,$AG$6:$AL$16,7,FALSE)+D15 -> 0.12 | F15: =VLOOKUP($E$8,$X$19:$AL$30,12,FALSE) -> 4 | M15: Elusiveness | O15: 0.06 | P15: =HLOOKUP(Q15,$AG$6:$AL$16,7,FALSE)+O15 -> 0.09 | Q15: =VLOOKUP($P$8,$X$19:$AL$30,12,FALSE) -> 2 | W15: 10 | X15: Run Block | AB15: Increase Tackle % | AG15: 0 | AH15: 0.01 | AI15: 0.02 | AJ15: 0.03 | AK15: 0.04 | AL15: 0.05 | AP15: Agility: | AQ15: Calculated from Hands, Tackle Breaking | AV15: Ferocious | AX15: Vampire | AZ15: 3
A16: 10 | B16: Tackle | D16: 0.02 | E16: =HLOOKUP(F16,$AG$6:$AL$16,8,FALSE)+D16 -> 0.06 | F16: =VLOOKUP($E$8,$X$19:$AL$30,13,FALSE) -> 2 | M16: Tackle | O16: 0.04 | P16: =HLOOKUP(Q16,$AG$6:$AL$16,8,FALSE)+O16 -> 0.08 | Q16: =VLOOKUP($P$8,$X$19:$AL$30,13,FALSE) -> 2 | W16: 11 | X16: Impact | AB16: Increase Fumble % | AG16: 0 | AH16: 0.01 | AI16: 0.02 | AJ16: 0.03 | AK16: 0.04 | AL16: 0.05 | AP16: Power: | AQ16: Calculated from Pass/Run Blocking and Tackle | AV16: Wild | AX16: Headless | AZ16: 4
A17: 11 | B17: Pass Block | D17: 0.01 | E17: =HLOOKUP(F17,$AG$6:$AL$16,9,FALSE)+D17 -> 0.03 | F17: =VLOOKUP($E$8,$X$19:$AL$30,14,FALSE) -> 1 | M17: Pass Block | O17: 0.02 | P17: =HLOOKUP(Q17,$AG$6:$AL$16,9,FALSE)+O17 -> 0.04 | Q17: =VLOOKUP($P$8,$X$19:$AL$30,14,FALSE) -> 1 | AV17: Killer | AX17: Headless | AZ17: 2
A18: 12 | B18: Run Block | D18: 0.01 | E18: =HLOOKUP(F18,$AG$6:$AL$16,10,FALSE)+D18 -> 0.02 | F18: =VLOOKUP($E$8,$X$19:$AL$30,15,FALSE) -> 1 | M18: Run Block | O18: 0.02 | P18: =HLOOKUP(Q18,$AG$6:$AL$16,10,FALSE)+O18 -> 0.03 | Q18: =VLOOKUP($P$8,$X$19:$AL$30,15,FALSE) -> 1 | X18: Monster | AD18: Health | AE18: Wound | AF18: Speed | AG18: Catch | AH18: Carry | AI18: Elusiveness | AJ18: Tackle | AK18: Pass Block | AL18: Run Block | AM18: Impact | AN18: Totals | AP18: Damage | AQ18: Speed | AR18: Agility | AS18: Power | AU18: Totals
A19: 13 | B19: Impact | D19: 0.01 | E19: =HLOOKUP(F19,$AG$6:$AL$16,11,FALSE)+D19 -> 0.02 | F19: =VLOOKUP($E$8,$X$19:$AL$30,15,FALSE) -> 1 | M19: Impact | O19: 0.02 | P19: =HLOOKUP(Q19,$AG$6:$AL$16,11,FALSE)+O19 -> 0.03 | Q19: =VLOOKUP($P$8,$X$19:$AL$30,15,FALSE) -> 1 | X19: Big Monster 1 | AD19: 5 | AE19: 5 | AF19: 0 | AG19: 0 | AH19: 1 | AI19: 2 | AJ19: 3 | AK19: 3 | AL19: 5 | AM19: 5 | AN19: =SUM(AD19:AL19) -> 24 | AP19: =AVERAGE(AD19,AE19) -> 5 | AQ19: =AF19 -> 0 | AR19: =AVERAGE(AG19:AI19) -> 1 | AS19: =AVERAGE(AJ19:AL19) -> 3.666666667 | AU19: =SUM(AP19:AS19) -> 9.666666667 | AV19: THIN------------
X20: Big Monster 2 | AD20: 4 | AE20: 5 | AF20: 2 | AG20: 0 | AH20: 1 | AI20: 1 | AJ20: 3 | AK20: 5 | AL20: 3 | AM20: 3 | AN20: =SUM(AD20:AL20) -> 24 | AP20: =AVERAGE(AD20,AE20) -> 4.5 | AQ20: 2 | AR20: =AVERAGE(AG20:AI20) -> 0.6666666667 | AS20: =AVERAGE(AJ20:AL20) -> 3.666666667 | AU20: =SUM(AP20:AS20) -> 10.83333333 | AV20: Quick | AX20: Zombie | AZ20: 3
X21: Big Monster 3 | AD21: 4 | AE21: 4 | AF21: 1 | AG21: 1 | AH21: 2 | AI21: 2 | AJ21: 3 | AK21: 3 | AL21: 4 | AM21: 4 | AN21: 24 | AP21: 4 | AQ21: 1 | AR21: 1.666666667 | AS21: 3.333333333 | AU21: 10 | AV21: Agile | AX21: Zombie | AZ21: 1
D22: + | E22: =E16*-1 -> -0.06 | F22: Tackle Break | I22: Subtract % to the base % seen below | O22: + | P22: =P15 -> 0.09 | Q22: Tackle | S22: Decreases the % block | X22: Big Monster 4 | AD22: 4 | AE22: 4 | AF22: 1 | AG22: 0 | AH22: 0 | AI22: 1 | AJ22: 5 | AK22: 4 | AL22: 5 | AM22: 5 | AN22: 24 | AP22: 4 | AQ22: 1 | AR22: 0.3333333333 | AS22: 4.666666667 | AU22: 10 | AV22: Speedy | AX22: Alien | AZ22: 2
D23: + | E23: =E18*-1 -> -0.02 | F23: Run Block | I23: % Added if the player is a D linemen | X23: Med Monster 1 | AD23: 4 | AE23: 4 | AF23: 2 | AG23: 2 | AH23: 3 | AI23: 3 | AJ23: 3 | AK23: 1 | AL23: 2 | AM23: 2 | AN23: 24 | AP23: 4 | AQ23: 2 | AR23: 2.666666667 | AS23: 2 | AU23: 10.66666667 | AV23: Fast | AX23: Alien | AZ23: 4
X24: Med Monster 2 | AD24: 3 | AE24: 4 | AF24: 4 | AG24: 2 | AH24: 3 | AI24: 4 | AJ24: 2 | AK24: 1 | AL24: 1 | AM24: 1 | AN24: 24 | AP24: 3.5 | AQ24: 4 | AR24: 3 | AS24: 1.333333333 | AU24: 11.83333333
D25: + | E25: Spin | F25: Move: Offender Jump or Spin | O25: - | P25: Dive | Q25: Move: Defender Punch or Dive | X25: Med Monster 3 | AD25: 3 | AE25: 3 | AF25: 3 | AG25: 4 | AH25: 5 | AI25: 5 | AJ25: 1 | AK25: 0 | AL25: 0 | AM25: 0 | AN25: 24 | AP25: 3 | AQ25: 3 | AR25: 4.666666667 | AS25: 0.3333333333 | AU25: 11
D26: x | E26: =IF(AND(E25="Jump",P25="Dive"),AG43,IF(AND(E25="Spin",P25="Punch"),AG41,1)) -> 1 | F26: Effect on Tackle | L26: =IF(AND(E25="Jump",P25="Dive"),AG42,IF(AND(E25="Spin",P25="Punch"),0,0)) -> 0 | M26: Negated? --> | P26: =IF(P25="Dive",AG42,IF(P25="Punch",AG40*-1,0)) -> 0.2 | Q26: Effect on Tackle | X26: Med Monster 4 | AD26: 3 | AE26: 3 | AF26: 3 | AG26: 1 | AH26: 1 | AI26: 2 | AJ26: 4 | AK26: 3 | AL26: 4 | AM26: 4 | AN26: 24 | AP26: 3 | AQ26: 3 | AR26: 1.333333333 | AS26: 3.666666667 | AU26: 11
D27: + | E27: =IF(AND(E25="Jump",P25="None"),AJ43,IF(AND(E25="Spin",P25="None"),AJ41,0))+E11 -> 5 | F27: Effect on Damage | L27: =IF(AND(E25="Spin",P25="Punch"),AJ40,IF(AND(E25="Jump",P25="Dive"),AJ42,0)) -> 0 | M27: Negated? --> | P27: =IF(P25="Dive",AJ42,IF(P25="Punch",AJ40,0))+P11 -> 5 | Q27: Effect on Damage | X27: Fast Monster 1 | AD27: 3 | AE27: 3 | AF27: 3 | AG27: 3 | AH27: 3 | AI27: 3 | AJ27: 2 | AK27: 2 | AL27: 2 | AM27: 2 | AN27: 24 | AP27: 3 | AQ27: 3 | AR27: 3 | AS27: 2 | AU27: 11
X28: Fast Monster 2 | AD28: 2 | AE28: 3 | AF28: 5 | AG28: 5 | AH28: 3 | AI28: 2 | AJ28: 2 | AK28: 1 | AL28: 1 | AM28: 1 | AN28: 24 | AP28: 2.5 | AQ28: 5 | AR28: 3.333333333 | AS28: 1.333333333 | AU28: 12.16666667
E29: Odds based on Angle of Tackle | X29: Fast Monster 3 | AD29: 2 | AE29: 2 | AF29: 4 | AG29: 5 | AH29: 5 | AI29: 4 | AJ29: 2 | AK29: 0 | AL29: 0 | AM29: 0 | AN29: 24 | AP29: 2 | AQ29: 4 | AR29: 4.666666667 | AS29: 0.6666666667 | AU29: 11.33333333
E30: Hit Head-on | I30: Hit on Oblique | M30: Hit on Side | Q30: Hit from Behind | X30: Fast Monster 4 | AD30: 2 | AE30: 2 | AF30: 4 | AG30: 3 | AH30: 3 | AI30: 2 | AJ30: 3 | AK30: 3 | AL30: 2 | AM30: 2 | AN30: 24 | AP30: 2 | AQ30: 4 | AR30: 2.666666667 | AS30: 2.666666667 | AU30: 11.33333333
E31: =(AC33+$E22+$E23+$P26-$L26+$P22)*$E26 -> 1.01 | F31: Tackle odds | I31: =(AC34+$E22+$E23+$P26-$L26+$P22)*$E26 -> 0.91 | J31: Tackle odds | M31: =(AC35+$E22+$E23+$P26-$L26+$P22)*$E26 -> 0.81 | N31: Tackle odds | Q31: =(AC36+$E22+$E23+$P26-$L26+$P22)*$E26 -> 0.71 | R31: Tackle odds
E32: =AG33+$E27+$P27-$L27 -> 15 | F32: Damage | I32: =AG34+$E27+$P27-$L27 -> 13 | J32: Damage | M32: =AG35+$E27+$P27-$L27 -> 12 | N32: Damage | Q32: =AG36+$E27+$P27-$L27 -> 10 | R32: Damage | X32: Odds of Tackle | AC32: Odds | AF32: Damage on Tackle
E33: =$AH$46+$P$19-$E$14 -> 0.04 | F33: Fumble | I33: =$AH$46+$P$19-$E$14 -> 0.04 | J33: Fumble | M33: =$AH$46+$P$19-$E$14 -> 0.04 | N33: Fumble | Q33: =$AH$46+$P$19-$E$14 -> 0.04 | R33: Fumble | Y33: Hit Head-on | AC33: 0.8 | AF33: + | AG33: 5 | AH33: damage
Y34: Hit on Oblique | AC34: 0.7 | AF34: + | AG34: 3 | AH34: damage
Y35: Hit on Side | AC35: 0.6 | AF35: + | AG35: 2 | AH35: damage
Y36: Hit from Behind | AC36: 0.5 | AF36: + | AG36: 0 | AH36: damage
X38: Move | Z38: Cooldown | AC38: Negate | AE38: Negate | AG38: Effect on | AJ38: Effect on
AC39: Punch? | AE39: Dive? | AG39: Tackle | AJ39: Damage
X40: Punch | Z40: 2 | AA40: second | AC40: 0 | AE40: 0 | AF40: - | AG40: 0.4 | AI40: + | AJ40: 10 | AK40: damage
X41: Spin | Z41: 2 | AA41: seconds | AC41: 1 | AE41: 0 | AF41: x | AG41: 0.5 | AI41: - | AJ41: 5 | AK41: damage
X42: Dive | Z42: 2 | AA42: second | AC42: 0 | AE42: 0 | AF42: + | AG42: 0.2 | AI42: + | AJ42: 0 | AK42: damage
X43: Jump | Z43: 2 | AA43: seconds | AC43: 0 | AE43: 1 | AF43: x | AG43: 0.5 | AI43: - | AJ43: 5 | AK43: damage
X45: Offensive Options | AC45: Defensive Options | AH45: Base chance to Fumble
X46: None | AC46: None | AH46: 0.05
X47: Jump | AC47: Dive
X48: Spin | AC48: Punch
X50: Monster | AD50: Health | AE50: Wound | AF50: Speed | AG50: Catch | AH50: Carry | AI50: Elusiveness | AJ50: Tackle | AK50: Pass Block | AL50: Run Block | AM50: Impact
P51: Med Monster 2 | X51: Big Monster 1 | AD51: =VLOOKUP(AD19,$AC$64:$AM$69,2,FALSE) -> 50 | AE51: =VLOOKUP(AE19,$AC$64:$AM$69,3,FALSE) -> 5 | AF51: =VLOOKUP(AF19,$AC$64:$AM$69,4,FALSE) -> 0 | AG51: =VLOOKUP(AG19,$AC$64:$AM$69,5,FALSE) -> 0 | AH51: =VLOOKUP(AH19,$AC$64:$AM$69,6,FALSE) -> 0.01 | AI51: =VLOOKUP(AI19,$AC$64:$AM$69,7,FALSE) -> 0.03 | AJ51: =VLOOKUP(AJ19,$AC$64:$AM$69,8,FALSE) -> 0.06 | AK51: =VLOOKUP(AK19,$AC$64:$AM$69,9,FALSE) -> 0.06 | AL51: =VLOOKUP(AL19,$AC$64:$AM$69,10,FALSE) -> 0.05 | AM51: =VLOOKUP(AM19,$AC$64:$AM$69,11,FALSE) -> 0.05
X52: Big Monster 2 | AD52: =VLOOKUP(AD20,$AC$64:$AM$69,2,FALSE) -> 40 | AE52: =VLOOKUP(AE20,$AC$64:$AM$69,3,FALSE) -> 5 | AF52: =VLOOKUP(AF20,$AC$64:$AM$69,4,FALSE) -> 0.4 | AG52: =VLOOKUP(AG20,$AC$64:$AM$69,5,FALSE) -> 0 | AH52: =VLOOKUP(AH20,$AC$64:$AM$69,6,FALSE) -> 0.01 | AI52: =VLOOKUP(AI20,$AC$64:$AM$69,7,FALSE) -> 0.01 | AJ52: =VLOOKUP(AJ20,$AC$64:$AM$69,8,FALSE) -> 0.06 | AK52: =VLOOKUP(AK20,$AC$64:$AM$69,9,FALSE) -> 0.1 | AL52: =VLOOKUP(AL20,$AC$64:$AM$69,10,FALSE) -> 0.03 | AM52: =VLOOKUP(AM20,$AC$64:$AM$69,11,FALSE) -> 0.03
M53: =X7 -> Health | P53: 30 | Q53: 3 | X53: Big Monster 3 | AD53: 40 | AE53: 4 | AF53: 0.35 | AG53: 0.55 | AH53: 0.02 | AI53: 0.03 | AJ53: 0.06 | AK53: 0.06 | AL53: 0.04 | AM53: 0.04
M54: =X8 -> Wounding | P54: 4 | Q54: 4 | X54: Big Monster 4 | AD54: 40 | AE54: 4 | AF54: 0.35 | AG54: 0 | AH54: 0 | AI54: 0.01 | AJ54: 0.1 | AK54: 0.08 | AL54: 0.05 | AM54: 0.05
M55: Speed | P55: 0.4 | Q55: 4 | X55: Med Monster 1 | AD55: 40 | AE55: 4 | AF55: 0.4 | AG55: 0.6 | AH55: 0.03 | AI55: 0.06 | AJ55: 0.06 | AK55: 0.02 | AL55: 0.02 | AM55: 0.02
M56: Catch | P56: 0.02 | Q56: 2 | X56: Med Monster 2 | AD56: 30 | AE56: 4 | AF56: 0.5 | AG56: 0.6 | AH56: 0.03 | AI56: 0.09 | AJ56: 0.04 | AK56: 0.02 | AL56: 0.01 | AM56: 0.01
M57: Carry | P57: 0.03 | Q57: 3 | X57: Med Monster 3 | AD57: 30 | AE57: 3 | AF57: 0.45 | AG57: 0.7 | AH57: 0.05 | AI57: 0.12 | AJ57: 0.02 | AK57: 0 | AL57: 0 | AM57: 0
M58: Elusiveness | P58: 0.09 | Q58: 4 | X58: Med Monster 4 | AD58: 30 | AE58: 3 | AF58: 0.45 | AG58: 0.55 | AH58: 0.01 | AI58: 0.03 | AJ58: 0.08 | AK58: 0.06 | AL58: 0.04 | AM58: 0.04
M59: Tackle | P59: 0.04 | Q59: 2 | X59: Fast Monster 1 | AD59: 30 | AE59: 3 | AF59: 0.45 | AG59: 0.65 | AH59: 0.03 | AI59: 0.06 | AJ59: 0.04 | AK59: 0.04 | AL59: 0.02 | AM59: 0.02
M60: Pass Block | P60: 0.01 | Q60: 1 | X60: Fast Monster 2 | AD60: 20 | AE60: 3 | AF60: 0.55 | AG60: 0.75 | AH60: 0.03 | AI60: 0.03 | AJ60: 0.04 | AK60: 0.02 | AL60: 0.01 | AM60: 0.01
M61: Run Block | P61: 0.01 | Q61: 1 | X61: Fast Monster 3 | AD61: 20 | AE61: 2 | AF61: 0.5 | AG61: 0.75 | AH61: 0.05 | AI61: 0.09 | AJ61: 0.04 | AK61: 0 | AL61: 0 | AM61: 0
M62: Impact | P62: 0.01 | Q62: 1 | X62: Fast Monster 4 | AD62: 20 | AE62: 2 | AF62: 0.5 | AG62: 0.65 | AH62: 0.03 | AI62: 0.03 | AJ62: 0.06 | AK62: 0.06 | AL62: 0.02 | AM62: 0.02
X63: 1 | Y63: 2 | Z63: 3 | AA63: 4 | AB63: 5 | AC63: 6 | AD63: 7 | AE63: 8 | AF63: 9 | AG63: 10 | AH63: 11 | AI63: 12 | AJ63: 13 | AK63: 14 | AL63: 15 | AM63: 16
AC64: 0 | AD64: 0 | AE64: 0 | AF64: 0 | AG64: 0 | AH64: 0 | AI64: 0 | AJ64: 0 | AK64: 0 | AL64: 0 | AM64: 0
AC65: 1 | AD65: =AH7 -> 10 | AE65: =AH8 -> 1 | AF65: =AH9 -> 0.35 | AG65: =AH10 -> 0.55 | AH65: =AH11 -> 0.01 | AI65: =AH12 -> 0.01 | AJ65: =AH13 -> 0.02 | AK65: =AH14 -> 0.02 | AL65: =AH15 -> 0.01 | AM65: =AH16 -> 0.01
AC66: 2 | AD66: =AI7 -> 20 | AE66: =AI8 -> 2 | AF66: =AI9 -> 0.4 | AG66: =AI10 -> 0.6 | AH66: =AI11 -> 0.02 | AI66: =AI12 -> 0.03 | AJ66: =AI13 -> 0.04 | AK66: =AI14 -> 0.04 | AL66: =AI15 -> 0.02 | AM66: =AI16 -> 0.02
AC67: 3 | AD67: =AJ7 -> 30 | AE67: =AJ8 -> 3 | AF67: =AJ9 -> 0.45 | AG67: =AJ10 -> 0.65 | AH67: =AJ11 -> 0.03 | AI67: =AJ12 -> 0.06 | AJ67: =AJ13 -> 0.06 | AK67: =AJ14 -> 0.06 | AL67: =AJ15 -> 0.03 | AM67: =AJ16 -> 0.03
AC68: 4 | AD68: =AK7 -> 40 | AE68: =AK8 -> 4 | AF68: =AK9 -> 0.5 | AG68: =AK10 -> 0.7 | AH68: =AK11 -> 0.04 | AI68: =AK12 -> 0.09 | AJ68: =AK13 -> 0.08 | AK68: =AK14 -> 0.08 | AL68: =AK15 -> 0.04 | AM68: =AK16 -> 0.04
AC69: 5 | AD69: =AL7 -> 50 | AE69: =AL8 -> 5 | AF69: =AL9 -> 0.55 | AG69: =AL10 -> 0.75 | AH69: =AL11 -> 0.05 | AI69: =AL12 -> 0.12 | AJ69: =AL13 -> 0.1 | AK69: =AL14 -> 0.1 | AL69: =AL15 -> 0.05 | AM69: =AL16 -> 0.05
AD71: Health | AE71: Wound | AF71: Speed | AG71: Catch | AH71: Carry | AI71: Elusiveness | AJ71: Tackle | AK71: Pass Block | AL71: Run Block | AM71: Impact
AA72: Tier 1 | AC72: 1 | AD72: 0 | AE72: 0 | AF72: 0 | AG72: 0 | AH72: 0 | AI72: 0 | AJ72: 0 | AK72: 0 | AL72: 0 | AM72: 0
AA73: Tier 2 | AC73: 2 | AD73: 10 | AE73: 1 | AF73: 0.1 | AG73: 0.02 | AH73: 0.01 | AI73: 0.03 | AJ73: 0.02 | AK73: 0.01 | AL73: 0.01 | AM73: 0.01
AA74: Tier 3 | AC74: 3 | AD74: =AD$73*2 -> 20 | AE74: =AE$73*2 -> 2 | AF74: 0.2 | AG74: 0.04 | AH74: 0.02 | AI74: 0.06 | AJ74: 0.04 | AK74: 0.02 | AL74: 0.02 | AM74: 0.02
AA75: Tier 4 | AC75: 4 | AD75: =AD$73*3 -> 30 | AE75: 3 | AF75: 0.3 | AG75: 0.06 | AH75: 0.03 | AI75: 0.09 | AJ75: 0.06 | AK75: =AK$73*3 -> 0.03 | AL75: =AL$73*3 -> 0.03 | AM75: 0.03
P78: Med Monster 2
M80: Damage | P80: 30 | Q80: 3
M81: Speed | P81: 0.4 | Q81: 4
M82: Agility | P82: 0.03 | Q82: 3
M83: Power | P83: 0.01 | Q83: 1

Sheet League Stats
B1: League Stats - DEPRICATED > | D1: In cases where we need to show aggregate team stats (which would really only be needed on the team selection screen) we can generate those dynamically using the formulas mentioned above. All game decisions based on stats (e.g. whether a tackle is successful, whether a catch is successful, etc.) will rely only on the individual stats retrieved from either the QB_XML or Team_XML (with the eventual ability to adjust dynamically based on the cards applied by players) Removing the need for the League_XML file shouldn't be an issue and is something we can add in.
B2: Instructions:
C3: Use only YELLOW inputs to change stats.
AB4: AB | AC4: AC | AD4: AD | AE4: AE | AF4: AF | AG4: AG | AH4: AH | AI4: AI | AJ4: AJ | AK4: AK | AL4: AL | AM4: AM | AN4: AN
C5: Deep Channel Chumsquad | Y5: Full Team Rosters - random creature name generator
Y6: League | Z6: Team | AA6: Home Field | AB6: RB | AC6: OL | AD6: OL | AE6: OL | AF6: R | AG6: R | AH6: S | AI6: S | AJ6: DL | AK6: DL | AL6: DL | AM6: DB | AN6: DB | AR6: Fire | AS6: dealing an additional 2 wounds | AV6: with each successful hit
F7: Damage | G7: Speed | H7: Agility | I7: Power | J7: Target | X7: =$C39 -> Hellmouth Horde | Y7: Mutant Conference | Z7: =C39 -> Hellmouth Horde | AA7: =D39 -> Hellmouth | AB7: =CONCATENATE(VLOOKUP(K39,$L$12:$O$23,4,FALSE),VLOOKUP($V12,$Y$39:$AK$54,(VLOOKUP(K39,$L$12:$U$23,3,FALSE)),FALSE)) -> Killer Abyssal Warrior | AC7: Massive Hellion | AD7: Killer Abyssal Warrior | AE7: Killer Abyssal Warrior | AF7: Speedy Shadow | AG7: Speedy Shadow | AH7: Killer Abyssal Warrior | AI7: Killer Abyssal Warrior | AJ7: Massive Hellion | AK7: Killer Abyssal Warrior | AL7: Killer Abyssal Warrior | AM7: Speedy Shadow | AN7: Speedy Shadow | AO7: 7 | AR7: Electrical | AS7: stunning creatures increasing their chance to fumble by 5%
C8: Target Average | F8: =VLOOKUP($C$5,$C$39:$I$54,3,FALSE) -> 4 | G8: =VLOOKUP($C$5,$C$39:$I$54,4,FALSE) -> 1 | H8: =VLOOKUP($C$5,$C$39:$I$54,5,FALSE) -> 2 | I8: =VLOOKUP($C$5,$C$39:$I$54,6,FALSE) -> 3 | J8: =VLOOKUP($C$5,$C$39:$I$54,7,FALSE) -> 10 | X8: =$C40 -> Data Dome Dreadbots | Y8: Mutant Conference | Z8: =C40 -> Data Dome Dreadbots | AA8: Asteroid | AB8: Ferocious Robo-Warrior | AC8: Huge Death Droid | AD8: Killer Robo-Warrior | AE8: Killer Robo-Warrior | AF8: Quick War Droid | AG8: Quick War Droid | AH8: Ferocious Robo-Warrior | AI8: Ferocious Robo-Warrior | AJ8: Huge Death Droid | AK8: Killer Robo-Warrior | AL8: Killer Robo-Warrior | AM8: Quick War Droid | AN8: Quick War Droid | AO8: 8 | AR8: Acid | AS8: dealing an additional 2 wounds | AV8: Damage
C9: Current Average | F9: =AVERAGE(F15:F34) -> 4 | G9: =AVERAGE(G15:G34) -> 1.538461538 | H9: 1.897435897 | I9: 2.923076923 | J9: =SUM(F9:I9) -> 10.35897436 | X9: Inner World Incinerators | Y9: Mutant Conference | Z9: Inner World Incinerators | AA9: Volcano | AB9: Wild Fire Elemental | AC9: Great Magma Beast | AD9: Great Magma Beast | AE9: Wild Fire Elemental | AF9: Fast Fire Drake | AG9: Fast Fire Drake | AH9: Wild Fire Elemental | AI9: Wild Fire Elemental | AJ9: Great Magma Beast | AK9: Great Magma Beast | AL9: Wild Fire Elemental | AM9: Fast Fire Drake | AN9: Fast Fire Drake | AO9: 9 | AR9: Radiation | AS9: slowing creatures, decreasing their speed by 10% | AV9: increasing their chance to fumble by 5% | AW9: Fire | AX9: Electrical | AY9: Acid | AZ9: Radiation | BA9: Poison | BB9: Ice | BC9: Corruption
X10: Deep Channel Chumsquad | Y10: Mutant Conference | Z10: Deep Channel Chumsquad | AA10: Sewer | AB10: Viscious Hammerhead-beast | AC10: Great Were-Shark | AD10: Giant Were-Shark | AE10: Giant Were-Shark | AF10: Agile Tiger Sharkman | AG10: Agile Tiger Sharkman | AH10: Viscious Hammerhead-beast | AI10: Viscious Hammerhead-beast | AJ10: Great Were-Shark | AK10: Giant Were-Shark | AL10: Giant Were-Shark | AM10: Agile Tiger Sharkman | AN10: Agile Tiger Sharkman | AO10: 10 | AR10: Poison | AS10: draining strength, decreasing their Wounding by 2 | AV10: drains wounding | AX10: affecting one target enemy | AY10: affecting one target enemy | AZ10: affecting all creatures within 5 feet of the targetted enemy | BA10: affecting one target enemy | BB10: affecting one target enemy | BC10: affecting one target enemy
C11: x | D11: Offensive Players | F11: Damage | G11: Speed | H11: Agility | I11: Power | M11: Monster | N11: Stat Number | P11: Damage | Q11: Speed | R11: Agility | S11: Power | U11: Target stats | X11: Cadaverous Crushers | Y11: Mutant Conference | Z11: Cadaverous Crushers | AA11: Apocalypse | AB11: Viscious War Zombie | AC11: Giant Crusher | AD11: Viscious War Zombie | AE11: Viscious War Zombie | AF11: Agile Screamer | AG11: Agile Screamer | AH11: Viscious War Zombie | AI11: Viscious War Zombie | AJ11: Giant Crusher | AK11: Viscious War Zombie | AL11: Viscious War Zombie | AM11: Agile Screamer | AN11: Agile Screamer | AO11: 11 | AR11: Ice | AS11: slowing creatures, decreasing their speed by 10% | AV11: drains speed | AW11: dealing an additional 5 wounds | AX11: stunning creatures | AY11: dealing wounds | AZ11: stunning creatures | BA11: draining strength | BB11: slowing creatures | BC11: draining strength
C12: Quarterback | L12: 1 | M12: Big Monster 1 | N12: 2 | O12: Giant | P12: ='Team Stats'!AP19 -> 5 | Q12: ='Team Stats'!AQ19 -> 0 | R12: ='Team Stats'!AR19 -> 1 | S12: ='Team Stats'!AS19 -> 3.666666667 | T12: 1 | U12: Death | V12: Hellion | X12: Terror Town Terminoids | Y12: Mutant Conference | Z12: Terror Town Terminoids | AA12: Comet | AB12: Killer Arachnoid | AC12: Massive Megalisk | AD12: Great Megalisk | AE12: Great Megalisk | AF12: Speedy Drone | AG12: Speedy Drone | AH12: Killer Arachnoid | AI12: Killer Arachnoid | AJ12: Massive Megalisk | AK12: Great Megalisk | AL12: Great Megalisk | AM12: Speedy Drone | AN12: Speedy Drone | AO12: 12 | AR12: Corruption | AS12: draining strength, decreasing their Wounding by 2 | AV12: drains wounding | AW12: with each successful hit | AX12: increasing their chance to fumble by 5% | AY12: Damage | AZ12: increasing their chance to fumble by 5% | BA12: drains wounding | BB12: drains speed | BC12: drains wounding
C13: (Player's Choice) | L13: 2 | M13: Big Monster 2 | N13: 3 | O13: Massive | P13: ='Team Stats'!AP20 -> 4.5 | Q13: ='Team Stats'!AQ20 -> 2 | R13: ='Team Stats'!AR20 -> 0.6666666667 | S13: ='Team Stats'!AS20 -> 3.666666667 | T13: 2 | U13: Were- | V13: Droid | X13: Wasteland Wendigos | Y13: Mutant Conference | Z13: Wasteland Wendigos | AA13: Glacier | AB13: =CONCATENATE(VLOOKUP(K45,$L$12:$O$23,4,FALSE),VLOOKUP($V18,$Y$39:$AK$54,(VLOOKUP(K45,$L$12:$U$23,3,FALSE)),FALSE)) -> Ferocious Ice Troll | AC13: Great Frost Giant | AD13: Great Frost Giant | AE13: Great Frost Giant | AF13: Fast Goblin | AG13: Quick Goblin | AH13: Ferocious Ice Troll | AI13: Ferocious Ice Troll | AJ13: Great Frost Giant | AK13: Great Frost Giant | AL13: Great Frost Giant | AM13: Fast Goblin | AN13: Quick Goblin | AO13: 13
C14: Running Back | L14: 3 | M14: Big Monster 3 | N14: 4 | O14: Huge | P14: ='Team Stats'!AP21 -> 4 | Q14: ='Team Stats'!AQ21 -> 1 | R14: ='Team Stats'!AR21 -> 1.666666667 | S14: ='Team Stats'!AS21 -> 3.333333333 | T14: 3 | U14: Frost | V14: Elemental | X14: Necropolis Nightmares | Y14: Mutant Conference | Z14: Necropolis Nightmares | AA14: Graveyard | AB14: Wild Dark Stalker | AC14: Great Barrow Wight | AD14: Ferocious Dark Stalker | AE14: Ferocious Dark Stalker | AF14: Fast Banshee | AG14: Fast Banshee | AH14: Wild Dark Stalker | AI14: Wild Dark Stalker | AJ14: Great Barrow Wight | AK14: Ferocious Dark Stalker | AL14: Ferocious Dark Stalker | AM14: Fast Banshee | AN14: Fast Banshee | AO14: 14 | AR14: fist | AS14: Melee attack | AT14: when you tackle an enemy. | AU14: 5 wounds
C15: =VLOOKUP(VLOOKUP($C$5,$C$39:$W$54,9,FALSE),$L$12:$M$23,2,FALSE) -> Med Monster 1 | F15: =(VLOOKUP($C15,$M$12:$S$23,4,FALSE)) -> 4 | G15: =(VLOOKUP($C15,$M$12:$S$23,5,FALSE)) -> 2 | H15: =(VLOOKUP($C15,$M$12:$S$23,6,FALSE)) -> 2.666666667 | I15: =(VLOOKUP($C15,$M$12:$S$23,7,FALSE)) -> 2 | L15: 4 | M15: Big Monster 4 | N15: 5 | O15: Great | P15: ='Team Stats'!AP22 -> 4 | Q15: ='Team Stats'!AQ22 -> 1 | R15: ='Team Stats'!AR22 -> 0.3333333333 | S15: ='Team Stats'!AS22 -> 4.666666667 | T15: 4 | U15: Fire | V15: Creature | X15: Alien Cowboys | Y15: Noxious League | Z15: Alien Cowboys | AA15: Comet | AB15: Killer Predator | AC15: Massive Hulkazoid | AD15: Massive Hulkazoid | AE15: Massive Hulkazoid | AF15: Speedy Seeker | AG15: Speedy Seeker | AH15: Killer Predator | AI15: Killer Predator | AJ15: Massive Hulkazoid | AK15: Massive Hulkazoid | AL15: Massive Hulkazoid | AM15: Speedy Seeker | AN15: Speedy Seeker | AO15: 15 | AR15: shield | AS15: Damage Shield | AT15: when blocked by an enemy. | AU15: 2 wounds
C16: Offensive Linemen | L16: 5 | M16: Med Monster 1 | N16: 6 | O16: Viscious | P16: ='Team Stats'!AP23 -> 4 | Q16: ='Team Stats'!AQ23 -> 2 | R16: ='Team Stats'!AR23 -> 2.666666667 | S16: ='Team Stats'!AS23 -> 2 | T16: 5 | U16: Storm | V16: Zombie | X16: Swamptown Rats | Y16: Noxious League | Z16: Swamptown Rats | AA16: Sewer | AB16: Ferocious Lizard Man | AC16: Huge Swamp Beast | AD16: Huge Swamp Beast | AE16: Huge Swamp Beast | AF16: Quick Rat Man | AG16: Quick Rat Man | AH16: Ferocious Lizard Man | AI16: Ferocious Lizard Man | AJ16: Huge Swamp Beast | AK16: Huge Swamp Beast | AL16: Huge Swamp Beast | AM16: Quick Rat Man | AN16: Quick Rat Man | AO16: 16 | AR16: blood | AS16: Damage Shield | AT16: when tackled by an enemy. | AU16: 5 wounds
C17: =VLOOKUP(VLOOKUP($C$5,$C$39:$W$54,10,FALSE),$L$12:$M$23,2,FALSE) -> Big Monster 4 | F17: =(VLOOKUP($C17,$M$12:$S$23,4,FALSE)) -> 4 | G17: =(VLOOKUP($C17,$M$12:$S$23,5,FALSE)) -> 1 | H17: =(VLOOKUP($C17,$M$12:$S$23,6,FALSE)) -> 0.3333333333 | I17: =(VLOOKUP($C17,$M$12:$S$23,7,FALSE)) -> 4.666666667 | L17: 6 | M17: Med Monster 2 | N17: 7 | O17: Killer | P17: ='Team Stats'!AP24 -> 3.5 | Q17: ='Team Stats'!AQ24 -> 4 | R17: ='Team Stats'!AR24 -> 3 | S17: ='Team Stats'!AS24 -> 1.333333333 | T17: 6 | U17: Chaos | V17: Insectoid | X17: Coffin Crashers | Y17: Noxious League | Z17: Coffin Crashers | AA17: Apocalypse | AB17: Wild Vampire | AC17: Great Nosferatu | AD17: Great Nosferatu | AE17: Great Nosferatu | AF17: Fast Gangling | AG17: Fast Gangling | AH17: Wild Vampire | AI17: Wild Vampire | AJ17: Great Nosferatu | AK17: Great Nosferatu | AL17: Great Nosferatu | AM17: Fast Gangling | AN17: Fast Gangling | AO17: 17 | AR17: claws | AS17: Melee attack | AT17: when you block an enemy. | AU17: 2 wounds
C18: =VLOOKUP(VLOOKUP($C$5,$C$39:$W$54,11,FALSE),$L$12:$M$23,2,FALSE) -> Big Monster 1 | F18: =(VLOOKUP($C18,$M$12:$S$23,4,FALSE)) -> 5 | G18: =(VLOOKUP($C18,$M$12:$S$23,5,FALSE)) -> 0 | H18: =(VLOOKUP($C18,$M$12:$S$23,6,FALSE)) -> 1 | I18: =(VLOOKUP($C18,$M$12:$S$23,7,FALSE)) -> 3.666666667 | L18: 7 | M18: Med Monster 3 | N18: 8 | O18: Ferocious | P18: ='Team Stats'!AP25 -> 3 | Q18: ='Team Stats'!AQ25 -> 3 | R18: ='Team Stats'!AR25 -> 4.666666667 | S18: ='Team Stats'!AS25 -> 0.3333333333 | T18: 7 | U18: Blood | V18: Giants | X18: 9th Circle Annihilators | Y18: Noxious League | Z18: 9th Circle Annihilators | AA18: HelIm outh | AB18: Viscious Blood Demon | AC18: Giant Pit Fiend | AD18: Giant Pit Fiend | AE18: Giant Pit Fiend | AF18: Agile Imp | AG18: Agile Imp | AH18: Viscious Blood Demon | AI18: Viscious Blood Demon | AJ18: Giant Pit Fiend | AK18: Giant Pit Fiend | AL18: Giant Pit Fiend | AM18: Agile Imp | AN18: Agile Imp | AO18: 18
C19: =VLOOKUP(VLOOKUP($C$5,$C$39:$W$54,12,FALSE),$L$12:$M$23,2,FALSE) -> Big Monster 1 | F19: =(VLOOKUP($C19,$M$12:$S$23,4,FALSE)) -> 5 | G19: =(VLOOKUP($C19,$M$12:$S$23,5,FALSE)) -> 0 | H19: =(VLOOKUP($C19,$M$12:$S$23,6,FALSE)) -> 1 | I19: =(VLOOKUP($C19,$M$12:$S$23,7,FALSE)) -> 3.666666667 | L19: 8 | M19: Med Monster 4 | N19: 9 | O19: Wild | P19: ='Team Stats'!AP26 -> 3 | Q19: ='Team Stats'!AQ26 -> 3 | R19: ='Team Stats'!AR26 -> 1.333333333 | S19: ='Team Stats'!AS26 -> 3.666666667 | T19: 8 | U19: Dark | V19: Ghost | X19: Mummified Maulers | Y19: Noxious League | Z19: Mummified Maulers | AA19: Graveyard | AB19: Killer Lich | AC19: Great Mummy | AD19: Great Mummy | AE19: Great Mummy | AF19: Speedy Ghoul | AG19: Speedy Ghoul | AH19: Killer Lich | AI19: Killer Lich | AJ19: Great Mummy | AK19: Great Mummy | AL19: Great Mummy | AM19: Speedy Ghoul | AN19: Speedy Ghoul | AO19: 19
C20: Recievers | L20: 9 | M20: Fast Monster 1 | N20: 10 | O20: Agile | P20: ='Team Stats'!AP27 -> 3 | Q20: ='Team Stats'!AQ27 -> 3 | R20: ='Team Stats'!AR27 -> 3 | S20: ='Team Stats'!AS27 -> 2 | T20: 9 | U20: Undead | V20: Alien | X20: Post-Apocalyptic Punishers | Y20: Noxious League | Z20: Post-Apocalyptic Punishers | AA20: Volcano | AB20: Ferocious War Golem | AC20: Huge Iron Golem | AD20: Great Iron Golem | AE20: Great Iron Golem | AF20: Quick Gargoyle | AG20: Quick Gargoyle | AH20: Ferocious War Golem | AI20: Ferocious War Golem | AJ20: Huge Iron Golem | AK20: Great Iron Golem | AL20: Great Iron Golem | AM20: Quick Gargoyle | AN20: Quick Gargoyle | AO20: 20
C21: =VLOOKUP(VLOOKUP($C$5,$C$39:$W$54,13,FALSE),$L$12:$M$23,2,FALSE) -> Fast Monster 1 | F21: =(VLOOKUP($C21,$M$12:$S$23,4,FALSE)) -> 3 | G21: =(VLOOKUP($C21,$M$12:$S$23,5,FALSE)) -> 3 | H21: =(VLOOKUP($C21,$M$12:$S$23,6,FALSE)) -> 3 | I21: =(VLOOKUP($C21,$M$12:$S$23,7,FALSE)) -> 2 | L21: 10 | M21: Fast Monster 2 | N21: 11 | O21: Speedy | P21: ='Team Stats'!AP28 -> 2.5 | Q21: ='Team Stats'!AQ28 -> 5 | R21: ='Team Stats'!AR28 -> 3.333333333 | S21: ='Team Stats'!AS28 -> 1.333333333 | T21: 10 | U21: Robo | V21: Sewer Beast | X21: Wicked Wildlings | Y21: Noxious League | Z21: Wicked Wildlings | AA21: Asteroid | AB21: Wild Dire Wolf | AC21: Great Tree Man | AD21: Great Tree Man | AE21: Killer Dire Wolf | AF21: Speedy Dark Elf | AG21: Speedy Dark Elf | AH21: Wild Dire Wolf | AI21: Wild Dire Wolf | AJ21: Great Tree Man | AK21: Great Tree Man | AL21: Killer Dire Wolf | AM21: Fast Dark Elf | AN21: Fast Dark Elf | AO21: 21
C22: =VLOOKUP(VLOOKUP($C$5,$C$39:$W$54,14,FALSE),$L$12:$M$23,2,FALSE) -> Fast Monster 1 | F22: =(VLOOKUP($C22,$M$12:$S$23,4,FALSE)) -> 3 | G22: =(VLOOKUP($C22,$M$12:$S$23,5,FALSE)) -> 3 | H22: =(VLOOKUP($C22,$M$12:$S$23,6,FALSE)) -> 3 | I22: =(VLOOKUP($C22,$M$12:$S$23,7,FALSE)) -> 2 | L22: 11 | M22: Fast Monster 3 | N22: 12 | O22: Quick | P22: ='Team Stats'!AP29 -> 2 | Q22: ='Team Stats'!AQ29 -> 4 | R22: ='Team Stats'!AR29 -> 4.666666667 | S22: ='Team Stats'!AS29 -> 0.6666666667 | T22: 11 | U22: Vampiric | V22: Vampire | X22: Alpine All-Slayers | Y22: Noxious League | Z22: Alpine All-Slayers | AA22: Glacier | AB22: Ferocious Wereboar | AC22: Giant Yeti | AD22: Huge Yeti | AE22: Huge Yeti | AF22: Quick Werewolf | AG22: Quick Werewolf | AH22: Ferocious Wereboar | AI22: Ferocious Wereboar | AJ22: Giant Yeti | AK22: Huge Yeti | AL22: Huge Yeti | AM22: Quick Werewolf | AN22: Quick Werewolf | AO22: 22 | AQ22: 1 | AR22: Stat | AT22: Description | AU22: 0 | AV22: 1 | AW22: 2 | AX22: 3 | AY22: 4 | AZ22: 5
L23: 12 | M23: Fast Monster 4 | N23: 13 | O23: Fast | P23: ='Team Stats'!AP30 -> 2 | Q23: ='Team Stats'!AQ30 -> 4 | R23: ='Team Stats'!AR30 -> 2.666666667 | S23: ='Team Stats'!AS30 -> 2.666666667 | T23: 12 | U23: Swamp | V23: Demonoid | X23: 1 | Y23: 2 | Z23: 3 | AA23: 4 | AB23: 5 | AC23: 6 | AD23: 7 | AE23: 8 | AF23: 9 | AG23: 10 | AH23: 11 | AI23: 12 | AJ23: 13 | AK23: 14 | AL23: 15 | AM23: 16 | AN23: 17 | AO23: 18 | AQ23: 2 | AR23: Health | AS23: Shield | AT23: Add to total health | AU23: 0 | AV23: 10 | AW23: 20 | AX23: 30 | AY23: 40 | AZ23: 50
C24: o | D24: Defensive Players | F24: Damage | G24: Speed | H24: Agility | I24: Power | M24: lookup table | O24: alternate names | T24: 13 | U24: Aquatic | V24: Undead | Y24: Monster | AE24: Health | AF24: Wound | AG24: Speed | AH24: Catch | AI24: Carry | AJ24: Elusiveness | AK24: Tackle | AL24: Pass Block | AM24: Run Block | AN24: Impact | AQ24: 3 | AR24: Wounding | AS24: Breath | AT24: Adds to base damage | AU24: 0 | AV24: 1 | AW24: 2 | AX24: 3 | AY24: 4 | AZ24: 5
C25: Safeties | M25: Giant | N25: Big1 | O25: Giant | P25: Big | T25: 14 | U25: Killer | V25: Golem | Y25: Big Monster 1 | AE25: ='Team Stats'!AD51 -> 50 | AF25: ='Team Stats'!AE51 -> 5 | AG25: ='Team Stats'!AF51 -> 0 | AH25: ='Team Stats'!AG51 -> 0 | AI25: ='Team Stats'!AH51 -> 0.01 | AJ25: ='Team Stats'!AI51 -> 0.03 | AK25: ='Team Stats'!AJ51 -> 0.06 | AL25: ='Team Stats'!AK51 -> 0.06 | AM25: ='Team Stats'!AL51 -> 0.05 | AN25: ='Team Stats'!AM51 -> 0.05 | AQ25: 4 | AR25: Speed | AS25: Blood | AT25: Adds % top speed | AU25: 0 | AV25: 0.1 | AW25: 0.2 | AX25: 0.3 | AY25: 0.4 | AZ25: 0.5
C26: =VLOOKUP(VLOOKUP($C$5,$C$39:$W$54,15,FALSE),$L$12:$M$23,2,FALSE) -> Med Monster 1 | F26: =(VLOOKUP($C26,$M$12:$S$23,4,FALSE)) -> 4 | G26: =(VLOOKUP($C26,$M$12:$S$23,5,FALSE)) -> 2 | H26: =(VLOOKUP($C26,$M$12:$S$23,6,FALSE)) -> 2.666666667 | I26: =(VLOOKUP($C26,$M$12:$S$23,7,FALSE)) -> 2 | M26: Massive | N26: Big2 | O26: Massive | P26: Big | T26: 15 | U26: Evil | V26: Dark Elves | Y26: Big Monster 2 | AE26: ='Team Stats'!AD52 -> 40 | AF26: ='Team Stats'!AE52 -> 5 | AG26: ='Team Stats'!AF52 -> 0.4 | AH26: ='Team Stats'!AG52 -> 0 | AI26: ='Team Stats'!AH52 -> 0.01 | AJ26: ='Team Stats'!AI52 -> 0.01 | AK26: ='Team Stats'!AJ52 -> 0.06 | AL26: ='Team Stats'!AK52 -> 0.1 | AM26: ='Team Stats'!AL52 -> 0.03 | AN26: ='Team Stats'!AM52 -> 0.03 | AQ26: 5 | AR26: Catch | AT26: Adds % to catching | AU26: 0 | AV26: 0.01 | AW26: 0.02 | AX26: 0.04 | AY26: 0.06 | AZ26: 0.08
C27: =VLOOKUP(VLOOKUP($C$5,$C$39:$W$54,16,FALSE),$L$12:$M$23,2,FALSE) -> Med Monster 1 | F27: =(VLOOKUP($C27,$M$12:$S$23,4,FALSE)) -> 4 | G27: =(VLOOKUP($C27,$M$12:$S$23,5,FALSE)) -> 2 | H27: =(VLOOKUP($C27,$M$12:$S$23,6,FALSE)) -> 2.666666667 | I27: =(VLOOKUP($C27,$M$12:$S$23,7,FALSE)) -> 2 | M27: Huge | N27: Big3 | O27: Huge | P27: Big | T27: 16 | U27: Psycho | V27: Monster | Y27: Big Monster 3 | AE27: ='Team Stats'!AD53 -> 40 | AF27: ='Team Stats'!AE53 -> 4 | AG27: ='Team Stats'!AF53 -> 0.35 | AH27: ='Team Stats'!AG53 -> 0.55 | AI27: ='Team Stats'!AH53 -> 0.02 | AJ27: ='Team Stats'!AI53 -> 0.03 | AK27: ='Team Stats'!AJ53 -> 0.06 | AL27: ='Team Stats'!AK53 -> 0.06 | AM27: ='Team Stats'!AL53 -> 0.04 | AN27: ='Team Stats'!AM53 -> 0.04 | AQ27: 6 | AR27: Carry | AT27: Detracts from fumble% | AU27: 0 | AV27: 0.01 | AW27: 0.02 | AX27: 0.03 | AY27: 0.04 | AZ27: 0.05
C28: Defensive Linemen | M28: Great | N28: Big4 | O28: Big | P28: Big | Y28: Big Monster 4 | AE28: ='Team Stats'!AD54 -> 40 | AF28: ='Team Stats'!AE54 -> 4 | AG28: ='Team Stats'!AF54 -> 0.35 | AH28: ='Team Stats'!AG54 -> 0 | AI28: ='Team Stats'!AH54 -> 0 | AJ28: ='Team Stats'!AI54 -> 0.01 | AK28: ='Team Stats'!AJ54 -> 0.1 | AL28: ='Team Stats'!AK54 -> 0.08 | AM28: ='Team Stats'!AL54 -> 0.05 | AN28: ='Team Stats'!AM54 -> 0.05 | AQ28: 7 | AR28: Elusiveness | AT28: Decrease Tackle% | AU28: 0 | AV28: 0.01 | AW28: 0.03 | AX28: 0.06 | AY28: 0.09 | AZ28: 0.12
C29: =VLOOKUP(VLOOKUP($C$5,$C$39:$W$54,17,FALSE),$L$12:$M$23,2,FALSE) -> Big Monster 4 | F29: =(VLOOKUP($C29,$M$12:$S$23,4,FALSE)) -> 4 | G29: =(VLOOKUP($C29,$M$12:$S$23,5,FALSE)) -> 1 | H29: =(VLOOKUP($C29,$M$12:$S$23,6,FALSE)) -> 0.3333333333 | I29: =(VLOOKUP($C29,$M$12:$S$23,7,FALSE)) -> 4.666666667 | M29: Viscious | N29: Med1 | O29: Viscious | P29: Medium | Y29: Med Monster 1 | AE29: ='Team Stats'!AD55 -> 40 | AF29: ='Team Stats'!AE55 -> 4 | AG29: ='Team Stats'!AF55 -> 0.4 | AH29: ='Team Stats'!AG55 -> 0.6 | AI29: ='Team Stats'!AH55 -> 0.03 | AJ29: ='Team Stats'!AI55 -> 0.06 | AK29: ='Team Stats'!AJ55 -> 0.06 | AL29: ='Team Stats'!AK55 -> 0.02 | AM29: ='Team Stats'!AL55 -> 0.02 | AN29: ='Team Stats'!AM55 -> 0.02 | AQ29: 8 | AR29: Tackle | AT29: lncrese Tackle% | AU29: 0 | AV29: 0.02 | AW29: 0.04 | AX29: 0.06 | AY29: 0.08 | AZ29: 0.1
C30: =VLOOKUP(VLOOKUP($C$5,$C$39:$W$54,18,FALSE),$L$12:$M$23,2,FALSE) -> Big Monster 1 | F30: =(VLOOKUP($C30,$M$12:$S$23,4,FALSE)) -> 5 | G30: =(VLOOKUP($C30,$M$12:$S$23,5,FALSE)) -> 0 | H30: =(VLOOKUP($C30,$M$12:$S$23,6,FALSE)) -> 1 | I30: =(VLOOKUP($C30,$M$12:$S$23,7,FALSE)) -> 3.666666667 | M30: Killer | N30: Med2 | O30: Ferral | P30: Medium | Y30: Med Monster 2 | AE30: ='Team Stats'!AD56 -> 30 | AF30: ='Team Stats'!AE56 -> 4 | AG30: ='Team Stats'!AF56 -> 0.5 | AH30: ='Team Stats'!AG56 -> 0.6 | AI30: ='Team Stats'!AH56 -> 0.03 | AJ30: ='Team Stats'!AI56 -> 0.09 | AK30: ='Team Stats'!AJ56 -> 0.04 | AL30: ='Team Stats'!AK56 -> 0.02 | AM30: ='Team Stats'!AL56 -> 0.01 | AN30: ='Team Stats'!AM56 -> 0.01 | AQ30: 9 | AR30: Pass Block | AT30: lncrease% tipping throw | AU30: 0 | AV30: 0.01 | AW30: 0.02 | AX30: 0.03 | AY30: 0.04 | AZ30: 0.05
C31: =VLOOKUP(VLOOKUP($C$5,$C$39:$W$54,19,FALSE),$L$12:$M$23,2,FALSE) -> Big Monster 1 | F31: =(VLOOKUP($C31,$M$12:$S$23,4,FALSE)) -> 5 | G31: =(VLOOKUP($C31,$M$12:$S$23,5,FALSE)) -> 0 | H31: =(VLOOKUP($C31,$M$12:$S$23,6,FALSE)) -> 1 | I31: =(VLOOKUP($C31,$M$12:$S$23,7,FALSE)) -> 3.666666667 | M31: Ferocious | N31: Med3 | O31: Ferocious | P31: Medium | Y31: Med Monster 3 | AE31: ='Team Stats'!AD57 -> 30 | AF31: ='Team Stats'!AE57 -> 3 | AG31: ='Team Stats'!AF57 -> 0.45 | AH31: ='Team Stats'!AG57 -> 0.7 | AI31: ='Team Stats'!AH57 -> 0.05 | AJ31: ='Team Stats'!AI57 -> 0.12 | AK31: ='Team Stats'!AJ57 -> 0.02 | AL31: ='Team Stats'!AK57 -> 0 | AM31: ='Team Stats'!AL57 -> 0 | AN31: ='Team Stats'!AM57 -> 0 | AQ31: 10 | AR31: Run Block | AT31: Increase Tackle % | AU31: 0 | AV31: 0.01 | AW31: 0.02 | AX31: 0.03 | AY31: 0.04 | AZ31: 0.05
C32: Defensive Backs | M32: Wild | N32: Med4 | O32: Wild | P32: Medium | Y32: Med Monster 4 | AE32: ='Team Stats'!AD58 -> 30 | AF32: ='Team Stats'!AE58 -> 3 | AG32: ='Team Stats'!AF58 -> 0.45 | AH32: ='Team Stats'!AG58 -> 0.55 | AI32: ='Team Stats'!AH58 -> 0.01 | AJ32: ='Team Stats'!AI58 -> 0.03 | AK32: ='Team Stats'!AJ58 -> 0.08 | AL32: ='Team Stats'!AK58 -> 0.06 | AM32: ='Team Stats'!AL58 -> 0.04 | AN32: ='Team Stats'!AM58 -> 0.04 | AQ32: 11 | AR32: Impact | AT32: Increase Fumble % | AU32: 0 | AV32: 0.01 | AW32: 0.02 | AX32: 0.03 | AY32: 0.04 | AZ32: 0.05
C33: =VLOOKUP(VLOOKUP($C$5,$C$39:$W$54,20,FALSE),$L$12:$M$23,2,FALSE) -> Fast Monster 1 | F33: =(VLOOKUP($C33,$M$12:$S$23,4,FALSE)) -> 3 | G33: =(VLOOKUP($C33,$M$12:$S$23,5,FALSE)) -> 3 | H33: =(VLOOKUP($C33,$M$12:$S$23,6,FALSE)) -> 3 | I33: =(VLOOKUP($C33,$M$12:$S$23,7,FALSE)) -> 2 | M33: Agile | N33: Fast1 | O33: Agile | P33: Fast | Y33: Fast Monster 1 | AE33: ='Team Stats'!AD59 -> 30 | AF33: ='Team Stats'!AE59 -> 3 | AG33: ='Team Stats'!AF59 -> 0.45 | AH33: ='Team Stats'!AG59 -> 0.65 | AI33: ='Team Stats'!AH59 -> 0.03 | AJ33: ='Team Stats'!AI59 -> 0.06 | AK33: ='Team Stats'!AJ59 -> 0.04 | AL33: ='Team Stats'!AK59 -> 0.04 | AM33: ='Team Stats'!AL59 -> 0.02 | AN33: ='Team Stats'!AM59 -> 0.02
C34: =VLOOKUP(VLOOKUP($C$5,$C$39:$W$54,21,FALSE),$L$12:$M$23,2,FALSE) -> Fast Monster 1 | F34: =(VLOOKUP($C34,$M$12:$S$23,4,FALSE)) -> 3 | G34: =(VLOOKUP($C34,$M$12:$S$23,5,FALSE)) -> 3 | H34: =(VLOOKUP($C34,$M$12:$S$23,6,FALSE)) -> 3 | I34: =(VLOOKUP($C34,$M$12:$S$23,7,FALSE)) -> 2 | M34: Speedy | N34: Fast2 | O34: Speedy | P34: Fast | Y34: Fast Monster 2 | AE34: ='Team Stats'!AD60 -> 20 | AF34: ='Team Stats'!AE60 -> 3 | AG34: ='Team Stats'!AF60 -> 0.55 | AH34: ='Team Stats'!AG60 -> 0.75 | AI34: ='Team Stats'!AH60 -> 0.03 | AJ34: ='Team Stats'!AI60 -> 0.03 | AK34: ='Team Stats'!AJ60 -> 0.04 | AL34: ='Team Stats'!AK60 -> 0.02 | AM34: ='Team Stats'!AL60 -> 0.01 | AN34: ='Team Stats'!AM60 -> 0.01
M35: Quick | N35: Fast3 | O35: Quick | P35: Fast | Y35: Fast Monster 3 | AE35: ='Team Stats'!AD61 -> 20 | AF35: ='Team Stats'!AE61 -> 2 | AG35: ='Team Stats'!AF61 -> 0.5 | AH35: ='Team Stats'!AG61 -> 0.75 | AI35: ='Team Stats'!AH61 -> 0.05 | AJ35: ='Team Stats'!AI61 -> 0.09 | AK35: ='Team Stats'!AJ61 -> 0.04 | AL35: ='Team Stats'!AK61 -> 0 | AM35: ='Team Stats'!AL61 -> 0 | AN35: ='Team Stats'!AM61 -> 0
M36: Fast | N36: Fast4 | O36: Fast | P36: Fast | Y36: Fast Monster 4 | AE36: ='Team Stats'!AD62 -> 20 | AF36: ='Team Stats'!AE62 -> 2 | AG36: ='Team Stats'!AF62 -> 0.5 | AH36: ='Team Stats'!AG62 -> 0.65 | AI36: ='Team Stats'!AH62 -> 0.03 | AJ36: ='Team Stats'!AI62 -> 0.03 | AK36: ='Team Stats'!AJ62 -> 0.06 | AL36: ='Team Stats'!AK62 -> 0.06 | AM36: ='Team Stats'!AL62 -> 0.02 | AN36: ='Team Stats'!AM62 -> 0.02
C37: 1 | D37: 2 | E37: 3 | F37: 4 | G37: 5 | H37: 6 | I37: 7 | J37: 8 | K37: 9 | L37: 10 | M37: 11 | N37: 12 | O37: 13 | P37: 14 | Q37: 15 | R37: 16 | S37: 17 | T37: 18 | U37: 19 | V37: 20 | W37: 21 | Y37: 1 | Z37: 2 | AA37: 3 | AB37: 4 | AC37: 5 | AD37: 6 | AE37: 7 | AF37: 8 | AG37: 9 | AH37: 10 | AI37: 11 | AJ37: 12 | AK37: 13 | AL37: 14 | AM37: 15 | AN37: 16 | AO37: 17 | AP37: 18 | AQ37: 19 | AR37: 20 | AS37: 21 | AT37: 22 | AU37: 23 | AV37: 24 | AW37: 25
C38: Team | D38: Home Field | E38: Damage | F38: Speed | G38: Agility | H38: Power | I38: Total | K38: RB | L38: OL | M38: OL | N38: OL | O38: R | P38: R | Q38: S | R38: S | S38: DL | T38: DL | U38: DL | V38: DB | W38: DB | Z38: Type 1 | AA38: Type 2 | AB38: Type 3 | AC38: Type 4 | AD38: Type 5 | AE38: Type 6 | AF38: Type 7 | AG38: Type 8 | AH38: Type 9 | AI38: Type 10 | AJ38: Type 11 | AK38: Type 12 | AL38: About | AS38: Keyword | AT38: Description | AU38: Special | AV38: Effect | AW38: Special Defense | AX38: Export Name
C39: Hellmouth Horde | D39: Hellmouth | E39: 3 | F39: 4 | G39: 1 | H39: 2 | I39: =SUM(E39:H39) -> 10 | J39: 1 | K39: 6 | L39: 2 | M39: 6 | N39: 6 | O39: 10 | P39: 10 | Q39: 6 | R39: 6 | S39: 2 | T39: 6 | U39: 6 | V39: 10 | W39: 10 | X39: =C39 -> Hellmouth Horde | Y39: Hellion | Z39: Hellion | AA39: Hellion | AB39: Hellion | AC39: Hellion | AD39: Abyssal Warrior | AE39: Abyssal Warrior | AF39: Abyssal Warrior | AG39: Abyssal Warrior | AH39: Shadow | AI39: Shadow | AJ39: Shadow | AK39: Shadow | AL39: These are dark creatures known as Hellions who emerged from the bowels of the earth to win glory for the underworld! | AP39: Hellion | AQ39: =C39 -> Hellmouth Horde | AR39: Hellmouth | AS39: Fire | AT39: Hellfire | AU39: fist | AV39: =CONCATENATE(AT39," ",AU39,": ",VLOOKUP(AU39,$AR$14:$AS$17,2,FALSE),VLOOKUP(AS39,$AR$6:$AU$12,2,FALSE),VLOOKUP(AU39,$AR$14:$AT$17,3,FALSE)) -> Hellfire fist: Melee attack dealing an additional 2 wounds when you tackle an enemy. | AW39: =CONCATENATE(AS39," Resistance: Immune to ",AS39," effects.") -> Fire Resistance: Immune to Fire effects. | AX39: Hellion
C40: Data Dome Dreadbots | D40: Asteroid | E40: 2 | F40: 3 | G40: 4 | H40: 1 | I40: =SUM(E40:H40) -> 10 | J40: 2 | K40: 7 | L40: 3 | M40: 6 | N40: 6 | O40: 11 | P40: 11 | Q40: 7 | R40: 7 | S40: 3 | T40: 6 | U40: 6 | V40: 11 | W40: 11 | X40: =C40 -> Data Dome Dreadbots | Y40: Droid | Z40: Death Droid | AA40: Death Droid | AB40: Death Droid | AC40: Death Droid | AD40: Robo-Warrior | AE40: Robo-Warrior | AF40: Robo-Warrior | AG40: Robo-Warrior | AH40: War Droid | AI40: War Droid | AJ40: War Droid | AK40: War Droid | AL40: These Droids once operated an automated nuclear reator, but their mad creator has reprogrammed them to seek victory at any cost! | AP40: Droid | AQ40: =C40 -> Data Dome Dreadbots | AR40: Asteroid | AS40: Radiation | AT40: Atomic | AU40: shield | AV40: Atomic shield: Damage Shield slowing creatures, decreasing their speed by 10% when blocked by an enemy. | AW40: =CONCATENATE(AS40," Resistance: Immune to ",AS40," effects.") -> Radiation Resistance: Immune to Radiation effects. | AX40: Droid
C41: Inner World Incinerators | D41: Volcano | E41: 1 | F41: 2 | G41: 3 | H41: 4 | I41: 10 | J41: 3 | K41: 8 | L41: 4 | M41: 4 | N41: 8 | O41: 12 | P41: 12 | Q41: 8 | R41: 8 | S41: 4 | T41: 4 | U41: 8 | V41: 12 | W41: 12 | X41: Inner World Incinerators | Y41: Elemental | Z41: Magma Beast | AA41: Magma Beast | AB41: Magma Beast | AC41: Magma Beast | AD41: Fire Elemental | AE41: Fire Elemental | AF41: Fire Elemental | AG41: Fire Elemental | AH41: Fire Drake | AI41: Fire Drake | AJ41: Fire Drake | AK41: Fire Drake | AL41: Born of fire, these ancient Elementals have returned to the surface world to find new glory at the expense of mortal lives! | AP41: Elemental | AQ41: Inner World Incinerators | AR41: Volcano | AS41: Fire | AT41: Magma | AU41: blood | AV41: Magma blood: Damage Shield dealing an additional 2 wounds when tackled by an enemy. | AW41: Fire Resistance: Immune to Fire effects. | AX41: Elemental
C42: Deep Channel Chumsquad | D42: Sewer | E42: 4 | F42: 1 | G42: 2 | H42: 3 | I42: 10 | J42: 4 | K42: 5 | L42: 4 | M42: 1 | N42: 1 | O42: 9 | P42: 9 | Q42: 5 | R42: 5 | S42: 4 | T42: 1 | U42: 1 | V42: 9 | W42: 9 | X42: Deep Channel Chumsquad | Y42: Creature | Z42: Were-Shark | AA42: Were-Shark | AB42: Were-Shark | AC42: Were-Shark | AD42: Hammerhead-beast | AE42: Hammerhead-beast | AF42: Hammerhead-beast | AG42: Hammerhead-beast | AH42: Tiger Sharkman | AI42: Tiger Sharkman | AJ42: Tiger Sharkman | AK42: Tiger Sharkman | AL42: The Were-sharks emerged from the abyss of the sea to prove their domination over all other pathetic life forms! | AP42: Creature | AQ42: Deep Channel Chumsquad | AR42: Sewer | AS42: Poison | AT42: Poisonous | AU42: claws | AV42: Poisonous claws: Melee attack draining strength, decreasing their Wounding by 2 when you block an enemy. | AW42: Poison Resistance: Immune to Poison effects. | AX42: Creature
C43: Cadaverous Crushers | D43: Apocalypse | E43: 3 | F43: 3 | G43: 2 | H43: 2 | I43: 10 | J43: 5 | K43: 5 | L43: 1 | M43: 5 | N43: 5 | O43: 9 | P43: 9 | Q43: 5 | R43: 5 | S43: 1 | T43: 5 | U43: 5 | V43: 9 | W43: 9 | X43: Cadaverous Crushers | Y43: Zombie | Z43: Crusher | AA43: Crusher | AB43: Crusher | AC43: Crusher | AD43: War Zombie | AE43: War Zombie | AF43: War Zombie | AG43: War Zombie | AH43: Screamer | AI43: Screamer | AJ43: Screamer | AK43: Screamer | AL43: The Zombie plague that infects mankind has mutated once again, this time resulting in the perfect squad of killer athletes. Nothing can stop them! | AP43: Zombie | AQ43: Cadaverous Crushers | AR43: Apocalypse | AS43: Radiation | AT43: Radiated | AU43: claws | AV43: Radiated claws: Melee attack slowing creatures, decreasing their speed by 10% when you block an enemy. | AW43: Radiation Resistance: Immune to Radiation effects. | AX43: Zombie
C44: Terror Town Terminoids | D44: Comet | E44: 2 | F44: 3 | G44: 3 | H44: 2 | I44: 10 | J44: 6 | K44: 6 | L44: 2 | M44: 4 | N44: 4 | O44: 10 | P44: 10 | Q44: 6 | R44: 6 | S44: 2 | T44: 4 | U44: 4 | V44: 10 | W44: 10 | X44: Terror Town Terminoids | Y44: Insectoid | Z44: Megalisk | AA44: Megalisk | AB44: Megalisk | AC44: Megalisk | AD44: Arachnoid | AE44: Arachnoid | AF44: Arachnoid | AG44: Arachnoid | AH44: Drone | AI44: Drone | AJ44: Drone | AK44: Drone | AL44: From the far reaches of space comes a race of Insectoids bent on world domination, proven by their skill in the field of battle! | AP44: Insectoid | AQ44: Terror Town Terminoids | AR44: Comet | AS44: Acid | AT44: Acid | AU44: blood | AV44: Acid blood: Damage Shield dealing an additional 2 wounds when tackled by an enemy. | AW44: Acid Resistance: Immune to Acid effects. | AX44: Insectoid
C45: Wasteland Wendigos | D45: Glacier | E45: 2 | F45: 2 | G45: 3 | H45: 3 | I45: 10 | J45: 7 | K45: 7 | L45: 4 | M45: 4 | N45: 4 | O45: 12 | P45: 11 | Q45: 7 | R45: 7 | S45: 4 | T45: 4 | U45: 4 | V45: 12 | W45: 11 | X45: Wasteland Wendigos | Y45: Giants | Z45: Frost Giant | AA45: Frost Giant | AB45: Frost Giant | AC45: Frost Giant | AD45: Ice Troll | AE45: Ice Troll | AF45: Ice Troll | AG45: Ice Troll | AH45: Goblin | AI45: Goblin | AJ45: Goblin | AK45: Goblin | AL45: The ancient race of Giants stir once again to answer the call of war! They will prove their might in the arena of death! | AP45: Giants | AQ45: Wasteland Wendigos | AR45: Glacier | AS45: Ice | AT45: Icy | AU45: claws | AV45: Icy claws: Melee attack slowing creatures, decreasing their speed by 10% when you block an enemy. | AW45: Ice Resistance: Immune to Ice effects. | AX45: Ogres
C46: Necropolis Nightmares | D46: Graveyard | E46: 3 | F46: 2 | G46: 2 | H46: 3 | I46: 10 | J46: 8 | K46: 8 | L46: 4 | M46: 7 | N46: 7 | O46: 12 | P46: 12 | Q46: 8 | R46: 8 | S46: 4 | T46: 7 | U46: 7 | V46: 12 | W46: 12 | X46: Necropolis Nightmares | Y46: Ghost | Z46: Barrow Wight | AA46: Barrow Wight | AB46: Barrow Wight | AC46: Barrow Wight | AD46: Dark Stalker | AE46: Dark Stalker | AF46: Dark Stalker | AG46: Dark Stalker | AH46: Banshee | AI46: Banshee | AJ46: Banshee | AK46: Banshee | AL46: The anguish of past defeats haunt the spirits of dead Monster Football players who have returned as Ghosts to seek their revenge! | AP46: Ghost | AQ46: Necropolis Nightmares | AR46: Graveyard | AS46: Corruption | AT46: Corruption | AU46: shield | AV46: Corruption shield: Damage Shield draining strength, decreasing their Wounding by 2 when blocked by an enemy. | AW46: Corruption Resistance: Immune to Corruption effects. | AX46: Ghost
C47: Alien Cowboys | D47: Comet | E47: 2 | F47: 4 | G47: 2 | H47: 2 | I47: 10 | J47: 9 | K47: 6 | L47: 2 | M47: 2 | N47: 2 | O47: 10 | P47: 10 | Q47: 6 | R47: 6 | S47: 2 | T47: 2 | U47: 2 | V47: 10 | W47: 10 | X47: Alien Cowboys | Y47: Alien | Z47: Hulkazoid | AA47: Hulkazoid | AB47: Hulkazoid | AC47: Hulkazoid | AD47: Predator | AE47: Predator | AF47: Predator | AG47: Predator | AH47: Seeker | AI47: Seeker | AJ47: Seeker | AK47: Seeker | AL47: A federation of warlike Aliens have travelled light years to prove their superior might in the arena of Monster Football! | AP47: Alien | AQ47: Alien Cowboys | AR47: Comet | AS47: Electrical | AT47: Lightning | AU47: fist | AV47: Lightning fist: Melee attack stunning creatures increasing their chance to fumble by 5% when you tackle an enemy. | AW47: Electrical Resistance: Immune to Electrical effects. | AX47: Alien
C48: Swamptown Rats | D48: Sewer | E48: 2 | F48: 2 | G48: 4 | H48: 2 | I48: 10 | J48: 10 | K48: 7 | L48: 3 | M48: 3 | N48: 3 | O48: 11 | P48: 11 | Q48: 7 | R48: 7 | S48: 3 | T48: 3 | U48: 3 | V48: 11 | W48: 11 | X48: Swamptown Rats | Y48: Sewer Beast | Z48: Swamp Beast | AA48: Swamp Beast | AB48: Swamp Beast | AC48: Swamp Beast | AD48: Lizard Man | AE48: Lizard Man | AF48: Lizard Man | AG48: Lizard Man | AH48: Rat Man | AI48: Rat Man | AJ48: Rat Man | AK48: Rat Man | AL48: Banshed to the underground for centuries, the Sewer Beasts rise to win their freedom from the darkness and to rule over all men! | AP48: Sewer Beast | AQ48: Swamptown Rats | AR48: Sewer | AS48: Acid | AT48: Acid | AU48: fist | AV48: Acid fist: Melee attack dealing an additional 2 wounds when you tackle an enemy. | AW48: Acid Resistance: Immune to Acid effects. | AX48: SewerBeast
C49: Coffin Crashers | D49: Apocalypse | E49: 2 | F49: 2 | G49: 2 | H49: 4 | I49: 10 | J49: 11 | K49: 8 | L49: 4 | M49: 4 | N49: 4 | O49: 12 | P49: 12 | Q49: 8 | R49: 8 | S49: 4 | T49: 4 | U49: 4 | V49: 12 | W49: 12 | X49: Coffin Crashers | Y49: Vampire | Z49: Nosferatu | AA49: Nosferatu | AB49: Nosferatu | AC49: Nosferatu | AD49: Vampire | AE49: Vampire | AF49: Vampire | AG49: Vampire | AH49: Gangling | AI49: Gangling | AJ49: Gangling | AK49: Gangling | AL49: Vampires have long tolerated the tiresome presence of mortals. But now they have found new ways to play with their food. | AP49: Vampire | AQ49: Coffin Crashers | AR49: Apocalypse | AS49: Corruption | AT49: Corrupted | AU49: claws | AV49: Corrupted claws: Melee attack draining strength, decreasing their Wounding by 2 when you block an enemy. | AW49: Corruption Resistance: Immune to Corruption effects. | AX49: Vampire
C50: 9th Circle Annihilators | D50: HelIm outh | E50: 4 | F50: 1 | G50: 3 | H50: 2 | I50: 10 | J50: 12 | K50: 5 | L50: 1 | M50: 1 | N50: 1 | O50: 9 | P50: 9 | Q50: 5 | R50: 5 | S50: 1 | T50: 1 | U50: 1 | V50: 9 | W50: 9 | X50: 9th Circle Annihilators | Y50: Demonoid | Z50: Pit Fiend | AA50: Pit Fiend | AB50: Pit Fiend | AC50: Pit Fiend | AD50: Blood Demon | AE50: Blood Demon | AF50: Blood Demon | AG50: Blood Demon | AH50: Imp | AI50: Imp | AJ50: Imp | AK50: Imp | AL50: These Demonoids have emerged from the Hellmouth to bring new suffering to mankind, beginning with the humiliating defeat of all who oppose them! | AP50: Demonoid | AQ50: 9th Circle Annihilators | AR50: HelImouth | AS50: Fire | AT50: Fire | AU50: shield | AV50: Fire shield: Damage Shield dealing an additional 2 wounds when blocked by an enemy. | AW50: Fire Resistance: Immune to Fire effects. | AX50: Demonoid
C51: Mummified Maulers | D51: Graveyard | E51: 2 | F51: 3 | G51: 2 | H51: 3 | I51: 10 | J51: 13 | K51: 6 | L51: 4 | M51: 4 | N51: 4 | O51: 10 | P51: 10 | Q51: 6 | R51: 6 | S51: 4 | T51: 4 | U51: 4 | V51: 10 | W51: 10 | X51: Mummified Maulers | Y51: Undead | Z51: Mummy | AA51: Mummy | AB51: Mummy | AC51: Mummy | AD51: Lich | AE51: Lich | AF51: Lich | AG51: Lich | AH51: Ghoul | AI51: Ghoul | AJ51: Ghoul | AK51: Ghoul | AL51: The scent of the living have driven these Undead from their graves to steal life from their victims, once victory at a time! | AP51: Undead | AQ51: Mummified Maulers | AR51: Graveyard | AS51: Corruption | AT51: Corrupted | AU51: claws | AV51: Corrupted claws: Melee attack draining strength, decreasing their Wounding by 2 when you block an enemy. | AW51: Corruption Resistance: Immune to Corruption effects. | AX51: Undead
C52: Post-Apocalyptic Punishers | D52: Volcano | E52: 3 | F52: 2 | G52: 3 | H52: 2 | I52: 10 | J52: 14 | K52: 7 | L52: 3 | M52: 4 | N52: 4 | O52: 11 | P52: 11 | Q52: 7 | R52: 7 | S52: 3 | T52: 4 | U52: 4 | V52: 11 | W52: 11 | X52: Post-Apocalyptic Punishers | Y52: Golem | Z52: Iron Golem | AA52: Iron Golem | AB52: Iron Golem | AC52: Iron Golem | AD52: War Golem | AE52: War Golem | AF52: War Golem | AG52: War Golem | AH52: Gargoyle | AI52: Gargoyle | AJ52: Gargoyle | AK52: Gargoyle | AL52: These Golems are the forgetten experiments of mankind who have returned to destroy their creators upon the grid-iron! | AP52: Golem | AQ52: Post-Apocalyptic Punishers | AR52: Volcano | AS52: Electrical | AT52: Electrified | AU52: fist | AV52: Electrified fist: Melee attack stunning creatures increasing their chance to fumble by 5% when you tackle an enemy. | AW52: Electrical Resistance: Immune to Electrical effects. | AX52: Golem
C53: Wicked Wildlings | D53: Asteroid | E53: 1 | F53: 4 | G53: 1 | H53: 4 | I53: 10 | J53: 15 | K53: 8 | L53: 4 | M53: 4 | N53: 6 | O53: 10 | P53: 10 | Q53: 8 | R53: 8 | S53: 4 | T53: 4 | U53: 6 | V53: 12 | W53: 12 | X53: Wicked Wildlings | Y53: Dark Elves | Z53: Tree Man | AA53: Tree Man | AB53: Tree Man | AC53: Tree Man | AD53: Dire Wolf | AE53: Dire Wolf | AF53: Dire Wolf | AG53: Dire Wolf | AH53: Dark Elf | AI53: Dark Elf | AJ53: Dark Elf | AK53: Dark Elf | AL53: The Dark Elves are lovers of cheating and mischief and have found new ways to torment those they crush in Monster Football. | AP53: Dark Elves | AQ53: Wicked Wildlings | AR53: Asteroid | AS53: Poison | AT53: Poisonous | AU53: claws | AV53: Poisonous claws: Melee attack draining strength, decreasing their Wounding by 2 when you block an enemy. | AW53: Poison Resistance: Immune to Poison effects. | AX53: DarkElves
C54: Alpine All-Slayers | D54: Glacier | E54: 4 | F54: 1 | G54: 4 | H54: 1 | I54: 10 | J54: 16 | K54: 7 | L54: 1 | M54: 3 | N54: 3 | O54: 11 | P54: 11 | Q54: 7 | R54: 7 | S54: 1 | T54: 3 | U54: 3 | V54: 11 | W54: 11 | X54: Alpine All-Slayers | Y54: Monster | Z54: Yeti | AA54: Yeti | AB54: Yeti | AC54: Yeti | AD54: Wereboar | AE54: Wereboar | AF54: Wereboar | AG54: Wereboar | AH54: Werewolf | AI54: Werewolf | AJ54: Werewolf | AK54: Werewolf | AL54: These Monsters of the north have descended upon the grid-iron to destroy those who would dare to trepass upon the frozen tundra. | AP54: Monster | AQ54: Alpine All-Slayers | AR54: Glacier | AS54: Ice | AT54: Frigid | AU54: shield | AV54: Frigid shield: Damage Shield slowing creatures, decreasing their speed by 10% when blocked by an enemy. | AW54: Ice Resistance: Immune to Ice effects. | AX54: Monster
C57: Team | D57: About | G57: Old Helmet | I57: Element | J57: Special Ability | N57: Old Colors | Q57: Creative Notes | R57: New Colors | U57: New Helmet | Y57: =VLOOKUP(C58,$X$39:$Y$54,2,FALSE) -> Hellion | Z57: First | AA57: Last | AB57: 58 | AC57: Unused First | AD57: Unused Last | AE57: 103
C58: Hellmouth Horde | D58: =VLOOKUP(C58,$X$39:$AO$54,15,FALSE) -> These are dark creatures known as Hellions who emerged from the bowels of the earth to win glory for the underworld! | I58: =VLOOKUP(D89,$AP$39:$AW$54,4,FALSE) -> Fire | J58: =VLOOKUP(D89,$AP$39:$AW$54,7,FALSE) -> Hellfire fist: Melee attack dealing an additional 2 wounds when you tackle an enemy. | P58: z | Q58: Old name: Bullet Dodgers | AB58: 59 | AE58: 104
C59: =VLOOKUP(C58,$X$7:$Y$22,2,FALSE) -> Mutant Conference | J59: Special Defense | Y59: 1 | Z59: Grim | AA59: Ranjit | AB59: 60 | AC59: Ash | AD59: Atilla | AE59: 105
C60: =CONCATENATE("Monster Type: ",VLOOKUP(C58,$X$39:$Y$54,2,FALSE)) -> Monster Type: Hellion | J60: =VLOOKUP(D89,$AP$39:$AW$54,8,FALSE) -> Fire Resistance: Immune to Fire effects. | Y60: 2 | Z60: Onyx | AA60: Silver | AB60: 61 | AC60: Hannibal | AD60: Laika | AE60: 106
C61: =CONCATENATE("Homefield: ",VLOOKUP(C58,$C$39:$D$54,2,FALSE)) -> Homefield: Hellmouth | Y61: 3 | Z61: Raven | AA61: Damini | AB61: 62 | AC61: Lecter | AD61: Mercy | AE61: 107
B62: 1 | C62: 2 | D62: 3 | E62: 4 | F62: 5 | G62: 6 | H62: 7 | I62: 8 | J62: 9 | K62: 10 | L62: 11 | M62: 12 | N62: 13 | O62: 14 | P62: 15 | Q62: 16 | R62: 17 | S62: 18 | Y62: 4 | Z62: Jeckyll | AA62: Neel | AB62: 63 | AC62: Wrath | AD62: Helen | AE62: 108
B63: x | C63: Offensive Players | D63: Monster Type | F63: Health | G63: Wound | H63: Speed | I63: Catch | J63: Carry | K63: Elusiveness | L63: Tackle | M63: Pass Block | N63: Run Block | O63: Impact | Y63: 5 | Z63: Xerxes | AA63: Derek | AB63: 64 | AC63: Bullet | AD63: Acadia | AE63: 109
C64: Quarterback | Y64: 6 | Z64: Shiv | AA64: Uttam | AB64: 65 | AC64: Sky | AD64: Diva | AE64: 110
C65: (Player's Choice) | D65: (Player's Choice) | F65: TBD | G65: TBD | H65: TBD | I65: TBD | J65: TBD | K65: TBD | L65: TBD | M65: TBD | N65: TBD | O65: TBD | Y65: 7 | Z65: Obsidian | AA65: Kori | AB65: 66 | AC65: Sabath | AD65: Codex | AE65: 111
C66: Running Back | Y66: 8 | Z66: Jeffy | AA66: Doom | AB66: 67 | AC66: Bandit | AD66: Bo | AE66: 112
B67: 1 | C67: =INDIRECT(CONCATENATE("AB",VLOOKUP($C58,$X$7:$AO$22,18,FALSE))) -> Killer Abyssal Warrior | D67: =VLOOKUP(VLOOKUP($C58,$C$39:$W$54,9,FALSE),$L$12:$M$23,2,FALSE) -> Med Monster 2 | F67: =VLOOKUP($D67,$Y$25:$AN$36,AE$37,FALSE) -> 30 | G67: =VLOOKUP($D67,$Y$25:$AN$36,AF$37,FALSE) -> 4 | H67: 0.5 | I67: 0.6 | J67: 0.03 | K67: =VLOOKUP($D67,$Y$25:$AN$36,AJ$37,FALSE) -> 0.09 | L67: 0.04 | M67: 0.02 | N67: 0.01 | O67: 0.01 | Y67: 9 | Z67: Ranger | AA67: Chris | AB67: 68 | AC67: Orion | AD67: Ares | AE67: 113
C68: Offensive Linemen | Y68: 10 | Z68: Gray | AA68: Freddy | AB68: 69 | AC68: Brawn | AD68: Alaska | AE68: 114
B69: 2 | C69: =INDIRECT(CONCATENATE("AC",VLOOKUP($C58,$X$7:$AO$22,18,FALSE))) -> Massive Hellion | D69: =VLOOKUP(VLOOKUP($C58,$C$39:$W$54,10,FALSE),$L$12:$M$23,2,FALSE) -> Big Monster 2 | F69: =VLOOKUP($D69,$Y$25:$AN$36,AE$37,FALSE) -> 40 | G69: 5 | H69: 0.4 | I69: 0 | J69: 0.01 | K69: 0.01 | L69: 0.06 | M69: 0.1 | N69: 0.03 | O69: 0.03 | Y69: 11 | Z69: Ice | AA69: Magnus | AB69: 70 | AC69: Hero | AD69: Onyxia | AE69: 115
B70: 3 | C70: =INDIRECT(CONCATENATE("AD",VLOOKUP($C58,$X$7:$AO$22,18,FALSE))) -> Killer Abyssal Warrior | D70: =VLOOKUP(VLOOKUP($C58,$C$39:$W$54,11,FALSE),$L$12:$M$23,2,FALSE) -> Med Monster 2 | F70: 30 | G70: 4 | H70: 0.5 | I70: 0.6 | J70: 0.03 | K70: 0.09 | L70: 0.04 | M70: 0.02 | N70: 0.01 | O70: 0.01 | Y70: 12 | Z70: Rebel | AA70: Tank | AB70: 71 | AC70: Blaze | AD70: Precious | AE70: 116
B71: 4 | C71: =INDIRECT(CONCATENATE("AE",VLOOKUP($C58,$X$7:$AO$22,18,FALSE))) -> Killer Abyssal Warrior | D71: =VLOOKUP(VLOOKUP($C58,$C$39:$W$54,12,FALSE),$L$12:$M$23,2,FALSE) -> Med Monster 2 | F71: 30 | G71: 4 | H71: 0.5 | I71: 0.6 | J71: 0.03 | K71: 0.09 | L71: 0.04 | M71: 0.02 | N71: 0.01 | O71: 0.01 | Y71: 13 | Z71: Riptide | AA71: Drake | AB71: 72 | AC71: Hooch | AD71: Blossom | AE71: 117
C72: Recievers | Y72: 14 | Z72: Chaos | AA72: Boon | AB72: 73 | AC72: Hector | AD72: Shadow | AE72: 118
B73: 5 | C73: =INDIRECT(CONCATENATE("AF",VLOOKUP($C58,$X$7:$AO$22,18,FALSE))) -> Speedy Shadow | D73: =VLOOKUP(VLOOKUP($C58,$C$39:$W$54,13,FALSE),$L$12:$M$23,2,FALSE) -> Fast Monster 2 | F73: =VLOOKUP($D73,$Y$25:$AN$36,AE$37,FALSE) -> 20 | G73: 3 | H73: 0.55 | I73: 0.75 | J73: 0.03 | K73: 0.03 | L73: 0.04 | M73: 0.02 | N73: 0.01 | O73: 0.01 | Y73: 15 | Z73: Arcane | AA73: Chronos | AB73: 74 | AC73: Wrath | AD73: Snowball | AE73: 119
B74: 6 | C74: =INDIRECT(CONCATENATE("AG",VLOOKUP($C58,$X$7:$AO$22,18,FALSE))) -> Speedy Shadow | D74: =VLOOKUP(VLOOKUP($C58,$C$39:$W$54,14,FALSE),$L$12:$M$23,2,FALSE) -> Fast Monster 2 | F74: 20 | G74: 3 | H74: 0.55 | I74: 0.75 | J74: 0.03 | K74: 0.03 | L74: 0.04 | M74: 0.02 | N74: 0.01 | O74: 0.01 | Y74: 16 | Z74: Thunder | AA74: Hooch | AB74: 75 | AC74: Vlad | AD74: Ivory | AE74: 120
Y75: 17 | Z75: Merlin | AA75: Thor | AB75: 76 | AC75: Comet | AD75: Alexis | AE75: 121
B76: o | C76: Defensive Players | D76: Monster Type | F76: Health | G76: Wound | H76: Speed | I76: Catch | J76: Carry | K76: Elusiveness | L76: Tackle | M76: Pass Block | N76: Run Block | O76: Impact | Y76: 18 | Z76: Hyde | AA76: Lightning | AB76: 77 | AC76: Hannibal | AD76: Phantom | AE76: 122
C77: Safeties | Y77: 19 | Z77: Scandal | AA77: Menace | AB77: 78 | AC77: Maverick | AD77: Girl | AE77: 123
B78: 7 | C78: =INDIRECT(CONCATENATE("AH",VLOOKUP($C58,$X$7:$AO$22,18,FALSE))) -> Killer Abyssal Warrior | D78: =VLOOKUP(VLOOKUP($C58,$C$39:$W$54,15,FALSE),$L$12:$M$23,2,FALSE) -> Med Monster 2 | F78: =VLOOKUP($D78,$Y$25:$AN$36,AE$37,FALSE) -> 30 | G78: 4 | H78: 0.5 | I78: 0.6 | J78: 0.03 | K78: 0.09 | L78: 0.04 | M78: 0.02 | N78: 0.01 | O78: 0.01 | Y78: 20 | Z78: Hades | AA78: Odin | AB78: 79 | AC78: Raven | AD78: Ares | AE78: 124
B79: 8 | C79: =INDIRECT(CONCATENATE("AI",VLOOKUP($C58,$X$7:$AO$22,18,FALSE))) -> Killer Abyssal Warrior | D79: =VLOOKUP(VLOOKUP($C58,$C$39:$W$54,16,FALSE),$L$12:$M$23,2,FALSE) -> Med Monster 2 | F79: 30 | G79: 4 | H79: 0.5 | I79: 0.6 | J79: 0.03 | K79: 0.09 | L79: 0.04 | M79: 0.02 | N79: 0.01 | O79: 0.01 | Y79: 21 | Z79: Bullet | AA79: Rags | AB79: 80 | AC79: Courage | AD79: Paws | AE79: 125
C80: Defensive Linemen | Y80: 22 | Z80: Doom | AA80: Aiyana | AB80: 81 | AC80: Archer | AD80: Atilla | AE80: 126
B81: 9 | C81: =INDIRECT(CONCATENATE("AJ",VLOOKUP($C58,$X$7:$AO$22,18,FALSE))) -> Massive Hellion | D81: =VLOOKUP(VLOOKUP($C58,$C$39:$W$54,17,FALSE),$L$12:$M$23,2,FALSE) -> Big Monster 2 | F81: =VLOOKUP($D81,$Y$25:$AN$36,AE$37,FALSE) -> 40 | G81: 5 | H81: 0.4 | I81: 0 | J81: 0.01 | K81: 0.01 | L81: 0.06 | M81: 0.1 | N81: 0.03 | O81: 0.03 | Y81: 23 | Z81: Gunner | AA81: Duke | AB81: 82 | AC81: Chaos | AD81: Laika | AE81: 127
B82: 10 | C82: =INDIRECT(CONCATENATE("AK",VLOOKUP($C58,$X$7:$AO$22,18,FALSE))) -> Killer Abyssal Warrior | D82: =VLOOKUP(VLOOKUP($C58,$C$39:$W$54,18,FALSE),$L$12:$M$23,2,FALSE) -> Med Monster 2 | F82: 30 | G82: 4 | H82: 0.5 | I82: 0.6 | J82: 0.03 | K82: 0.09 | L82: 0.04 | M82: 0.02 | N82: 0.01 | O82: 0.01 | Y82: 24 | Z82: Hector | AA82: Destiny | AB82: 83 | AC82: Vlad | AD82: Mercury | AE82: 128
B83: 11 | C83: =INDIRECT(CONCATENATE("AL",VLOOKUP($C58,$X$7:$AO$22,18,FALSE))) -> Killer Abyssal Warrior | D83: =VLOOKUP(VLOOKUP($C58,$C$39:$W$54,19,FALSE),$L$12:$M$23,2,FALSE) -> Med Monster 2 | F83: 30 | G83: 4 | H83: 0.5 | I83: 0.6 | J83: 0.03 | K83: 0.09 | L83: 0.04 | M83: 0.02 | N83: 0.01 | O83: 0.01 | Y83: 25 | Z83: Steele | AA83: Nymph | AB83: 84 | AC83: Ajax | AD83: Hellmouth | AE83: 129
C84: Defensive Backs | Y84: 26 | Z84: Torment | AA84: Dot | AB84: 85 | AC84: Sniper | AD84: Arcadia | AE84: 130
B85: 12 | C85: =INDIRECT(CONCATENATE("AM",VLOOKUP($C58,$X$7:$AO$22,18,FALSE))) -> Speedy Shadow | D85: =VLOOKUP(VLOOKUP($C58,$C$39:$W$54,20,FALSE),$L$12:$M$23,2,FALSE) -> Fast Monster 2 | F85: =VLOOKUP($D85,$Y$25:$AN$36,AE$37,FALSE) -> 20 | G85: 3 | H85: 0.55 | I85: 0.75 | J85: 0.03 | K85: 0.03 | L85: 0.04 | M85: 0.02 | N85: 0.01 | O85: 0.01 | Y85: 27 | Z85: Whisper | AA85: Atilla | AB85: 86 | AE85: 131
B86: 13 | C86: =INDIRECT(CONCATENATE("AN",VLOOKUP($C58,$X$7:$AO$22,18,FALSE))) -> Speedy Shadow | D86: =VLOOKUP(VLOOKUP($C58,$C$39:$W$54,21,FALSE),$L$12:$M$23,2,FALSE) -> Fast Monster 2 | F86: 20 | G86: 3 | H86: 0.55 | I86: 0.75 | J86: 0.03 | K86: 0.03 | L86: 0.04 | M86: 0.02 | N86: 0.01 | O86: 0.01 | Y86: 28 | Z86: Hannibal | AA86: Phantom | AB86: 87 | AE86: 132
Y87: 29 | Z87: Thunder | AA87: Blitz | AB87: 88 | AE87: 133
B88: Q | C88: Quarterback | D88: Monster Type | E88: Element | F88: Health | G88: Wounding | H88: Speed | I88: Catch | J88: Carry | K88: Elusiveness | L88: Tackle | M88: Pass Block | N88: Run Block | O88: Impact | P88: Speed | Q88: Accuracy | R88: Stength | Y88: 30 | Z88: Blight | AA88: Midnight | AB88: 89 | AE88: 134
A89: =VLOOKUP($C58,$C$39:$J$54,8,FALSE) -> 1 | B89: 14 | C89: =VLOOKUP('League Stats'!$A89,'Quarterback Stats'!$AH$23:$BH$40,'League Stats'!C$62,FALSE) -> Rock Mason | D89: =CONCATENATE(VLOOKUP(C58,$X$39:$Y$54,2,FALSE)) -> Hellion | E89: =I58 -> Fire | F89: =VLOOKUP('League Stats'!$A89,'Quarterback Stats'!$AH$23:$BH$40,'League Stats'!G$62,FALSE)*10 -> 50 | G89: =VLOOKUP('League Stats'!$A89,'Quarterback Stats'!$AH$23:$BH$40,'League Stats'!H$62,FALSE) -> 4 | H89: =VLOOKUP('League Stats'!$A89,'Quarterback Stats'!$AH$23:$BH$40,'League Stats'!I$62,FALSE)/20 -> 0.15 | I89: =VLOOKUP('League Stats'!$A89,'Quarterback Stats'!$AH$23:$BH$40,'League Stats'!J$62,FALSE)/20 -> 0.1 | J89: =VLOOKUP('League Stats'!$A89,'Quarterback Stats'!$AH$23:$BH$40,'League Stats'!K$62,FALSE)/100 -> 0.01 | K89: =VLOOKUP('League Stats'!$A89,'Quarterback Stats'!$AH$23:$BH$40,'League Stats'!L$62,FALSE)/100 -> 0.05 | L89: =VLOOKUP('League Stats'!$A89,'Quarterback Stats'!$AH$23:$BH$40,'League Stats'!M$62,FALSE)/100 -> 0.01 | M89: =VLOOKUP('League Stats'!$A89,'Quarterback Stats'!$AH$23:$BH$40,'League Stats'!N$62,FALSE)/100 -> 0.02 | N89: =VLOOKUP('League Stats'!$A89,'Quarterback Stats'!$AH$23:$BH$40,'League Stats'!O$62,FALSE)/100 -> 0.01 | O89: =VLOOKUP('League Stats'!$A89,'Quarterback Stats'!$AH$23:$BH$40,'League Stats'!P$62,FALSE)/100 -> 0.03 | P89: =VLOOKUP('League Stats'!$A89,'Quarterback Stats'!$AH$23:$BH$40,'League Stats'!Q$62,FALSE)/100 -> 0.01 | Q89: =VLOOKUP('League Stats'!$A89,'Quarterback Stats'!$AH$23:$BH$40,'League Stats'!R$62,FALSE)/100 -> 0.03 | R89: =VLOOKUP('League Stats'!$A89,'Quarterback Stats'!$AH$23:$BH$40,'League Stats'!S$62,FALSE)/100 -> 0.04 | Y89: 31 | Z89: Storm | AA89: Justice | AB89: 90 | AE89: 135
B90: 15 | C90: =_xlfn.CONCAT(Z99," ",AA99) -> Ash Atilla | F90: =F89+F95 -> 50 | G90: =G89+G95 -> 4 | H90: 0.15 | I90: 0.1 | J90: 0.01 | K90: 0.05 | L90: 0.01 | M90: 0.02 | N90: 0.01 | O90: 0.03 | P90: 0.01 | Q90: 0.03 | R90: 0.04 | Y90: 32 | Z90: Myst | AA90: Maxima | AB90: 91 | AE90: 136
B91: 16 | C91: =_xlfn.CONCAT(Z100," ",AA100) -> Hannibal Laika | F91: =F89+F96 -> 60 | G91: =G89+G96 -> 4 | H91: 0.25 | I91: 0.1 | J91: 0.01 | K91: 0.06 | L91: 0.01 | M91: 0.02 | N91: 0.02 | O91: 0.03 | P91: 0.01 | Q91: 0.04 | R91: 0.04 | Y91: 33 | Z91: Courage | AA91: Nova | AB91: 92 | AE91: 137
B92: 17 | C92: Lecter Mercury | F92: =F89+F97 -> 60 | G92: =G89+G97 -> 5 | H92: 0.25 | I92: 0.2 | J92: 0.02 | K92: 0.06 | L92: 0.02 | M92: 0.02 | N92: 0.02 | O92: 0.03 | P92: 0.02 | Q92: 0.04 | R92: 0.04 | Y92: 34 | Z92: Hawkeye | AA92: Luna | AB92: 93 | AE92: 138
B93: 18 | C93: Wrath Hellmouth | F93: =F89+F98 -> 50 | G93: =G89+G98 -> 4 | H93: 0.15 | I93: 0.1 | J93: 0.01 | K93: 0.05 | L93: 0.01 | M93: 0.02 | N93: 0.01 | O93: 0.03 | P93: 0.01 | Q93: 0.03 | R93: 0.04 | Y93: 35 | Z93: Archer | AA93: Blitzen | AB93: 94 | AE93: 139
B94: 19 | C94: Bullet Arcadia | F94: =F89+F99 -> 50 | G94: =G89+G99 -> 5 | H94: 0.15 | I94: 0.2 | J94: 0.02 | K94: 0.05 | L94: 0.02 | M94: 0.02 | N94: 0.01 | O94: 0.03 | P94: 0.01 | Q94: 0.03 | R94: 0.05 | Y94: 36 | Z94: Chaos | AA94: Myth | AB94: 95 | AE94: 140
F95: 0 | G95: 0 | H95: 0 | I95: 0 | J95: 0 | K95: 0 | L95: 0 | M95: 0 | N95: 0 | O95: 0 | P95: 0 | Q95: 0 | R95: 0 | Y95: 37 | Z95: Vlad | AA95: Shadow | AB95: 96 | AE95: 141
F96: 10 | G96: 0 | H96: 0.1 | I96: 0 | J96: 0 | K96: 0.01 | L96: 0 | M96: 0 | N96: 0.01 | O96: 0 | P96: 0 | Q96: 0.01 | R96: 0 | Y96: 38 | Z96: Ajax | AA96: Lotus | AB96: 97 | AE96: 142
F97: 10 | G97: 1 | H97: 0.1 | I97: 0.1 | J97: 0.01 | K97: 0.01 | L97: 0.01 | M97: 0 | N97: 0.01 | O97: 0 | P97: 0.01 | Q97: 0.01 | R97: 0 | Y97: 39 | Z97: Sniper | AA97: June | AB97: 98 | AE97: 143
F98: 0 | G98: 0 | H98: 0 | I98: 0 | J98: 0 | K98: 0 | L98: 0 | M98: 0 | N98: 0 | O98: 0 | P98: 0 | Q98: 0 | R98: 0 | Y98: 40 | Z98: Rock | AA98: Mason | AB98: 99 | AE98: 144
F99: 0 | G99: 1 | H99: 0 | I99: 0.1 | J99: 0.01 | K99: 0 | L99: 0.01 | M99: 0 | N99: 0 | O99: 0 | P99: 0 | Q99: 0 | R99: 0.01 | Y99: 41 | Z99: Ash | AA99: Atilla | AB99: 100 | AE99: 145
F100: 10 | G100: 1 | H100: 0.1 | I100: 0.1 | J100: 0.01 | K100: 0.01 | L100: 0.01 | M100: 0 | N100: 0.01 | O100: 0 | P100: 0.01 | Q100: 0.01 | R100: 0 | Y100: 42 | Z100: Hannibal | AA100: Laika | AB100: 101 | AE100: 146
Y101: 43 | Z101: Lecter | AA101: Mercury | AB101: 102 | AE101: 147
Y102: 44 | Z102: Wrath | AA102: Hellmouth | AB102: 103 | AE102: 148
Y103: 45 | Z103: Bullet | AA103: Arcadia | AB103: 104 | AE103: 149
AB104: 105 | AE104: 150
C105: Team | D105: About | G105: Old Helmet | I105: Element | J105: Special Ability | N105: Old Colors | Q105: Creative Notes | R105: New Colors | U105: New Helmet | Y105: =VLOOKUP(C106,$X$39:$Y$54,2,FALSE) -> Droid | Z105: First | AA105: Last | AB105: 106 | AC105: First | AD105: Last | AE105: 151
C106: Data Dome Dreadbots | D106: =VLOOKUP(C106,$X$39:$AO$54,15,FALSE) -> These Droids once operated an automated nuclear reator, but their mad creator has reprogrammed them to seek victory at any cost! | I106: =VLOOKUP(D137,$AP$39:$AW$54,4,FALSE) -> Radiation | J106: =VLOOKUP(D137,$AP$39:$AW$54,7,FALSE) -> Atomic shield: Damage Shield slowing creatures, decreasing their speed by 10% when blocked by an enemy. | Q106: Old name: New Puke Freaks | AB106: 107 | AE106: 152
C107: =VLOOKUP(C106,$X$7:$Y$22,2,FALSE) -> Mutant Conference | J107: Special Defense | Y107: 1 | Z107: Sky | AA107: Aphelia | AB107: 108 | AC107: Merlin | AD107: Mare | AE107: 153
C108: =CONCATENATE("Monster Type: ",VLOOKUP(C106,$X$39:$Y$54,2,FALSE)) -> Monster Type: Droid | J108: =VLOOKUP(D137,$AP$39:$AW$54,8,FALSE) -> Radiation Resistance: Immune to Radiation effects. | Y108: 2 | Z108: Chewy | AA108: Equinox | AB108: 109 | AC108: Altair | AD108: Aura | AE108: 154
C109: =CONCATENATE("Homefield: ",VLOOKUP(C106,$C$39:$D$54,2,FALSE)) -> Homefield: Asteroid | Y109: 3 | Z109: Seti | AA109: Equinox | AB109: 110 | AC109: Merlin | AD109: Polaris | AE109: 155
Y110: 4 | Z110: Grog | AA110: Sputs | AB110: 111 | AC110: Comet | AD110: Seti | AE110: 156
B111: x | C111: Offensive Players | D111: Monster Type | F111: Health | G111: Wound | H111: Speed | I111: Catch | J111: Carry | K111: Elusiveness | L111: Tackle | M111: Pass Block | N111: Run Block | O111: Impact | Y111: 5 | Z111: Zero | AA111: Voide | AB111: 112 | AC111: Crimson | AD111: Ion | AE111: 157
C112: Quarterback | Y112: 6 | Z112: Jet | AA112: Plasma | AB112: 113 | AC112: Hertz | AD112: Ejecta | AE112: 158
C113: (Player's Choice) | D113: (Player's Choice) | F113: TBD | G113: TBD | H113: TBD | I113: TBD | J113: TBD | K113: TBD | L113: TBD | M113: TBD | N113: TBD | O113: TBD | Y113: 7 | Z113: Giokog | AA113: Murmuuc | AB113: 114 | AC113: Caezlunz | AD113: Leeltam | AE113: 159
C114: Running Back | Y114: 8 | Z114: Basush | AA114: Briotrade | AB114: 115 | AC114: Baslenz | AD114: Reavada | AE114: 160
B115: 1 | C115: =INDIRECT(CONCATENATE("AB",VLOOKUP($C106,$X$7:$AO$22,18,FALSE))) -> Ferocious Robo-Warrior | D115: =VLOOKUP(VLOOKUP($C106,$C$39:$W$54,9,FALSE),$L$12:$M$23,2,FALSE) -> Med Monster 3 | F115: =VLOOKUP($D115,$Y$25:$AN$36,AE$37,FALSE) -> 30 | G115: 3 | H115: 0.45 | I115: 0.7 | J115: 0.05 | K115: 0.12 | L115: 0.02 | M115: 0 | N115: 0 | O115: 0 | Y115: 9 | Z115: Eltud | AA115: Phaaku | AB115: 116 | AC115: Wriotzad | AD115: Winotea | AE115: 161
C116: Offensive Linemen | Y116: 10 | Z116: Vuiner | AA116: Bexrionea | AB116: 117 | AC116: Berlem | AD116: Griugyoma | AE116: 162
B117: 2 | C117: =INDIRECT(CONCATENATE("AC",VLOOKUP($C106,$X$7:$AO$22,18,FALSE))) -> Huge Death Droid | D117: =VLOOKUP(VLOOKUP($C106,$C$39:$W$54,10,FALSE),$L$12:$M$23,2,FALSE) -> Big Monster 3 | F117: =VLOOKUP($D117,$Y$25:$AN$36,AE$37,FALSE) -> 40 | G117: 4 | H117: 0.35 | I117: 0.55 | J117: 0.02 | K117: 0.03 | L117: 0.06 | M117: 0.06 | N117: 0.04 | O117: 0.04 | Y117: 11 | Z117: Orb | AA117: Gibbsy | AB117: 118 | AC117: Ogre | AD117: Nebula | AE117: 163
B118: 3 | C118: =INDIRECT(CONCATENATE("AD",VLOOKUP($C106,$X$7:$AO$22,18,FALSE))) -> Killer Robo-Warrior | D118: =VLOOKUP(VLOOKUP($C106,$C$39:$W$54,11,FALSE),$L$12:$M$23,2,FALSE) -> Med Monster 2 | F118: 30 | G118: 4 | H118: 0.5 | I118: 0.6 | J118: 0.03 | K118: 0.09 | L118: 0.04 | M118: 0.02 | N118: 0.01 | O118: 0.01 | Y118: 12 | Z118: Boo | AA118: Syzygy | AB118: 119 | AC118: Kelvin | AD118: Solare | AE118: 164
B119: 4 | C119: =INDIRECT(CONCATENATE("AE",VLOOKUP($C106,$X$7:$AO$22,18,FALSE))) -> Killer Robo-Warrior | D119: =VLOOKUP(VLOOKUP($C106,$C$39:$W$54,12,FALSE),$L$12:$M$23,2,FALSE) -> Med Monster 2 | F119: 30 | G119: 4 | H119: 0.5 | I119: 0.6 | J119: 0.03 | K119: 0.09 | L119: 0.04 | M119: 0.02 | N119: 0.01 | O119: 0.01 | Y119: 13 | Z119: Solace | AA119: Lumina | AB119: 120 | AC119: Boo | AD119: Solare | AE119: 165
C120: Recievers | Y120: 14 | Z120: Nebula | AA120: Starlight | AB120: 121 | AC120: Aether | AD120: Astero | AE120: 166
B121: 5 | C121: =INDIRECT(CONCATENATE("AF",VLOOKUP($C106,$X$7:$AO$22,18,FALSE))) -> Quick War Droid | D121: =VLOOKUP(VLOOKUP($C106,$C$39:$W$54,13,FALSE),$L$12:$M$23,2,FALSE) -> Fast Monster 3 | F121: =VLOOKUP($D121,$Y$25:$AN$36,AE$37,FALSE) -> 20 | G121: 2 | H121: 0.5 | I121: 0.75 | J121: 0.05 | K121: 0.09 | L121: 0.04 | M121: 0 | N121: 0 | O121: 0 | Y121: 15 | Z121: Raye | AA121: Nebula | AB121: 122 | AC121: Phantom | AD121: Moon | AE121: 167
B122: 6 | C122: =INDIRECT(CONCATENATE("AG",VLOOKUP($C106,$X$7:$AO$22,18,FALSE))) -> Quick War Droid | D122: =VLOOKUP(VLOOKUP($C106,$C$39:$W$54,14,FALSE),$L$12:$M$23,2,FALSE) -> Fast Monster 3 | F122: 20 | G122: 2 | H122: 0.5 | I122: 0.75 | J122: 0.05 | K122: 0.09 | L122: 0.04 | M122: 0 | N122: 0 | O122: 0 | Y122: 16 | Z122: Iso | AA122: Raye | AB122: 123 | AC122: Astro | AD122: Astero | AE122: 168
Y123: 17 | Z123: Zaahne | AA123: Zuizern | AB123: 124 | AC123: Hiayosz | AD123: Leovo | AE123: 169
B124: o | C124: Defensive Players | D124: Monster Type | F124: Health | G124: Wound | H124: Speed | I124: Catch | J124: Carry | K124: Elusiveness | L124: Tackle | M124: Pass Block | N124: Run Block | O124: Impact | Y124: 18 | Z124: Pusisz | AA124: Seeddermua | AB124: 125 | AC124: Glauhra | AD124: Kutairt | AE124: 170
C125: Safeties | Y125: 19 | Z125: Neteanz | AA125: Purnirxee | AB125: 126 | AC125: Klexax | AD125: Ticdaormee | AE125: 171
B126: 7 | C126: =INDIRECT(CONCATENATE("AH",VLOOKUP($C106,$X$7:$AO$22,18,FALSE))) -> Ferocious Robo-Warrior | D126: =VLOOKUP(VLOOKUP($C106,$C$39:$W$54,15,FALSE),$L$12:$M$23,2,FALSE) -> Med Monster 3 | F126: =VLOOKUP($D126,$Y$25:$AN$36,AE$37,FALSE) -> 30 | G126: 3 | H126: 0.45 | I126: 0.7 | J126: 0.05 | K126: 0.12 | L126: 0.02 | M126: 0 | N126: 0 | O126: 0 | Y126: 20 | Z126: Caemmi | AA126: Wruaklotue | AB126: 127 | AC126: Stiakre | AD126: Looske | AE126: 172
B127: 8 | C127: =INDIRECT(CONCATENATE("AI",VLOOKUP($C106,$X$7:$AO$22,18,FALSE))) -> Ferocious Robo-Warrior | D127: =VLOOKUP(VLOOKUP($C106,$C$39:$W$54,16,FALSE),$L$12:$M$23,2,FALSE) -> Med Monster 3 | F127: 30 | G127: 3 | H127: 0.45 | I127: 0.7 | J127: 0.05 | K127: 0.12 | L127: 0.02 | M127: 0 | N127: 0 | O127: 0 | Y127: 21 | Z127: Hannibal | AA127: Hydra | AB127: 128 | AC127: Ducnert | AD127: Teablorsu | AE127: 173
C128: Defensive Linemen | Y128: 22 | Z128: Hubbles | AA128: Duste | AB128: 129 | AC128: Bullet | AD128: Mare | AE128: 174
B129: 9 | C129: =INDIRECT(CONCATENATE("AJ",VLOOKUP($C106,$X$7:$AO$22,18,FALSE))) -> Huge Death Droid | D129: =VLOOKUP(VLOOKUP($C106,$C$39:$W$54,17,FALSE),$L$12:$M$23,2,FALSE) -> Big Monster 3 | F129: =VLOOKUP($D129,$Y$25:$AN$36,AE$37,FALSE) -> 40 | G129: 4 | H129: 0.35 | I129: 0.55 | J129: 0.02 | K129: 0.03 | L129: 0.06 | M129: 0.06 | N129: 0.04 | O129: 0.04 | Y129: 23 | Z129: Vlad | AA129: Orbit | AB129: 130 | AC129: Chromos | AD129: Aura | AE129: 175
B130: 10 | C130: =INDIRECT(CONCATENATE("AK",VLOOKUP($C106,$X$7:$AO$22,18,FALSE))) -> Killer Robo-Warrior | D130: =VLOOKUP(VLOOKUP($C106,$C$39:$W$54,18,FALSE),$L$12:$M$23,2,FALSE) -> Med Monster 2 | F130: 30 | G130: 4 | H130: 0.5 | I130: 0.6 | J130: 0.03 | K130: 0.09 | L130: 0.04 | M130: 0.02 | N130: 0.01 | O130: 0.01 | Y130: 24 | Z130: Nibbler | AA130: Astralle | AB130: 131 | AC130: Iechud | AD130: Polaris | AE130: 176
B131: 11 | C131: =INDIRECT(CONCATENATE("AL",VLOOKUP($C106,$X$7:$AO$22,18,FALSE))) -> Killer Robo-Warrior | D131: =VLOOKUP(VLOOKUP($C106,$C$39:$W$54,19,FALSE),$L$12:$M$23,2,FALSE) -> Med Monster 2 | F131: 30 | G131: 4 | H131: 0.5 | I131: 0.6 | J131: 0.03 | K131: 0.09 | L131: 0.04 | M131: 0.02 | N131: 0.01 | O131: 0.01 | Y131: 25 | Z131: Boo | AA131: Violet | AB131: 132 | AC131: Geervim | AD131: Seti | AE131: 177
C132: Defensive Backs | Y132: 26 | Z132: Dusty | AA132: Moone | AB132: 133 | AC132: Beczek | AD132: Ion | AE132: 178
B133: 12 | C133: =INDIRECT(CONCATENATE("AM",VLOOKUP($C106,$X$7:$AO$22,18,FALSE))) -> Quick War Droid | D133: =VLOOKUP(VLOOKUP($C106,$C$39:$W$54,20,FALSE),$L$12:$M$23,2,FALSE) -> Fast Monster 3 | F133: =VLOOKUP($D133,$Y$25:$AN$36,AE$37,FALSE) -> 20 | G133: 2 | H133: 0.5 | I133: 0.75 | J133: 0.05 | K133: 0.09 | L133: 0.04 | M133: 0 | N133: 0 | O133: 0 | Y133: 27 | Z133: Woukyim | AA133: Sholai | AB133: 134 | AE133: 179
B134: 13 | C134: =INDIRECT(CONCATENATE("AN",VLOOKUP($C106,$X$7:$AO$22,18,FALSE))) -> Quick War Droid | D134: =VLOOKUP(VLOOKUP($C106,$C$39:$W$54,21,FALSE),$L$12:$M$23,2,FALSE) -> Fast Monster 3 | F134: 20 | G134: 2 | H134: 0.5 | I134: 0.75 | J134: 0.05 | K134: 0.09 | L134: 0.04 | M134: 0 | N134: 0 | O134: 0 | Y134: 28 | Z134: Aoxyix | AA134: Oaduce | AB134: 135 | AE134: 180
Y135: 29 | Z135: Shaze | AA135: Hiestrirzo | AB135: 136 | AE135: 181
B136: Q | C136: Quarterback | D136: Monster Type | E136: Element | F136: Health | G136: Wounding | H136: Speed | I136: Catch | J136: Carry | K136: Elusiveness | L136: Tackle | M136: Pass Block | N136: Run Block | O136: Impact | P136: Speed | Q136: Accuracy | R136: Stength | Y136: 30 | Z136: Loeni | AA136: Zeyito | AB136: 137 | AE136: 182
A137: =VLOOKUP($C106,$C$39:$J$54,8,FALSE) -> 2 | B137: 14 | C137: =VLOOKUP('League Stats'!$A137,'Quarterback Stats'!$AH$23:$BH$40,'League Stats'!C$62,FALSE) -> Big McHuge | D137: =CONCATENATE(VLOOKUP(C106,$X$39:$Y$54,2,FALSE)) -> Droid | E137: =I106 -> Radiation | F137: =VLOOKUP('League Stats'!$A137,'Quarterback Stats'!$AH$23:$BH$40,'League Stats'!G$62,FALSE)*10 -> 40 | G137: =VLOOKUP('League Stats'!$A137,'Quarterback Stats'!$AH$23:$BH$40,'League Stats'!H$62,FALSE) -> 5 | H137: =VLOOKUP('League Stats'!$A137,'Quarterback Stats'!$AH$23:$BH$40,'League Stats'!I$62,FALSE)/20 -> 0.2 | I137: =VLOOKUP('League Stats'!$A137,'Quarterback Stats'!$AH$23:$BH$40,'League Stats'!J$62,FALSE)/20 -> 0.15 | J137: =VLOOKUP('League Stats'!$A137,'Quarterback Stats'!$AH$23:$BH$40,'League Stats'!K$62,FALSE)/100 -> 0.02 | K137: =VLOOKUP('League Stats'!$A137,'Quarterback Stats'!$AH$23:$BH$40,'League Stats'!L$62,FALSE)/100 -> 0.01 | L137: =VLOOKUP('League Stats'!$A137,'Quarterback Stats'!$AH$23:$BH$40,'League Stats'!M$62,FALSE)/100 -> 0.03 | M137: =VLOOKUP('League Stats'!$A137,'Quarterback Stats'!$AH$23:$BH$40,'League Stats'!N$62,FALSE)/100 -> 0.03 | N137: =VLOOKUP('League Stats'!$A137,'Quarterback Stats'!$AH$23:$BH$40,'League Stats'!O$62,FALSE)/100 -> 0.01 | O137: =VLOOKUP('League Stats'!$A137,'Quarterback Stats'!$AH$23:$BH$40,'League Stats'!P$62,FALSE)/100 -> 0.02 | P137: =VLOOKUP('League Stats'!$A137,'Quarterback Stats'!$AH$23:$BH$40,'League Stats'!Q$62,FALSE)/100 -> 0.02 | Q137: =VLOOKUP('League Stats'!$A137,'Quarterback Stats'!$AH$23:$BH$40,'League Stats'!R$62,FALSE)/100 -> 0.01 | R137: =VLOOKUP('League Stats'!$A137,'Quarterback Stats'!$AH$23:$BH$40,'League Stats'!S$62,FALSE)/100 -> 0.04 | Y137: 31 | Z137: Irone | AA137: Solstice | AB137: 138 | AE137: 183
B138: 15 | C138: =_xlfn.CONCAT(Z147," ",AA147) -> Merlin Mare | F138: =F137+F143 -> 40 | G138: =G137+G143 -> 5 | H138: 0.2 | I138: 0.15 | J138: =J137+J143 -> 0.02 | K138: =K137+K143 -> 0.01 | L138: =L137+L143 -> 0.03 | M138: =M137+M143 -> 0.03 | N138: =N137+N143 -> 0.01 | O138: =O137+O143 -> 0.02 | P138: =P137+P143 -> 0.02 | Q138: =Q137+Q143 -> 0.01 | R138: =R137+R143 -> 0.04 | Y138: 32 | Z138: Orb | AA138: Voide | AB138: 139 | AE138: 184
B139: 16 | C139: =_xlfn.CONCAT(Z148," ",AA148) -> Altair Aura | F139: =F137+F144 -> 50 | G139: =G137+G144 -> 5 | H139: 0.3 | I139: 0.15 | J139: 0.02 | K139: 0.02 | L139: 0.03 | M139: 0.03 | N139: 0.02 | O139: 0.02 | P139: 0.02 | Q139: 0.02 | R139: 0.04 | Y139: 33 | Z139: Element | AA139: Nova | AB139: 140 | AE139: 185
B140: 17 | C140: Merlin Polaris | F140: =F137+F145 -> 50 | G140: =G137+G145 -> 6 | H140: 0.3 | I140: 0.25 | J140: 0.03 | K140: 0.02 | L140: 0.04 | M140: 0.03 | N140: 0.02 | O140: 0.02 | P140: 0.03 | Q140: 0.02 | R140: 0.04 | Y140: 34 | Z140: Astro | AA140: Syzygy | AB140: 141 | AE140: 186
B141: 18 | C141: Comet Seti | F141: =F137+F146 -> 40 | G141: =G137+G146 -> 5 | H141: 0.2 | I141: 0.15 | J141: 0.02 | K141: 0.01 | L141: 0.03 | M141: 0.03 | N141: 0.01 | O141: 0.02 | P141: 0.02 | Q141: 0.01 | R141: 0.04 | Y141: 35 | Z141: Bullet | AA141: Moone | AB141: 142 | AE141: 187
B142: 19 | C142: Crimson Ion | F142: =F137+F147 -> 40 | G142: =G137+G147 -> 6 | H142: 0.2 | I142: 0.25 | J142: 0.03 | K142: 0.01 | L142: 0.04 | M142: 0.03 | N142: 0.01 | O142: 0.02 | P142: 0.02 | Q142: 0.01 | R142: 0.05 | Y142: 36 | Z142: Chromos | AA142: Shadow | AB142: 143 | AE142: 188
F143: 0 | G143: 0 | H143: 0 | I143: 0 | J143: 0 | K143: 0 | L143: 0 | M143: 0 | N143: 0 | O143: 0 | P143: 0 | Q143: 0 | R143: 0 | Y143: 37 | Z143: Iechud | AA143: Wreluda | AB143: 144 | AE143: 189
F144: 10 | G144: 0 | H144: 0.1 | I144: 0 | J144: 0 | K144: 0.01 | L144: 0 | M144: 0 | N144: 0.01 | O144: 0 | P144: 0 | Q144: 0.01 | R144: 0 | Y144: 38 | Z144: Geervim | AA144: Puecsorgee | AB144: 145 | AE144: 190
F145: 10 | G145: 1 | H145: 0.1 | I145: 0.1 | J145: 0.01 | K145: 0.01 | L145: 0.01 | M145: 0 | N145: 0.01 | O145: 0 | P145: 0.01 | Q145: 0.01 | R145: 0 | Y145: 39 | Z145: Beczek | AA145: Zomarnia | AB145: 146 | AE145: 191
F146: 0 | G146: 0 | H146: 0 | I146: 0 | J146: 0 | K146: 0 | L146: 0 | M146: 0 | N146: 0 | O146: 0 | P146: 0 | Q146: 0 | R146: 0 | Y146: 40 | Z146: Big | AA146: McHuge | AB146: 147 | AE146: 192
F147: 0 | G147: 1 | H147: 0 | I147: 0.1 | J147: 0.01 | K147: 0 | L147: 0.01 | M147: 0 | N147: 0 | O147: 0 | P147: 0 | Q147: 0 | R147: 0.01 | Y147: 41 | Z147: Merlin | AA147: Mare | AB147: 148 | AE147: 193
F148: 10 | G148: 1 | H148: 0.1 | I148: 0.1 | J148: 0.01 | K148: 0.01 | L148: 0.01 | M148: 0 | N148: 0.01 | O148: 0 | P148: 0.01 | Q148: 0.01 | R148: 0 | Y148: 42 | Z148: Altair | AA148: Aura | AB148: 149 | AE148: 194
Y149: 43 | Z149: Merlin | AA149: Polaris | AB149: 150 | AE149: 195
Y150: 44 | Z150: Comet | AA150: Seti | AB150: 151 | AE150: 196
Y151: 45 | Z151: Crimson | AA151: Ion | AB151: 152 | AE151: 197
AB152: 153 | AE152: 198
C153: Team | D153: About | G153: Old Helmet | I153: Element | J153: Special Ability | N153: Old Colors | Q153: Creative Notes | R153: New Colors | U153: New Helmet | Y153: =VLOOKUP(C154,$X$39:$Y$54,2,FALSE) -> Elemental | Z153: First | AA153: Last | AB153: 154 | AC153: First | AD153: Last | AE153: 199
C154: Inner World Incinerators | D154: =VLOOKUP(C154,$X$39:$AO$54,15,FALSE) -> Born of fire, these ancient Elementals have returned to the surface world to find new glory at the expense of mortal lives! | I154: =VLOOKUP(D185,$AP$39:$AW$54,4,FALSE) -> Fire | J154: =VLOOKUP(D185,$AP$39:$AW$54,7,FALSE) -> Magma blood: Damage Shield dealing an additional 2 wounds when tackled by an enemy. | Q154: Old Name: Clever Killers | AB154: 155 | AE154: 200
C155: =VLOOKUP(C154,$X$7:$Y$22,2,FALSE) -> Mutant Conference | J155: Special Defense | Y155: 1 | Z155: Duke | AA155: Mischief | AB155: 156 | AC155: Reaper | AD155: Alexis | AE155: 201
C156: =CONCATENATE("Monster Type: ",VLOOKUP(C154,$X$39:$Y$54,2,FALSE)) -> Monster Type: Elemental | J156: =VLOOKUP(D185,$AP$39:$AW$54,8,FALSE) -> Fire Resistance: Immune to Fire effects. | Y156: 2 | Z156: Kindle | AA156: Blaze | AB156: 157 | AC156: Judge | AD156: Rogue | AE156: 202
C157: =CONCATENATE("Homefield: ",VLOOKUP(C154,$C$39:$D$54,2,FALSE)) -> Homefield: Volcano | Y157: 3 | Z157: Phantom | AA157: Faye | AB157: 158 | AC157: Butch | AD157: Raven | AE157: 203
Y158: 4 | Z158: Talon | AA158: Luna | AB158: 159 | AC158: Slate | AD158: Midnight | AE158: 204
B159: x | C159: Offensive Players | D159: Monster Type | F159: Health | G159: Wound | H159: Speed | I159: Catch | J159: Carry | K159: Elusiveness | L159: Tackle | M159: Pass Block | N159: Run Block | O159: Impact | Y159: 5 | Z159: Thunder | AA159: Arcane | AB159: 160 | AC159: Hector | AD159: Codex | AE159: 205
C160: Quarterback | Y160: 6 | Z160: Drake | AA160: Vanity | AB160: 161 | AC160: Storm | AD160: Amazone | AE160: 206
C161: (Player's Choice) | D161: (Player's Choice) | F161: TBD | G161: TBD | H161: TBD | I161: TBD | J161: TBD | K161: TBD | L161: TBD | M161: TBD | N161: TBD | O161: TBD | Y161: 7 | Z161: Shiv | AA161: Nighte | AB161: 162 | AC161: Bolt | AD161: Calypso | AE161: 207
C162: Running Back | Y162: 8 | Z162: Storm | AA162: Mystique | AB162: 163 | AC162: Bullseye | AD162: Lady | AE162: 208
B163: 1 | C163: =INDIRECT(CONCATENATE("AB",VLOOKUP($C154,$X$7:$AO$22,18,FALSE))) -> Wild Fire Elemental | D163: =VLOOKUP(VLOOKUP($C154,$C$39:$W$54,9,FALSE),$L$12:$M$23,2,FALSE) -> Med Monster 4 | F163: =VLOOKUP($D163,$Y$25:$AN$36,AE$37,FALSE) -> 30 | G163: 3 | H163: 0.45 | I163: 0.55 | J163: 0.01 | K163: 0.03 | L163: 0.08 | M163: 0.06 | N163: 0.04 | O163: 0.04 | Y163: 9 | Z163: Vlad | AA163: Faith | AB163: 164 | AC163: Panther | AD163: Vixen | AE163: 209
C164: Offensive Linemen | Y164: 10 | Z164: Hunter | AA164: Labyrinth | AB164: 165 | AC164: Razor | AD164: Love | AE164: 210
B165: 2 | C165: =INDIRECT(CONCATENATE("AC",VLOOKUP($C154,$X$7:$AO$22,18,FALSE))) -> Great Magma Beast | D165: =VLOOKUP(VLOOKUP($C154,$C$39:$W$54,10,FALSE),$L$12:$M$23,2,FALSE) -> Big Monster 4 | F165: =VLOOKUP($D165,$Y$25:$AN$36,AE$37,FALSE) -> 40 | G165: 4 | H165: 0.35 | I165: 0 | J165: 0 | K165: 0.01 | L165: 0.1 | M165: 0.08 | N165: 0.05 | O165: 0.05 | Y165: 11 | Z165: Mirage | AA165: Banshee | AB165: 166 | AC165: Sniper | AD165: Siren | AE165: 211
B166: 3 | C166: =INDIRECT(CONCATENATE("AD",VLOOKUP($C154,$X$7:$AO$22,18,FALSE))) -> Great Magma Beast | D166: =VLOOKUP(VLOOKUP($C154,$C$39:$W$54,11,FALSE),$L$12:$M$23,2,FALSE) -> Big Monster 4 | F166: 40 | G166: 4 | H166: 0.35 | I166: 0 | J166: 0 | K166: 0.01 | L166: 0.1 | M166: 0.08 | N166: 0.05 | O166: 0.05 | Y166: 12 | Z166: Hector | AA166: Echo | AB166: 167 | AC166: Sable | AD166: Termina | AE166: 212
B167: 4 | C167: =INDIRECT(CONCATENATE("AE",VLOOKUP($C154,$X$7:$AO$22,18,FALSE))) -> Wild Fire Elemental | D167: =VLOOKUP(VLOOKUP($C154,$C$39:$W$54,12,FALSE),$L$12:$M$23,2,FALSE) -> Med Monster 4 | F167: 30 | G167: 3 | H167: 0.45 | I167: 0.55 | J167: =VLOOKUP($D167,$Y$25:$AN$36,AI$37,FALSE) -> 0.01 | K167: 0.03 | L167: 0.08 | M167: 0.06 | N167: 0.04 | O167: 0.04 | Y167: 13 | Z167: Surge | AA167: Sanguine | AB167: 168 | AC167: Hero | AD167: Eve | AE167: 213
C168: Recievers | Y168: 14 | Z168: Butch | AA168: Willow | AB168: 169 | AC168: Khan | AD168: Dakota | AE168: 214
B169: 5 | C169: =INDIRECT(CONCATENATE("AF",VLOOKUP($C154,$X$7:$AO$22,18,FALSE))) -> Fast Fire Drake | D169: =VLOOKUP(VLOOKUP($C154,$C$39:$W$54,13,FALSE),$L$12:$M$23,2,FALSE) -> Fast Monster 4 | F169: =VLOOKUP($D169,$Y$25:$AN$36,AE$37,FALSE) -> 20 | G169: 2 | H169: 0.5 | I169: 0.65 | J169: 0.03 | K169: 0.03 | L169: 0.06 | M169: 0.06 | N169: 0.02 | O169: 0.02 | Y169: 15 | Z169: Orion | AA169: Moone | AB169: 170 | AC169: Bullseye | AD169: Azure | AE169: 215
B170: 6 | C170: =INDIRECT(CONCATENATE("AG",VLOOKUP($C154,$X$7:$AO$22,18,FALSE))) -> Fast Fire Drake | D170: =VLOOKUP(VLOOKUP($C154,$C$39:$W$54,14,FALSE),$L$12:$M$23,2,FALSE) -> Fast Monster 4 | F170: 20 | G170: 2 | H170: 0.5 | I170: 0.65 | J170: 0.03 | K170: 0.03 | L170: 0.06 | M170: 0.06 | N170: 0.02 | O170: 0.02 | Y170: 16 | Z170: Edge | AA170: Eclipse | AB170: 171 | AC170: Storm | AD170: Winter | AE170: 216
Y171: 17 | Z171: Myst | AA171: Arcane | AB171: 172 | AC171: Hawke | AD171: Lady | AE171: 217
B172: o | C172: Defensive Players | D172: Monster Type | F172: Health | G172: Wound | H172: Speed | I172: Catch | J172: Carry | K172: Elusiveness | L172: Tackle | M172: Pass Block | N172: Run Block | O172: Impact | Y172: 18 | Z172: Ace | AA172: Dakota | AB172: 173 | AC172: Hannibal | AD172: Justice | AE172: 218
C173: Safeties | Y173: 19 | Z173: Hannibal | AA173: Jynx | AB173: 174 | AC173: Mayhem | AD173: Mystique | AE173: 219
B174: 7 | C174: =INDIRECT(CONCATENATE("AH",VLOOKUP($C154,$X$7:$AO$22,18,FALSE))) -> Wild Fire Elemental | D174: =VLOOKUP(VLOOKUP($C154,$C$39:$W$54,15,FALSE),$L$12:$M$23,2,FALSE) -> Med Monster 4 | F174: =VLOOKUP($D174,$Y$25:$AN$36,AE$37,FALSE) -> 30 | G174: 3 | H174: 0.45 | I174: 0.55 | J174: 0.01 | K174: 0.03 | L174: 0.08 | M174: 0.06 | N174: 0.04 | O174: 0.04 | Y174: 20 | Z174: Ammo | AA174: Luna | AB174: 175 | AC174: Bullseye | AD174: Athena | AE174: 220
B175: 8 | C175: =INDIRECT(CONCATENATE("AI",VLOOKUP($C154,$X$7:$AO$22,18,FALSE))) -> Wild Fire Elemental | D175: =VLOOKUP(VLOOKUP($C154,$C$39:$W$54,16,FALSE),$L$12:$M$23,2,FALSE) -> Med Monster 4 | F175: 30 | G175: 3 | H175: 0.45 | I175: 0.55 | J175: 0.01 | K175: 0.03 | L175: 0.08 | M175: 0.06 | N175: 0.04 | O175: 0.04 | Y175: 21 | Z175: Bullseye | AA175: Xena | AB175: 176 | AC175: Thunder | AD175: Aphrodite | AE175: 221
C176: Defensive Linemen | Y176: 22 | Z176: Ghost | AA176: Azure | AB176: 177 | AC176: Tank | AD176: Alexis | AE176: 222
B177: 9 | C177: =INDIRECT(CONCATENATE("AJ",VLOOKUP($C154,$X$7:$AO$22,18,FALSE))) -> Great Magma Beast | D177: =VLOOKUP(VLOOKUP($C154,$C$39:$W$54,17,FALSE),$L$12:$M$23,2,FALSE) -> Big Monster 4 | F177: =VLOOKUP($D177,$Y$25:$AN$36,AE$37,FALSE) -> 40 | G177: 4 | H177: 0.35 | I177: 0 | J177: 0 | K177: 0.01 | L177: 0.1 | M177: 0.08 | N177: 0.05 | O177: 0.05 | Y177: 23 | Z177: Brutus | AA177: Xena | AB177: 178 | AC177: Nemesis | AD177: Rogue | AE177: 223
B178: 10 | C178: =INDIRECT(CONCATENATE("AK",VLOOKUP($C154,$X$7:$AO$22,18,FALSE))) -> Great Magma Beast | D178: =VLOOKUP(VLOOKUP($C154,$C$39:$W$54,18,FALSE),$L$12:$M$23,2,FALSE) -> Big Monster 4 | F178: 40 | G178: 4 | H178: 0.35 | I178: 0 | J178: 0 | K178: 0.01 | L178: 0.1 | M178: 0.08 | N178: 0.05 | O178: 0.05 | Y178: 24 | Z178: Lecter | AA178: Shade | AB178: 179 | AC178: Viper | AD178: Raven | AE178: 224
B179: 11 | C179: =INDIRECT(CONCATENATE("AL",VLOOKUP($C154,$X$7:$AO$22,18,FALSE))) -> Wild Fire Elemental | D179: =VLOOKUP(VLOOKUP($C154,$C$39:$W$54,19,FALSE),$L$12:$M$23,2,FALSE) -> Med Monster 4 | F179: 30 | G179: 3 | H179: 0.45 | I179: 0.55 | J179: 0.01 | K179: 0.03 | L179: 0.08 | M179: 0.06 | N179: 0.04 | O179: 0.04 | Y179: 25 | Z179: Nemesis | AA179: Justice | AB179: 180 | AC179: Scourge | AD179: Midnight | AE179: 225
C180: Defensive Backs | Y180: 26 | Z180: Artemis | AA180: Victoria | AB180: 181 | AC180: Viper | AD180: Codex | AE180: 226
B181: 12 | C181: =INDIRECT(CONCATENATE("AM",VLOOKUP($C154,$X$7:$AO$22,18,FALSE))) -> Fast Fire Drake | D181: =VLOOKUP(VLOOKUP($C154,$C$39:$W$54,20,FALSE),$L$12:$M$23,2,FALSE) -> Fast Monster 4 | F181: =VLOOKUP($D181,$Y$25:$AN$36,AE$37,FALSE) -> 20 | G181: 2 | H181: 0.5 | I181: 0.65 | J181: 0.03 | K181: 0.03 | L181: 0.06 | M181: 0.06 | N181: 0.02 | O181: 0.02 | Y181: 27 | Z181: Champ | AA181: Sanguine | AB181: 182 | AE181: 227
B182: 13 | C182: =INDIRECT(CONCATENATE("AN",VLOOKUP($C154,$X$7:$AO$22,18,FALSE))) -> Fast Fire Drake | D182: =VLOOKUP(VLOOKUP($C154,$C$39:$W$54,21,FALSE),$L$12:$M$23,2,FALSE) -> Fast Monster 4 | F182: 20 | G182: 2 | H182: 0.5 | I182: 0.65 | J182: 0.03 | K182: 0.03 | L182: 0.06 | M182: 0.06 | N182: 0.02 | O182: 0.02 | Y182: 28 | Z182: Artemis | AA182: Ribbon | AB182: 183 | AE182: 228
Y183: 29 | Z183: Courage | AA183: Clemency | AB183: 184 | AE183: 229
B184: Q | C184: Quarterback | D184: Monster Type | E184: Element | F184: Health | G184: Wounding | H184: Speed | I184: Catch | J184: Carry | K184: Elusiveness | L184: Tackle | M184: Pass Block | N184: Run Block | O184: Impact | P184: Speed | Q184: Accuracy | R184: Stength | Y184: 30 | Z184: Champ | AA184: Rune | AB184: 185 | AE184: 230
A185: =VLOOKUP($C154,$C$39:$J$54,8,FALSE) -> 3 | B185: 14 | C185: =VLOOKUP('League Stats'!$A185,'Quarterback Stats'!$AH$23:$BH$40,'League Stats'!C$62,FALSE) -> Sludge Thunder | D185: =CONCATENATE(VLOOKUP(C154,$X$39:$Y$54,2,FALSE)) -> Elemental | E185: =I154 -> Fire | F185: =VLOOKUP('League Stats'!$A185,'Quarterback Stats'!$AH$23:$BH$40,'League Stats'!G$62,FALSE)*10 -> 30 | G185: =VLOOKUP('League Stats'!$A185,'Quarterback Stats'!$AH$23:$BH$40,'League Stats'!H$62,FALSE) -> 2 | H185: =VLOOKUP('League Stats'!$A185,'Quarterback Stats'!$AH$23:$BH$40,'League Stats'!I$62,FALSE)/20 -> 0.25 | I185: =VLOOKUP('League Stats'!$A185,'Quarterback Stats'!$AH$23:$BH$40,'League Stats'!J$62,FALSE)/20 -> 0.2 | J185: =VLOOKUP('League Stats'!$A185,'Quarterback Stats'!$AH$23:$BH$40,'League Stats'!K$62,FALSE)/100 -> 0.03 | K185: =VLOOKUP('League Stats'!$A185,'Quarterback Stats'!$AH$23:$BH$40,'League Stats'!L$62,FALSE)/100 -> 0.02 | L185: =VLOOKUP('League Stats'!$A185,'Quarterback Stats'!$AH$23:$BH$40,'League Stats'!M$62,FALSE)/100 -> 0.05 | M185: =VLOOKUP('League Stats'!$A185,'Quarterback Stats'!$AH$23:$BH$40,'League Stats'!N$62,FALSE)/100 -> 0.03 | N185: =VLOOKUP('League Stats'!$A185,'Quarterback Stats'!$AH$23:$BH$40,'League Stats'!O$62,FALSE)/100 -> 0.01 | O185: =VLOOKUP('League Stats'!$A185,'Quarterback Stats'!$AH$23:$BH$40,'League Stats'!P$62,FALSE)/100 -> 0.01 | P185: =VLOOKUP('League Stats'!$A185,'Quarterback Stats'!$AH$23:$BH$40,'League Stats'!Q$62,FALSE)/100 -> 0.03 | Q185: =VLOOKUP('League Stats'!$A185,'Quarterback Stats'!$AH$23:$BH$40,'League Stats'!R$62,FALSE)/100 -> 0.02 | R185: =VLOOKUP('League Stats'!$A185,'Quarterback Stats'!$AH$23:$BH$40,'League Stats'!S$62,FALSE)/100 -> 0.01 | Y185: 31 | Z185: Avalanche | AA185: Ivory | AB185: 186 | AE185: 231
B186: 15 | C186: =_xlfn.CONCAT(Z195," ",AA195) -> Reaper Alexis | F186: =F185+F191 -> 30 | G186: =G185+G191 -> 2 | H186: 0.25 | I186: 0.2 | J186: =J185+J191 -> 0.03 | K186: =K185+K191 -> 0.02 | L186: =L185+L191 -> 0.05 | M186: =M185+M191 -> 0.03 | N186: =N185+N191 -> 0.01 | O186: =O185+O191 -> 0.01 | P186: =P185+P191 -> 0.03 | Q186: =Q185+Q191 -> 0.02 | R186: =R185+R191 -> 0.01 | Y186: 32 | Z186: Riptide | AA186: Lady | AB186: 187 | AE186: 232
B187: 16 | C187: =_xlfn.CONCAT(Z196," ",AA196) -> Judge Rogue | F187: =F185+F192 -> 40 | G187: =G185+G192 -> 2 | H187: 0.35 | I187: 0.2 | J187: 0.03 | K187: 0.03 | L187: 0.05 | M187: 0.03 | N187: 0.02 | O187: 0.01 | P187: 0.03 | Q187: 0.03 | R187: 0.01 | Y187: 33 | Z187: Ranger | AA187: Arcane | AB187: 188 | AE187: 233
B188: 17 | C188: Butch Raven | F188: =F185+F193 -> 40 | G188: =G185+G193 -> 3 | H188: 0.35 | I188: 0.3 | J188: 0.04 | K188: 0.03 | L188: 0.06 | M188: 0.03 | N188: 0.02 | O188: 0.01 | P188: 0.04 | Q188: 0.03 | R188: 0.01 | Y188: 34 | Z188: Maverick | AA188: Hazel | AB188: 189 | AE188: 234
B189: 18 | C189: Slate Midnight | F189: =F185+F194 -> 30 | G189: =G185+G194 -> 2 | H189: 0.25 | I189: 0.2 | J189: 0.03 | K189: 0.02 | L189: 0.05 | M189: 0.03 | N189: 0.01 | O189: 0.01 | P189: 0.03 | Q189: 0.02 | R189: 0.01 | Y189: 35 | Z189: Tank | AA189: Onyxia | AB189: 190 | AE189: 235
B190: 19 | C190: Hector Codex | F190: =F185+F195 -> 30 | G190: =G185+G195 -> 3 | H190: 0.25 | I190: 0.3 | J190: 0.04 | K190: 0.02 | L190: 0.06 | M190: 0.03 | N190: 0.01 | O190: 0.01 | P190: 0.03 | Q190: 0.02 | R190: 0.02 | Y190: 36 | Z190: Nemesis | AA190: Medusa | AB190: 191 | AE190: 236
F191: 0 | G191: 0 | H191: 0 | I191: 0 | J191: 0 | K191: 0 | L191: 0 | M191: 0 | N191: 0 | O191: 0 | P191: 0 | Q191: 0 | R191: 0 | Y191: 37 | Z191: Viper | AA191: Athena | AB191: 192 | AE191: 237
F192: 10 | G192: 0 | H192: 0.1 | I192: 0 | J192: 0 | K192: 0.01 | L192: 0 | M192: 0 | N192: 0.01 | O192: 0 | P192: 0 | Q192: 0.01 | R192: 0 | Y192: 38 | Z192: Scourge | AA192: Midnight | AB192: 193 | AE192: 238
F193: 10 | G193: 1 | H193: 0.1 | I193: 0.1 | J193: 0.01 | K193: 0.01 | L193: 0.01 | M193: 0 | N193: 0.01 | O193: 0 | P193: 0.01 | Q193: 0.01 | R193: 0 | S193: $S$181 | Y193: 39 | Z193: Viper | AA193: Serenity | AB193: 194 | AE193: 239
F194: 0 | G194: 0 | H194: 0 | I194: 0 | J194: 0 | K194: 0 | L194: 0 | M194: 0 | N194: 0 | O194: 0 | P194: 0 | Q194: 0 | R194: 0 | Y194: 40 | Z194: Sludge | AA194: Thunder | AB194: 195 | AE194: 240
F195: 0 | G195: 1 | H195: 0 | I195: 0.1 | J195: 0.01 | K195: 0 | L195: 0.01 | M195: 0 | N195: 0 | O195: 0 | P195: 0 | Q195: 0 | R195: 0.01 | Y195: 41 | Z195: Reaper | AA195: Alexis | AB195: 196 | AE195: 241
F196: 10 | G196: 1 | H196: 0.1 | I196: 0.1 | J196: 0.01 | K196: 0.01 | L196: 0.01 | M196: 0 | N196: 0.01 | O196: 0 | P196: 0.01 | Q196: 0.01 | R196: 0 | Y196: 42 | Z196: Judge | AA196: Rogue | AB196: 197 | AE196: 242
Y197: 43 | Z197: Butch | AA197: Raven | AB197: 198 | AE197: 243
Y198: 44 | Z198: Slate | AA198: Midnight | AB198: 199 | AE198: 244
Y199: 45 | Z199: Hector | AA199: Codex | AB199: 200 | AE199: 245
AB200: 201 | AE200: 246
C201: Team | D201: About | G201: Old Helmet | I201: Element | J201: Special Ability | N201: Old Colors | Q201: Creative Notes | R201: New Colors | U201: New Helmet | Y201: =VLOOKUP(C202,$X$39:$Y$54,2,FALSE) -> Creature | Z201: First | AA201: Last | AB201: 202 | AC201: First | AD201: Last | AE201: 247
C202: Deep Channel Chumsquad | D202: =VLOOKUP(C202,$X$39:$AO$54,15,FALSE) -> The Were-sharks emerged from the abyss of the sea to prove their domination over all other pathetic life forms! | I202: =VLOOKUP(D233,$AP$39:$AW$54,4,FALSE) -> Poison | J202: =VLOOKUP(D233,$AP$39:$AW$54,7,FALSE) -> Poisonous claws: Melee attack draining strength, decreasing their Wounding by 2 when you block an enemy. | Q202: Old Name: Murder Squad, Anenome enemies | AB202: 203 | AE202: 248
... 622 more rows

Sheet Cards
E1: UID | H1: Card Tier | I1: Name | J1: Monster Type: | K1: Element | L1: About | M1: Special attack | N1: Special Defense | S1: 16 | T1: Player Position | U1: Monster Type | V1: Monster Code | W1: Health | X1: Wound | Y1: Speed | Z1: Catch | AA1: Carry | AB1: Elusiveness | AC1: Tackle | AD1: Pass Block | AE1: Run Block | AF1: Impact | AH1: # QBs | AJ1: UID | AK1: Card Tier | AL1: Name | AM1: Team Type: | AN1: Element | AO1: About | AP1: Special attack | AQ1: Special Defense | AR1: Player Position | AS1: Monster Name | AT1: Monster Type | AU1: Health | AV1: Wound | AW1: Speed | AX1: Catch | AY1: Carry | AZ1: Elusiveness | BA1: Tackle | BB1: Pass Block | BC1: Run Block | BD1: Impact
B2: 1 | C2: 2 | D2: 3 | E2: 4 | F2: 5 | G2: 6 | H2: 7 | I2: 8 | J2: 9 | K2: 10 | L2: 11 | M2: 12 | N2: 13 | S2: 48 | W2: 10 | X2: 1 | Y2: 0.1 | Z2: 0.02 | AA2: 0.01 | AB2: 0.03 | AC2: 0.02 | AD2: 0.01 | AE2: 0.01 | AF2: 0.01 | AH2: 96 | AU2: =MIN(AU5:AU1415) -> 10 | AV2: 1 | AW2: 0 | AX2: 0 | AY2: 0 | AZ2: 0.01 | BA2: 0.01 | BB2: 0 | BC2: 0 | BD2: 0 | BE2: Highest Stat
S3: 96 | AH3: Total # cards | AU3: =MAX(AU5:AU1415) -> 90 | AV3: 9 | AW3: 0.95 | AX3: 0.83 | AY3: 0.09 | AZ3: 0.24 | BA3: 0.18 | BB3: 0.14 | BC3: 0.09 | BD3: 0.09 | BE3: Lowest Stat
F4: 0 | U4: 2 | W4: 5 | X4: 6 | Y4: 7 | Z4: 8 | AA4: 9 | AB4: 10 | AC4: 11 | AD4: 12 | AE4: 13 | AF4: 14 | AH4: =MAX(B5:B1416) -> 1136 | AJ4: 4 | AK4: 7 | AL4: 8 | AM4: 9 | AN4: 10 | AO4: 11 | AP4: 12 | AQ4: 13 | AR4: 19 | AS4: 20 | AT4: 21 | AU4: 22 | AV4: 23 | AW4: 24 | AX4: 25 | AY4: 26 | AZ4: 27 | BA4: 28 | BB4: 29 | BC4: 30 | BD4: 31
B5: 1 | C5: =_xlfn.CONCAT("$Y$",VLOOKUP(J5,'League Stats'!$Y$57:$AB$900,4,FALSE)) -> $Y$58 | D5: =_xlfn.CONCAT("$AD$",VLOOKUP(J5,'League Stats'!$Y$57:$AE$900,7,FALSE)) -> $AD$103 | E5: =UPPER(CONCATENATE(LEFT(J5,2),LEFT(H5,1),T5,TEXT(F5,"0000"))) -> HE1RB0001 | F5: =F4+1 -> 1 | G5: 1 | H5: 1Star | I5: =CONCATENATE(VLOOKUP($G5,INDIRECT("'League Stats'!"&$C5&":"&$D5),2,FALSE)," ",VLOOKUP($G5,INDIRECT("'League Stats'!"&$C5&":"&$D5),3,FALSE)) -> Grim Ranjit | J5: Hellion | K5: =VLOOKUP($J5,'League Stats'!$Y$39:$AZ$54,21,FALSE) -> Fire | L5: =VLOOKUP($J5,'League Stats'!$Y$39:$AZ$54,14,FALSE) -> These are dark creatures known as Hellions who emerged from the bowels of the earth to win glory for the underworld! | M5: =VLOOKUP($J5,'League Stats'!$Y$39:$AZ$54,24,FALSE) -> Hellfire fist: Melee attack dealing an additional 2 wounds when you tackle an enemy. | N5: =VLOOKUP($J5,'League Stats'!$Y$39:$AZ$54,25,FALSE) -> Fire Resistance: Immune to Fire effects. | O5: 0 | P5: 1 | Q5: =_xlfn.CONCAT("$B$",VLOOKUP(J5,'League Stats'!$Y$57:$AB$900,4,FALSE)+6) -> $B$64 | R5: =_xlfn.CONCAT("$S$",VLOOKUP(J5,'League Stats'!$Y$57:$AB$900,4,FALSE)+39) -> $S$97 | S5: =IF(AND($AH$2=16,T5="QB",G5>40),0,IF(AND($AH$2=48,T5="QB",G5>42),0,1)) -> 1 | T5: RB | U5: =VLOOKUP($P5,INDIRECT("'League Stats'!"&$Q5&":"&$R5),U$4,FALSE) -> Killer Abyssal Warrior | V5: =IF(T5="QB","NONE",VLOOKUP(LEFT(U5,FIND(" ",U5)-1),'League Stats'!M$25:N$36,2,FALSE)) -> Med2 | W5: =VLOOKUP($P5,INDIRECT("'League Stats'!"&$Q5&":"&$R5),W$4,FALSE)+(W$2*$O5) -> 30 | X5: 4 | Y5: =VLOOKUP($P5,INDIRECT("'League Stats'!"&$Q5&":"&$R5),Y$4,FALSE)+(Y$2*$O5) -> 0.5 | Z5: =VLOOKUP($P5,INDIRECT("'League Stats'!"&$Q5&":"&$R5),Z$4,FALSE)+(Z$2*$O5) -> 0.6 | AA5: =VLOOKUP($P5,INDIRECT("'League Stats'!"&$Q5&":"&$R5),AA$4,FALSE)+(AA$2*$O5) -> 0.03 | AB5: 0.09 | AC5: 0.04 | AD5: 0.02 | AE5: 0.01 | AF5: 0.01 | AI5: 1 | AJ5: =IFERROR(VLOOKUP($AI5,$B$5:$AF$1416,AJ$4,FALSE),"") -> HE1RB0001 | AK5: 1Star | AL5: Grim Ranjit | AM5: =IFERROR(VLOOKUP(VLOOKUP($AI5,$B$5:$AF$1416,AM$4,FALSE),'League Stats'!Y$39:AX$54,26,FALSE),"") -> Hellion | AN5: =IFERROR(VLOOKUP($AI5,$B$5:$AF$1416,AN$4,FALSE),"") -> Fire | AO5: These are dark creatures known as Hellions who emerged from the bowels of the earth to win glory for the underworld! | AP5: Hellfire fist: Melee attack dealing an additional 2 wounds when you tackle an enemy. | AQ5: Fire Resistance: Immune to Fire effects. | AR5: RB | AS5: Killer Abyssal Warrior | AT5: Med2 | AU5: 30 | AV5: 4 | AW5: 0.5 | AX5: =IFERROR(VLOOKUP($AI5,$B$5:$AF$1416,AX$4,FALSE),"") -> 0.6 | AY5: 0.03 | AZ5: 0.09 | BA5: 0.04 | BB5: 0.02 | BC5: 0.01 | BD5: 0.01
B6: =IF(S6=1,MAX(B$5:B5)+1,0) -> 2 | C6: =_xlfn.CONCAT("$Y$",VLOOKUP(J6,'League Stats'!$Y$57:$AB$900,4,FALSE)) -> $Y$58 | D6: =_xlfn.CONCAT("$AD$",VLOOKUP(J6,'League Stats'!$Y$57:$AE$900,7,FALSE)) -> $AD$103 | E6: HE1OL0002 | F6: =F5+1 -> 2 | G6: 2 | H6: 1Star | I6: =CONCATENATE(VLOOKUP($G6,INDIRECT("'League Stats'!"&$C6&":"&$D6),2,FALSE)," ",VLOOKUP($G6,INDIRECT("'League Stats'!"&$C6&":"&$D6),3,FALSE)) -> Onyx Silver | J6: Hellion | K6: =VLOOKUP($J6,'League Stats'!$Y$39:$AZ$54,21,FALSE) -> Fire | L6: =VLOOKUP($J6,'League Stats'!$Y$39:$AZ$54,14,FALSE) -> These are dark creatures known as Hellions who emerged from the bowels of the earth to win glory for the underworld! | M6: =VLOOKUP($J6,'League Stats'!$Y$39:$AZ$54,24,FALSE) -> Hellfire fist: Melee attack dealing an additional 2 wounds when you tackle an enemy. | N6: =VLOOKUP($J6,'League Stats'!$Y$39:$AZ$54,25,FALSE) -> Fire Resistance: Immune to Fire effects. | O6: 0 | P6: 2 | Q6: =_xlfn.CONCAT("$B$",VLOOKUP(J6,'League Stats'!$Y$57:$AB$900,4,FALSE)+6) -> $B$64 | R6: =_xlfn.CONCAT("$S$",VLOOKUP(J6,'League Stats'!$Y$57:$AB$900,4,FALSE)+39) -> $S$97 | S6: 1 | T6: OL | U6: Massive Hellion | V6: =IF(T6="QB","NONE",VLOOKUP(LEFT(U6,FIND(" ",U6)-1),'League Stats'!M$25:N$36,2,FALSE)) -> Big2 | W6: 40 | X6: 5 | Y6: 0.4 | Z6: 0 | AA6: 0.01 | AB6: 0.01 | AC6: 0.06 | AD6: 0.1 | AE6: 0.03 | AF6: 0.03 | AI6: 2 | AJ6: HE1OL0002 | AK6: 1Star | AL6: Onyx Silver | AM6: =IFERROR(VLOOKUP(VLOOKUP($AI6,$B$5:$AF$1416,AM$4,FALSE),'League Stats'!Y$39:AX$54,26,FALSE),"") -> Hellion | AN6: Fire | AO6: These are dark creatures known as Hellions who emerged from the bowels of the earth to win glory for the underworld! | AP6: Hellfire fist: Melee attack dealing an additional 2 wounds when you tackle an enemy. | AQ6: Fire Resistance: Immune to Fire effects. | AR6: OL | AS6: Massive Hellion | AT6: Big2 | AU6: 40 | AV6: 5 | AW6: 0.4 | AX6: 0 | AY6: 0.01 | AZ6: 0.01 | BA6: 0.06 | BB6: 0.1 | BC6: 0.03 | BD6: 0.03
B7: =IF(S7=1,MAX(B$5:B6)+1,0) -> 3 | C7: =_xlfn.CONCAT("$Y$",VLOOKUP(J7,'League Stats'!$Y$57:$AB$900,4,FALSE)) -> $Y$58 | D7: =_xlfn.CONCAT("$AD$",VLOOKUP(J7,'League Stats'!$Y$57:$AE$900,7,FALSE)) -> $AD$103 | E7: HE1OL0003 | F7: 3 | G7: 3 | H7: 1Star | I7: Raven Damini | J7: Hellion | K7: =VLOOKUP($J7,'League Stats'!$Y$39:$AZ$54,21,FALSE) -> Fire | L7: =VLOOKUP($J7,'League Stats'!$Y$39:$AZ$54,14,FALSE) -> These are dark creatures known as Hellions who emerged from the bowels of the earth to win glory for the underworld! | M7: =VLOOKUP($J7,'League Stats'!$Y$39:$AZ$54,24,FALSE) -> Hellfire fist: Melee attack dealing an additional 2 wounds when you tackle an enemy. | N7: =VLOOKUP($J7,'League Stats'!$Y$39:$AZ$54,25,FALSE) -> Fire Resistance: Immune to Fire effects. | O7: 0 | P7: 3 | Q7: =_xlfn.CONCAT("$B$",VLOOKUP(J7,'League Stats'!$Y$57:$AB$900,4,FALSE)+6) -> $B$64 | R7: =_xlfn.CONCAT("$S$",VLOOKUP(J7,'League Stats'!$Y$57:$AB$900,4,FALSE)+39) -> $S$97 | S7: 1 | T7: OL | U7: Killer Abyssal Warrior | V7: =IF(T7="QB","NONE",VLOOKUP(LEFT(U7,FIND(" ",U7)-1),'League Stats'!M$25:N$36,2,FALSE)) -> Med2 | W7: 30 | X7: 4 | Y7: 0.5 | Z7: 0.6 | AA7: 0.03 | AB7: 0.09 | AC7: 0.04 | AD7: 0.02 | AE7: 0.01 | AF7: 0.01 | AI7: 3 | AJ7: HE1OL0003 | AK7: 1Star | AL7: Raven Damini | AM7: =IFERROR(VLOOKUP(VLOOKUP($AI7,$B$5:$AF$1416,AM$4,FALSE),'League Stats'!Y$39:AX$54,26,FALSE),"") -> Hellion | AN7: Fire | AO7: These are dark creatures known as Hellions who emerged from the bowels of the earth to win glory for the underworld! | AP7: Hellfire fist: Melee attack dealing an additional 2 wounds when you tackle an enemy. | AQ7: Fire Resistance: Immune to Fire effects. | AR7: OL | AS7: Killer Abyssal Warrior | AT7: Med2 | AU7: 30 | AV7: 4 | AW7: 0.5 | AX7: 0.6 | AY7: 0.03 | AZ7: 0.09 | BA7: 0.04 | BB7: 0.02 | BC7: 0.01 | BD7: 0.01
B8: =IF(S8=1,MAX(B$5:B7)+1,0) -> 4 | C8: =_xlfn.CONCAT("$Y$",VLOOKUP(J8,'League Stats'!$Y$57:$AB$900,4,FALSE)) -> $Y$58 | D8: =_xlfn.CONCAT("$AD$",VLOOKUP(J8,'League Stats'!$Y$57:$AE$900,7,FALSE)) -> $AD$103 | E8: HE1OL0004 | F8: 4 | G8: 4 | H8: 1Star | I8: Jeckyll Neel | J8: Hellion | K8: =VLOOKUP($J8,'League Stats'!$Y$39:$AZ$54,21,FALSE) -> Fire | L8: =VLOOKUP($J8,'League Stats'!$Y$39:$AZ$54,14,FALSE) -> These are dark creatures known as Hellions who emerged from the bowels of the earth to win glory for the underworld! | M8: =VLOOKUP($J8,'League Stats'!$Y$39:$AZ$54,24,FALSE) -> Hellfire fist: Melee attack dealing an additional 2 wounds when you tackle an enemy. | N8: =VLOOKUP($J8,'League Stats'!$Y$39:$AZ$54,25,FALSE) -> Fire Resistance: Immune to Fire effects. | O8: 0 | P8: 4 | Q8: =_xlfn.CONCAT("$B$",VLOOKUP(J8,'League Stats'!$Y$57:$AB$900,4,FALSE)+6) -> $B$64 | R8: =_xlfn.CONCAT("$S$",VLOOKUP(J8,'League Stats'!$Y$57:$AB$900,4,FALSE)+39) -> $S$97 | S8: 1 | T8: OL | U8: Killer Abyssal Warrior | V8: =IF(T8="QB","NONE",VLOOKUP(LEFT(U8,FIND(" ",U8)-1),'League Stats'!M$25:N$36,2,FALSE)) -> Med2 | W8: 30 | X8: 4 | Y8: 0.5 | Z8: 0.6 | AA8: 0.03 | AB8: 0.09 | AC8: 0.04 | AD8: 0.02 | AE8: 0.01 | AF8: 0.01 | AI8: 4 | AJ8: HE1OL0004 | AK8: 1Star | AL8: Jeckyll Neel | AM8: =IFERROR(VLOOKUP(VLOOKUP($AI8,$B$5:$AF$1416,AM$4,FALSE),'League Stats'!Y$39:AX$54,26,FALSE),"") -> Hellion | AN8: Fire | AO8: These are dark creatures known as Hellions who emerged from the bowels of the earth to win glory for the underworld! | AP8: Hellfire fist: Melee attack dealing an additional 2 wounds when you tackle an enemy. | AQ8: Fire Resistance: Immune to Fire effects. | AR8: OL | AS8: Killer Abyssal Warrior | AT8: Med2 | AU8: 30 | AV8: 4 | AW8: 0.5 | AX8: 0.6 | AY8: 0.03 | AZ8: 0.09 | BA8: 0.04 | BB8: 0.02 | BC8: 0.01 | BD8: 0.01
B9: =IF(S9=1,MAX(B$5:B8)+1,0) -> 5 | C9: =_xlfn.CONCAT("$Y$",VLOOKUP(J9,'League Stats'!$Y$57:$AB$900,4,FALSE)) -> $Y$58 | D9: =_xlfn.CONCAT("$AD$",VLOOKUP(J9,'League Stats'!$Y$57:$AE$900,7,FALSE)) -> $AD$103 | E9: HE1R0005 | F9: 5 | G9: 5 | H9: 1Star | I9: Xerxes Derek | J9: Hellion | K9: =VLOOKUP($J9,'League Stats'!$Y$39:$AZ$54,21,FALSE) -> Fire | L9: =VLOOKUP($J9,'League Stats'!$Y$39:$AZ$54,14,FALSE) -> These are dark creatures known as Hellions who emerged from the bowels of the earth to win glory for the underworld! | M9: =VLOOKUP($J9,'League Stats'!$Y$39:$AZ$54,24,FALSE) -> Hellfire fist: Melee attack dealing an additional 2 wounds when you tackle an enemy. | N9: =VLOOKUP($J9,'League Stats'!$Y$39:$AZ$54,25,FALSE) -> Fire Resistance: Immune to Fire effects. | O9: 0 | P9: 5 | Q9: =_xlfn.CONCAT("$B$",VLOOKUP(J9,'League Stats'!$Y$57:$AB$900,4,FALSE)+6) -> $B$64 | R9: =_xlfn.CONCAT("$S$",VLOOKUP(J9,'League Stats'!$Y$57:$AB$900,4,FALSE)+39) -> $S$97 | S9: 1 | T9: R | U9: Speedy Shadow | V9: =IF(T9="QB","NONE",VLOOKUP(LEFT(U9,FIND(" ",U9)-1),'League Stats'!M$25:N$36,2,FALSE)) -> Fast2 | W9: 20 | X9: 3 | Y9: 0.55 | Z9: 0.75 | AA9: 0.03 | AB9: 0.03 | AC9: 0.04 | AD9: 0.02 | AE9: 0.01 | AF9: 0.01 | AI9: 5 | AJ9: HE1R0005 | AK9: 1Star | AL9: Xerxes Derek | AM9: =IFERROR(VLOOKUP(VLOOKUP($AI9,$B$5:$AF$1416,AM$4,FALSE),'League Stats'!Y$39:AX$54,26,FALSE),"") -> Hellion | AN9: Fire | AO9: These are dark creatures known as Hellions who emerged from the bowels of the earth to win glory for the underworld! | AP9: Hellfire fist: Melee attack dealing an additional 2 wounds when you tackle an enemy. | AQ9: Fire Resistance: Immune to Fire effects. | AR9: R | AS9: Speedy Shadow | AT9: Fast2 | AU9: 20 | AV9: 3 | AW9: 0.55 | AX9: 0.75 | AY9: 0.03 | AZ9: 0.03 | BA9: 0.04 | BB9: 0.02 | BC9: 0.01 | BD9: 0.01
B10: =IF(S10=1,MAX(B$5:B9)+1,0) -> 6 | C10: =_xlfn.CONCAT("$Y$",VLOOKUP(J10,'League Stats'!$Y$57:$AB$900,4,FALSE)) -> $Y$58 | D10: =_xlfn.CONCAT("$AD$",VLOOKUP(J10,'League Stats'!$Y$57:$AE$900,7,FALSE)) -> $AD$103 | E10: HE1R0006 | F10: 6 | G10: 6 | H10: 1Star | I10: Shiv Uttam | J10: Hellion | K10: =VLOOKUP($J10,'League Stats'!$Y$39:$AZ$54,21,FALSE) -> Fire | L10: =VLOOKUP($J10,'League Stats'!$Y$39:$AZ$54,14,FALSE) -> These are dark creatures known as Hellions who emerged from the bowels of the earth to win glory for the underworld! | M10: =VLOOKUP($J10,'League Stats'!$Y$39:$AZ$54,24,FALSE) -> Hellfire fist: Melee attack dealing an additional 2 wounds when you tackle an enemy. | N10: =VLOOKUP($J10,'League Stats'!$Y$39:$AZ$54,25,FALSE) -> Fire Resistance: Immune to Fire effects. | O10: 0 | P10: 6 | Q10: =_xlfn.CONCAT("$B$",VLOOKUP(J10,'League Stats'!$Y$57:$AB$900,4,FALSE)+6) -> $B$64 | R10: =_xlfn.CONCAT("$S$",VLOOKUP(J10,'League Stats'!$Y$57:$AB$900,4,FALSE)+39) -> $S$97 | S10: 1 | T10: R | U10: Speedy Shadow | V10: =IF(T10="QB","NONE",VLOOKUP(LEFT(U10,FIND(" ",U10)-1),'League Stats'!M$25:N$36,2,FALSE)) -> Fast2 | W10: 20 | X10: 3 | Y10: 0.55 | Z10: 0.75 | AA10: 0.03 | AB10: 0.03 | AC10: 0.04 | AD10: 0.02 | AE10: 0.01 | AF10: 0.01 | AI10: 6 | AJ10: HE1R0006 | AK10: 1Star | AL10: Shiv Uttam | AM10: =IFERROR(VLOOKUP(VLOOKUP($AI10,$B$5:$AF$1416,AM$4,FALSE),'League Stats'!Y$39:AX$54,26,FALSE),"") -> Hellion | AN10: Fire | AO10: These are dark creatures known as Hellions who emerged from the bowels of the earth to win glory for the underworld! | AP10: Hellfire fist: Melee attack dealing an additional 2 wounds when you tackle an enemy. | AQ10: Fire Resistance: Immune to Fire effects. | AR10: R | AS10: Speedy Shadow | AT10: Fast2 | AU10: 20 | AV10: 3 | AW10: 0.55 | AX10: 0.75 | AY10: 0.03 | AZ10: 0.03 | BA10: 0.04 | BB10: 0.02 | BC10: 0.01 | BD10: 0.01
B11: =IF(S11=1,MAX(B$5:B10)+1,0) -> 7 | C11: =_xlfn.CONCAT("$Y$",VLOOKUP(J11,'League Stats'!$Y$57:$AB$900,4,FALSE)) -> $Y$58 | D11: =_xlfn.CONCAT("$AD$",VLOOKUP(J11,'League Stats'!$Y$57:$AE$900,7,FALSE)) -> $AD$103 | E11: HE1S0007 | F11: 7 | G11: 7 | H11: 1Star | I11: Obsidian Kori | J11: Hellion | K11: =VLOOKUP($J11,'League Stats'!$Y$39:$AZ$54,21,FALSE) -> Fire | L11: =VLOOKUP($J11,'League Stats'!$Y$39:$AZ$54,14,FALSE) -> These are dark creatures known as Hellions who emerged from the bowels of the earth to win glory for the underworld! | M11: =VLOOKUP($J11,'League Stats'!$Y$39:$AZ$54,24,FALSE) -> Hellfire fist: Melee attack dealing an additional 2 wounds when you tackle an enemy. | N11: =VLOOKUP($J11,'League Stats'!$Y$39:$AZ$54,25,FALSE) -> Fire Resistance: Immune to Fire effects. | O11: 0 | P11: 7 | Q11: =_xlfn.CONCAT("$B$",VLOOKUP(J11,'League Stats'!$Y$57:$AB$900,4,FALSE)+6) -> $B$64 | R11: =_xlfn.CONCAT("$S$",VLOOKUP(J11,'League Stats'!$Y$57:$AB$900,4,FALSE)+39) -> $S$97 | S11: 1 | T11: S | U11: Killer Abyssal Warrior | V11: =IF(T11="QB","NONE",VLOOKUP(LEFT(U11,FIND(" ",U11)-1),'League Stats'!M$25:N$36,2,FALSE)) -> Med2 | W11: 30 | X11: 4 | Y11: 0.5 | Z11: 0.6 | AA11: 0.03 | AB11: 0.09 | AC11: 0.04 | AD11: 0.02 | AE11: 0.01 | AF11: 0.01 | AI11: 7 | AJ11: HE1S0007 | AK11: 1Star | AL11: Obsidian Kori | AM11: =IFERROR(VLOOKUP(VLOOKUP($AI11,$B$5:$AF$1416,AM$4,FALSE),'League Stats'!Y$39:AX$54,26,FALSE),"") -> Hellion | AN11: Fire | AO11: These are dark creatures known as Hellions who emerged from the bowels of the earth to win glory for the underworld! | AP11: Hellfire fist: Melee attack dealing an additional 2 wounds when you tackle an enemy. | AQ11: Fire Resistance: Immune to Fire effects. | AR11: S | AS11: Killer Abyssal Warrior | AT11: Med2 | AU11: 30 | AV11: 4 | AW11: 0.5 | AX11: 0.6 | AY11: 0.03 | AZ11: 0.09 | BA11: 0.04 | BB11: 0.02 | BC11: 0.01 | BD11: 0.01
B12: =IF(S12=1,MAX(B$5:B11)+1,0) -> 8 | C12: =_xlfn.CONCAT("$Y$",VLOOKUP(J12,'League Stats'!$Y$57:$AB$900,4,FALSE)) -> $Y$58 | D12: =_xlfn.CONCAT("$AD$",VLOOKUP(J12,'League Stats'!$Y$57:$AE$900,7,FALSE)) -> $AD$103 | E12: HE1S0008 | F12: 8 | G12: 8 | H12: 1Star | I12: Jeffy Doom | J12: Hellion | K12: =VLOOKUP($J12,'League Stats'!$Y$39:$AZ$54,21,FALSE) -> Fire | L12: =VLOOKUP($J12,'League Stats'!$Y$39:$AZ$54,14,FALSE) -> These are dark creatures known as Hellions who emerged from the bowels of the earth to win glory for the underworld! | M12: =VLOOKUP($J12,'League Stats'!$Y$39:$AZ$54,24,FALSE) -> Hellfire fist: Melee attack dealing an additional 2 wounds when you tackle an enemy. | N12: =VLOOKUP($J12,'League Stats'!$Y$39:$AZ$54,25,FALSE) -> Fire Resistance: Immune to Fire effects. | O12: 0 | P12: 8 | Q12: =_xlfn.CONCAT("$B$",VLOOKUP(J12,'League Stats'!$Y$57:$AB$900,4,FALSE)+6) -> $B$64 | R12: =_xlfn.CONCAT("$S$",VLOOKUP(J12,'League Stats'!$Y$57:$AB$900,4,FALSE)+39) -> $S$97 | S12: 1 | T12: S | U12: Killer Abyssal Warrior | V12: =IF(T12="QB","NONE",VLOOKUP(LEFT(U12,FIND(" ",U12)-1),'League Stats'!M$25:N$36,2,FALSE)) -> Med2 | W12: 30 | X12: 4 | Y12: 0.5 | Z12: 0.6 | AA12: 0.03 | AB12: 0.09 | AC12: 0.04 | AD12: 0.02 | AE12: 0.01 | AF12: 0.01 | AI12: 8 | AJ12: HE1S0008 | AK12: 1Star | AL12: Jeffy Doom | AM12: =IFERROR(VLOOKUP(VLOOKUP($AI12,$B$5:$AF$1416,AM$4,FALSE),'League Stats'!Y$39:AX$54,26,FALSE),"") -> Hellion | AN12: Fire | AO12: These are dark creatures known as Hellions who emerged from the bowels of the earth to win glory for the underworld! | AP12: Hellfire fist: Melee attack dealing an additional 2 wounds when you tackle an enemy. | AQ12: Fire Resistance: Immune to Fire effects. | AR12: S | AS12: Killer Abyssal Warrior | AT12: Med2 | AU12: 30 | AV12: 4 | AW12: 0.5 | AX12: 0.6 | AY12: 0.03 | AZ12: 0.09 | BA12: 0.04 | BB12: 0.02 | BC12: 0.01 | BD12: 0.01
B13: =IF(S13=1,MAX(B$5:B12)+1,0) -> 9 | C13: =_xlfn.CONCAT("$Y$",VLOOKUP(J13,'League Stats'!$Y$57:$AB$900,4,FALSE)) -> $Y$58 | D13: =_xlfn.CONCAT("$AD$",VLOOKUP(J13,'League Stats'!$Y$57:$AE$900,7,FALSE)) -> $AD$103 | E13: HE1DL0009 | F13: 9 | G13: 9 | H13: 1Star | I13: Ranger Chris | J13: Hellion | K13: =VLOOKUP($J13,'League Stats'!$Y$39:$AZ$54,21,FALSE) -> Fire | L13: =VLOOKUP($J13,'League Stats'!$Y$39:$AZ$54,14,FALSE) -> These are dark creatures known as Hellions who emerged from the bowels of the earth to win glory for the underworld! | M13: =VLOOKUP($J13,'League Stats'!$Y$39:$AZ$54,24,FALSE) -> Hellfire fist: Melee attack dealing an additional 2 wounds when you tackle an enemy. | N13: =VLOOKUP($J13,'League Stats'!$Y$39:$AZ$54,25,FALSE) -> Fire Resistance: Immune to Fire effects. | O13: 0 | P13: 9 | Q13: =_xlfn.CONCAT("$B$",VLOOKUP(J13,'League Stats'!$Y$57:$AB$900,4,FALSE)+6) -> $B$64 | R13: =_xlfn.CONCAT("$S$",VLOOKUP(J13,'League Stats'!$Y$57:$AB$900,4,FALSE)+39) -> $S$97 | S13: 1 | T13: DL | U13: Massive Hellion | V13: =IF(T13="QB","NONE",VLOOKUP(LEFT(U13,FIND(" ",U13)-1),'League Stats'!M$25:N$36,2,FALSE)) -> Big2 | W13: 40 | X13: 5 | Y13: 0.4 | Z13: 0 | AA13: 0.01 | AB13: 0.01 | AC13: 0.06 | AD13: 0.1 | AE13: 0.03 | AF13: 0.03 | AI13: 9 | AJ13: HE1DL0009 | AK13: 1Star | AL13: Ranger Chris | AM13: =IFERROR(VLOOKUP(VLOOKUP($AI13,$B$5:$AF$1416,AM$4,FALSE),'League Stats'!Y$39:AX$54,26,FALSE),"") -> Hellion | AN13: Fire | AO13: These are dark creatures known as Hellions who emerged from the bowels of the earth to win glory for the underworld! | AP13: Hellfire fist: Melee attack dealing an additional 2 wounds when you tackle an enemy. | AQ13: Fire Resistance: Immune to Fire effects. | AR13: DL | AS13: Massive Hellion | AT13: Big2 | AU13: 40 | AV13: 5 | AW13: 0.4 | AX13: 0 | AY13: 0.01 | AZ13: 0.01 | BA13: 0.06 | BB13: 0.1 | BC13: 0.03 | BD13: 0.03
B14: =IF(S14=1,MAX(B$5:B13)+1,0) -> 10 | C14: =_xlfn.CONCAT("$Y$",VLOOKUP(J14,'League Stats'!$Y$57:$AB$900,4,FALSE)) -> $Y$58 | D14: =_xlfn.CONCAT("$AD$",VLOOKUP(J14,'League Stats'!$Y$57:$AE$900,7,FALSE)) -> $AD$103 | E14: HE1DL0010 | F14: 10 | G14: 10 | H14: 1Star | I14: Gray Freddy | J14: Hellion | K14: =VLOOKUP($J14,'League Stats'!$Y$39:$AZ$54,21,FALSE) -> Fire | L14: =VLOOKUP($J14,'League Stats'!$Y$39:$AZ$54,14,FALSE) -> These are dark creatures known as Hellions who emerged from the bowels of the earth to win glory for the underworld! | M14: =VLOOKUP($J14,'League Stats'!$Y$39:$AZ$54,24,FALSE) -> Hellfire fist: Melee attack dealing an additional 2 wounds when you tackle an enemy. | N14: =VLOOKUP($J14,'League Stats'!$Y$39:$AZ$54,25,FALSE) -> Fire Resistance: Immune to Fire effects. | O14: 0 | P14: 10 | Q14: =_xlfn.CONCAT("$B$",VLOOKUP(J14,'League Stats'!$Y$57:$AB$900,4,FALSE)+6) -> $B$64 | R14: =_xlfn.CONCAT("$S$",VLOOKUP(J14,'League Stats'!$Y$57:$AB$900,4,FALSE)+39) -> $S$97 | S14: 1 | T14: DL | U14: Killer Abyssal Warrior | V14: =IF(T14="QB","NONE",VLOOKUP(LEFT(U14,FIND(" ",U14)-1),'League Stats'!M$25:N$36,2,FALSE)) -> Med2 | W14: 30 | X14: 4 | Y14: 0.5 | Z14: 0.6 | AA14: 0.03 | AB14: 0.09 | AC14: 0.04 | AD14: 0.02 | AE14: 0.01 | AF14: 0.01 | AI14: 10 | AJ14: HE1DL0010 | AK14: 1Star | AL14: Gray Freddy | AM14: =IFERROR(VLOOKUP(VLOOKUP($AI14,$B$5:$AF$1416,AM$4,FALSE),'League Stats'!Y$39:AX$54,26,FALSE),"") -> Hellion | AN14: Fire | AO14: These are dark creatures known as Hellions who emerged from the bowels of the earth to win glory for the underworld! | AP14: Hellfire fist: Melee attack dealing an additional 2 wounds when you tackle an enemy. | AQ14: Fire Resistance: Immune to Fire effects. | AR14: DL | AS14: Killer Abyssal Warrior | AT14: Med2 | AU14: 30 | AV14: 4 | AW14: 0.5 | AX14: 0.6 | AY14: 0.03 | AZ14: 0.09 | BA14: 0.04 | BB14: 0.02 | BC14: 0.01 | BD14: 0.01
B15: =IF(S15=1,MAX(B$5:B14)+1,0) -> 11 | C15: =_xlfn.CONCAT("$Y$",VLOOKUP(J15,'League Stats'!$Y$57:$AB$900,4,FALSE)) -> $Y$58 | D15: =_xlfn.CONCAT("$AD$",VLOOKUP(J15,'League Stats'!$Y$57:$AE$900,7,FALSE)) -> $AD$103 | E15: HE1DL0011 | F15: 11 | G15: 11 | H15: 1Star | I15: Ice Magnus | J15: Hellion | K15: =VLOOKUP($J15,'League Stats'!$Y$39:$AZ$54,21,FALSE) -> Fire | L15: =VLOOKUP($J15,'League Stats'!$Y$39:$AZ$54,14,FALSE) -> These are dark creatures known as Hellions who emerged from the bowels of the earth to win glory for the underworld! | M15: =VLOOKUP($J15,'League Stats'!$Y$39:$AZ$54,24,FALSE) -> Hellfire fist: Melee attack dealing an additional 2 wounds when you tackle an enemy. | N15: =VLOOKUP($J15,'League Stats'!$Y$39:$AZ$54,25,FALSE) -> Fire Resistance: Immune to Fire effects. | O15: 0 | P15: 11 | Q15: =_xlfn.CONCAT("$B$",VLOOKUP(J15,'League Stats'!$Y$57:$AB$900,4,FALSE)+6) -> $B$64 | R15: =_xlfn.CONCAT("$S$",VLOOKUP(J15,'League Stats'!$Y$57:$AB$900,4,FALSE)+39) -> $S$97 | S15: 1 | T15: DL | U15: Killer Abyssal Warrior | V15: =IF(T15="QB","NONE",VLOOKUP(LEFT(U15,FIND(" ",U15)-1),'League Stats'!M$25:N$36,2,FALSE)) -> Med2 | W15: 30 | X15: 4 | Y15: 0.5 | Z15: 0.6 | AA15: =VLOOKUP($P15,INDIRECT("'League Stats'!"&$Q15&":"&$R15),AA$4,FALSE)+(AA$2*$O15) -> 0.03 | AB15: 0.09 | AC15: 0.04 | AD15: 0.02 | AE15: 0.01 | AF15: 0.01 | AI15: 11 | AJ15: HE1DL0011 | AK15: 1Star | AL15: Ice Magnus | AM15: =IFERROR(VLOOKUP(VLOOKUP($AI15,$B$5:$AF$1416,AM$4,FALSE),'League Stats'!Y$39:AX$54,26,FALSE),"") -> Hellion | AN15: =IFERROR(VLOOKUP($AI15,$B$5:$AF$1416,AN$4,FALSE),"") -> Fire | AO15: These are dark creatures known as Hellions who emerged from the bowels of the earth to win glory for the underworld! | AP15: Hellfire fist: Melee attack dealing an additional 2 wounds when you tackle an enemy. | AQ15: Fire Resistance: Immune to Fire effects. | AR15: DL | AS15: Killer Abyssal Warrior | AT15: Med2 | AU15: 30 | AV15: 4 | AW15: 0.5 | AX15: =IFERROR(VLOOKUP($AI15,$B$5:$AF$1416,AX$4,FALSE),"") -> 0.6 | AY15: 0.03 | AZ15: 0.09 | BA15: 0.04 | BB15: 0.02 | BC15: 0.01 | BD15: 0.01
B16: =IF(S16=1,MAX(B$5:B15)+1,0) -> 12 | C16: =_xlfn.CONCAT("$Y$",VLOOKUP(J16,'League Stats'!$Y$57:$AB$900,4,FALSE)) -> $Y$58 | D16: =_xlfn.CONCAT("$AD$",VLOOKUP(J16,'League Stats'!$Y$57:$AE$900,7,FALSE)) -> $AD$103 | E16: HE1DB0012 | F16: 12 | G16: 12 | H16: 1Star | I16: Rebel Tank | J16: Hellion | K16: =VLOOKUP($J16,'League Stats'!$Y$39:$AZ$54,21,FALSE) -> Fire | L16: =VLOOKUP($J16,'League Stats'!$Y$39:$AZ$54,14,FALSE) -> These are dark creatures known as Hellions who emerged from the bowels of the earth to win glory for the underworld! | M16: =VLOOKUP($J16,'League Stats'!$Y$39:$AZ$54,24,FALSE) -> Hellfire fist: Melee attack dealing an additional 2 wounds when you tackle an enemy. | N16: =VLOOKUP($J16,'League Stats'!$Y$39:$AZ$54,25,FALSE) -> Fire Resistance: Immune to Fire effects. | O16: 0 | P16: 12 | Q16: =_xlfn.CONCAT("$B$",VLOOKUP(J16,'League Stats'!$Y$57:$AB$900,4,FALSE)+6) -> $B$64 | R16: =_xlfn.CONCAT("$S$",VLOOKUP(J16,'League Stats'!$Y$57:$AB$900,4,FALSE)+39) -> $S$97 | S16: 1 | T16: DB | U16: Speedy Shadow | V16: =IF(T16="QB","NONE",VLOOKUP(LEFT(U16,FIND(" ",U16)-1),'League Stats'!M$25:N$36,2,FALSE)) -> Fast2 | W16: 20 | X16: 3 | Y16: 0.55 | Z16: 0.75 | AA16: 0.03 | AB16: 0.03 | AC16: 0.04 | AD16: 0.02 | AE16: 0.01 | AF16: 0.01 | AI16: 12 | AJ16: HE1DB0012 | AK16: 1Star | AL16: Rebel Tank | AM16: =IFERROR(VLOOKUP(VLOOKUP($AI16,$B$5:$AF$1416,AM$4,FALSE),'League Stats'!Y$39:AX$54,26,FALSE),"") -> Hellion | AN16: Fire | AO16: These are dark creatures known as Hellions who emerged from the bowels of the earth to win glory for the underworld! | AP16: Hellfire fist: Melee attack dealing an additional 2 wounds when you tackle an enemy. | AQ16: Fire Resistance: Immune to Fire effects. | AR16: DB | AS16: Speedy Shadow | AT16: Fast2 | AU16: 20 | AV16: 3 | AW16: 0.55 | AX16: 0.75 | AY16: 0.03 | AZ16: 0.03 | BA16: 0.04 | BB16: 0.02 | BC16: 0.01 | BD16: 0.01
B17: =IF(S17=1,MAX(B$5:B16)+1,0) -> 13 | C17: =_xlfn.CONCAT("$Y$",VLOOKUP(J17,'League Stats'!$Y$57:$AB$900,4,FALSE)) -> $Y$58 | D17: =_xlfn.CONCAT("$AD$",VLOOKUP(J17,'League Stats'!$Y$57:$AE$900,7,FALSE)) -> $AD$103 | E17: HE1DB0013 | F17: 13 | G17: 13 | H17: 1Star | I17: Riptide Drake | J17: Hellion | K17: =VLOOKUP($J17,'League Stats'!$Y$39:$AZ$54,21,FALSE) -> Fire | L17: =VLOOKUP($J17,'League Stats'!$Y$39:$AZ$54,14,FALSE) -> These are dark creatures known as Hellions who emerged from the bowels of the earth to win glory for the underworld! | M17: =VLOOKUP($J17,'League Stats'!$Y$39:$AZ$54,24,FALSE) -> Hellfire fist: Melee attack dealing an additional 2 wounds when you tackle an enemy. | N17: =VLOOKUP($J17,'League Stats'!$Y$39:$AZ$54,25,FALSE) -> Fire Resistance: Immune to Fire effects. | O17: 0 | P17: 13 | Q17: =_xlfn.CONCAT("$B$",VLOOKUP(J17,'League Stats'!$Y$57:$AB$900,4,FALSE)+6) -> $B$64 | R17: =_xlfn.CONCAT("$S$",VLOOKUP(J17,'League Stats'!$Y$57:$AB$900,4,FALSE)+39) -> $S$97 | S17: 1 | T17: DB | U17: Speedy Shadow | V17: =IF(T17="QB","NONE",VLOOKUP(LEFT(U17,FIND(" ",U17)-1),'League Stats'!M$25:N$36,2,FALSE)) -> Fast2 | W17: 20 | X17: 3 | Y17: 0.55 | Z17: 0.75 | AA17: 0.03 | AB17: 0.03 | AC17: 0.04 | AD17: 0.02 | AE17: 0.01 | AF17: 0.01 | AI17: 13 | AJ17: HE1DB0013 | AK17: 1Star | AL17: Riptide Drake | AM17: =IFERROR(VLOOKUP(VLOOKUP($AI17,$B$5:$AF$1416,AM$4,FALSE),'League Stats'!Y$39:AX$54,26,FALSE),"") -> Hellion | AN17: Fire | AO17: These are dark creatures known as Hellions who emerged from the bowels of the earth to win glory for the underworld! | AP17: Hellfire fist: Melee attack dealing an additional 2 wounds when you tackle an enemy. | AQ17: Fire Resistance: Immune to Fire effects. | AR17: DB | AS17: Speedy Shadow | AT17: Fast2 | AU17: 20 | AV17: 3 | AW17: 0.55 | AX17: 0.75 | AY17: 0.03 | AZ17: 0.03 | BA17: 0.04 | BB17: 0.02 | BC17: 0.01 | BD17: 0.01
B18: =IF(S18=1,MAX(B$5:B17)+1,0) -> 14 | C18: =_xlfn.CONCAT("$Y$",VLOOKUP(J18,'League Stats'!$Y$57:$AB$900,4,FALSE)) -> $Y$58 | D18: =_xlfn.CONCAT("$AD$",VLOOKUP(J18,'League Stats'!$Y$57:$AE$900,7,FALSE)) -> $AD$103 | E18: HE2RB0014 | F18: 14 | G18: 14 | H18: 2Star | I18: Chaos Boon | J18: Hellion | K18: =VLOOKUP($J18,'League Stats'!$Y$39:$AZ$54,21,FALSE) -> Fire | L18: =VLOOKUP($J18,'League Stats'!$Y$39:$AZ$54,14,FALSE) -> These are dark creatures known as Hellions who emerged from the bowels of the earth to win glory for the underworld! | M18: =VLOOKUP($J18,'League Stats'!$Y$39:$AZ$54,24,FALSE) -> Hellfire fist: Melee attack dealing an additional 2 wounds when you tackle an enemy. | N18: =VLOOKUP($J18,'League Stats'!$Y$39:$AZ$54,25,FALSE) -> Fire Resistance: Immune to Fire effects. | O18: 1 | P18: 1 | Q18: =_xlfn.CONCAT("$B$",VLOOKUP(J18,'League Stats'!$Y$57:$AB$900,4,FALSE)+6) -> $B$64 | R18: =_xlfn.CONCAT("$S$",VLOOKUP(J18,'League Stats'!$Y$57:$AB$900,4,FALSE)+39) -> $S$97 | S18: 1 | T18: RB | U18: Killer Abyssal Warrior | V18: =IF(T18="QB","NONE",VLOOKUP(LEFT(U18,FIND(" ",U18)-1),'League Stats'!M$25:N$36,2,FALSE)) -> Med2 | W18: 40 | X18: 5 | Y18: 0.6 | Z18: 0.62 | AA18: 0.04 | AB18: 0.12 | AC18: 0.06 | AD18: 0.03 | AE18: 0.02 | AF18: 0.02 | AI18: 14 | AJ18: HE2RB0014 | AK18: 2Star | AL18: Chaos Boon | AM18: =IFERROR(VLOOKUP(VLOOKUP($AI18,$B$5:$AF$1416,AM$4,FALSE),'League Stats'!Y$39:AX$54,26,FALSE),"") -> Hellion | AN18: Fire | AO18: These are dark creatures known as Hellions who emerged from the bowels of the earth to win glory for the underworld! | AP18: Hellfire fist: Melee attack dealing an additional 2 wounds when you tackle an enemy. | AQ18: Fire Resistance: Immune to Fire effects. | AR18: RB | AS18: Killer Abyssal Warrior | AT18: Med2 | AU18: 40 | AV18: 5 | AW18: 0.6 | AX18: 0.62 | AY18: 0.04 | AZ18: 0.12 | BA18: 0.06 | BB18: 0.03 | BC18: 0.02 | BD18: 0.02
B19: =IF(S19=1,MAX(B$5:B18)+1,0) -> 15 | C19: =_xlfn.CONCAT("$Y$",VLOOKUP(J19,'League Stats'!$Y$57:$AB$900,4,FALSE)) -> $Y$58 | D19: =_xlfn.CONCAT("$AD$",VLOOKUP(J19,'League Stats'!$Y$57:$AE$900,7,FALSE)) -> $AD$103 | E19: HE2OL0015 | F19: 15 | G19: 15 | H19: 2Star | I19: Arcane Chronos | J19: Hellion | K19: =VLOOKUP($J19,'League Stats'!$Y$39:$AZ$54,21,FALSE) -> Fire | L19: =VLOOKUP($J19,'League Stats'!$Y$39:$AZ$54,14,FALSE) -> These are dark creatures known as Hellions who emerged from the bowels of the earth to win glory for the underworld! | M19: =VLOOKUP($J19,'League Stats'!$Y$39:$AZ$54,24,FALSE) -> Hellfire fist: Melee attack dealing an additional 2 wounds when you tackle an enemy. | N19: =VLOOKUP($J19,'League Stats'!$Y$39:$AZ$54,25,FALSE) -> Fire Resistance: Immune to Fire effects. | O19: 1 | P19: 2 | Q19: =_xlfn.CONCAT("$B$",VLOOKUP(J19,'League Stats'!$Y$57:$AB$900,4,FALSE)+6) -> $B$64 | R19: =_xlfn.CONCAT("$S$",VLOOKUP(J19,'League Stats'!$Y$57:$AB$900,4,FALSE)+39) -> $S$97 | S19: 1 | T19: OL | U19: Massive Hellion | V19: =IF(T19="QB","NONE",VLOOKUP(LEFT(U19,FIND(" ",U19)-1),'League Stats'!M$25:N$36,2,FALSE)) -> Big2 | W19: 50 | X19: 6 | Y19: 0.5 | Z19: 0.02 | AA19: 0.02 | AB19: 0.04 | AC19: 0.08 | AD19: 0.11 | AE19: 0.04 | AF19: 0.04 | AI19: 15 | AJ19: HE2OL0015 | AK19: 2Star | AL19: Arcane Chronos | AM19: =IFERROR(VLOOKUP(VLOOKUP($AI19,$B$5:$AF$1416,AM$4,FALSE),'League Stats'!Y$39:AX$54,26,FALSE),"") -> Hellion | AN19: Fire | AO19: These are dark creatures known as Hellions who emerged from the bowels of the earth to win glory for the underworld! | AP19: Hellfire fist: Melee attack dealing an additional 2 wounds when you tackle an enemy. | AQ19: Fire Resistance: Immune to Fire effects. | AR19: OL | AS19: Massive Hellion | AT19: Big2 | AU19: 50 | AV19: 6 | AW19: 0.5 | AX19: 0.02 | AY19: 0.02 | AZ19: 0.04 | BA19: 0.08 | BB19: 0.11 | BC19: 0.04 | BD19: 0.04
B20: =IF(S20=1,MAX(B$5:B19)+1,0) -> 16 | C20: =_xlfn.CONCAT("$Y$",VLOOKUP(J20,'League Stats'!$Y$57:$AB$900,4,FALSE)) -> $Y$58 | D20: =_xlfn.CONCAT("$AD$",VLOOKUP(J20,'League Stats'!$Y$57:$AE$900,7,FALSE)) -> $AD$103 | E20: HE2OL0016 | F20: 16 | G20: 16 | H20: 2Star | I20: Thunder Hooch | J20: Hellion | K20: =VLOOKUP($J20,'League Stats'!$Y$39:$AZ$54,21,FALSE) -> Fire | L20: =VLOOKUP($J20,'League Stats'!$Y$39:$AZ$54,14,FALSE) -> These are dark creatures known as Hellions who emerged from the bowels of the earth to win glory for the underworld! | M20: =VLOOKUP($J20,'League Stats'!$Y$39:$AZ$54,24,FALSE) -> Hellfire fist: Melee attack dealing an additional 2 wounds when you tackle an enemy. | N20: =VLOOKUP($J20,'League Stats'!$Y$39:$AZ$54,25,FALSE) -> Fire Resistance: Immune to Fire effects. | O20: 1 | P20: 3 | Q20: =_xlfn.CONCAT("$B$",VLOOKUP(J20,'League Stats'!$Y$57:$AB$900,4,FALSE)+6) -> $B$64 | R20: =_xlfn.CONCAT("$S$",VLOOKUP(J20,'League Stats'!$Y$57:$AB$900,4,FALSE)+39) -> $S$97 | S20: 1 | T20: OL | U20: Killer Abyssal Warrior | V20: =IF(T20="QB","NONE",VLOOKUP(LEFT(U20,FIND(" ",U20)-1),'League Stats'!M$25:N$36,2,FALSE)) -> Med2 | W20: 40 | X20: 5 | Y20: 0.6 | Z20: 0.62 | AA20: 0.04 | AB20: 0.12 | AC20: 0.06 | AD20: 0.03 | AE20: 0.02 | AF20: 0.02 | AI20: 16 | AJ20: HE2OL0016 | AK20: 2Star | AL20: Thunder Hooch | AM20: =IFERROR(VLOOKUP(VLOOKUP($AI20,$B$5:$AF$1416,AM$4,FALSE),'League Stats'!Y$39:AX$54,26,FALSE),"") -> Hellion | AN20: Fire | AO20: These are dark creatures known as Hellions who emerged from the bowels of the earth to win glory for the underworld! | AP20: Hellfire fist: Melee attack dealing an additional 2 wounds when you tackle an enemy. | AQ20: Fire Resistance: Immune to Fire effects. | AR20: OL | AS20: Killer Abyssal Warrior | AT20: Med2 | AU20: 40 | AV20: 5 | AW20: 0.6 | AX20: 0.62 | AY20: 0.04 | AZ20: 0.12 | BA20: 0.06 | BB20: 0.03 | BC20: 0.02 | BD20: 0.02
B21: =IF(S21=1,MAX(B$5:B20)+1,0) -> 17 | C21: =_xlfn.CONCAT("$Y$",VLOOKUP(J21,'League Stats'!$Y$57:$AB$900,4,FALSE)) -> $Y$58 | D21: =_xlfn.CONCAT("$AD$",VLOOKUP(J21,'League Stats'!$Y$57:$AE$900,7,FALSE)) -> $AD$103 | E21: HE2OL0017 | F21: 17 | G21: 17 | H21: 2Star | I21: Merlin Thor | J21: Hellion | K21: =VLOOKUP($J21,'League Stats'!$Y$39:$AZ$54,21,FALSE) -> Fire | L21: =VLOOKUP($J21,'League Stats'!$Y$39:$AZ$54,14,FALSE) -> These are dark creatures known as Hellions who emerged from the bowels of the earth to win glory for the underworld! | M21: =VLOOKUP($J21,'League Stats'!$Y$39:$AZ$54,24,FALSE) -> Hellfire fist: Melee attack dealing an additional 2 wounds when you tackle an enemy. | N21: =VLOOKUP($J21,'League Stats'!$Y$39:$AZ$54,25,FALSE) -> Fire Resistance: Immune to Fire effects. | O21: 1 | P21: 4 | Q21: =_xlfn.CONCAT("$B$",VLOOKUP(J21,'League Stats'!$Y$57:$AB$900,4,FALSE)+6) -> $B$64 | R21: =_xlfn.CONCAT("$S$",VLOOKUP(J21,'League Stats'!$Y$57:$AB$900,4,FALSE)+39) -> $S$97 | S21: 1 | T21: OL | U21: Killer Abyssal Warrior | V21: =IF(T21="QB","NONE",VLOOKUP(LEFT(U21,FIND(" ",U21)-1),'League Stats'!M$25:N$36,2,FALSE)) -> Med2 | W21: 40 | X21: 5 | Y21: 0.6 | Z21: 0.62 | AA21: 0.04 | AB21: 0.12 | AC21: 0.06 | AD21: 0.03 | AE21: 0.02 | AF21: 0.02 | AI21: 17 | AJ21: HE2OL0017 | AK21: 2Star | AL21: Merlin Thor | AM21: =IFERROR(VLOOKUP(VLOOKUP($AI21,$B$5:$AF$1416,AM$4,FALSE),'League Stats'!Y$39:AX$54,26,FALSE),"") -> Hellion | AN21: Fire | AO21: These are dark creatures known as Hellions who emerged from the bowels of the earth to win glory for the underworld! | AP21: Hellfire fist: Melee attack dealing an additional 2 wounds when you tackle an enemy. | AQ21: Fire Resistance: Immune to Fire effects. | AR21: OL | AS21: Killer Abyssal Warrior | AT21: Med2 | AU21: 40 | AV21: 5 | AW21: 0.6 | AX21: 0.62 | AY21: 0.04 | AZ21: 0.12 | BA21: 0.06 | BB21: 0.03 | BC21: 0.02 | BD21: 0.02
B22: =IF(S22=1,MAX(B$5:B21)+1,0) -> 18 | C22: =_xlfn.CONCAT("$Y$",VLOOKUP(J22,'League Stats'!$Y$57:$AB$900,4,FALSE)) -> $Y$58 | D22: =_xlfn.CONCAT("$AD$",VLOOKUP(J22,'League Stats'!$Y$57:$AE$900,7,FALSE)) -> $AD$103 | E22: HE2R0018 | F22: 18 | G22: 18 | H22: 2Star | I22: Hyde Lightning | J22: Hellion | K22: =VLOOKUP($J22,'League Stats'!$Y$39:$AZ$54,21,FALSE) -> Fire | L22: =VLOOKUP($J22,'League Stats'!$Y$39:$AZ$54,14,FALSE) -> These are dark creatures known as Hellions who emerged from the bowels of the earth to win glory for the underworld! | M22: =VLOOKUP($J22,'League Stats'!$Y$39:$AZ$54,24,FALSE) -> Hellfire fist: Melee attack dealing an additional 2 wounds when you tackle an enemy. | N22: =VLOOKUP($J22,'League Stats'!$Y$39:$AZ$54,25,FALSE) -> Fire Resistance: Immune to Fire effects. | O22: 1 | P22: 5 | Q22: =_xlfn.CONCAT("$B$",VLOOKUP(J22,'League Stats'!$Y$57:$AB$900,4,FALSE)+6) -> $B$64 | R22: =_xlfn.CONCAT("$S$",VLOOKUP(J22,'League Stats'!$Y$57:$AB$900,4,FALSE)+39) -> $S$97 | S22: 1 | T22: R | U22: Speedy Shadow | V22: =IF(T22="QB","NONE",VLOOKUP(LEFT(U22,FIND(" ",U22)-1),'League Stats'!M$25:N$36,2,FALSE)) -> Fast2 | W22: 30 | X22: 4 | Y22: 0.65 | Z22: 0.77 | AA22: 0.04 | AB22: 0.06 | AC22: 0.06 | AD22: 0.03 | AE22: 0.02 | AF22: 0.02 | AI22: 18 | AJ22: HE2R0018 | AK22: 2Star | AL22: Hyde Lightning | AM22: =IFERROR(VLOOKUP(VLOOKUP($AI22,$B$5:$AF$1416,AM$4,FALSE),'League Stats'!Y$39:AX$54,26,FALSE),"") -> Hellion | AN22: Fire | AO22: These are dark creatures known as Hellions who emerged from the bowels of the earth to win glory for the underworld! | AP22: Hellfire fist: Melee attack dealing an additional 2 wounds when you tackle an enemy. | AQ22: Fire Resistance: Immune to Fire effects. | AR22: R | AS22: Speedy Shadow | AT22: Fast2 | AU22: 30 | AV22: 4 | AW22: 0.65 | AX22: 0.77 | AY22: 0.04 | AZ22: 0.06 | BA22: 0.06 | BB22: 0.03 | BC22: 0.02 | BD22: 0.02
B23: =IF(S23=1,MAX(B$5:B22)+1,0) -> 19 | C23: =_xlfn.CONCAT("$Y$",VLOOKUP(J23,'League Stats'!$Y$57:$AB$900,4,FALSE)) -> $Y$58 | D23: =_xlfn.CONCAT("$AD$",VLOOKUP(J23,'League Stats'!$Y$57:$AE$900,7,FALSE)) -> $AD$103 | E23: HE2R0019 | F23: 19 | G23: 19 | H23: 2Star | I23: Scandal Menace | J23: Hellion | K23: =VLOOKUP($J23,'League Stats'!$Y$39:$AZ$54,21,FALSE) -> Fire | L23: =VLOOKUP($J23,'League Stats'!$Y$39:$AZ$54,14,FALSE) -> These are dark creatures known as Hellions who emerged from the bowels of the earth to win glory for the underworld! | M23: =VLOOKUP($J23,'League Stats'!$Y$39:$AZ$54,24,FALSE) -> Hellfire fist: Melee attack dealing an additional 2 wounds when you tackle an enemy. | N23: =VLOOKUP($J23,'League Stats'!$Y$39:$AZ$54,25,FALSE) -> Fire Resistance: Immune to Fire effects. | O23: 1 | P23: 6 | Q23: =_xlfn.CONCAT("$B$",VLOOKUP(J23,'League Stats'!$Y$57:$AB$900,4,FALSE)+6) -> $B$64 | R23: =_xlfn.CONCAT("$S$",VLOOKUP(J23,'League Stats'!$Y$57:$AB$900,4,FALSE)+39) -> $S$97 | S23: 1 | T23: R | U23: Speedy Shadow | V23: =IF(T23="QB","NONE",VLOOKUP(LEFT(U23,FIND(" ",U23)-1),'League Stats'!M$25:N$36,2,FALSE)) -> Fast2 | W23: 30 | X23: 4 | Y23: 0.65 | Z23: 0.77 | AA23: 0.04 | AB23: 0.06 | AC23: 0.06 | AD23: 0.03 | AE23: 0.02 | AF23: 0.02 | AI23: 19 | AJ23: HE2R0019 | AK23: 2Star | AL23: Scandal Menace | AM23: =IFERROR(VLOOKUP(VLOOKUP($AI23,$B$5:$AF$1416,AM$4,FALSE),'League Stats'!Y$39:AX$54,26,FALSE),"") -> Hellion | AN23: Fire | AO23: These are dark creatures known as Hellions who emerged from the bowels of the earth to win glory for the underworld! | AP23: Hellfire fist: Melee attack dealing an additional 2 wounds when you tackle an enemy. | AQ23: Fire Resistance: Immune to Fire effects. | AR23: R | AS23: Speedy Shadow | AT23: Fast2 | AU23: 30 | AV23: 4 | AW23: 0.65 | AX23: 0.77 | AY23: 0.04 | AZ23: 0.06 | BA23: 0.06 | BB23: 0.03 | BC23: 0.02 | BD23: 0.02
B24: =IF(S24=1,MAX(B$5:B23)+1,0) -> 20 | C24: =_xlfn.CONCAT("$Y$",VLOOKUP(J24,'League Stats'!$Y$57:$AB$900,4,FALSE)) -> $Y$58 | D24: =_xlfn.CONCAT("$AD$",VLOOKUP(J24,'League Stats'!$Y$57:$AE$900,7,FALSE)) -> $AD$103 | E24: HE2S0020 | F24: 20 | G24: 20 | H24: 2Star | I24: Hades Odin | J24: Hellion | K24: =VLOOKUP($J24,'League Stats'!$Y$39:$AZ$54,21,FALSE) -> Fire | L24: =VLOOKUP($J24,'League Stats'!$Y$39:$AZ$54,14,FALSE) -> These are dark creatures known as Hellions who emerged from the bowels of the earth to win glory for the underworld! | M24: =VLOOKUP($J24,'League Stats'!$Y$39:$AZ$54,24,FALSE) -> Hellfire fist: Melee attack dealing an additional 2 wounds when you tackle an enemy. | N24: =VLOOKUP($J24,'League Stats'!$Y$39:$AZ$54,25,FALSE) -> Fire Resistance: Immune to Fire effects. | O24: 1 | P24: 7 | Q24: =_xlfn.CONCAT("$B$",VLOOKUP(J24,'League Stats'!$Y$57:$AB$900,4,FALSE)+6) -> $B$64 | R24: =_xlfn.CONCAT("$S$",VLOOKUP(J24,'League Stats'!$Y$57:$AB$900,4,FALSE)+39) -> $S$97 | S24: 1 | T24: S | U24: Killer Abyssal Warrior | V24: =IF(T24="QB","NONE",VLOOKUP(LEFT(U24,FIND(" ",U24)-1),'League Stats'!M$25:N$36,2,FALSE)) -> Med2 | W24: 40 | X24: 5 | Y24: 0.6 | Z24: 0.62 | AA24: 0.04 | AB24: 0.12 | AC24: 0.06 | AD24: 0.03 | AE24: 0.02 | AF24: 0.02 | AI24: 20 | AJ24: HE2S0020 | AK24: 2Star | AL24: Hades Odin | AM24: =IFERROR(VLOOKUP(VLOOKUP($AI24,$B$5:$AF$1416,AM$4,FALSE),'League Stats'!Y$39:AX$54,26,FALSE),"") -> Hellion | AN24: Fire | AO24: These are dark creatures known as Hellions who emerged from the bowels of the earth to win glory for the underworld! | AP24: Hellfire fist: Melee attack dealing an additional 2 wounds when you tackle an enemy. | AQ24: Fire Resistance: Immune to Fire effects. | AR24: S | AS24: Killer Abyssal Warrior | AT24: Med2 | AU24: 40 | AV24: 5 | AW24: 0.6 | AX24: 0.62 | AY24: 0.04 | AZ24: 0.12 | BA24: 0.06 | BB24: 0.03 | BC24: 0.02 | BD24: 0.02
B25: =IF(S25=1,MAX(B$5:B24)+1,0) -> 21 | C25: =_xlfn.CONCAT("$Y$",VLOOKUP(J25,'League Stats'!$Y$57:$AB$900,4,FALSE)) -> $Y$58 | D25: =_xlfn.CONCAT("$AD$",VLOOKUP(J25,'League Stats'!$Y$57:$AE$900,7,FALSE)) -> $AD$103 | E25: HE2S0021 | F25: 21 | G25: 21 | H25: 2Star | I25: Bullet Rags | J25: Hellion | K25: =VLOOKUP($J25,'League Stats'!$Y$39:$AZ$54,21,FALSE) -> Fire | L25: =VLOOKUP($J25,'League Stats'!$Y$39:$AZ$54,14,FALSE) -> These are dark creatures known as Hellions who emerged from the bowels of the earth to win glory for the underworld! | M25: =VLOOKUP($J25,'League Stats'!$Y$39:$AZ$54,24,FALSE) -> Hellfire fist: Melee attack dealing an additional 2 wounds when you tackle an enemy. | N25: =VLOOKUP($J25,'League Stats'!$Y$39:$AZ$54,25,FALSE) -> Fire Resistance: Immune to Fire effects. | O25: 1 | P25: 8 | Q25: =_xlfn.CONCAT("$B$",VLOOKUP(J25,'League Stats'!$Y$57:$AB$900,4,FALSE)+6) -> $B$64 | R25: =_xlfn.CONCAT("$S$",VLOOKUP(J25,'League Stats'!$Y$57:$AB$900,4,FALSE)+39) -> $S$97 | S25: 1 | T25: S | U25: Killer Abyssal Warrior | V25: =IF(T25="QB","NONE",VLOOKUP(LEFT(U25,FIND(" ",U25)-1),'League Stats'!M$25:N$36,2,FALSE)) -> Med2 | W25: =VLOOKUP($P25,INDIRECT("'League Stats'!"&$Q25&":"&$R25),W$4,FALSE)+(W$2*$O25) -> 40 | X25: 5 | Y25: 0.6 | Z25: 0.62 | AA25: =VLOOKUP($P25,INDIRECT("'League Stats'!"&$Q25&":"&$R25),AA$4,FALSE)+(AA$2*$O25) -> 0.04 | AB25: 0.12 | AC25: 0.06 | AD25: 0.03 | AE25: 0.02 | AF25: 0.02 | AI25: 21 | AJ25: =IFERROR(VLOOKUP($AI25,$B$5:$AF$1416,AJ$4,FALSE),"") -> HE2S0021 | AK25: 2Star | AL25: Bullet Rags | AM25: =IFERROR(VLOOKUP(VLOOKUP($AI25,$B$5:$AF$1416,AM$4,FALSE),'League Stats'!Y$39:AX$54,26,FALSE),"") -> Hellion | AN25: =IFERROR(VLOOKUP($AI25,$B$5:$AF$1416,AN$4,FALSE),"") -> Fire | AO25: These are dark creatures known as Hellions who emerged from the bowels of the earth to win glory for the underworld! | AP25: Hellfire fist: Melee attack dealing an additional 2 wounds when you tackle an enemy. | AQ25: Fire Resistance: Immune to Fire effects. | AR25: S | AS25: Killer Abyssal Warrior | AT25: Med2 | AU25: 40 | AV25: 5 | AW25: 0.6 | AX25: =IFERROR(VLOOKUP($AI25,$B$5:$AF$1416,AX$4,FALSE),"") -> 0.62 | AY25: 0.04 | AZ25: 0.12 | BA25: 0.06 | BB25: 0.03 | BC25: 0.02 | BD25: 0.02
B26: =IF(S26=1,MAX(B$5:B25)+1,0) -> 22 | C26: =_xlfn.CONCAT("$Y$",VLOOKUP(J26,'League Stats'!$Y$57:$AB$900,4,FALSE)) -> $Y$58 | D26: =_xlfn.CONCAT("$AD$",VLOOKUP(J26,'League Stats'!$Y$57:$AE$900,7,FALSE)) -> $AD$103 | E26: HE2DL0022 | F26: 22 | G26: 22 | H26: 2Star | I26: Doom Aiyana | J26: Hellion | K26: =VLOOKUP($J26,'League Stats'!$Y$39:$AZ$54,21,FALSE) -> Fire | L26: =VLOOKUP($J26,'League Stats'!$Y$39:$AZ$54,14,FALSE) -> These are dark creatures known as Hellions who emerged from the bowels of the earth to win glory for the underworld! | M26: =VLOOKUP($J26,'League Stats'!$Y$39:$AZ$54,24,FALSE) -> Hellfire fist: Melee attack dealing an additional 2 wounds when you tackle an enemy. | N26: =VLOOKUP($J26,'League Stats'!$Y$39:$AZ$54,25,FALSE) -> Fire Resistance: Immune to Fire effects. | O26: 1 | P26: 9 | Q26: =_xlfn.CONCAT("$B$",VLOOKUP(J26,'League Stats'!$Y$57:$AB$900,4,FALSE)+6) -> $B$64 | R26: =_xlfn.CONCAT("$S$",VLOOKUP(J26,'League Stats'!$Y$57:$AB$900,4,FALSE)+39) -> $S$97 | S26: 1 | T26: DL | U26: Massive Hellion | V26: =IF(T26="QB","NONE",VLOOKUP(LEFT(U26,FIND(" ",U26)-1),'League Stats'!M$25:N$36,2,FALSE)) -> Big2 | W26: 50 | X26: 6 | Y26: 0.5 | Z26: 0.02 | AA26: 0.02 | AB26: 0.04 | AC26: 0.08 | AD26: 0.11 | AE26: 0.04 | AF26: 0.04 | AI26: 22 | AJ26: HE2DL0022 | AK26: 2Star | AL26: Doom Aiyana | AM26: =IFERROR(VLOOKUP(VLOOKUP($AI26,$B$5:$AF$1416,AM$4,FALSE),'League Stats'!Y$39:AX$54,26,FALSE),"") -> Hellion | AN26: Fire | AO26: These are dark creatures known as Hellions who emerged from the bowels of the earth to win glory for the underworld! | AP26: Hellfire fist: Melee attack dealing an additional 2 wounds when you tackle an enemy. | AQ26: Fire Resistance: Immune to Fire effects. | AR26: DL | AS26: Massive Hellion | AT26: Big2 | AU26: 50 | AV26: 6 | AW26: 0.5 | AX26: 0.02 | AY26: 0.02 | AZ26: 0.04 | BA26: 0.08 | BB26: 0.11 | BC26: 0.04 | BD26: 0.04
B27: =IF(S27=1,MAX(B$5:B26)+1,0) -> 23 | C27: =_xlfn.CONCAT("$Y$",VLOOKUP(J27,'League Stats'!$Y$57:$AB$900,4,FALSE)) -> $Y$58 | D27: =_xlfn.CONCAT("$AD$",VLOOKUP(J27,'League Stats'!$Y$57:$AE$900,7,FALSE)) -> $AD$103 | E27: HE2DL0023 | F27: 23 | G27: 23 | H27: 2Star | I27: Gunner Duke | J27: Hellion | K27: =VLOOKUP($J27,'League Stats'!$Y$39:$AZ$54,21,FALSE) -> Fire | L27: =VLOOKUP($J27,'League Stats'!$Y$39:$AZ$54,14,FALSE) -> These are dark creatures known as Hellions who emerged from the bowels of the earth to win glory for the underworld! | M27: =VLOOKUP($J27,'League Stats'!$Y$39:$AZ$54,24,FALSE) -> Hellfire fist: Melee attack dealing an additional 2 wounds when you tackle an enemy. | N27: =VLOOKUP($J27,'League Stats'!$Y$39:$AZ$54,25,FALSE) -> Fire Resistance: Immune to Fire effects. | O27: 1 | P27: 10 | Q27: =_xlfn.CONCAT("$B$",VLOOKUP(J27,'League Stats'!$Y$57:$AB$900,4,FALSE)+6) -> $B$64 | R27: =_xlfn.CONCAT("$S$",VLOOKUP(J27,'League Stats'!$Y$57:$AB$900,4,FALSE)+39) -> $S$97 | S27: 1 | T27: DL | U27: Killer Abyssal Warrior | V27: =IF(T27="QB","NONE",VLOOKUP(LEFT(U27,FIND(" ",U27)-1),'League Stats'!M$25:N$36,2,FALSE)) -> Med2 | W27: 40 | X27: 5 | Y27: 0.6 | Z27: 0.62 | AA27: 0.04 | AB27: 0.12 | AC27: 0.06 | AD27: 0.03 | AE27: 0.02 | AF27: 0.02 | AI27: 23 | AJ27: HE2DL0023 | AK27: 2Star | AL27: Gunner Duke | AM27: =IFERROR(VLOOKUP(VLOOKUP($AI27,$B$5:$AF$1416,AM$4,FALSE),'League Stats'!Y$39:AX$54,26,FALSE),"") -> Hellion | AN27: Fire | AO27: These are dark creatures known as Hellions who emerged from the bowels of the earth to win glory for the underworld! | AP27: Hellfire fist: Melee attack dealing an additional 2 wounds when you tackle an enemy. | AQ27: Fire Resistance: Immune to Fire effects. | AR27: DL | AS27: Killer Abyssal Warrior | AT27: Med2 | AU27: 40 | AV27: 5 | AW27: 0.6 | AX27: 0.62 | AY27: 0.04 | AZ27: 0.12 | BA27: 0.06 | BB27: 0.03 | BC27: 0.02 | BD27: 0.02
B28: =IF(S28=1,MAX(B$5:B27)+1,0) -> 24 | C28: =_xlfn.CONCAT("$Y$",VLOOKUP(J28,'League Stats'!$Y$57:$AB$900,4,FALSE)) -> $Y$58 | D28: =_xlfn.CONCAT("$AD$",VLOOKUP(J28,'League Stats'!$Y$57:$AE$900,7,FALSE)) -> $AD$103 | E28: HE2DL0024 | F28: 24 | G28: 24 | H28: 2Star | I28: Hector Destiny | J28: Hellion | K28: =VLOOKUP($J28,'League Stats'!$Y$39:$AZ$54,21,FALSE) -> Fire | L28: =VLOOKUP($J28,'League Stats'!$Y$39:$AZ$54,14,FALSE) -> These are dark creatures known as Hellions who emerged from the bowels of the earth to win glory for the underworld! | M28: =VLOOKUP($J28,'League Stats'!$Y$39:$AZ$54,24,FALSE) -> Hellfire fist: Melee attack dealing an additional 2 wounds when you tackle an enemy. | N28: =VLOOKUP($J28,'League Stats'!$Y$39:$AZ$54,25,FALSE) -> Fire Resistance: Immune to Fire effects. | O28: 1 | P28: 11 | Q28: =_xlfn.CONCAT("$B$",VLOOKUP(J28,'League Stats'!$Y$57:$AB$900,4,FALSE)+6) -> $B$64 | R28: =_xlfn.CONCAT("$S$",VLOOKUP(J28,'League Stats'!$Y$57:$AB$900,4,FALSE)+39) -> $S$97 | S28: 1 | T28: DL | U28: Killer Abyssal Warrior | V28: =IF(T28="QB","NONE",VLOOKUP(LEFT(U28,FIND(" ",U28)-1),'League Stats'!M$25:N$36,2,FALSE)) -> Med2 | W28: 40 | X28: 5 | Y28: 0.6 | Z28: 0.62 | AA28: 0.04 | AB28: 0.12 | AC28: 0.06 | AD28: 0.03 | AE28: 0.02 | AF28: 0.02 | AI28: 24 | AJ28: HE2DL0024 | AK28: 2Star | AL28: Hector Destiny | AM28: =IFERROR(VLOOKUP(VLOOKUP($AI28,$B$5:$AF$1416,AM$4,FALSE),'League Stats'!Y$39:AX$54,26,FALSE),"") -> Hellion | AN28: Fire | AO28: These are dark creatures known as Hellions who emerged from the bowels of the earth to win glory for the underworld! | AP28: Hellfire fist: Melee attack dealing an additional 2 wounds when you tackle an enemy. | AQ28: Fire Resistance: Immune to Fire effects. | AR28: DL | AS28: Killer Abyssal Warrior | AT28: Med2 | AU28: 40 | AV28: 5 | AW28: 0.6 | AX28: 0.62 | AY28: 0.04 | AZ28: 0.12 | BA28: 0.06 | BB28: 0.03 | BC28: 0.02 | BD28: 0.02
B29: =IF(S29=1,MAX(B$5:B28)+1,0) -> 25 | C29: =_xlfn.CONCAT("$Y$",VLOOKUP(J29,'League Stats'!$Y$57:$AB$900,4,FALSE)) -> $Y$58 | D29: =_xlfn.CONCAT("$AD$",VLOOKUP(J29,'League Stats'!$Y$57:$AE$900,7,FALSE)) -> $AD$103 | E29: HE2DB0025 | F29: 25 | G29: 25 | H29: 2Star | I29: Steele Nymph | J29: Hellion | K29: =VLOOKUP($J29,'League Stats'!$Y$39:$AZ$54,21,FALSE) -> Fire | L29: =VLOOKUP($J29,'League Stats'!$Y$39:$AZ$54,14,FALSE) -> These are dark creatures known as Hellions who emerged from the bowels of the earth to win glory for the underworld! | M29: =VLOOKUP($J29,'League Stats'!$Y$39:$AZ$54,24,FALSE) -> Hellfire fist: Melee attack dealing an additional 2 wounds when you tackle an enemy. | N29: =VLOOKUP($J29,'League Stats'!$Y$39:$AZ$54,25,FALSE) -> Fire Resistance: Immune to Fire effects. | O29: 1 | P29: 12 | Q29: =_xlfn.CONCAT("$B$",VLOOKUP(J29,'League Stats'!$Y$57:$AB$900,4,FALSE)+6) -> $B$64 | R29: =_xlfn.CONCAT("$S$",VLOOKUP(J29,'League Stats'!$Y$57:$AB$900,4,FALSE)+39) -> $S$97 | S29: 1 | T29: DB | U29: Speedy Shadow | V29: =IF(T29="QB","NONE",VLOOKUP(LEFT(U29,FIND(" ",U29)-1),'League Stats'!M$25:N$36,2,FALSE)) -> Fast2 | W29: 30 | X29: 4 | Y29: 0.65 | Z29: 0.77 | AA29: 0.04 | AB29: 0.06 | AC29: 0.06 | AD29: 0.03 | AE29: 0.02 | AF29: 0.02 | AI29: 25 | AJ29: HE2DB0025 | AK29: 2Star | AL29: Steele Nymph | AM29: =IFERROR(VLOOKUP(VLOOKUP($AI29,$B$5:$AF$1416,AM$4,FALSE),'League Stats'!Y$39:AX$54,26,FALSE),"") -> Hellion | AN29: Fire | AO29: These are dark creatures known as Hellions who emerged from the bowels of the earth to win glory for the underworld! | AP29: Hellfire fist: Melee attack dealing an additional 2 wounds when you tackle an enemy. | AQ29: Fire Resistance: Immune to Fire effects. | AR29: DB | AS29: Speedy Shadow | AT29: Fast2 | AU29: 30 | AV29: 4 | AW29: 0.65 | AX29: 0.77 | AY29: 0.04 | AZ29: 0.06 | BA29: 0.06 | BB29: 0.03 | BC29: 0.02 | BD29: 0.02
B30: =IF(S30=1,MAX(B$5:B29)+1,0) -> 26 | C30: =_xlfn.CONCAT("$Y$",VLOOKUP(J30,'League Stats'!$Y$57:$AB$900,4,FALSE)) -> $Y$58 | D30: =_xlfn.CONCAT("$AD$",VLOOKUP(J30,'League Stats'!$Y$57:$AE$900,7,FALSE)) -> $AD$103 | E30: HE2DB0026 | F30: 26 | G30: 26 | H30: 2Star | I30: Torment Dot | J30: Hellion | K30: =VLOOKUP($J30,'League Stats'!$Y$39:$AZ$54,21,FALSE) -> Fire | L30: =VLOOKUP($J30,'League Stats'!$Y$39:$AZ$54,14,FALSE) -> These are dark creatures known as Hellions who emerged from the bowels of the earth to win glory for the underworld! | M30: =VLOOKUP($J30,'League Stats'!$Y$39:$AZ$54,24,FALSE) -> Hellfire fist: Melee attack dealing an additional 2 wounds when you tackle an enemy. | N30: =VLOOKUP($J30,'League Stats'!$Y$39:$AZ$54,25,FALSE) -> Fire Resistance: Immune to Fire effects. | O30: 1 | P30: 13 | Q30: =_xlfn.CONCAT("$B$",VLOOKUP(J30,'League Stats'!$Y$57:$AB$900,4,FALSE)+6) -> $B$64 | R30: =_xlfn.CONCAT("$S$",VLOOKUP(J30,'League Stats'!$Y$57:$AB$900,4,FALSE)+39) -> $S$97 | S30: 1 | T30: DB | U30: Speedy Shadow | V30: =IF(T30="QB","NONE",VLOOKUP(LEFT(U30,FIND(" ",U30)-1),'League Stats'!M$25:N$36,2,FALSE)) -> Fast2 | W30: 30 | X30: 4 | Y30: 0.65 | Z30: 0.77 | AA30: 0.04 | AB30: 0.06 | AC30: 0.06 | AD30: 0.03 | AE30: 0.02 | AF30: 0.02 | AI30: 26 | AJ30: HE2DB0026 | AK30: 2Star | AL30: Torment Dot | AM30: =IFERROR(VLOOKUP(VLOOKUP($AI30,$B$5:$AF$1416,AM$4,FALSE),'League Stats'!Y$39:AX$54,26,FALSE),"") -> Hellion | AN30: Fire | AO30: These are dark creatures known as Hellions who emerged from the bowels of the earth to win glory for the underworld! | AP30: Hellfire fist: Melee attack dealing an additional 2 wounds when you tackle an enemy. | AQ30: Fire Resistance: Immune to Fire effects. | AR30: DB | AS30: Speedy Shadow | AT30: Fast2 | AU30: 30 | AV30: 4 | AW30: 0.65 | AX30: 0.77 | AY30: 0.04 | AZ30: 0.06 | BA30: 0.06 | BB30: 0.03 | BC30: 0.02 | BD30: 0.02
B31: =IF(S31=1,MAX(B$5:B30)+1,0) -> 27 | C31: =_xlfn.CONCAT("$Y$",VLOOKUP(J31,'League Stats'!$Y$57:$AB$900,4,FALSE)) -> $Y$58 | D31: =_xlfn.CONCAT("$AD$",VLOOKUP(J31,'League Stats'!$Y$57:$AE$900,7,FALSE)) -> $AD$103 | E31: HE3RB0027 | F31: 27 | G31: 27 | H31: 3Star | I31: Whisper Atilla | J31: Hellion | K31: =VLOOKUP($J31,'League Stats'!$Y$39:$AZ$54,21,FALSE) -> Fire | L31: =VLOOKUP($J31,'League Stats'!$Y$39:$AZ$54,14,FALSE) -> These are dark creatures known as Hellions who emerged from the bowels of the earth to win glory for the underworld! | M31: =VLOOKUP($J31,'League Stats'!$Y$39:$AZ$54,24,FALSE) -> Hellfire fist: Melee attack dealing an additional 2 wounds when you tackle an enemy. | N31: =VLOOKUP($J31,'League Stats'!$Y$39:$AZ$54,25,FALSE) -> Fire Resistance: Immune to Fire effects. | O31: 2 | P31: 1 | Q31: =_xlfn.CONCAT("$B$",VLOOKUP(J31,'League Stats'!$Y$57:$AB$900,4,FALSE)+6) -> $B$64 | R31: =_xlfn.CONCAT("$S$",VLOOKUP(J31,'League Stats'!$Y$57:$AB$900,4,FALSE)+39) -> $S$97 | S31: 1 | T31: RB | U31: Killer Abyssal Warrior | V31: =IF(T31="QB","NONE",VLOOKUP(LEFT(U31,FIND(" ",U31)-1),'League Stats'!M$25:N$36,2,FALSE)) -> Med2 | W31: 50 | X31: 6 | Y31: 0.7 | Z31: 0.64 | AA31: 0.05 | AB31: 0.15 | AC31: 0.08 | AD31: 0.04 | AE31: 0.03 | AF31: 0.03 | AI31: 27 | AJ31: HE3RB0027 | AK31: 3Star | AL31: Whisper Atilla | AM31: =IFERROR(VLOOKUP(VLOOKUP($AI31,$B$5:$AF$1416,AM$4,FALSE),'League Stats'!Y$39:AX$54,26,FALSE),"") -> Hellion | AN31: Fire | AO31: These are dark creatures known as Hellions who emerged from the bowels of the earth to win glory for the underworld! | AP31: Hellfire fist: Melee attack dealing an additional 2 wounds when you tackle an enemy. | AQ31: Fire Resistance: Immune to Fire effects. | AR31: RB | AS31: Killer Abyssal Warrior | AT31: Med2 | AU31: 50 | AV31: 6 | AW31: 0.7 | AX31: 0.64 | AY31: 0.05 | AZ31: 0.15 | BA31: 0.08 | BB31: 0.04 | BC31: 0.03 | BD31: 0.03
B32: =IF(S32=1,MAX(B$5:B31)+1,0) -> 28 | C32: =_xlfn.CONCAT("$Y$",VLOOKUP(J32,'League Stats'!$Y$57:$AB$900,4,FALSE)) -> $Y$58 | D32: =_xlfn.CONCAT("$AD$",VLOOKUP(J32,'League Stats'!$Y$57:$AE$900,7,FALSE)) -> $AD$103 | E32: HE3OL0028 | F32: 28 | G32: 28 | H32: 3Star | I32: Hannibal Phantom | J32: Hellion | K32: =VLOOKUP($J32,'League Stats'!$Y$39:$AZ$54,21,FALSE) -> Fire | L32: =VLOOKUP($J32,'League Stats'!$Y$39:$AZ$54,14,FALSE) -> These are dark creatures known as Hellions who emerged from the bowels of the earth to win glory for the underworld! | M32: =VLOOKUP($J32,'League Stats'!$Y$39:$AZ$54,24,FALSE) -> Hellfire fist: Melee attack dealing an additional 2 wounds when you tackle an enemy. | N32: =VLOOKUP($J32,'League Stats'!$Y$39:$AZ$54,25,FALSE) -> Fire Resistance: Immune to Fire effects. | O32: 2 | P32: 2 | Q32: =_xlfn.CONCAT("$B$",VLOOKUP(J32,'League Stats'!$Y$57:$AB$900,4,FALSE)+6) -> $B$64 | R32: =_xlfn.CONCAT("$S$",VLOOKUP(J32,'League Stats'!$Y$57:$AB$900,4,FALSE)+39) -> $S$97 | S32: 1 | T32: OL | U32: Massive Hellion | V32: =IF(T32="QB","NONE",VLOOKUP(LEFT(U32,FIND(" ",U32)-1),'League Stats'!M$25:N$36,2,FALSE)) -> Big2 | W32: 60 | X32: 7 | Y32: 0.6 | Z32: 0.04 | AA32: 0.03 | AB32: 0.07 | AC32: 0.1 | AD32: 0.12 | AE32: 0.05 | AF32: 0.05 | AI32: 28 | AJ32: HE3OL0028 | AK32: 3Star | AL32: Hannibal Phantom | AM32: =IFERROR(VLOOKUP(VLOOKUP($AI32,$B$5:$AF$1416,AM$4,FALSE),'League Stats'!Y$39:AX$54,26,FALSE),"") -> Hellion | AN32: Fire | AO32: These are dark creatures known as Hellions who emerged from the bowels of the earth to win glory for the underworld! | AP32: Hellfire fist: Melee attack dealing an additional 2 wounds when you tackle an enemy. | AQ32: Fire Resistance: Immune to Fire effects. | AR32: OL | AS32: Massive Hellion | AT32: Big2 | AU32: 60 | AV32: 7 | AW32: 0.6 | AX32: 0.04 | AY32: 0.03 | AZ32: 0.07 | BA32: 0.1 | BB32: 0.12 | BC32: 0.05 | BD32: 0.05
B33: =IF(S33=1,MAX(B$5:B32)+1,0) -> 29 | C33: =_xlfn.CONCAT("$Y$",VLOOKUP(J33,'League Stats'!$Y$57:$AB$900,4,FALSE)) -> $Y$58 | D33: =_xlfn.CONCAT("$AD$",VLOOKUP(J33,'League Stats'!$Y$57:$AE$900,7,FALSE)) -> $AD$103 | E33: HE3OL0029 | F33: 29 | G33: 29 | H33: 3Star | I33: Thunder Blitz | J33: Hellion | K33: =VLOOKUP($J33,'League Stats'!$Y$39:$AZ$54,21,FALSE) -> Fire | L33: =VLOOKUP($J33,'League Stats'!$Y$39:$AZ$54,14,FALSE) -> These are dark creatures known as Hellions who emerged from the bowels of the earth to win glory for the underworld! | M33: =VLOOKUP($J33,'League Stats'!$Y$39:$AZ$54,24,FALSE) -> Hellfire fist: Melee attack dealing an additional 2 wounds when you tackle an enemy. | N33: =VLOOKUP($J33,'League Stats'!$Y$39:$AZ$54,25,FALSE) -> Fire Resistance: Immune to Fire effects. | O33: 2 | P33: 3 | Q33: =_xlfn.CONCAT("$B$",VLOOKUP(J33,'League Stats'!$Y$57:$AB$900,4,FALSE)+6) -> $B$64 | R33: =_xlfn.CONCAT("$S$",VLOOKUP(J33,'League Stats'!$Y$57:$AB$900,4,FALSE)+39) -> $S$97 | S33: 1 | T33: OL | U33: Killer Abyssal Warrior | V33: =IF(T33="QB","NONE",VLOOKUP(LEFT(U33,FIND(" ",U33)-1),'League Stats'!M$25:N$36,2,FALSE)) -> Med2 | W33: 50 | X33: 6 | Y33: 0.7 | Z33: 0.64 | AA33: 0.05 | AB33: 0.15 | AC33: 0.08 | AD33: 0.04 | AE33: 0.03 | AF33: 0.03 | AI33: 29 | AJ33: HE3OL0029 | AK33: 3Star | AL33: Thunder Blitz | AM33: =IFERROR(VLOOKUP(VLOOKUP($AI33,$B$5:$AF$1416,AM$4,FALSE),'League Stats'!Y$39:AX$54,26,FALSE),"") -> Hellion | AN33: Fire | AO33: These are dark creatures known as Hellions who emerged from the bowels of the earth to win glory for the underworld! | AP33: Hellfire fist: Melee attack dealing an additional 2 wounds when you tackle an enemy. | AQ33: Fire Resistance: Immune to Fire effects. | AR33: OL | AS33: Killer Abyssal Warrior | AT33: Med2 | AU33: 50 | AV33: 6 | AW33: 0.7 | AX33: 0.64 | AY33: 0.05 | AZ33: 0.15 | BA33: 0.08 | BB33: 0.04 | BC33: 0.03 | BD33: 0.03
B34: =IF(S34=1,MAX(B$5:B33)+1,0) -> 30 | C34: =_xlfn.CONCAT("$Y$",VLOOKUP(J34,'League Stats'!$Y$57:$AB$900,4,FALSE)) -> $Y$58 | D34: =_xlfn.CONCAT("$AD$",VLOOKUP(J34,'League Stats'!$Y$57:$AE$900,7,FALSE)) -> $AD$103 | E34: HE3OL0030 | F34: 30 | G34: 30 | H34: 3Star | I34: Blight Midnight | J34: Hellion | K34: =VLOOKUP($J34,'League Stats'!$Y$39:$AZ$54,21,FALSE) -> Fire | L34: =VLOOKUP($J34,'League Stats'!$Y$39:$AZ$54,14,FALSE) -> These are dark creatures known as Hellions who emerged from the bowels of the earth to win glory for the underworld! | M34: =VLOOKUP($J34,'League Stats'!$Y$39:$AZ$54,24,FALSE) -> Hellfire fist: Melee attack dealing an additional 2 wounds when you tackle an enemy. | N34: =VLOOKUP($J34,'League Stats'!$Y$39:$AZ$54,25,FALSE) -> Fire Resistance: Immune to Fire effects. | O34: 2 | P34: 4 | Q34: =_xlfn.CONCAT("$B$",VLOOKUP(J34,'League Stats'!$Y$57:$AB$900,4,FALSE)+6) -> $B$64 | R34: =_xlfn.CONCAT("$S$",VLOOKUP(J34,'League Stats'!$Y$57:$AB$900,4,FALSE)+39) -> $S$97 | S34: 1 | T34: OL | U34: Killer Abyssal Warrior | V34: =IF(T34="QB","NONE",VLOOKUP(LEFT(U34,FIND(" ",U34)-1),'League Stats'!M$25:N$36,2,FALSE)) -> Med2 | W34: 50 | X34: 6 | Y34: 0.7 | Z34: 0.64 | AA34: 0.05 | AB34: 0.15 | AC34: 0.08 | AD34: 0.04 | AE34: 0.03 | AF34: 0.03 | AI34: 30 | AJ34: HE3OL0030 | AK34: 3Star | AL34: Blight Midnight | AM34: =IFERROR(VLOOKUP(VLOOKUP($AI34,$B$5:$AF$1416,AM$4,FALSE),'League Stats'!Y$39:AX$54,26,FALSE),"") -> Hellion | AN34: Fire | AO34: These are dark creatures known as Hellions who emerged from the bowels of the earth to win glory for the underworld! | AP34: Hellfire fist: Melee attack dealing an additional 2 wounds when you tackle an enemy. | AQ34: Fire Resistance: Immune to Fire effects. | AR34: OL | AS34: Killer Abyssal Warrior | AT34: Med2 | AU34: 50 | AV34: 6 | AW34: 0.7 | AX34: 0.64 | AY34: 0.05 | AZ34: 0.15 | BA34: 0.08 | BB34: 0.04 | BC34: 0.03 | BD34: 0.03
B35: =IF(S35=1,MAX(B$5:B34)+1,0) -> 31 | C35: =_xlfn.CONCAT("$Y$",VLOOKUP(J35,'League Stats'!$Y$57:$AB$900,4,FALSE)) -> $Y$58 | D35: =_xlfn.CONCAT("$AD$",VLOOKUP(J35,'League Stats'!$Y$57:$AE$900,7,FALSE)) -> $AD$103 | E35: HE3R0031 | F35: 31 | G35: 31 | H35: 3Star | I35: Storm Justice | J35: Hellion | K35: =VLOOKUP($J35,'League Stats'!$Y$39:$AZ$54,21,FALSE) -> Fire | L35: =VLOOKUP($J35,'League Stats'!$Y$39:$AZ$54,14,FALSE) -> These are dark creatures known as Hellions who emerged from the bowels of the earth to win glory for the underworld! | M35: =VLOOKUP($J35,'League Stats'!$Y$39:$AZ$54,24,FALSE) -> Hellfire fist: Melee attack dealing an additional 2 wounds when you tackle an enemy. | N35: =VLOOKUP($J35,'League Stats'!$Y$39:$AZ$54,25,FALSE) -> Fire Resistance: Immune to Fire effects. | O35: 2 | P35: 5 | Q35: =_xlfn.CONCAT("$B$",VLOOKUP(J35,'League Stats'!$Y$57:$AB$900,4,FALSE)+6) -> $B$64 | R35: =_xlfn.CONCAT("$S$",VLOOKUP(J35,'League Stats'!$Y$57:$AB$900,4,FALSE)+39) -> $S$97 | S35: 1 | T35: R | U35: Speedy Shadow | V35: =IF(T35="QB","NONE",VLOOKUP(LEFT(U35,FIND(" ",U35)-1),'League Stats'!M$25:N$36,2,FALSE)) -> Fast2 | W35: 40 | X35: 5 | Y35: 0.75 | Z35: 0.79 | AA35: =VLOOKUP($P35,INDIRECT("'League Stats'!"&$Q35&":"&$R35),AA$4,FALSE)+(AA$2*$O35) -> 0.05 | AB35: 0.09 | AC35: 0.08 | AD35: 0.04 | AE35: 0.03 | AF35: 0.03 | AI35: 31 | AJ35: HE3R0031 | AK35: 3Star | AL35: Storm Justice | AM35: =IFERROR(VLOOKUP(VLOOKUP($AI35,$B$5:$AF$1416,AM$4,FALSE),'League Stats'!Y$39:AX$54,26,FALSE),"") -> Hellion | AN35: =IFERROR(VLOOKUP($AI35,$B$5:$AF$1416,AN$4,FALSE),"") -> Fire | AO35: These are dark creatures known as Hellions who emerged from the bowels of the earth to win glory for the underworld! | AP35: Hellfire fist: Melee attack dealing an additional 2 wounds when you tackle an enemy. | AQ35: Fire Resistance: Immune to Fire effects. | AR35: R | AS35: Speedy Shadow | AT35: Fast2 | AU35: 40 | AV35: 5 | AW35: 0.75 | AX35: =IFERROR(VLOOKUP($AI35,$B$5:$AF$1416,AX$4,FALSE),"") -> 0.79 | AY35: 0.05 | AZ35: 0.09 | BA35: 0.08 | BB35: 0.04 | BC35: 0.03 | BD35: 0.03
B36: =IF(S36=1,MAX(B$5:B35)+1,0) -> 32 | C36: =_xlfn.CONCAT("$Y$",VLOOKUP(J36,'League Stats'!$Y$57:$AB$900,4,FALSE)) -> $Y$58 | D36: =_xlfn.CONCAT("$AD$",VLOOKUP(J36,'League Stats'!$Y$57:$AE$900,7,FALSE)) -> $AD$103 | E36: HE3R0032 | F36: 32 | G36: 32 | H36: 3Star | I36: Myst Maxima | J36: Hellion | K36: =VLOOKUP($J36,'League Stats'!$Y$39:$AZ$54,21,FALSE) -> Fire | L36: =VLOOKUP($J36,'League Stats'!$Y$39:$AZ$54,14,FALSE) -> These are dark creatures known as Hellions who emerged from the bowels of the earth to win glory for the underworld! | M36: =VLOOKUP($J36,'League Stats'!$Y$39:$AZ$54,24,FALSE) -> Hellfire fist: Melee attack dealing an additional 2 wounds when you tackle an enemy. | N36: =VLOOKUP($J36,'League Stats'!$Y$39:$AZ$54,25,FALSE) -> Fire Resistance: Immune to Fire effects. | O36: 2 | P36: 6 | Q36: =_xlfn.CONCAT("$B$",VLOOKUP(J36,'League Stats'!$Y$57:$AB$900,4,FALSE)+6) -> $B$64 | R36: =_xlfn.CONCAT("$S$",VLOOKUP(J36,'League Stats'!$Y$57:$AB$900,4,FALSE)+39) -> $S$97 | S36: 1 | T36: R | U36: Speedy Shadow | V36: =IF(T36="QB","NONE",VLOOKUP(LEFT(U36,FIND(" ",U36)-1),'League Stats'!M$25:N$36,2,FALSE)) -> Fast2 | W36: 40 | X36: 5 | Y36: 0.75 | Z36: 0.79 | AA36: 0.05 | AB36: 0.09 | AC36: 0.08 | AD36: 0.04 | AE36: 0.03 | AF36: 0.03 | AI36: 32 | AJ36: HE3R0032 | AK36: 3Star | AL36: Myst Maxima | AM36: =IFERROR(VLOOKUP(VLOOKUP($AI36,$B$5:$AF$1416,AM$4,FALSE),'League Stats'!Y$39:AX$54,26,FALSE),"") -> Hellion | AN36: Fire | AO36: These are dark creatures known as Hellions who emerged from the bowels of the earth to win glory for the underworld! | AP36: Hellfire fist: Melee attack dealing an additional 2 wounds when you tackle an enemy. | AQ36: Fire Resistance: Immune to Fire effects. | AR36: R | AS36: Speedy Shadow | AT36: Fast2 | AU36: 40 | AV36: 5 | AW36: 0.75 | AX36: 0.79 | AY36: 0.05 | AZ36: 0.09 | BA36: 0.08 | BB36: 0.04 | BC36: 0.03 | BD36: 0.03
B37: =IF(S37=1,MAX(B$5:B36)+1,0) -> 33 | C37: =_xlfn.CONCAT("$Y$",VLOOKUP(J37,'League Stats'!$Y$57:$AB$900,4,FALSE)) -> $Y$58 | D37: =_xlfn.CONCAT("$AD$",VLOOKUP(J37,'League Stats'!$Y$57:$AE$900,7,FALSE)) -> $AD$103 | E37: HE3S0033 | F37: 33 | G37: 33 | H37: 3Star | I37: Courage Nova | J37: Hellion | K37: =VLOOKUP($J37,'League Stats'!$Y$39:$AZ$54,21,FALSE) -> Fire | L37: =VLOOKUP($J37,'League Stats'!$Y$39:$AZ$54,14,FALSE) -> These are dark creatures known as Hellions who emerged from the bowels of the earth to win glory for the underworld! | M37: =VLOOKUP($J37,'League Stats'!$Y$39:$AZ$54,24,FALSE) -> Hellfire fist: Melee attack dealing an additional 2 wounds when you tackle an enemy. | N37: =VLOOKUP($J37,'League Stats'!$Y$39:$AZ$54,25,FALSE) -> Fire Resistance: Immune to Fire effects. | O37: 2 | P37: 7 | Q37: =_xlfn.CONCAT("$B$",VLOOKUP(J37,'League Stats'!$Y$57:$AB$900,4,FALSE)+6) -> $B$64 | R37: =_xlfn.CONCAT("$S$",VLOOKUP(J37,'League Stats'!$Y$57:$AB$900,4,FALSE)+39) -> $S$97 | S37: 1 | T37: S | U37: Killer Abyssal Warrior | V37: =IF(T37="QB","NONE",VLOOKUP(LEFT(U37,FIND(" ",U37)-1),'League Stats'!M$25:N$36,2,FALSE)) -> Med2 | W37: 50 | X37: 6 | Y37: 0.7 | Z37: 0.64 | AA37: 0.05 | AB37: 0.15 | AC37: 0.08 | AD37: 0.04 | AE37: 0.03 | AF37: 0.03 | AI37: 33 | AJ37: HE3S0033 | AK37: 3Star | AL37: Courage Nova | AM37: =IFERROR(VLOOKUP(VLOOKUP($AI37,$B$5:$AF$1416,AM$4,FALSE),'League Stats'!Y$39:AX$54,26,FALSE),"") -> Hellion | AN37: Fire | AO37: These are dark creatures known as Hellions who emerged from the bowels of the earth to win glory for the underworld! | AP37: Hellfire fist: Melee attack dealing an additional 2 wounds when you tackle an enemy. | AQ37: Fire Resistance: Immune to Fire effects. | AR37: S | AS37: Killer Abyssal Warrior | AT37: Med2 | AU37: 50 | AV37: 6 | AW37: 0.7 | AX37: 0.64 | AY37: 0.05 | AZ37: 0.15 | BA37: 0.08 | BB37: 0.04 | BC37: 0.03 | BD37: 0.03
B38: =IF(S38=1,MAX(B$5:B37)+1,0) -> 34 | C38: =_xlfn.CONCAT("$Y$",VLOOKUP(J38,'League Stats'!$Y$57:$AB$900,4,FALSE)) -> $Y$58 | D38: =_xlfn.CONCAT("$AD$",VLOOKUP(J38,'League Stats'!$Y$57:$AE$900,7,FALSE)) -> $AD$103 | E38: HE3S0034 | F38: 34 | G38: 34 | H38: 3Star | I38: Hawkeye Luna | J38: Hellion | K38: =VLOOKUP($J38,'League Stats'!$Y$39:$AZ$54,21,FALSE) -> Fire | L38: =VLOOKUP($J38,'League Stats'!$Y$39:$AZ$54,14,FALSE) -> These are dark creatures known as Hellions who emerged from the bowels of the earth to win glory for the underworld! | M38: =VLOOKUP($J38,'League Stats'!$Y$39:$AZ$54,24,FALSE) -> Hellfire fist: Melee attack dealing an additional 2 wounds when you tackle an enemy. | N38: =VLOOKUP($J38,'League Stats'!$Y$39:$AZ$54,25,FALSE) -> Fire Resistance: Immune to Fire effects. | O38: 2 | P38: 8 | Q38: =_xlfn.CONCAT("$B$",VLOOKUP(J38,'League Stats'!$Y$57:$AB$900,4,FALSE)+6) -> $B$64 | R38: =_xlfn.CONCAT("$S$",VLOOKUP(J38,'League Stats'!$Y$57:$AB$900,4,FALSE)+39) -> $S$97 | S38: 1 | T38: S | U38: Killer Abyssal Warrior | V38: =IF(T38="QB","NONE",VLOOKUP(LEFT(U38,FIND(" ",U38)-1),'League Stats'!M$25:N$36,2,FALSE)) -> Med2 | W38: 50 | X38: 6 | Y38: 0.7 | Z38: 0.64 | AA38: 0.05 | AB38: 0.15 | AC38: 0.08 | AD38: 0.04 | AE38: 0.03 | AF38: 0.03 | AI38: 34 | AJ38: HE3S0034 | AK38: 3Star | AL38: Hawkeye Luna | AM38: =IFERROR(VLOOKUP(VLOOKUP($AI38,$B$5:$AF$1416,AM$4,FALSE),'League Stats'!Y$39:AX$54,26,FALSE),"") -> Hellion | AN38: Fire | AO38: These are dark creatures known as Hellions who emerged from the bowels of the earth to win glory for the underworld! | AP38: Hellfire fist: Melee attack dealing an additional 2 wounds when you tackle an enemy. | AQ38: Fire Resistance: Immune to Fire effects. | AR38: S | AS38: Killer Abyssal Warrior | AT38: Med2 | AU38: 50 | AV38: 6 | AW38: 0.7 | AX38: 0.64 | AY38: 0.05 | AZ38: 0.15 | BA38: 0.08 | BB38: 0.04 | BC38: 0.03 | BD38: 0.03
B39: =IF(S39=1,MAX(B$5:B38)+1,0) -> 35 | C39: =_xlfn.CONCAT("$Y$",VLOOKUP(J39,'League Stats'!$Y$57:$AB$900,4,FALSE)) -> $Y$58 | D39: =_xlfn.CONCAT("$AD$",VLOOKUP(J39,'League Stats'!$Y$57:$AE$900,7,FALSE)) -> $AD$103 | E39: HE3DL0035 | F39: 35 | G39: 35 | H39: 3Star | I39: Archer Blitzen | J39: Hellion | K39: =VLOOKUP($J39,'League Stats'!$Y$39:$AZ$54,21,FALSE) -> Fire | L39: =VLOOKUP($J39,'League Stats'!$Y$39:$AZ$54,14,FALSE) -> These are dark creatures known as Hellions who emerged from the bowels of the earth to win glory for the underworld! | M39: =VLOOKUP($J39,'League Stats'!$Y$39:$AZ$54,24,FALSE) -> Hellfire fist: Melee attack dealing an additional 2 wounds when you tackle an enemy. | N39: =VLOOKUP($J39,'League Stats'!$Y$39:$AZ$54,25,FALSE) -> Fire Resistance: Immune to Fire effects. | O39: 2 | P39: 9 | Q39: =_xlfn.CONCAT("$B$",VLOOKUP(J39,'League Stats'!$Y$57:$AB$900,4,FALSE)+6) -> $B$64 | R39: =_xlfn.CONCAT("$S$",VLOOKUP(J39,'League Stats'!$Y$57:$AB$900,4,FALSE)+39) -> $S$97 | S39: 1 | T39: DL | U39: Massive Hellion | V39: =IF(T39="QB","NONE",VLOOKUP(LEFT(U39,FIND(" ",U39)-1),'League Stats'!M$25:N$36,2,FALSE)) -> Big2 | W39: 60 | X39: 7 | Y39: 0.6 | Z39: 0.04 | AA39: 0.03 | AB39: 0.07 | AC39: 0.1 | AD39: 0.12 | AE39: 0.05 | AF39: 0.05 | AI39: 35 | AJ39: HE3DL0035 | AK39: 3Star | AL39: Archer Blitzen | AM39: =IFERROR(VLOOKUP(VLOOKUP($AI39,$B$5:$AF$1416,AM$4,FALSE),'League Stats'!Y$39:AX$54,26,FALSE),"") -> Hellion | AN39: Fire | AO39: These are dark creatures known as Hellions who emerged from the bowels of the earth to win glory for the underworld! | AP39: Hellfire fist: Melee attack dealing an additional 2 wounds when you tackle an enemy. | AQ39: Fire Resistance: Immune to Fire effects. | AR39: DL | AS39: Massive Hellion | AT39: Big2 | AU39: 60 | AV39: 7 | AW39: 0.6 | AX39: 0.04 | AY39: 0.03 | AZ39: 0.07 | BA39: 0.1 | BB39: 0.12 | BC39: 0.05 | BD39: 0.05
B40: =IF(S40=1,MAX(B$5:B39)+1,0) -> 36 | C40: =_xlfn.CONCAT("$Y$",VLOOKUP(J40,'League Stats'!$Y$57:$AB$900,4,FALSE)) -> $Y$58 | D40: =_xlfn.CONCAT("$AD$",VLOOKUP(J40,'League Stats'!$Y$57:$AE$900,7,FALSE)) -> $AD$103 | E40: HE3DL0036 | F40: 36 | G40: 36 | H40: 3Star | I40: Chaos Myth | J40: Hellion | K40: =VLOOKUP($J40,'League Stats'!$Y$39:$AZ$54,21,FALSE) -> Fire | L40: =VLOOKUP($J40,'League Stats'!$Y$39:$AZ$54,14,FALSE) -> These are dark creatures known as Hellions who emerged from the bowels of the earth to win glory for the underworld! | M40: =VLOOKUP($J40,'League Stats'!$Y$39:$AZ$54,24,FALSE) -> Hellfire fist: Melee attack dealing an additional 2 wounds when you tackle an enemy. | N40: =VLOOKUP($J40,'League Stats'!$Y$39:$AZ$54,25,FALSE) -> Fire Resistance: Immune to Fire effects. | O40: 2 | P40: 10 | Q40: =_xlfn.CONCAT("$B$",VLOOKUP(J40,'League Stats'!$Y$57:$AB$900,4,FALSE)+6) -> $B$64 | R40: =_xlfn.CONCAT("$S$",VLOOKUP(J40,'League Stats'!$Y$57:$AB$900,4,FALSE)+39) -> $S$97 | S40: 1 | T40: DL | U40: Killer Abyssal Warrior | V40: =IF(T40="QB","NONE",VLOOKUP(LEFT(U40,FIND(" ",U40)-1),'League Stats'!M$25:N$36,2,FALSE)) -> Med2 | W40: 50 | X40: 6 | Y40: 0.7 | Z40: 0.64 | AA40: 0.05 | AB40: 0.15 | AC40: 0.08 | AD40: 0.04 | AE40: 0.03 | AF40: 0.03 | AI40: 36 | AJ40: HE3DL0036 | AK40: 3Star | AL40: Chaos Myth | AM40: =IFERROR(VLOOKUP(VLOOKUP($AI40,$B$5:$AF$1416,AM$4,FALSE),'League Stats'!Y$39:AX$54,26,FALSE),"") -> Hellion | AN40: Fire | AO40: These are dark creatures known as Hellions who emerged from the bowels of the earth to win glory for the underworld! | AP40: Hellfire fist: Melee attack dealing an additional 2 wounds when you tackle an enemy. | AQ40: Fire Resistance: Immune to Fire effects. | AR40: DL | AS40: Killer Abyssal Warrior | AT40: Med2 | AU40: 50 | AV40: 6 | AW40: 0.7 | AX40: 0.64 | AY40: 0.05 | AZ40: 0.15 | BA40: 0.08 | BB40: 0.04 | BC40: 0.03 | BD40: 0.03
B41: =IF(S41=1,MAX(B$5:B40)+1,0) -> 37 | C41: =_xlfn.CONCAT("$Y$",VLOOKUP(J41,'League Stats'!$Y$57:$AB$900,4,FALSE)) -> $Y$58 | D41: =_xlfn.CONCAT("$AD$",VLOOKUP(J41,'League Stats'!$Y$57:$AE$900,7,FALSE)) -> $AD$103 | E41: HE3DL0037 | F41: 37 | G41: 37 | H41: 3Star | I41: Vlad Shadow | J41: Hellion | K41: =VLOOKUP($J41,'League Stats'!$Y$39:$AZ$54,21,FALSE) -> Fire | L41: =VLOOKUP($J41,'League Stats'!$Y$39:$AZ$54,14,FALSE) -> These are dark creatures known as Hellions who emerged from the bowels of the earth to win glory for the underworld! | M41: =VLOOKUP($J41,'League Stats'!$Y$39:$AZ$54,24,FALSE) -> Hellfire fist: Melee attack dealing an additional 2 wounds when you tackle an enemy. | N41: =VLOOKUP($J41,'League Stats'!$Y$39:$AZ$54,25,FALSE) -> Fire Resistance: Immune to Fire effects. | O41: 2 | P41: 11 | Q41: =_xlfn.CONCAT("$B$",VLOOKUP(J41,'League Stats'!$Y$57:$AB$900,4,FALSE)+6) -> $B$64 | R41: =_xlfn.CONCAT("$S$",VLOOKUP(J41,'League Stats'!$Y$57:$AB$900,4,FALSE)+39) -> $S$97 | S41: 1 | T41: DL | U41: Killer Abyssal Warrior | V41: =IF(T41="QB","NONE",VLOOKUP(LEFT(U41,FIND(" ",U41)-1),'League Stats'!M$25:N$36,2,FALSE)) -> Med2 | W41: 50 | X41: 6 | Y41: 0.7 | Z41: 0.64 | AA41: 0.05 | AB41: 0.15 | AC41: 0.08 | AD41: 0.04 | AE41: 0.03 | AF41: 0.03 | AI41: 37 | AJ41: HE3DL0037 | AK41: 3Star | AL41: Vlad Shadow | AM41: =IFERROR(VLOOKUP(VLOOKUP($AI41,$B$5:$AF$1416,AM$4,FALSE),'League Stats'!Y$39:AX$54,26,FALSE),"") -> Hellion | AN41: Fire | AO41: These are dark creatures known as Hellions who emerged from the bowels of the earth to win glory for the underworld! | AP41: Hellfire fist: Melee attack dealing an additional 2 wounds when you tackle an enemy. | AQ41: Fire Resistance: Immune to Fire effects. | AR41: DL | AS41: Killer Abyssal Warrior | AT41: Med2 | AU41: 50 | AV41: 6 | AW41: 0.7 | AX41: 0.64 | AY41: 0.05 | AZ41: 0.15 | BA41: 0.08 | BB41: 0.04 | BC41: 0.03 | BD41: 0.03
B42: =IF(S42=1,MAX(B$5:B41)+1,0) -> 38 | C42: =_xlfn.CONCAT("$Y$",VLOOKUP(J42,'League Stats'!$Y$57:$AB$900,4,FALSE)) -> $Y$58 | D42: =_xlfn.CONCAT("$AD$",VLOOKUP(J42,'League Stats'!$Y$57:$AE$900,7,FALSE)) -> $AD$103 | E42: HE3DB0038 | F42: 38 | G42: 38 | H42: 3Star | I42: Ajax Lotus | J42: Hellion | K42: =VLOOKUP($J42,'League Stats'!$Y$39:$AZ$54,21,FALSE) -> Fire | L42: =VLOOKUP($J42,'League Stats'!$Y$39:$AZ$54,14,FALSE) -> These are dark creatures known as Hellions who emerged from the bowels of the earth to win glory for the underworld! | M42: =VLOOKUP($J42,'League Stats'!$Y$39:$AZ$54,24,FALSE) -> Hellfire fist: Melee attack dealing an additional 2 wounds when you tackle an enemy. | N42: =VLOOKUP($J42,'League Stats'!$Y$39:$AZ$54,25,FALSE) -> Fire Resistance: Immune to Fire effects. | O42: 2 | P42: 12 | Q42: =_xlfn.CONCAT("$B$",VLOOKUP(J42,'League Stats'!$Y$57:$AB$900,4,FALSE)+6) -> $B$64 | R42: =_xlfn.CONCAT("$S$",VLOOKUP(J42,'League Stats'!$Y$57:$AB$900,4,FALSE)+39) -> $S$97 | S42: 1 | T42: DB | U42: Speedy Shadow | V42: =IF(T42="QB","NONE",VLOOKUP(LEFT(U42,FIND(" ",U42)-1),'League Stats'!M$25:N$36,2,FALSE)) -> Fast2 | W42: 40 | X42: 5 | Y42: 0.75 | Z42: 0.79 | AA42: 0.05 | AB42: 0.09 | AC42: 0.08 | AD42: 0.04 | AE42: 0.03 | AF42: 0.03 | AI42: 38 | AJ42: HE3DB0038 | AK42: 3Star | AL42: Ajax Lotus | AM42: =IFERROR(VLOOKUP(VLOOKUP($AI42,$B$5:$AF$1416,AM$4,FALSE),'League Stats'!Y$39:AX$54,26,FALSE),"") -> Hellion | AN42: Fire | AO42: These are dark creatures known as Hellions who emerged from the bowels of the earth to win glory for the underworld! | AP42: Hellfire fist: Melee attack dealing an additional 2 wounds when you tackle an enemy. | AQ42: Fire Resistance: Immune to Fire effects. | AR42: DB | AS42: Speedy Shadow | AT42: Fast2 | AU42: 40 | AV42: 5 | AW42: 0.75 | AX42: 0.79 | AY42: 0.05 | AZ42: 0.09 | BA42: 0.08 | BB42: 0.04 | BC42: 0.03 | BD42: 0.03
B43: =IF(S43=1,MAX(B$5:B42)+1,0) -> 39 | C43: =_xlfn.CONCAT("$Y$",VLOOKUP(J43,'League Stats'!$Y$57:$AB$900,4,FALSE)) -> $Y$58 | D43: =_xlfn.CONCAT("$AD$",VLOOKUP(J43,'League Stats'!$Y$57:$AE$900,7,FALSE)) -> $AD$103 | E43: HE3DB0039 | F43: 39 | G43: 39 | H43: 3Star | I43: Sniper June | J43: Hellion | K43: =VLOOKUP($J43,'League Stats'!$Y$39:$AZ$54,21,FALSE) -> Fire | L43: =VLOOKUP($J43,'League Stats'!$Y$39:$AZ$54,14,FALSE) -> These are dark creatures known as Hellions who emerged from the bowels of the earth to win glory for the underworld! | M43: =VLOOKUP($J43,'League Stats'!$Y$39:$AZ$54,24,FALSE) -> Hellfire fist: Melee attack dealing an additional 2 wounds when you tackle an enemy. | N43: =VLOOKUP($J43,'League Stats'!$Y$39:$AZ$54,25,FALSE) -> Fire Resistance: Immune to Fire effects. | O43: 2 | P43: 13 | Q43: =_xlfn.CONCAT("$B$",VLOOKUP(J43,'League Stats'!$Y$57:$AB$900,4,FALSE)+6) -> $B$64 | R43: =_xlfn.CONCAT("$S$",VLOOKUP(J43,'League Stats'!$Y$57:$AB$900,4,FALSE)+39) -> $S$97 | S43: 1 | T43: DB | U43: Speedy Shadow | V43: =IF(T43="QB","NONE",VLOOKUP(LEFT(U43,FIND(" ",U43)-1),'League Stats'!M$25:N$36,2,FALSE)) -> Fast2 | W43: 40 | X43: 5 | Y43: 0.75 | Z43: 0.79 | AA43: 0.05 | AB43: 0.09 | AC43: 0.08 | AD43: 0.04 | AE43: 0.03 | AF43: 0.03 | AI43: 39 | AJ43: HE3DB0039 | AK43: 3Star | AL43: Sniper June | AM43: =IFERROR(VLOOKUP(VLOOKUP($AI43,$B$5:$AF$1416,AM$4,FALSE),'League Stats'!Y$39:AX$54,26,FALSE),"") -> Hellion | AN43: Fire | AO43: These are dark creatures known as Hellions who emerged from the bowels of the earth to win glory for the underworld! | AP43: Hellfire fist: Melee attack dealing an additional 2 wounds when you tackle an enemy. | AQ43: Fire Resistance: Immune to Fire effects. | AR43: DB | AS43: Speedy Shadow | AT43: Fast2 | AU43: 40 | AV43: 5 | AW43: 0.75 | AX43: 0.79 | AY43: 0.05 | AZ43: 0.09 | BA43: 0.08 | BB43: 0.04 | BC43: 0.03 | BD43: 0.03
B44: =IF(S44=1,MAX(B$5:B43)+1,0) -> 40 | C44: =_xlfn.CONCAT("$Y$",VLOOKUP(J44,'League Stats'!$Y$57:$AB$900,4,FALSE)) -> $Y$58 | D44: =_xlfn.CONCAT("$AD$",VLOOKUP(J44,'League Stats'!$Y$57:$AE$900,7,FALSE)) -> $AD$103 | E44: =UPPER(CONCATENATE(LEFT(J44,2),LEFT(H44,1),T44,TEXT(F44,"0000"))) -> HE1QB0040 | F44: 40 | G44: 40 | H44: 1Star | I44: Rock Mason | J44: Hellion | K44: =VLOOKUP($J44,'League Stats'!$Y$39:$AZ$54,21,FALSE) -> Fire | L44: =VLOOKUP($J44,'League Stats'!$Y$39:$AZ$54,14,FALSE) -> These are dark creatures known as Hellions who emerged from the bowels of the earth to win glory for the underworld! | M44: =VLOOKUP($J44,'League Stats'!$Y$39:$AZ$54,24,FALSE) -> Hellfire fist: Melee attack dealing an additional 2 wounds when you tackle an enemy. | N44: =VLOOKUP($J44,'League Stats'!$Y$39:$AZ$54,25,FALSE) -> Fire Resistance: Immune to Fire effects. | O44: 0 | P44: 14 | Q44: =_xlfn.CONCAT("$B$",VLOOKUP(J44,'League Stats'!$Y$57:$AB$900,4,FALSE)+6) -> $B$64 | R44: =_xlfn.CONCAT("$S$",VLOOKUP(J44,'League Stats'!$Y$57:$AB$900,4,FALSE)+39) -> $S$97 | S44: 1 | T44: QB | U44: Rock Mason | V44: =IF(T44="QB","NONE",VLOOKUP(LEFT(U44,FIND(" ",U44)-1),'League Stats'!M$25:N$36,2,FALSE)) -> NONE | W44: 50 | X44: 4 | Y44: 0.15 | Z44: 0.1 | AA44: 0.01 | AB44: 0.05 | AC44: 0.01 | AD44: 0.02 | AE44: 0.01 | AF44: 0.03 | AI44: 40 | AJ44: HE1QB0040 | AK44: 1Star | AL44: Rock Mason | AM44: =IFERROR(VLOOKUP(VLOOKUP($AI44,$B$5:$AF$1416,AM$4,FALSE),'League Stats'!Y$39:AX$54,26,FALSE),"") -> Hellion | AN44: Fire | AO44: These are dark creatures known as Hellions who emerged from the bowels of the earth to win glory for the underworld! | AP44: Hellfire fist: Melee attack dealing an additional 2 wounds when you tackle an enemy. | AQ44: Fire Resistance: Immune to Fire effects. | AR44: QB | AS44: Rock Mason | AT44: NONE | AU44: 50 | AV44: 4 | AW44: 0.15 | AX44: 0.1 | AY44: 0.01 | AZ44: 0.05 | BA44: 0.01 | BB44: 0.02 | BC44: 0.01 | BD44: 0.03
B45: =IF(S45=1,MAX(B$5:B44)+1,0) -> 41 | C45: =_xlfn.CONCAT("$Y$",VLOOKUP(J45,'League Stats'!$Y$57:$AB$900,4,FALSE)) -> $Y$58 | D45: =_xlfn.CONCAT("$AD$",VLOOKUP(J45,'League Stats'!$Y$57:$AE$900,7,FALSE)) -> $AD$103 | E45: =UPPER(CONCATENATE(LEFT(J45,2),LEFT(H45,1),T45,TEXT(F45,"0000"))) -> HE2QB0041 | F45: =F44+1 -> 41 | G45: 41 | H45: 2Star | I45: =CONCATENATE(VLOOKUP($G45,INDIRECT("'League Stats'!"&$C45&":"&$D45),2,FALSE)," ",VLOOKUP($G45,INDIRECT("'League Stats'!"&$C45&":"&$D45),3,FALSE)) -> Ash Atilla | J45: Hellion | K45: =VLOOKUP($J45,'League Stats'!$Y$39:$AZ$54,21,FALSE) -> Fire | L45: =VLOOKUP($J45,'League Stats'!$Y$39:$AZ$54,14,FALSE) -> These are dark creatures known as Hellions who emerged from the bowels of the earth to win glory for the underworld! | M45: =VLOOKUP($J45,'League Stats'!$Y$39:$AZ$54,24,FALSE) -> Hellfire fist: Melee attack dealing an additional 2 wounds when you tackle an enemy. | N45: =VLOOKUP($J45,'League Stats'!$Y$39:$AZ$54,25,FALSE) -> Fire Resistance: Immune to Fire effects. | O45: 1 | P45: 15 | Q45: =_xlfn.CONCAT("$B$",VLOOKUP(J45,'League Stats'!$Y$57:$AB$900,4,FALSE)+6) -> $B$64 | R45: =_xlfn.CONCAT("$S$",VLOOKUP(J45,'League Stats'!$Y$57:$AB$900,4,FALSE)+39) -> $S$97 | S45: =IF(AND($AH$2=16,T45="QB",G45>40),0,IF(AND($AH$2=48,T45="QB",G45>42),0,1)) -> 1 | T45: QB | U45: =VLOOKUP($P45,INDIRECT("'League Stats'!"&$Q45&":"&$R45),U$4,FALSE) -> Ash Atilla | V45: =IF(T45="QB","NONE",VLOOKUP(LEFT(U45,FIND(" ",U45)-1),'League Stats'!M$25:N$36,2,FALSE)) -> NONE | W45: =VLOOKUP($P45,INDIRECT("'League Stats'!"&$Q45&":"&$R45),W$4,FALSE)+(W$2*$O45) -> 60 | X45: 5 | Y45: =VLOOKUP($P45,INDIRECT("'League Stats'!"&$Q45&":"&$R45),Y$4,FALSE)+(Y$2*$O45) -> 0.25 | Z45: 0.12 | AA45: =VLOOKUP($P45,INDIRECT("'League Stats'!"&$Q45&":"&$R45),AA$4,FALSE)+(AA$2*$O45) -> 0.02 | AB45: 0.08 | AC45: 0.03 | AD45: 0.03 | AE45: 0.02 | AF45: 0.04 | AI45: 41 | AJ45: HE2QB0041 | AK45: 2Star | AL45: Ash Atilla | AM45: =IFERROR(VLOOKUP(VLOOKUP($AI45,$B$5:$AF$1416,AM$4,FALSE),'League Stats'!Y$39:AX$54,26,FALSE),"") -> Hellion | AN45: Fire | AO45: These are dark creatures known as Hellions who emerged from the bowels of the earth to win glory for the underworld! | AP45: Hellfire fist: Melee attack dealing an additional 2 wounds when you tackle an enemy. | AQ45: Fire Resistance: Immune to Fire effects. | AR45: QB | AS45: Ash Atilla | AT45: NONE | AU45: 60 | AV45: 5 | AW45: 0.25 | AX45: 0.12 | AY45: 0.02 | AZ45: 0.08 | BA45: 0.03 | BB45: 0.03 | BC45: 0.02 | BD45: 0.04
B46: =IF(S46=1,MAX(B$5:B45)+1,0) -> 42 | C46: =_xlfn.CONCAT("$Y$",VLOOKUP(J46,'League Stats'!$Y$57:$AB$900,4,FALSE)) -> $Y$58 | D46: =_xlfn.CONCAT("$AD$",VLOOKUP(J46,'League Stats'!$Y$57:$AE$900,7,FALSE)) -> $AD$103 | E46: =UPPER(CONCATENATE(LEFT(J46,2),LEFT(H46,1),T46,TEXT(F46,"0000"))) -> HE3QB0042 | F46: =F45+1 -> 42 | G46: 42 | H46: 3Star | I46: =CONCATENATE(VLOOKUP($G46,INDIRECT("'League Stats'!"&$C46&":"&$D46),2,FALSE)," ",VLOOKUP($G46,INDIRECT("'League Stats'!"&$C46&":"&$D46),3,FALSE)) -> Hannibal Laika | J46: Hellion | K46: =VLOOKUP($J46,'League Stats'!$Y$39:$AZ$54,21,FALSE) -> Fire | L46: =VLOOKUP($J46,'League Stats'!$Y$39:$AZ$54,14,FALSE) -> These are dark creatures known as Hellions who emerged from the bowels of the earth to win glory for the underworld! | M46: =VLOOKUP($J46,'League Stats'!$Y$39:$AZ$54,24,FALSE) -> Hellfire fist: Melee attack dealing an additional 2 wounds when you tackle an enemy. | N46: =VLOOKUP($J46,'League Stats'!$Y$39:$AZ$54,25,FALSE) -> Fire Resistance: Immune to Fire effects. | O46: 2 | P46: 16 | Q46: =_xlfn.CONCAT("$B$",VLOOKUP(J46,'League Stats'!$Y$57:$AB$900,4,FALSE)+6) -> $B$64 | R46: =_xlfn.CONCAT("$S$",VLOOKUP(J46,'League Stats'!$Y$57:$AB$900,4,FALSE)+39) -> $S$97 | S46: =IF(AND($AH$2=16,T46="QB",G46>40),0,IF(AND($AH$2=48,T46="QB",G46>42),0,1)) -> 1 | T46: QB | U46: =VLOOKUP($P46,INDIRECT("'League Stats'!"&$Q46&":"&$R46),U$4,FALSE) -> Hannibal Laika | V46: =IF(T46="QB","NONE",VLOOKUP(LEFT(U46,FIND(" ",U46)-1),'League Stats'!M$25:N$36,2,FALSE)) -> NONE | W46: 80 | X46: 6 | Y46: 0.45 | Z46: 0.14 | AA46: 0.03 | AB46: 0.12 | AC46: 0.05 | AD46: 0.04 | AE46: 0.04 | AF46: 0.05 | AI46: 42 | AJ46: HE3QB0042 | AK46: 3Star | AL46: Hannibal Laika | AM46: =IFERROR(VLOOKUP(VLOOKUP($AI46,$B$5:$AF$1416,AM$4,FALSE),'League Stats'!Y$39:AX$54,26,FALSE),"") -> Hellion | AN46: Fire | AO46: These are dark creatures known as Hellions who emerged from the bowels of the earth to win glory for the underworld! | AP46: Hellfire fist: Melee attack dealing an additional 2 wounds when you tackle an enemy. | AQ46: Fire Resistance: Immune to Fire effects. | AR46: QB | AS46: Hannibal Laika | AT46: NONE | AU46: 80 | AV46: 6 | AW46: 0.45 | AX46: 0.14 | AY46: 0.03 | AZ46: 0.12 | BA46: 0.05 | BB46: 0.04 | BC46: 0.04 | BD46: 0.05
B47: =IF(S47=1,MAX(B$5:B46)+1,0) -> 43 | C47: =_xlfn.CONCAT("$Y$",VLOOKUP(J47,'League Stats'!$Y$57:$AB$900,4,FALSE)) -> $Y$58 | D47: =_xlfn.CONCAT("$AD$",VLOOKUP(J47,'League Stats'!$Y$57:$AE$900,7,FALSE)) -> $AD$103 | E47: =UPPER(CONCATENATE(LEFT(J47,2),LEFT(H47,1),T47,TEXT(F47,"0000"))) -> HE1QB0043 | F47: =F46+1 -> 43 | G47: 43 | H47: 1Star | I47: =CONCATENATE(VLOOKUP($G47,INDIRECT("'League Stats'!"&$C47&":"&$D47),2,FALSE)," ",VLOOKUP($G47,INDIRECT("'League Stats'!"&$C47&":"&$D47),3,FALSE)) -> Lecter Mercury | J47: Hellion | K47: =VLOOKUP($J47,'League Stats'!$Y$39:$AZ$54,21,FALSE) -> Fire | L47: =VLOOKUP($J47,'League Stats'!$Y$39:$AZ$54,14,FALSE) -> These are dark creatures known as Hellions who emerged from the bowels of the earth to win glory for the underworld! | M47: =VLOOKUP($J47,'League Stats'!$Y$39:$AZ$54,24,FALSE) -> Hellfire fist: Melee attack dealing an additional 2 wounds when you tackle an enemy. | N47: =VLOOKUP($J47,'League Stats'!$Y$39:$AZ$54,25,FALSE) -> Fire Resistance: Immune to Fire effects. | O47: 0 | P47: 17 | Q47: =_xlfn.CONCAT("$B$",VLOOKUP(J47,'League Stats'!$Y$57:$AB$900,4,FALSE)+6) -> $B$64 | R47: =_xlfn.CONCAT("$S$",VLOOKUP(J47,'League Stats'!$Y$57:$AB$900,4,FALSE)+39) -> $S$97 | S47: =IF(AND($AH$2=16,T47="QB",G47>40),0,IF(AND($AH$2=48,T47="QB",G47>42),0,1)) -> 1 | T47: QB | U47: =VLOOKUP($P47,INDIRECT("'League Stats'!"&$Q47&":"&$R47),U$4,FALSE) -> Lecter Mercury | V47: =IF(T47="QB","NONE",VLOOKUP(LEFT(U47,FIND(" ",U47)-1),'League Stats'!M$25:N$36,2,FALSE)) -> NONE | W47: 60 | X47: 5 | Y47: 0.25 | Z47: 0.2 | AA47: 0.02 | AB47: 0.06 | AC47: 0.02 | AD47: 0.02 | AE47: 0.02 | AF47: 0.03 | AI47: 43 | AJ47: HE1QB0043 | AK47: 1Star | AL47: Lecter Mercury | AM47: =IFERROR(VLOOKUP(VLOOKUP($AI47,$B$5:$AF$1416,AM$4,FALSE),'League Stats'!Y$39:AX$54,26,FALSE),"") -> Hellion | AN47: Fire | AO47: These are dark creatures known as Hellions who emerged from the bowels of the earth to win glory for the underworld! | AP47: Hellfire fist: Melee attack dealing an additional 2 wounds when you tackle an enemy. | AQ47: Fire Resistance: Immune to Fire effects. | AR47: QB | AS47: Lecter Mercury | AT47: NONE | AU47: 60 | AV47: 5 | AW47: 0.25 | AX47: 0.2 | AY47: 0.02 | AZ47: 0.06 | BA47: 0.02 | BB47: 0.02 | BC47: 0.02 | BD47: 0.03
B48: =IF(S48=1,MAX(B$5:B47)+1,0) -> 44 | C48: =_xlfn.CONCAT("$Y$",VLOOKUP(J48,'League Stats'!$Y$57:$AB$900,4,FALSE)) -> $Y$58 | D48: =_xlfn.CONCAT("$AD$",VLOOKUP(J48,'League Stats'!$Y$57:$AE$900,7,FALSE)) -> $AD$103 | E48: =UPPER(CONCATENATE(LEFT(J48,2),LEFT(H48,1),T48,TEXT(F48,"0000"))) -> HE2QB0044 | F48: =F47+1 -> 44 | G48: 44 | H48: 2Star | I48: =CONCATENATE(VLOOKUP($G48,INDIRECT("'League Stats'!"&$C48&":"&$D48),2,FALSE)," ",VLOOKUP($G48,INDIRECT("'League Stats'!"&$C48&":"&$D48),3,FALSE)) -> Wrath Hellmouth | J48: Hellion | K48: =VLOOKUP($J48,'League Stats'!$Y$39:$AZ$54,21,FALSE) -> Fire | L48: =VLOOKUP($J48,'League Stats'!$Y$39:$AZ$54,14,FALSE) -> These are dark creatures known as Hellions who emerged from the bowels of the earth to win glory for the underworld! | M48: =VLOOKUP($J48,'League Stats'!$Y$39:$AZ$54,24,FALSE) -> Hellfire fist: Melee attack dealing an additional 2 wounds when you tackle an enemy. | N48: =VLOOKUP($J48,'League Stats'!$Y$39:$AZ$54,25,FALSE) -> Fire Resistance: Immune to Fire effects. | O48: 1 | P48: 18 | Q48: =_xlfn.CONCAT("$B$",VLOOKUP(J48,'League Stats'!$Y$57:$AB$900,4,FALSE)+6) -> $B$64 | R48: =_xlfn.CONCAT("$S$",VLOOKUP(J48,'League Stats'!$Y$57:$AB$900,4,FALSE)+39) -> $S$97 | S48: =IF(AND($AH$2=16,T48="QB",G48>40),0,IF(AND($AH$2=48,T48="QB",G48>42),0,1)) -> 1 | T48: QB | U48: =VLOOKUP($P48,INDIRECT("'League Stats'!"&$Q48&":"&$R48),U$4,FALSE) -> Wrath Hellmouth | V48: =IF(T48="QB","NONE",VLOOKUP(LEFT(U48,FIND(" ",U48)-1),'League Stats'!M$25:N$36,2,FALSE)) -> NONE | W48: 60 | X48: 5 | Y48: 0.25 | Z48: 0.12 | AA48: 0.02 | AB48: 0.08 | AC48: 0.03 | AD48: 0.03 | AE48: 0.02 | AF48: 0.04 | AI48: 44 | AJ48: HE2QB0044 | AK48: 2Star | AL48: Wrath Hellmouth | AM48: =IFERROR(VLOOKUP(VLOOKUP($AI48,$B$5:$AF$1416,AM$4,FALSE),'League Stats'!Y$39:AX$54,26,FALSE),"") -> Hellion | AN48: Fire | AO48: These are dark creatures known as Hellions who emerged from the bowels of the earth to win glory for the underworld! | AP48: Hellfire fist: Melee attack dealing an additional 2 wounds when you tackle an enemy. | AQ48: Fire Resistance: Immune to Fire effects. | AR48: QB | AS48: Wrath Hellmouth | AT48: NONE | AU48: 60 | AV48: 5 | AW48: 0.25 | AX48: 0.12 | AY48: 0.02 | AZ48: 0.08 | BA48: 0.03 | BB48: 0.03 | BC48: 0.02 | BD48: 0.04
B49: =IF(S49=1,MAX(B$5:B48)+1,0) -> 45 | C49: =_xlfn.CONCAT("$Y$",VLOOKUP(J49,'League Stats'!$Y$57:$AB$900,4,FALSE)) -> $Y$58 | D49: =_xlfn.CONCAT("$AD$",VLOOKUP(J49,'League Stats'!$Y$57:$AE$900,7,FALSE)) -> $AD$103 | E49: =UPPER(CONCATENATE(LEFT(J49,2),LEFT(H49,1),T49,TEXT(F49,"0000"))) -> HE3QB0045 | F49: =F48+1 -> 45 | G49: 45 | H49: 3Star | I49: =CONCATENATE(VLOOKUP($G49,INDIRECT("'League Stats'!"&$C49&":"&$D49),2,FALSE)," ",VLOOKUP($G49,INDIRECT("'League Stats'!"&$C49&":"&$D49),3,FALSE)) -> Bullet Arcadia | J49: Hellion | K49: =VLOOKUP($J49,'League Stats'!$Y$39:$AZ$54,21,FALSE) -> Fire | L49: =VLOOKUP($J49,'League Stats'!$Y$39:$AZ$54,14,FALSE) -> These are dark creatures known as Hellions who emerged from the bowels of the earth to win glory for the underworld! | M49: =VLOOKUP($J49,'League Stats'!$Y$39:$AZ$54,24,FALSE) -> Hellfire fist: Melee attack dealing an additional 2 wounds when you tackle an enemy. | N49: =VLOOKUP($J49,'League Stats'!$Y$39:$AZ$54,25,FALSE) -> Fire Resistance: Immune to Fire effects. | O49: 2 | P49: 19 | Q49: =_xlfn.CONCAT("$B$",VLOOKUP(J49,'League Stats'!$Y$57:$AB$900,4,FALSE)+6) -> $B$64 | R49: =_xlfn.CONCAT("$S$",VLOOKUP(J49,'League Stats'!$Y$57:$AB$900,4,FALSE)+39) -> $S$97 | S49: =IF(AND($AH$2=16,T49="QB",G49>40),0,IF(AND($AH$2=48,T49="QB",G49>42),0,1)) -> 1 | T49: QB | U49: =VLOOKUP($P49,INDIRECT("'League Stats'!"&$Q49&":"&$R49),U$4,FALSE) -> Bullet Arcadia | V49: =IF(T49="QB","NONE",VLOOKUP(LEFT(U49,FIND(" ",U49)-1),'League Stats'!M$25:N$36,2,FALSE)) -> NONE | W49: 70 | X49: 7 | Y49: 0.35 | Z49: 0.24 | AA49: 0.04 | AB49: 0.11 | AC49: 0.06 | AD49: 0.04 | AE49: 0.03 | AF49: 0.05 | AI49: 45 | AJ49: =IFERROR(VLOOKUP($AI49,$B$5:$AF$1416,AJ$4,FALSE),"") -> HE3QB0045 | AK49: 3Star | AL49: Bullet Arcadia | AM49: =IFERROR(VLOOKUP(VLOOKUP($AI49,$B$5:$AF$1416,AM$4,FALSE),'League Stats'!Y$39:AX$54,26,FALSE),"") -> Hellion | AN49: =IFERROR(VLOOKUP($AI49,$B$5:$AF$1416,AN$4,FALSE),"") -> Fire | AO49: These are dark creatures known as Hellions who emerged from the bowels of the earth to win glory for the underworld! | AP49: Hellfire fist: Melee attack dealing an additional 2 wounds when you tackle an enemy. | AQ49: Fire Resistance: Immune to Fire effects. | AR49: QB | AS49: Bullet Arcadia | AT49: NONE | AU49: 70 | AV49: 7 | AW49: 0.35 | AX49: 0.24 | AY49: 0.04 | AZ49: 0.11 | BA49: 0.06 | BB49: 0.04 | BC49: 0.03 | BD49: =IFERROR(VLOOKUP($AI49,$B$5:$AF$1416,BD$4,FALSE),"") -> 0.05
B50: =IF(S50=1,MAX(B$5:B49)+1,0) -> 46 | C50: =_xlfn.CONCAT("$Y$",VLOOKUP(J50,'League Stats'!$Y$57:$AB$900,4,FALSE)) -> $Y$58 | D50: =_xlfn.CONCAT("$AD$",VLOOKUP(J50,'League Stats'!$Y$57:$AE$900,7,FALSE)) -> $AD$103 | E50: =UPPER(CONCATENATE(LEFT(J50,2),LEFT(H50,1),T50,TEXT(F50,"0000"))) -> HE4RB0046 | F50: =F49+1 -> 46 | G50: 1 | H50: 4Star | I50: =CONCATENATE(VLOOKUP($G50,INDIRECT("'League Stats'!"&$C50&":"&$D50),5,FALSE)," ",VLOOKUP($G50,INDIRECT("'League Stats'!"&$C50&":"&$D50),6,FALSE)) -> Ash Atilla | J50: Hellion | K50: =VLOOKUP($J50,'League Stats'!$Y$39:$AZ$54,21,FALSE) -> Fire | L50: =VLOOKUP($J50,'League Stats'!$Y$39:$AZ$54,14,FALSE) -> These are dark creatures known as Hellions who emerged from the bowels of the earth to win glory for the underworld! | M50: =VLOOKUP($J50,'League Stats'!$Y$39:$AZ$54,24,FALSE) -> Hellfire fist: Melee attack dealing an additional 2 wounds when you tackle an enemy. | N50: =VLOOKUP($J50,'League Stats'!$Y$39:$AZ$54,25,FALSE) -> Fire Resistance: Immune to Fire effects. | O50: 3 | P50: 1 | Q50: =_xlfn.CONCAT("$B$",VLOOKUP(J50,'League Stats'!$Y$57:$AB$900,4,FALSE)+6) -> $B$64 | R50: =_xlfn.CONCAT("$S$",VLOOKUP(J50,'League Stats'!$Y$57:$AB$900,4,FALSE)+39) -> $S$97 | S50: 1 | T50: RB | U50: =VLOOKUP($P50,INDIRECT("'League Stats'!"&$Q50&":"&$R50),U$4,FALSE) -> Killer Abyssal Warrior | V50: Med2 | W50: =VLOOKUP($P50,INDIRECT("'League Stats'!"&$Q50&":"&$R50),W$4,FALSE)+(W$2*$O50) -> 60 | X50: 7 | Y50: 0.8 | Z50: 0.66 | AA50: =VLOOKUP($P50,INDIRECT("'League Stats'!"&$Q50&":"&$R50),AA$4,FALSE)+(AA$2*$O50) -> 0.06 | AB50: 0.18 | AC50: 0.1 | AD50: 0.05 | AE50: 0.04 | AF50: 0.04 | AI50: 46 | AJ50: HE4RB0046 | AK50: 4Star | AL50: Ash Atilla | AM50: =IFERROR(VLOOKUP(VLOOKUP($AI50,$B$5:$AF$1416,AM$4,FALSE),'League Stats'!Y$39:AX$54,26,FALSE),"") -> Hellion | AN50: Fire | AO50: These are dark creatures known as Hellions who emerged from the bowels of the earth to win glory for the underworld! | AP50: Hellfire fist: Melee attack dealing an additional 2 wounds when you tackle an enemy. | AQ50: Fire Resistance: Immune to Fire effects. | AR50: RB | AS50: Killer Abyssal Warrior | AT50: Med2 | AU50: 60 | AV50: 7 | AW50: 0.8 | AX50: 0.66 | AY50: 0.06 | AZ50: 0.18 | BA50: 0.1 | BB50: 0.05 | BC50: 0.04 | BD50: 0.04
B51: =IF(S51=1,MAX(B$5:B50)+1,0) -> 47 | C51: =_xlfn.CONCAT("$Y$",VLOOKUP(J51,'League Stats'!$Y$57:$AB$900,4,FALSE)) -> $Y$58 | D51: =_xlfn.CONCAT("$AD$",VLOOKUP(J51,'League Stats'!$Y$57:$AE$900,7,FALSE)) -> $AD$103 | E51: HE4OL0047 | F51: 47 | G51: 2 | H51: 4Star | I51: =CONCATENATE(VLOOKUP($G51,INDIRECT("'League Stats'!"&$C51&":"&$D51),5,FALSE)," ",VLOOKUP($G51,INDIRECT("'League Stats'!"&$C51&":"&$D51),6,FALSE)) -> Hannibal Laika | J51: Hellion | K51: =VLOOKUP($J51,'League Stats'!$Y$39:$AZ$54,21,FALSE) -> Fire | L51: =VLOOKUP($J51,'League Stats'!$Y$39:$AZ$54,14,FALSE) -> These are dark creatures known as Hellions who emerged from the bowels of the earth to win glory for the underworld! | M51: =VLOOKUP($J51,'League Stats'!$Y$39:$AZ$54,24,FALSE) -> Hellfire fist: Melee attack dealing an additional 2 wounds when you tackle an enemy. | N51: =VLOOKUP($J51,'League Stats'!$Y$39:$AZ$54,25,FALSE) -> Fire Resistance: Immune to Fire effects. | O51: 3 | P51: 2 | Q51: =_xlfn.CONCAT("$B$",VLOOKUP(J51,'League Stats'!$Y$57:$AB$900,4,FALSE)+6) -> $B$64 | R51: =_xlfn.CONCAT("$S$",VLOOKUP(J51,'League Stats'!$Y$57:$AB$900,4,FALSE)+39) -> $S$97 | S51: 1 | T51: OL | U51: Massive Hellion | V51: Big2 | W51: 70 | X51: 8 | Y51: 0.7 | Z51: 0.06 | AA51: 0.04 | AB51: 0.1 | AC51: 0.12 | AD51: 0.13 | AE51: 0.06 | AF51: 0.06 | AI51: 47 | AJ51: HE4OL0047 | AK51: 4Star | AL51: Hannibal Laika | AM51: =IFERROR(VLOOKUP(VLOOKUP($AI51,$B$5:$AF$1416,AM$4,FALSE),'League Stats'!Y$39:AX$54,26,FALSE),"") -> Hellion | AN51: Fire | AO51: These are dark creatures known as Hellions who emerged from the bowels of the earth to win glory for the underworld! | AP51: Hellfire fist: Melee attack dealing an additional 2 wounds when you tackle an enemy. | AQ51: Fire Resistance: Immune to Fire effects. | AR51: OL | AS51: Massive Hellion | AT51: Big2 | AU51: 70 | AV51: 8 | AW51: 0.7 | AX51: 0.06 | AY51: 0.04 | AZ51: 0.1 | BA51: 0.12 | BB51: 0.13 | BC51: 0.06 | BD51: 0.06
B52: =IF(S52=1,MAX(B$5:B51)+1,0) -> 48 | C52: =_xlfn.CONCAT("$Y$",VLOOKUP(J52,'League Stats'!$Y$57:$AB$900,4,FALSE)) -> $Y$58 | D52: =_xlfn.CONCAT("$AD$",VLOOKUP(J52,'League Stats'!$Y$57:$AE$900,7,FALSE)) -> $AD$103 | E52: HE4OL0048 | F52: 48 | G52: 3 | H52: 4Star | I52: Lecter Mercy | J52: Hellion | K52: =VLOOKUP($J52,'League Stats'!$Y$39:$AZ$54,21,FALSE) -> Fire | L52: =VLOOKUP($J52,'League Stats'!$Y$39:$AZ$54,14,FALSE) -> These are dark creatures known as Hellions who emerged from the bowels of the earth to win glory for the underworld! | M52: =VLOOKUP($J52,'League Stats'!$Y$39:$AZ$54,24,FALSE) -> Hellfire fist: Melee attack dealing an additional 2 wounds when you tackle an enemy. | N52: =VLOOKUP($J52,'League Stats'!$Y$39:$AZ$54,25,FALSE) -> Fire Resistance: Immune to Fire effects. | O52: 3 | P52: 3 | Q52: =_xlfn.CONCAT("$B$",VLOOKUP(J52,'League Stats'!$Y$57:$AB$900,4,FALSE)+6) -> $B$64 | R52: =_xlfn.CONCAT("$S$",VLOOKUP(J52,'League Stats'!$Y$57:$AB$900,4,FALSE)+39) -> $S$97 | S52: 1 | T52: OL | U52: Killer Abyssal Warrior | V52: Med2 | W52: 60 | X52: 7 | Y52: 0.8 | Z52: 0.66 | AA52: 0.06 | AB52: 0.18 | AC52: 0.1 | AD52: 0.05 | AE52: 0.04 | AF52: 0.04 | AI52: 48 | AJ52: HE4OL0048 | AK52: 4Star | AL52: Lecter Mercy | AM52: =IFERROR(VLOOKUP(VLOOKUP($AI52,$B$5:$AF$1416,AM$4,FALSE),'League Stats'!Y$39:AX$54,26,FALSE),"") -> Hellion | AN52: Fire | AO52: =IFERROR(VLOOKUP($AI52,$B$5:$AF$1416,AO$4,FALSE),"") -> These are dark creatures known as Hellions who emerged from the bowels of the earth to win glory for the underworld! | AP52: Hellfire fist: Melee attack dealing an additional 2 wounds when you tackle an enemy. | AQ52: Fire Resistance: Immune to Fire effects. | AR52: OL | AS52: Killer Abyssal Warrior | AT52: Med2 | AU52: 60 | AV52: 7 | AW52: 0.8 | AX52: 0.66 | AY52: 0.06 | AZ52: 0.18 | BA52: 0.1 | BB52: 0.05 | BC52: 0.04 | BD52: 0.04
B53: =IF(S53=1,MAX(B$5:B52)+1,0) -> 49 | C53: =_xlfn.CONCAT("$Y$",VLOOKUP(J53,'League Stats'!$Y$57:$AB$900,4,FALSE)) -> $Y$58 | D53: =_xlfn.CONCAT("$AD$",VLOOKUP(J53,'League Stats'!$Y$57:$AE$900,7,FALSE)) -> $AD$103 | E53: HE4OL0049 | F53: 49 | G53: 4 | H53: 4Star | I53: Wrath Helen | J53: Hellion | K53: =VLOOKUP($J53,'League Stats'!$Y$39:$AZ$54,21,FALSE) -> Fire | L53: =VLOOKUP($J53,'League Stats'!$Y$39:$AZ$54,14,FALSE) -> These are dark creatures known as Hellions who emerged from the bowels of the earth to win glory for the underworld! | M53: =VLOOKUP($J53,'League Stats'!$Y$39:$AZ$54,24,FALSE) -> Hellfire fist: Melee attack dealing an additional 2 wounds when you tackle an enemy. | N53: =VLOOKUP($J53,'League Stats'!$Y$39:$AZ$54,25,FALSE) -> Fire Resistance: Immune to Fire effects. | O53: 3 | P53: 4 | Q53: =_xlfn.CONCAT("$B$",VLOOKUP(J53,'League Stats'!$Y$57:$AB$900,4,FALSE)+6) -> $B$64 | R53: =_xlfn.CONCAT("$S$",VLOOKUP(J53,'League Stats'!$Y$57:$AB$900,4,FALSE)+39) -> $S$97 | S53: 1 | T53: OL | U53: Killer Abyssal Warrior | V53: Med2 | W53: 60 | X53: 7 | Y53: 0.8 | Z53: 0.66 | AA53: 0.06 | AB53: =VLOOKUP($P53,INDIRECT("'League Stats'!"&$Q53&":"&$R53),AB$4,FALSE)+(AB$2*$O53) -> 0.18 | AC53: 0.1 | AD53: 0.05 | AE53: 0.04 | AF53: 0.04 | AI53: 49 | AJ53: HE4OL0049 | AK53: 4Star | AL53: Wrath Helen | AM53: =IFERROR(VLOOKUP(VLOOKUP($AI53,$B$5:$AF$1416,AM$4,FALSE),'League Stats'!Y$39:AX$54,26,FALSE),"") -> Hellion | AN53: Fire | AO53: These are dark creatures known as Hellions who emerged from the bowels of the earth to win glory for the underworld! | AP53: Hellfire fist: Melee attack dealing an additional 2 wounds when you tackle an enemy. | AQ53: Fire Resistance: Immune to Fire effects. | AR53: OL | AS53: Killer Abyssal Warrior | AT53: Med2 | AU53: 60 | AV53: 7 | AW53: 0.8 | AX53: 0.66 | AY53: 0.06 | AZ53: 0.18 | BA53: 0.1 | BB53: 0.05 | BC53: 0.04 | BD53: 0.04
B54: =IF(S54=1,MAX(B$5:B53)+1,0) -> 50 | C54: =_xlfn.CONCAT("$Y$",VLOOKUP(J54,'League Stats'!$Y$57:$AB$900,4,FALSE)) -> $Y$58 | D54: =_xlfn.CONCAT("$AD$",VLOOKUP(J54,'League Stats'!$Y$57:$AE$900,7,FALSE)) -> $AD$103 | E54: HE4R0050 | F54: 50 | G54: 5 | H54: 4Star | I54: Bullet Acadia | J54: Hellion | K54: =VLOOKUP($J54,'League Stats'!$Y$39:$AZ$54,21,FALSE) -> Fire | L54: =VLOOKUP($J54,'League Stats'!$Y$39:$AZ$54,14,FALSE) -> These are dark creatures known as Hellions who emerged from the bowels of the earth to win glory for the underworld! | M54: =VLOOKUP($J54,'League Stats'!$Y$39:$AZ$54,24,FALSE) -> Hellfire fist: Melee attack dealing an additional 2 wounds when you tackle an enemy. | N54: =VLOOKUP($J54,'League Stats'!$Y$39:$AZ$54,25,FALSE) -> Fire Resistance: Immune to Fire effects. | O54: 3 | P54: 5 | Q54: =_xlfn.CONCAT("$B$",VLOOKUP(J54,'League Stats'!$Y$57:$AB$900,4,FALSE)+6) -> $B$64 | R54: =_xlfn.CONCAT("$S$",VLOOKUP(J54,'League Stats'!$Y$57:$AB$900,4,FALSE)+39) -> $S$97 | S54: 1 | T54: R | U54: Speedy Shadow | V54: Fast2 | W54: 50 | X54: 6 | Y54: 0.85 | Z54: 0.81 | AA54: 0.06 | AB54: 0.12 | AC54: 0.1 | AD54: 0.05 | AE54: 0.04 | AF54: 0.04 | AI54: 50 | AJ54: HE4R0050 | AK54: 4Star | AL54: Bullet Acadia | AM54: =IFERROR(VLOOKUP(VLOOKUP($AI54,$B$5:$AF$1416,AM$4,FALSE),'League Stats'!Y$39:AX$54,26,FALSE),"") -> Hellion | AN54: Fire | AO54: These are dark creatures known as Hellions who emerged from the bowels of the earth to win glory for the underworld! | AP54: Hellfire fist: Melee attack dealing an additional 2 wounds when you tackle an enemy. | AQ54: Fire Resistance: Immune to Fire effects. | AR54: R | AS54: Speedy Shadow | AT54: Fast2 | AU54: 50 | AV54: 6 | AW54: 0.85 | AX54: 0.81 | AY54: 0.06 | AZ54: 0.12 | BA54: 0.1 | BB54: 0.05 | BC54: 0.04 | BD54: 0.04
B55: =IF(S55=1,MAX(B$5:B54)+1,0) -> 51 | C55: =_xlfn.CONCAT("$Y$",VLOOKUP(J55,'League Stats'!$Y$57:$AB$900,4,FALSE)) -> $Y$58 | D55: =_xlfn.CONCAT("$AD$",VLOOKUP(J55,'League Stats'!$Y$57:$AE$900,7,FALSE)) -> $AD$103 | E55: HE4R0051 | F55: 51 | G55: 6 | H55: 4Star | I55: Sky Diva | J55: Hellion | K55: =VLOOKUP($J55,'League Stats'!$Y$39:$AZ$54,21,FALSE) -> Fire | L55: =VLOOKUP($J55,'League Stats'!$Y$39:$AZ$54,14,FALSE) -> These are dark creatures known as Hellions who emerged from the bowels of the earth to win glory for the underworld! | M55: =VLOOKUP($J55,'League Stats'!$Y$39:$AZ$54,24,FALSE) -> Hellfire fist: Melee attack dealing an additional 2 wounds when you tackle an enemy. | N55: =VLOOKUP($J55,'League Stats'!$Y$39:$AZ$54,25,FALSE) -> Fire Resistance: Immune to Fire effects. | O55: 3 | P55: 6 | Q55: =_xlfn.CONCAT("$B$",VLOOKUP(J55,'League Stats'!$Y$57:$AB$900,4,FALSE)+6) -> $B$64 | R55: =_xlfn.CONCAT("$S$",VLOOKUP(J55,'League Stats'!$Y$57:$AB$900,4,FALSE)+39) -> $S$97 | S55: 1 | T55: R | U55: Speedy Shadow | V55: Fast2 | W55: 50 | X55: 6 | Y55: 0.85 | Z55: 0.81 | AA55: 0.06 | AB55: 0.12 | AC55: 0.1 | AD55: 0.05 | AE55: 0.04 | AF55: 0.04 | AI55: 51 | AJ55: HE4R0051 | AK55: 4Star | AL55: Sky Diva | AM55: =IFERROR(VLOOKUP(VLOOKUP($AI55,$B$5:$AF$1416,AM$4,FALSE),'League Stats'!Y$39:AX$54,26,FALSE),"") -> Hellion | AN55: Fire | AO55: These are dark creatures known as Hellions who emerged from the bowels of the earth to win glory for the underworld! | AP55: Hellfire fist: Melee attack dealing an additional 2 wounds when you tackle an enemy. | AQ55: Fire Resistance: Immune to Fire effects. | AR55: R | AS55: Speedy Shadow | AT55: Fast2 | AU55: 50 | AV55: 6 | AW55: 0.85 | AX55: 0.81 | AY55: 0.06 | AZ55: 0.12 | BA55: 0.1 | BB55: 0.05 | BC55: 0.04 | BD55: 0.04
B56: =IF(S56=1,MAX(B$5:B55)+1,0) -> 52 | C56: =_xlfn.CONCAT("$Y$",VLOOKUP(J56,'League Stats'!$Y$57:$AB$900,4,FALSE)) -> $Y$58 | D56: =_xlfn.CONCAT("$AD$",VLOOKUP(J56,'League Stats'!$Y$57:$AE$900,7,FALSE)) -> $AD$103 | E56: HE4S0052 | F56: 52 | G56: 7 | H56: 4Star | I56: Sabath Codex | J56: Hellion | K56: =VLOOKUP($J56,'League Stats'!$Y$39:$AZ$54,21,FALSE) -> Fire | L56: =VLOOKUP($J56,'League Stats'!$Y$39:$AZ$54,14,FALSE) -> These are dark creatures known as Hellions who emerged from the bowels of the earth to win glory for the underworld! | M56: =VLOOKUP($J56,'League Stats'!$Y$39:$AZ$54,24,FALSE) -> Hellfire fist: Melee attack dealing an additional 2 wounds when you tackle an enemy. | N56: =VLOOKUP($J56,'League Stats'!$Y$39:$AZ$54,25,FALSE) -> Fire Resistance: Immune to Fire effects. | O56: 3 | P56: 7 | Q56: =_xlfn.CONCAT("$B$",VLOOKUP(J56,'League Stats'!$Y$57:$AB$900,4,FALSE)+6) -> $B$64 | R56: =_xlfn.CONCAT("$S$",VLOOKUP(J56,'League Stats'!$Y$57:$AB$900,4,FALSE)+39) -> $S$97 | S56: 1 | T56: S | U56: Killer Abyssal Warrior | V56: Med2 | W56: 60 | X56: 7 | Y56: 0.8 | Z56: 0.66 | AA56: 0.06 | AB56: 0.18 | AC56: 0.1 | AD56: 0.05 | AE56: 0.04 | AF56: 0.04 | AI56: 52 | AJ56: HE4S0052 | AK56: 4Star | AL56: Sabath Codex | AM56: =IFERROR(VLOOKUP(VLOOKUP($AI56,$B$5:$AF$1416,AM$4,FALSE),'League Stats'!Y$39:AX$54,26,FALSE),"") -> Hellion | AN56: Fire | AO56: These are dark creatures known as Hellions who emerged from the bowels of the earth to win glory for the underworld! | AP56: Hellfire fist: Melee attack dealing an additional 2 wounds when you tackle an enemy. | AQ56: Fire Resistance: Immune to Fire effects. | AR56: S | AS56: Killer Abyssal Warrior | AT56: Med2 | AU56: 60 | AV56: 7 | AW56: 0.8 | AX56: 0.66 | AY56: 0.06 | AZ56: 0.18 | BA56: 0.1 | BB56: 0.05 | BC56: 0.04 | BD56: 0.04
B57: =IF(S57=1,MAX(B$5:B56)+1,0) -> 53 | C57: =_xlfn.CONCAT("$Y$",VLOOKUP(J57,'League Stats'!$Y$57:$AB$900,4,FALSE)) -> $Y$58 | D57: =_xlfn.CONCAT("$AD$",VLOOKUP(J57,'League Stats'!$Y$57:$AE$900,7,FALSE)) -> $AD$103 | E57: HE4S0053 | F57: 53 | G57: 8 | H57: 4Star | I57: Bandit Bo | J57: Hellion | K57: =VLOOKUP($J57,'League Stats'!$Y$39:$AZ$54,21,FALSE) -> Fire | L57: =VLOOKUP($J57,'League Stats'!$Y$39:$AZ$54,14,FALSE) -> These are dark creatures known as Hellions who emerged from the bowels of the earth to win glory for the underworld! | M57: =VLOOKUP($J57,'League Stats'!$Y$39:$AZ$54,24,FALSE) -> Hellfire fist: Melee attack dealing an additional 2 wounds when you tackle an enemy. | N57: =VLOOKUP($J57,'League Stats'!$Y$39:$AZ$54,25,FALSE) -> Fire Resistance: Immune to Fire effects. | O57: 3 | P57: 8 | Q57: =_xlfn.CONCAT("$B$",VLOOKUP(J57,'League Stats'!$Y$57:$AB$900,4,FALSE)+6) -> $B$64 | R57: =_xlfn.CONCAT("$S$",VLOOKUP(J57,'League Stats'!$Y$57:$AB$900,4,FALSE)+39) -> $S$97 | S57: 1 | T57: S | U57: Killer Abyssal Warrior | V57: Med2 | W57: 60 | X57: 7 | Y57: 0.8 | Z57: 0.66 | AA57: 0.06 | AB57: 0.18 | AC57: 0.1 | AD57: 0.05 | AE57: 0.04 | AF57: 0.04 | AI57: 53 | AJ57: HE4S0053 | AK57: 4Star | AL57: Bandit Bo | AM57: =IFERROR(VLOOKUP(VLOOKUP($AI57,$B$5:$AF$1416,AM$4,FALSE),'League Stats'!Y$39:AX$54,26,FALSE),"") -> Hellion | AN57: Fire | AO57: These are dark creatures known as Hellions who emerged from the bowels of the earth to win glory for the underworld! | AP57: Hellfire fist: Melee attack dealing an additional 2 wounds when you tackle an enemy. | AQ57: Fire Resistance: Immune to Fire effects. | AR57: S | AS57: Killer Abyssal Warrior | AT57: Med2 | AU57: 60 | AV57: 7 | AW57: 0.8 | AX57: 0.66 | AY57: 0.06 | AZ57: 0.18 | BA57: 0.1 | BB57: 0.05 | BC57: 0.04 | BD57: 0.04
B58: =IF(S58=1,MAX(B$5:B57)+1,0) -> 54 | C58: =_xlfn.CONCAT("$Y$",VLOOKUP(J58,'League Stats'!$Y$57:$AB$900,4,FALSE)) -> $Y$58 | D58: =_xlfn.CONCAT("$AD$",VLOOKUP(J58,'League Stats'!$Y$57:$AE$900,7,FALSE)) -> $AD$103 | E58: HE4DL0054 | F58: 54 | G58: 9 | H58: 4Star | I58: Orion Ares | J58: Hellion | K58: =VLOOKUP($J58,'League Stats'!$Y$39:$AZ$54,21,FALSE) -> Fire | L58: =VLOOKUP($J58,'League Stats'!$Y$39:$AZ$54,14,FALSE) -> These are dark creatures known as Hellions who emerged from the bowels of the earth to win glory for the underworld! | M58: =VLOOKUP($J58,'League Stats'!$Y$39:$AZ$54,24,FALSE) -> Hellfire fist: Melee attack dealing an additional 2 wounds when you tackle an enemy. | N58: =VLOOKUP($J58,'League Stats'!$Y$39:$AZ$54,25,FALSE) -> Fire Resistance: Immune to Fire effects. | O58: 3 | P58: 9 | Q58: =_xlfn.CONCAT("$B$",VLOOKUP(J58,'League Stats'!$Y$57:$AB$900,4,FALSE)+6) -> $B$64 | R58: =_xlfn.CONCAT("$S$",VLOOKUP(J58,'League Stats'!$Y$57:$AB$900,4,FALSE)+39) -> $S$97 | S58: 1 | T58: DL | U58: Massive Hellion | V58: Big2 | W58: 70 | X58: 8 | Y58: 0.7 | Z58: 0.06 | AA58: 0.04 | AB58: 0.1 | AC58: 0.12 | AD58: 0.13 | AE58: 0.06 | AF58: 0.06 | AI58: 54 | AJ58: HE4DL0054 | AK58: 4Star | AL58: Orion Ares | AM58: =IFERROR(VLOOKUP(VLOOKUP($AI58,$B$5:$AF$1416,AM$4,FALSE),'League Stats'!Y$39:AX$54,26,FALSE),"") -> Hellion | AN58: Fire | AO58: These are dark creatures known as Hellions who emerged from the bowels of the earth to win glory for the underworld! | AP58: Hellfire fist: Melee attack dealing an additional 2 wounds when you tackle an enemy. | AQ58: Fire Resistance: Immune to Fire effects. | AR58: DL | AS58: Massive Hellion | AT58: Big2 | AU58: 70 | AV58: 8 | AW58: 0.7 | AX58: 0.06 | AY58: 0.04 | AZ58: 0.1 | BA58: 0.12 | BB58: 0.13 | BC58: 0.06 | BD58: 0.06
B59: =IF(S59=1,MAX(B$5:B58)+1,0) -> 55 | C59: =_xlfn.CONCAT("$Y$",VLOOKUP(J59,'League Stats'!$Y$57:$AB$900,4,FALSE)) -> $Y$58 | D59: =_xlfn.CONCAT("$AD$",VLOOKUP(J59,'League Stats'!$Y$57:$AE$900,7,FALSE)) -> $AD$103 | E59: HE4DL0055 | F59: 55 | G59: 10 | H59: 4Star | I59: Brawn Alaska | J59: Hellion | K59: =VLOOKUP($J59,'League Stats'!$Y$39:$AZ$54,21,FALSE) -> Fire | L59: =VLOOKUP($J59,'League Stats'!$Y$39:$AZ$54,14,FALSE) -> These are dark creatures known as Hellions who emerged from the bowels of the earth to win glory for the underworld! | M59: =VLOOKUP($J59,'League Stats'!$Y$39:$AZ$54,24,FALSE) -> Hellfire fist: Melee attack dealing an additional 2 wounds when you tackle an enemy. | N59: =VLOOKUP($J59,'League Stats'!$Y$39:$AZ$54,25,FALSE) -> Fire Resistance: Immune to Fire effects. | O59: 3 | P59: 10 | Q59: =_xlfn.CONCAT("$B$",VLOOKUP(J59,'League Stats'!$Y$57:$AB$900,4,FALSE)+6) -> $B$64 | R59: =_xlfn.CONCAT("$S$",VLOOKUP(J59,'League Stats'!$Y$57:$AB$900,4,FALSE)+39) -> $S$97 | S59: 1 | T59: DL | U59: Killer Abyssal Warrior | V59: Med2 | W59: 60 | X59: 7 | Y59: 0.8 | Z59: 0.66 | AA59: 0.06 | AB59: 0.18 | AC59: 0.1 | AD59: 0.05 | AE59: 0.04 | AF59: 0.04 | AI59: 55 | AJ59: HE4DL0055 | AK59: 4Star | AL59: Brawn Alaska | AM59: =IFERROR(VLOOKUP(VLOOKUP($AI59,$B$5:$AF$1416,AM$4,FALSE),'League Stats'!Y$39:AX$54,26,FALSE),"") -> Hellion | AN59: Fire | AO59: These are dark creatures known as Hellions who emerged from the bowels of the earth to win glory for the underworld! | AP59: Hellfire fist: Melee attack dealing an additional 2 wounds when you tackle an enemy. | AQ59: Fire Resistance: Immune to Fire effects. | AR59: DL | AS59: Killer Abyssal Warrior | AT59: Med2 | AU59: 60 | AV59: 7 | AW59: 0.8 | AX59: 0.66 | AY59: 0.06 | AZ59: 0.18 | BA59: 0.1 | BB59: 0.05 | BC59: 0.04 | BD59: 0.04
B60: =IF(S60=1,MAX(B$5:B59)+1,0) -> 56 | C60: =_xlfn.CONCAT("$Y$",VLOOKUP(J60,'League Stats'!$Y$57:$AB$900,4,FALSE)) -> $Y$58 | D60: =_xlfn.CONCAT("$AD$",VLOOKUP(J60,'League Stats'!$Y$57:$AE$900,7,FALSE)) -> $AD$103 | E60: HE4DL0056 | F60: 56 | G60: 11 | H60: 4Star | I60: Hero Onyxia | J60: Hellion | K60: =VLOOKUP($J60,'League Stats'!$Y$39:$AZ$54,21,FALSE) -> Fire | L60: =VLOOKUP($J60,'League Stats'!$Y$39:$AZ$54,14,FALSE) -> These are dark creatures known as Hellions who emerged from the bowels of the earth to win glory for the underworld! | M60: =VLOOKUP($J60,'League Stats'!$Y$39:$AZ$54,24,FALSE) -> Hellfire fist: Melee attack dealing an additional 2 wounds when you tackle an enemy. | N60: =VLOOKUP($J60,'League Stats'!$Y$39:$AZ$54,25,FALSE) -> Fire Resistance: Immune to Fire effects. | O60: 3 | P60: 11 | Q60: =_xlfn.CONCAT("$B$",VLOOKUP(J60,'League Stats'!$Y$57:$AB$900,4,FALSE)+6) -> $B$64 | R60: =_xlfn.CONCAT("$S$",VLOOKUP(J60,'League Stats'!$Y$57:$AB$900,4,FALSE)+39) -> $S$97 | S60: 1 | T60: DL | U60: Killer Abyssal Warrior | V60: Med2 | W60: 60 | X60: 7 | Y60: 0.8 | Z60: 0.66 | AA60: 0.06 | AB60: 0.18 | AC60: 0.1 | AD60: 0.05 | AE60: 0.04 | AF60: 0.04 | AI60: 56 | AJ60: HE4DL0056 | AK60: 4Star | AL60: Hero Onyxia | AM60: =IFERROR(VLOOKUP(VLOOKUP($AI60,$B$5:$AF$1416,AM$4,FALSE),'League Stats'!Y$39:AX$54,26,FALSE),"") -> Hellion | AN60: Fire | AO60: These are dark creatures known as Hellions who emerged from the bowels of the earth to win glory for the underworld! | AP60: Hellfire fist: Melee attack dealing an additional 2 wounds when you tackle an enemy. | AQ60: Fire Resistance: Immune to Fire effects. | AR60: DL | AS60: Killer Abyssal Warrior | AT60: Med2 | AU60: 60 | AV60: 7 | AW60: 0.8 | AX60: 0.66 | AY60: 0.06 | AZ60: 0.18 | BA60: 0.1 | BB60: 0.05 | BC60: 0.04 | BD60: 0.04
B61: =IF(S61=1,MAX(B$5:B60)+1,0) -> 57 | C61: =_xlfn.CONCAT("$Y$",VLOOKUP(J61,'League Stats'!$Y$57:$AB$900,4,FALSE)) -> $Y$58 | D61: =_xlfn.CONCAT("$AD$",VLOOKUP(J61,'League Stats'!$Y$57:$AE$900,7,FALSE)) -> $AD$103 | E61: HE4DB0057 | F61: 57 | G61: 12 | H61: 4Star | I61: Blaze Precious | J61: Hellion | K61: =VLOOKUP($J61,'League Stats'!$Y$39:$AZ$54,21,FALSE) -> Fire | L61: =VLOOKUP($J61,'League Stats'!$Y$39:$AZ$54,14,FALSE) -> These are dark creatures known as Hellions who emerged from the bowels of the earth to win glory for the underworld! | M61: =VLOOKUP($J61,'League Stats'!$Y$39:$AZ$54,24,FALSE) -> Hellfire fist: Melee attack dealing an additional 2 wounds when you tackle an enemy. | N61: =VLOOKUP($J61,'League Stats'!$Y$39:$AZ$54,25,FALSE) -> Fire Resistance: Immune to Fire effects. | O61: 3 | P61: 12 | Q61: =_xlfn.CONCAT("$B$",VLOOKUP(J61,'League Stats'!$Y$57:$AB$900,4,FALSE)+6) -> $B$64 | R61: =_xlfn.CONCAT("$S$",VLOOKUP(J61,'League Stats'!$Y$57:$AB$900,4,FALSE)+39) -> $S$97 | S61: 1 | T61: DB | U61: Speedy Shadow | V61: Fast2 | W61: 50 | X61: 6 | Y61: 0.85 | Z61: 0.81 | AA61: 0.06 | AB61: 0.12 | AC61: 0.1 | AD61: 0.05 | AE61: 0.04 | AF61: 0.04 | AI61: 57 | AJ61: HE4DB0057 | AK61: 4Star | AL61: Blaze Precious | AM61: =IFERROR(VLOOKUP(VLOOKUP($AI61,$B$5:$AF$1416,AM$4,FALSE),'League Stats'!Y$39:AX$54,26,FALSE),"") -> Hellion | AN61: Fire | AO61: These are dark creatures known as Hellions who emerged from the bowels of the earth to win glory for the underworld! | AP61: Hellfire fist: Melee attack dealing an additional 2 wounds when you tackle an enemy. | AQ61: Fire Resistance: Immune to Fire effects. | AR61: DB | AS61: Speedy Shadow | AT61: Fast2 | AU61: 50 | AV61: 6 | AW61: 0.85 | AX61: 0.81 | AY61: 0.06 | AZ61: 0.12 | BA61: 0.1 | BB61: 0.05 | BC61: 0.04 | BD61: 0.04
B62: =IF(S62=1,MAX(B$5:B61)+1,0) -> 58 | C62: =_xlfn.CONCAT("$Y$",VLOOKUP(J62,'League Stats'!$Y$57:$AB$900,4,FALSE)) -> $Y$58 | D62: =_xlfn.CONCAT("$AD$",VLOOKUP(J62,'League Stats'!$Y$57:$AE$900,7,FALSE)) -> $AD$103 | E62: HE4DB0058 | F62: 58 | G62: 13 | H62: 4Star | I62: Hooch Blossom | J62: Hellion | K62: =VLOOKUP($J62,'League Stats'!$Y$39:$AZ$54,21,FALSE) -> Fire | L62: =VLOOKUP($J62,'League Stats'!$Y$39:$AZ$54,14,FALSE) -> These are dark creatures known as Hellions who emerged from the bowels of the earth to win glory for the underworld! | M62: =VLOOKUP($J62,'League Stats'!$Y$39:$AZ$54,24,FALSE) -> Hellfire fist: Melee attack dealing an additional 2 wounds when you tackle an enemy. | N62: =VLOOKUP($J62,'League Stats'!$Y$39:$AZ$54,25,FALSE) -> Fire Resistance: Immune to Fire effects. | O62: 3 | P62: 13 | Q62: =_xlfn.CONCAT("$B$",VLOOKUP(J62,'League Stats'!$Y$57:$AB$900,4,FALSE)+6) -> $B$64 | R62: =_xlfn.CONCAT("$S$",VLOOKUP(J62,'League Stats'!$Y$57:$AB$900,4,FALSE)+39) -> $S$97 | S62: 1 | T62: DB | U62: Speedy Shadow | V62: Fast2 | W62: 50 | X62: 6 | Y62: 0.85 | Z62: 0.81 | AA62: 0.06 | AB62: 0.12 | AC62: 0.1 | AD62: 0.05 | AE62: 0.04 | AF62: 0.04 | AI62: 58 | AJ62: HE4DB0058 | AK62: 4Star | AL62: Hooch Blossom | AM62: =IFERROR(VLOOKUP(VLOOKUP($AI62,$B$5:$AF$1416,AM$4,FALSE),'League Stats'!Y$39:AX$54,26,FALSE),"") -> Hellion | AN62: Fire | AO62: These are dark creatures known as Hellions who emerged from the bowels of the earth to win glory for the underworld! | AP62: Hellfire fist: Melee attack dealing an additional 2 wounds when you tackle an enemy. | AQ62: Fire Resistance: Immune to Fire effects. | AR62: DB | AS62: Speedy Shadow | AT62: Fast2 | AU62: 50 | AV62: 6 | AW62: 0.85 | AX62: 0.81 | AY62: 0.06 | AZ62: 0.12 | BA62: 0.1 | BB62: 0.05 | BC62: 0.04 | BD62: 0.04
B63: =IF(S63=1,MAX(B$5:B62)+1,0) -> 59 | C63: =_xlfn.CONCAT("$Y$",VLOOKUP(J63,'League Stats'!$Y$57:$AB$900,4,FALSE)) -> $Y$58 | D63: =_xlfn.CONCAT("$AD$",VLOOKUP(J63,'League Stats'!$Y$57:$AE$900,7,FALSE)) -> $AD$103 | E63: HE5RB0059 | F63: 59 | G63: 14 | H63: 5Star | I63: Hector Shadow | J63: Hellion | K63: =VLOOKUP($J63,'League Stats'!$Y$39:$AZ$54,21,FALSE) -> Fire | L63: =VLOOKUP($J63,'League Stats'!$Y$39:$AZ$54,14,FALSE) -> These are dark creatures known as Hellions who emerged from the bowels of the earth to win glory for the underworld! | M63: =VLOOKUP($J63,'League Stats'!$Y$39:$AZ$54,24,FALSE) -> Hellfire fist: Melee attack dealing an additional 2 wounds when you tackle an enemy. | N63: =VLOOKUP($J63,'League Stats'!$Y$39:$AZ$54,25,FALSE) -> Fire Resistance: Immune to Fire effects. | O63: 4 | P63: 1 | Q63: =_xlfn.CONCAT("$B$",VLOOKUP(J63,'League Stats'!$Y$57:$AB$900,4,FALSE)+6) -> $B$64 | R63: =_xlfn.CONCAT("$S$",VLOOKUP(J63,'League Stats'!$Y$57:$AB$900,4,FALSE)+39) -> $S$97 | S63: 1 | T63: RB | U63: Killer Abyssal Warrior | V63: Med2 | W63: 70 | X63: 8 | Y63: 0.9 | Z63: 0.68 | AA63: 0.07 | AB63: 0.21 | AC63: 0.12 | AD63: 0.06 | AE63: 0.05 | AF63: 0.05 | AI63: 59 | AJ63: HE5RB0059 | AK63: 5Star | AL63: Hector Shadow | AM63: =IFERROR(VLOOKUP(VLOOKUP($AI63,$B$5:$AF$1416,AM$4,FALSE),'League Stats'!Y$39:AX$54,26,FALSE),"") -> Hellion | AN63: Fire | AO63: These are dark creatures known as Hellions who emerged from the bowels of the earth to win glory for the underworld! | AP63: Hellfire fist: Melee attack dealing an additional 2 wounds when you tackle an enemy. | AQ63: Fire Resistance: Immune to Fire effects. | AR63: RB | AS63: Killer Abyssal Warrior | AT63: Med2 | AU63: 70 | AV63: 8 | AW63: 0.9 | AX63: 0.68 | AY63: 0.07 | AZ63: 0.21 | BA63: 0.12 | BB63: 0.06 | BC63: 0.05 | BD63: 0.05
B64: =IF(S64=1,MAX(B$5:B63)+1,0) -> 60 | C64: =_xlfn.CONCAT("$Y$",VLOOKUP(J64,'League Stats'!$Y$57:$AB$900,4,FALSE)) -> $Y$58 | D64: =_xlfn.CONCAT("$AD$",VLOOKUP(J64,'League Stats'!$Y$57:$AE$900,7,FALSE)) -> $AD$103 | E64: HE5OL0060 | F64: 60 | G64: 15 | H64: 5Star | I64: Wrath Snowball | J64: Hellion | K64: =VLOOKUP($J64,'League Stats'!$Y$39:$AZ$54,21,FALSE) -> Fire | L64: =VLOOKUP($J64,'League Stats'!$Y$39:$AZ$54,14,FALSE) -> These are dark creatures known as Hellions who emerged from the bowels of the earth to win glory for the underworld! | M64: =VLOOKUP($J64,'League Stats'!$Y$39:$AZ$54,24,FALSE) -> Hellfire fist: Melee attack dealing an additional 2 wounds when you tackle an enemy. | N64: =VLOOKUP($J64,'League Stats'!$Y$39:$AZ$54,25,FALSE) -> Fire Resistance: Immune to Fire effects. | O64: 4 | P64: 2 | Q64: =_xlfn.CONCAT("$B$",VLOOKUP(J64,'League Stats'!$Y$57:$AB$900,4,FALSE)+6) -> $B$64 | R64: =_xlfn.CONCAT("$S$",VLOOKUP(J64,'League Stats'!$Y$57:$AB$900,4,FALSE)+39) -> $S$97 | S64: 1 | T64: OL | U64: Massive Hellion | V64: Big2 | W64: 80 | X64: 9 | Y64: 0.8 | Z64: 0.08 | AA64: 0.05 | AB64: 0.13 | AC64: 0.14 | AD64: 0.14 | AE64: 0.07 | AF64: 0.07 | AI64: 60 | AJ64: HE5OL0060 | AK64: 5Star | AL64: Wrath Snowball | AM64: =IFERROR(VLOOKUP(VLOOKUP($AI64,$B$5:$AF$1416,AM$4,FALSE),'League Stats'!Y$39:AX$54,26,FALSE),"") -> Hellion | AN64: Fire | AO64: These are dark creatures known as Hellions who emerged from the bowels of the earth to win glory for the underworld! | AP64: Hellfire fist: Melee attack dealing an additional 2 wounds when you tackle an enemy. | AQ64: Fire Resistance: Immune to Fire effects. | AR64: OL | AS64: Massive Hellion | AT64: Big2 | AU64: 80 | AV64: 9 | AW64: 0.8 | AX64: 0.08 | AY64: 0.05 | AZ64: 0.13 | BA64: 0.14 | BB64: 0.14 | BC64: =IFERROR(VLOOKUP($AI64,$B$5:$AF$1416,BC$4,FALSE),"") -> 0.07 | BD64: 0.07
B65: =IF(S65=1,MAX(B$5:B64)+1,0) -> 61 | C65: =_xlfn.CONCAT("$Y$",VLOOKUP(J65,'League Stats'!$Y$57:$AB$900,4,FALSE)) -> $Y$58 | D65: =_xlfn.CONCAT("$AD$",VLOOKUP(J65,'League Stats'!$Y$57:$AE$900,7,FALSE)) -> $AD$103 | E65: HE5OL0061 | F65: 61 | G65: 16 | H65: 5Star | I65: Vlad Ivory | J65: Hellion | K65: =VLOOKUP($J65,'League Stats'!$Y$39:$AZ$54,21,FALSE) -> Fire | L65: =VLOOKUP($J65,'League Stats'!$Y$39:$AZ$54,14,FALSE) -> These are dark creatures known as Hellions who emerged from the bowels of the earth to win glory for the underworld! | M65: =VLOOKUP($J65,'League Stats'!$Y$39:$AZ$54,24,FALSE) -> Hellfire fist: Melee attack dealing an additional 2 wounds when you tackle an enemy. | N65: =VLOOKUP($J65,'League Stats'!$Y$39:$AZ$54,25,FALSE) -> Fire Resistance: Immune to Fire effects. | O65: 4 | P65: 3 | Q65: =_xlfn.CONCAT("$B$",VLOOKUP(J65,'League Stats'!$Y$57:$AB$900,4,FALSE)+6) -> $B$64 | R65: =_xlfn.CONCAT("$S$",VLOOKUP(J65,'League Stats'!$Y$57:$AB$900,4,FALSE)+39) -> $S$97 | S65: 1 | T65: OL | U65: Killer Abyssal Warrior | V65: Med2 | W65: 70 | X65: 8 | Y65: 0.9 | Z65: 0.68 | AA65: 0.07 | AB65: 0.21 | AC65: 0.12 | AD65: 0.06 | AE65: 0.05 | AF65: 0.05 | AI65: 61 | AJ65: HE5OL0061 | AK65: 5Star | AL65: Vlad Ivory | AM65: =IFERROR(VLOOKUP(VLOOKUP($AI65,$B$5:$AF$1416,AM$4,FALSE),'League Stats'!Y$39:AX$54,26,FALSE),"") -> Hellion | AN65: =IFERROR(VLOOKUP($AI65,$B$5:$AF$1416,AN$4,FALSE),"") -> Fire | AO65: These are dark creatures known as Hellions who emerged from the bowels of the earth to win glory for the underworld! | AP65: Hellfire fist: Melee attack dealing an additional 2 wounds when you tackle an enemy. | AQ65: Fire Resistance: Immune to Fire effects. | AR65: OL | AS65: Killer Abyssal Warrior | AT65: Med2 | AU65: 70 | AV65: 8 | AW65: 0.9 | AX65: 0.68 | AY65: 0.07 | AZ65: 0.21 | BA65: 0.12 | BB65: 0.06 | BC65: 0.05 | BD65: 0.05
B66: =IF(S66=1,MAX(B$5:B65)+1,0) -> 62 | C66: =_xlfn.CONCAT("$Y$",VLOOKUP(J66,'League Stats'!$Y$57:$AB$900,4,FALSE)) -> $Y$58 | D66: =_xlfn.CONCAT("$AD$",VLOOKUP(J66,'League Stats'!$Y$57:$AE$900,7,FALSE)) -> $AD$103 | E66: HE5OL0062 | F66: 62 | G66: 17 | H66: 5Star | I66: Comet Alexis | J66: Hellion | K66: =VLOOKUP($J66,'League Stats'!$Y$39:$AZ$54,21,FALSE) -> Fire | L66: =VLOOKUP($J66,'League Stats'!$Y$39:$AZ$54,14,FALSE) -> These are dark creatures known as Hellions who emerged from the bowels of the earth to win glory for the underworld! | M66: =VLOOKUP($J66,'League Stats'!$Y$39:$AZ$54,24,FALSE) -> Hellfire fist: Melee attack dealing an additional 2 wounds when you tackle an enemy. | N66: =VLOOKUP($J66,'League Stats'!$Y$39:$AZ$54,25,FALSE) -> Fire Resistance: Immune to Fire effects. | O66: 4 | P66: 4 | Q66: =_xlfn.CONCAT("$B$",VLOOKUP(J66,'League Stats'!$Y$57:$AB$900,4,FALSE)+6) -> $B$64 | R66: =_xlfn.CONCAT("$S$",VLOOKUP(J66,'League Stats'!$Y$57:$AB$900,4,FALSE)+39) -> $S$97 | S66: 1 | T66: OL | U66: Killer Abyssal Warrior | V66: Med2 | W66: 70 | X66: 8 | Y66: 0.9 | Z66: 0.68 | AA66: 0.07 | AB66: 0.21 | AC66: 0.12 | AD66: 0.06 | AE66: 0.05 | AF66: 0.05 | AI66: 62 | AJ66: HE5OL0062 | AK66: 5Star | AL66: Comet Alexis | AM66: =IFERROR(VLOOKUP(VLOOKUP($AI66,$B$5:$AF$1416,AM$4,FALSE),'League Stats'!Y$39:AX$54,26,FALSE),"") -> Hellion | AN66: Fire | AO66: These are dark creatures known as Hellions who emerged from the bowels of the earth to win glory for the underworld! | AP66: Hellfire fist: Melee attack dealing an additional 2 wounds when you tackle an enemy. | AQ66: Fire Resistance: Immune to Fire effects. | AR66: OL | AS66: Killer Abyssal Warrior | AT66: Med2 | AU66: 70 | AV66: 8 | AW66: 0.9 | AX66: 0.68 | AY66: 0.07 | AZ66: 0.21 | BA66: 0.12 | BB66: 0.06 | BC66: 0.05 | BD66: 0.05
B67: =IF(S67=1,MAX(B$5:B66)+1,0) -> 63 | C67: =_xlfn.CONCAT("$Y$",VLOOKUP(J67,'League Stats'!$Y$57:$AB$900,4,FALSE)) -> $Y$58 | D67: =_xlfn.CONCAT("$AD$",VLOOKUP(J67,'League Stats'!$Y$57:$AE$900,7,FALSE)) -> $AD$103 | E67: HE5R0063 | F67: 63 | G67: 18 | H67: 5Star | I67: Hannibal Phantom | J67: Hellion | K67: =VLOOKUP($J67,'League Stats'!$Y$39:$AZ$54,21,FALSE) -> Fire | L67: =VLOOKUP($J67,'League Stats'!$Y$39:$AZ$54,14,FALSE) -> These are dark creatures known as Hellions who emerged from the bowels of the earth to win glory for the underworld! | M67: =VLOOKUP($J67,'League Stats'!$Y$39:$AZ$54,24,FALSE) -> Hellfire fist: Melee attack dealing an additional 2 wounds when you tackle an enemy. | N67: =VLOOKUP($J67,'League Stats'!$Y$39:$AZ$54,25,FALSE) -> Fire Resistance: Immune to Fire effects. | O67: 4 | P67: 5 | Q67: =_xlfn.CONCAT("$B$",VLOOKUP(J67,'League Stats'!$Y$57:$AB$900,4,FALSE)+6) -> $B$64 | R67: =_xlfn.CONCAT("$S$",VLOOKUP(J67,'League Stats'!$Y$57:$AB$900,4,FALSE)+39) -> $S$97 | S67: 1 | T67: R | U67: Speedy Shadow | V67: Fast2 | W67: 60 | X67: 7 | Y67: 0.95 | Z67: 0.83 | AA67: 0.07 | AB67: 0.15 | AC67: 0.12 | AD67: 0.06 | AE67: 0.05 | AF67: 0.05 | AI67: 63 | AJ67: HE5R0063 | AK67: 5Star | AL67: Hannibal Phantom | AM67: =IFERROR(VLOOKUP(VLOOKUP($AI67,$B$5:$AF$1416,AM$4,FALSE),'League Stats'!Y$39:AX$54,26,FALSE),"") -> Hellion | AN67: Fire | AO67: These are dark creatures known as Hellions who emerged from the bowels of the earth to win glory for the underworld! | AP67: Hellfire fist: Melee attack dealing an additional 2 wounds when you tackle an enemy. | AQ67: Fire Resistance: Immune to Fire effects. | AR67: R | AS67: Speedy Shadow | AT67: Fast2 | AU67: 60 | AV67: 7 | AW67: 0.95 | AX67: 0.83 | AY67: 0.07 | AZ67: 0.15 | BA67: 0.12 | BB67: 0.06 | BC67: 0.05 | BD67: 0.05
B68: =IF(S68=1,MAX(B$5:B67)+1,0) -> 64 | C68: =_xlfn.CONCAT("$Y$",VLOOKUP(J68,'League Stats'!$Y$57:$AB$900,4,FALSE)) -> $Y$58 | D68: =_xlfn.CONCAT("$AD$",VLOOKUP(J68,'League Stats'!$Y$57:$AE$900,7,FALSE)) -> $AD$103 | E68: HE5R0064 | F68: 64 | G68: 19 | H68: 5Star | I68: Maverick Girl | J68: Hellion | K68: =VLOOKUP($J68,'League Stats'!$Y$39:$AZ$54,21,FALSE) -> Fire | L68: =VLOOKUP($J68,'League Stats'!$Y$39:$AZ$54,14,FALSE) -> These are dark creatures known as Hellions who emerged from the bowels of the earth to win glory for the underworld! | M68: =VLOOKUP($J68,'League Stats'!$Y$39:$AZ$54,24,FALSE) -> Hellfire fist: Melee attack dealing an additional 2 wounds when you tackle an enemy. | N68: =VLOOKUP($J68,'League Stats'!$Y$39:$AZ$54,25,FALSE) -> Fire Resistance: Immune to Fire effects. | O68: 4 | P68: 6 | Q68: =_xlfn.CONCAT("$B$",VLOOKUP(J68,'League Stats'!$Y$57:$AB$900,4,FALSE)+6) -> $B$64 | R68: =_xlfn.CONCAT("$S$",VLOOKUP(J68,'League Stats'!$Y$57:$AB$900,4,FALSE)+39) -> $S$97 | S68: 1 | T68: R | U68: Speedy Shadow | V68: Fast2 | W68: 60 | X68: 7 | Y68: 0.95 | Z68: 0.83 | AA68: 0.07 | AB68: 0.15 | AC68: 0.12 | AD68: 0.06 | AE68: 0.05 | AF68: 0.05 | AI68: 64 | AJ68: HE5R0064 | AK68: 5Star | AL68: Maverick Girl | AM68: =IFERROR(VLOOKUP(VLOOKUP($AI68,$B$5:$AF$1416,AM$4,FALSE),'League Stats'!Y$39:AX$54,26,FALSE),"") -> Hellion | AN68: Fire | AO68: These are dark creatures known as Hellions who emerged from the bowels of the earth to win glory for the underworld! | AP68: Hellfire fist: Melee attack dealing an additional 2 wounds when you tackle an enemy. | AQ68: Fire Resistance: Immune to Fire effects. | AR68: R | AS68: Speedy Shadow | AT68: Fast2 | AU68: 60 | AV68: 7 | AW68: 0.95 | AX68: 0.83 | AY68: 0.07 | AZ68: 0.15 | BA68: 0.12 | BB68: 0.06 | BC68: 0.05 | BD68: 0.05
B69: =IF(S69=1,MAX(B$5:B68)+1,0) -> 65 | C69: =_xlfn.CONCAT("$Y$",VLOOKUP(J69,'League Stats'!$Y$57:$AB$900,4,FALSE)) -> $Y$58 | D69: =_xlfn.CONCAT("$AD$",VLOOKUP(J69,'League Stats'!$Y$57:$AE$900,7,FALSE)) -> $AD$103 | E69: HE5S0065 | F69: 65 | G69: 20 | H69: 5Star | I69: Raven Ares | J69: Hellion | K69: =VLOOKUP($J69,'League Stats'!$Y$39:$AZ$54,21,FALSE) -> Fire | L69: =VLOOKUP($J69,'League Stats'!$Y$39:$AZ$54,14,FALSE) -> These are dark creatures known as Hellions who emerged from the bowels of the earth to win glory for the underworld! | M69: =VLOOKUP($J69,'League Stats'!$Y$39:$AZ$54,24,FALSE) -> Hellfire fist: Melee attack dealing an additional 2 wounds when you tackle an enemy. | N69: =VLOOKUP($J69,'League Stats'!$Y$39:$AZ$54,25,FALSE) -> Fire Resistance: Immune to Fire effects. | O69: 4 | P69: 7 | Q69: =_xlfn.CONCAT("$B$",VLOOKUP(J69,'League Stats'!$Y$57:$AB$900,4,FALSE)+6) -> $B$64 | R69: =_xlfn.CONCAT("$S$",VLOOKUP(J69,'League Stats'!$Y$57:$AB$900,4,FALSE)+39) -> $S$97 | S69: 1 | T69: S | U69: Killer Abyssal Warrior | V69: Med2 | W69: 70 | X69: 8 | Y69: 0.9 | Z69: 0.68 | AA69: 0.07 | AB69: 0.21 | AC69: 0.12 | AD69: 0.06 | AE69: 0.05 | AF69: 0.05 | AI69: 65 | AJ69: HE5S0065 | AK69: 5Star | AL69: Raven Ares | AM69: =IFERROR(VLOOKUP(VLOOKUP($AI69,$B$5:$AF$1416,AM$4,FALSE),'League Stats'!Y$39:AX$54,26,FALSE),"") -> Hellion | AN69: Fire | AO69: These are dark creatures known as Hellions who emerged from the bowels of the earth to win glory for the underworld! | AP69: Hellfire fist: Melee attack dealing an additional 2 wounds when you tackle an enemy. | AQ69: Fire Resistance: Immune to Fire effects. | AR69: S | AS69: Killer Abyssal Warrior | AT69: Med2 | AU69: 70 | AV69: 8 | AW69: 0.9 | AX69: 0.68 | AY69: 0.07 | AZ69: 0.21 | BA69: 0.12 | BB69: 0.06 | BC69: 0.05 | BD69: 0.05
B70: =IF(S70=1,MAX(B$5:B69)+1,0) -> 66 | C70: =_xlfn.CONCAT("$Y$",VLOOKUP(J70,'League Stats'!$Y$57:$AB$900,4,FALSE)) -> $Y$58 | D70: =_xlfn.CONCAT("$AD$",VLOOKUP(J70,'League Stats'!$Y$57:$AE$900,7,FALSE)) -> $AD$103 | E70: HE5S0066 | F70: 66 | G70: 21 | H70: 5Star | I70: Courage Paws | J70: Hellion | K70: =VLOOKUP($J70,'League Stats'!$Y$39:$AZ$54,21,FALSE) -> Fire | L70: =VLOOKUP($J70,'League Stats'!$Y$39:$AZ$54,14,FALSE) -> These are dark creatures known as Hellions who emerged from the bowels of the earth to win glory for the underworld! | M70: =VLOOKUP($J70,'League Stats'!$Y$39:$AZ$54,24,FALSE) -> Hellfire fist: Melee attack dealing an additional 2 wounds when you tackle an enemy. | N70: =VLOOKUP($J70,'League Stats'!$Y$39:$AZ$54,25,FALSE) -> Fire Resistance: Immune to Fire effects. | O70: 4 | P70: 8 | Q70: =_xlfn.CONCAT("$B$",VLOOKUP(J70,'League Stats'!$Y$57:$AB$900,4,FALSE)+6) -> $B$64 | R70: =_xlfn.CONCAT("$S$",VLOOKUP(J70,'League Stats'!$Y$57:$AB$900,4,FALSE)+39) -> $S$97 | S70: 1 | T70: S | U70: Killer Abyssal Warrior | V70: Med2 | W70: 70 | X70: 8 | Y70: 0.9 | Z70: 0.68 | AA70: 0.07 | AB70: 0.21 | AC70: 0.12 | AD70: 0.06 | AE70: 0.05 | AF70: 0.05 | AI70: 66 | AJ70: HE5S0066 | AK70: 5Star | AL70: Courage Paws | AM70: =IFERROR(VLOOKUP(VLOOKUP($AI70,$B$5:$AF$1416,AM$4,FALSE),'League Stats'!Y$39:AX$54,26,FALSE),"") -> Hellion | AN70: Fire | AO70: These are dark creatures known as Hellions who emerged from the bowels of the earth to win glory for the underworld! | AP70: Hellfire fist: Melee attack dealing an additional 2 wounds when you tackle an enemy. | AQ70: Fire Resistance: Immune to Fire effects. | AR70: S | AS70: Killer Abyssal Warrior | AT70: Med2 | AU70: 70 | AV70: 8 | AW70: 0.9 | AX70: 0.68 | AY70: 0.07 | AZ70: 0.21 | BA70: 0.12 | BB70: 0.06 | BC70: 0.05 | BD70: 0.05
B71: =IF(S71=1,MAX(B$5:B70)+1,0) -> 67 | C71: =_xlfn.CONCAT("$Y$",VLOOKUP(J71,'League Stats'!$Y$57:$AB$900,4,FALSE)) -> $Y$58 | D71: =_xlfn.CONCAT("$AD$",VLOOKUP(J71,'League Stats'!$Y$57:$AE$900,7,FALSE)) -> $AD$103 | E71: HE5DL0067 | F71: 67 | G71: 22 | H71: 5Star | I71: Archer Atilla | J71: Hellion | K71: =VLOOKUP($J71,'League Stats'!$Y$39:$AZ$54,21,FALSE) -> Fire | L71: =VLOOKUP($J71,'League Stats'!$Y$39:$AZ$54,14,FALSE) -> These are dark creatures known as Hellions who emerged from the bowels of the earth to win glory for the underworld! | M71: =VLOOKUP($J71,'League Stats'!$Y$39:$AZ$54,24,FALSE) -> Hellfire fist: Melee attack dealing an additional 2 wounds when you tackle an enemy. | N71: =VLOOKUP($J71,'League Stats'!$Y$39:$AZ$54,25,FALSE) -> Fire Resistance: Immune to Fire effects. | O71: 4 | P71: 9 | Q71: =_xlfn.CONCAT("$B$",VLOOKUP(J71,'League Stats'!$Y$57:$AB$900,4,FALSE)+6) -> $B$64 | R71: =_xlfn.CONCAT("$S$",VLOOKUP(J71,'League Stats'!$Y$57:$AB$900,4,FALSE)+39) -> $S$97 | S71: 1 | T71: DL | U71: Massive Hellion | V71: Big2 | W71: 80 | X71: 9 | Y71: 0.8 | Z71: 0.08 | AA71: 0.05 | AB71: 0.13 | AC71: 0.14 | AD71: 0.14 | AE71: 0.07 | AF71: 0.07 | AI71: 67 | AJ71: HE5DL0067 | AK71: 5Star | AL71: Archer Atilla | AM71: =IFERROR(VLOOKUP(VLOOKUP($AI71,$B$5:$AF$1416,AM$4,FALSE),'League Stats'!Y$39:AX$54,26,FALSE),"") -> Hellion | AN71: Fire | AO71: These are dark creatures known as Hellions who emerged from the bowels of the earth to win glory for the underworld! | AP71: Hellfire fist: Melee attack dealing an additional 2 wounds when you tackle an enemy. | AQ71: Fire Resistance: Immune to Fire effects. | AR71: DL | AS71: Massive Hellion | AT71: Big2 | AU71: 80 | AV71: 9 | AW71: 0.8 | AX71: 0.08 | AY71: 0.05 | AZ71: 0.13 | BA71: 0.14 | BB71: 0.14 | BC71: 0.07 | BD71: 0.07
B72: =IF(S72=1,MAX(B$5:B71)+1,0) -> 68 | C72: =_xlfn.CONCAT("$Y$",VLOOKUP(J72,'League Stats'!$Y$57:$AB$900,4,FALSE)) -> $Y$58 | D72: =_xlfn.CONCAT("$AD$",VLOOKUP(J72,'League Stats'!$Y$57:$AE$900,7,FALSE)) -> $AD$103 | E72: HE5DL0068 | F72: 68 | G72: 23 | H72: 5Star | I72: Chaos Laika | J72: Hellion | K72: =VLOOKUP($J72,'League Stats'!$Y$39:$AZ$54,21,FALSE) -> Fire | L72: =VLOOKUP($J72,'League Stats'!$Y$39:$AZ$54,14,FALSE) -> These are dark creatures known as Hellions who emerged from the bowels of the earth to win glory for the underworld! | M72: =VLOOKUP($J72,'League Stats'!$Y$39:$AZ$54,24,FALSE) -> Hellfire fist: Melee attack dealing an additional 2 wounds when you tackle an enemy. | N72: =VLOOKUP($J72,'League Stats'!$Y$39:$AZ$54,25,FALSE) -> Fire Resistance: Immune to Fire effects. | O72: 4 | P72: 10 | Q72: =_xlfn.CONCAT("$B$",VLOOKUP(J72,'League Stats'!$Y$57:$AB$900,4,FALSE)+6) -> $B$64 | R72: =_xlfn.CONCAT("$S$",VLOOKUP(J72,'League Stats'!$Y$57:$AB$900,4,FALSE)+39) -> $S$97 | S72: 1 | T72: DL | U72: Killer Abyssal Warrior | V72: Med2 | W72: 70 | X72: 8 | Y72: 0.9 | Z72: 0.68 | AA72: 0.07 | AB72: 0.21 | AC72: 0.12 | AD72: 0.06 | AE72: 0.05 | AF72: 0.05 | AI72: 68 | AJ72: HE5DL0068 | AK72: 5Star | AL72: Chaos Laika | AM72: =IFERROR(VLOOKUP(VLOOKUP($AI72,$B$5:$AF$1416,AM$4,FALSE),'League Stats'!Y$39:AX$54,26,FALSE),"") -> Hellion | AN72: Fire | AO72: These are dark creatures known as Hellions who emerged from the bowels of the earth to win glory for the underworld! | AP72: Hellfire fist: Melee attack dealing an additional 2 wounds when you tackle an enemy. | AQ72: Fire Resistance: Immune to Fire effects. | AR72: DL | AS72: Killer Abyssal Warrior | AT72: Med2 | AU72: 70 | AV72: 8 | AW72: 0.9 | AX72: 0.68 | AY72: 0.07 | AZ72: 0.21 | BA72: 0.12 | BB72: 0.06 | BC72: 0.05 | BD72: 0.05
B73: =IF(S73=1,MAX(B$5:B72)+1,0) -> 69 | C73: =_xlfn.CONCAT("$Y$",VLOOKUP(J73,'League Stats'!$Y$57:$AB$900,4,FALSE)) -> $Y$58 | D73: =_xlfn.CONCAT("$AD$",VLOOKUP(J73,'League Stats'!$Y$57:$AE$900,7,FALSE)) -> $AD$103 | E73: HE5DL0069 | F73: 69 | G73: 24 | H73: 5Star | I73: Vlad Mercury | J73: Hellion | K73: =VLOOKUP($J73,'League Stats'!$Y$39:$AZ$54,21,FALSE) -> Fire | L73: =VLOOKUP($J73,'League Stats'!$Y$39:$AZ$54,14,FALSE) -> These are dark creatures known as Hellions who emerged from the bowels of the earth to win glory for the underworld! | M73: =VLOOKUP($J73,'League Stats'!$Y$39:$AZ$54,24,FALSE) -> Hellfire fist: Melee attack dealing an additional 2 wounds when you tackle an enemy. | N73: =VLOOKUP($J73,'League Stats'!$Y$39:$AZ$54,25,FALSE) -> Fire Resistance: Immune to Fire effects. | O73: 4 | P73: 11 | Q73: =_xlfn.CONCAT("$B$",VLOOKUP(J73,'League Stats'!$Y$57:$AB$900,4,FALSE)+6) -> $B$64 | R73: =_xlfn.CONCAT("$S$",VLOOKUP(J73,'League Stats'!$Y$57:$AB$900,4,FALSE)+39) -> $S$97 | S73: 1 | T73: DL | U73: Killer Abyssal Warrior | V73: Med2 | W73: 70 | X73: 8 | Y73: 0.9 | Z73: 0.68 | AA73: 0.07 | AB73: 0.21 | AC73: 0.12 | AD73: 0.06 | AE73: 0.05 | AF73: 0.05 | AI73: 69 | AJ73: HE5DL0069 | AK73: 5Star | AL73: Vlad Mercury | AM73: =IFERROR(VLOOKUP(VLOOKUP($AI73,$B$5:$AF$1416,AM$4,FALSE),'League Stats'!Y$39:AX$54,26,FALSE),"") -> Hellion | AN73: Fire | AO73: These are dark creatures known as Hellions who emerged from the bowels of the earth to win glory for the underworld! | AP73: Hellfire fist: Melee attack dealing an additional 2 wounds when you tackle an enemy. | AQ73: Fire Resistance: Immune to Fire effects. | AR73: DL | AS73: Killer Abyssal Warrior | AT73: Med2 | AU73: 70 | AV73: 8 | AW73: 0.9 | AX73: 0.68 | AY73: 0.07 | AZ73: 0.21 | BA73: 0.12 | BB73: 0.06 | BC73: 0.05 | BD73: 0.05
B74: =IF(S74=1,MAX(B$5:B73)+1,0) -> 70 | C74: =_xlfn.CONCAT("$Y$",VLOOKUP(J74,'League Stats'!$Y$57:$AB$900,4,FALSE)) -> $Y$58 | D74: =_xlfn.CONCAT("$AD$",VLOOKUP(J74,'League Stats'!$Y$57:$AE$900,7,FALSE)) -> $AD$103 | E74: HE5DB0070 | F74: 70 | G74: 25 | H74: 5Star | I74: Ajax Hellmouth | J74: Hellion | K74: =VLOOKUP($J74,'League Stats'!$Y$39:$AZ$54,21,FALSE) -> Fire | L74: =VLOOKUP($J74,'League Stats'!$Y$39:$AZ$54,14,FALSE) -> These are dark creatures known as Hellions who emerged from the bowels of the earth to win glory for the underworld! | M74: =VLOOKUP($J74,'League Stats'!$Y$39:$AZ$54,24,FALSE) -> Hellfire fist: Melee attack dealing an additional 2 wounds when you tackle an enemy. | N74: =VLOOKUP($J74,'League Stats'!$Y$39:$AZ$54,25,FALSE) -> Fire Resistance: Immune to Fire effects. | O74: 4 | P74: 12 | Q74: =_xlfn.CONCAT("$B$",VLOOKUP(J74,'League Stats'!$Y$57:$AB$900,4,FALSE)+6) -> $B$64 | R74: =_xlfn.CONCAT("$S$",VLOOKUP(J74,'League Stats'!$Y$57:$AB$900,4,FALSE)+39) -> $S$97 | S74: 1 | T74: DB | U74: Speedy Shadow | V74: Fast2 | W74: 60 | X74: 7 | Y74: 0.95 | Z74: 0.83 | AA74: 0.07 | AB74: 0.15 | AC74: 0.12 | AD74: 0.06 | AE74: 0.05 | AF74: 0.05 | AI74: 70 | AJ74: HE5DB0070 | AK74: 5Star | AL74: Ajax Hellmouth | AM74: =IFERROR(VLOOKUP(VLOOKUP($AI74,$B$5:$AF$1416,AM$4,FALSE),'League Stats'!Y$39:AX$54,26,FALSE),"") -> Hellion | AN74: Fire | AO74: These are dark creatures known as Hellions who emerged from the bowels of the earth to win glory for the underworld! | AP74: Hellfire fist: Melee attack dealing an additional 2 wounds when you tackle an enemy. | AQ74: Fire Resistance: Immune to Fire effects. | AR74: DB | AS74: Speedy Shadow | AT74: Fast2 | AU74: 60 | AV74: 7 | AW74: 0.95 | AX74: 0.83 | AY74: 0.07 | AZ74: 0.15 | BA74: 0.12 | BB74: 0.06 | BC74: 0.05 | BD74: 0.05
B75: =IF(S75=1,MAX(B$5:B74)+1,0) -> 71 | C75: =_xlfn.CONCAT("$Y$",VLOOKUP(J75,'League Stats'!$Y$57:$AB$900,4,FALSE)) -> $Y$58 | D75: =_xlfn.CONCAT("$AD$",VLOOKUP(J75,'League Stats'!$Y$57:$AE$900,7,FALSE)) -> $AD$103 | E75: HE5DB0071 | F75: 71 | G75: 26 | H75: 5Star | I75: Sniper Arcadia | J75: Hellion | K75: =VLOOKUP($J75,'League Stats'!$Y$39:$AZ$54,21,FALSE) -> Fire | L75: =VLOOKUP($J75,'League Stats'!$Y$39:$AZ$54,14,FALSE) -> These are dark creatures known as Hellions who emerged from the bowels of the earth to win glory for the underworld! | M75: =VLOOKUP($J75,'League Stats'!$Y$39:$AZ$54,24,FALSE) -> Hellfire fist: Melee attack dealing an additional 2 wounds when you tackle an enemy. | N75: =VLOOKUP($J75,'League Stats'!$Y$39:$AZ$54,25,FALSE) -> Fire Resistance: Immune to Fire effects. | O75: 4 | P75: 13 | Q75: =_xlfn.CONCAT("$B$",VLOOKUP(J75,'League Stats'!$Y$57:$AB$900,4,FALSE)+6) -> $B$64 | R75: =_xlfn.CONCAT("$S$",VLOOKUP(J75,'League Stats'!$Y$57:$AB$900,4,FALSE)+39) -> $S$97 | S75: 1 | T75: DB | U75: Speedy Shadow | V75: Fast2 | W75: 60 | X75: 7 | Y75: 0.95 | Z75: 0.83 | AA75: 0.07 | AB75: 0.15 | AC75: 0.12 | AD75: 0.06 | AE75: 0.05 | AF75: 0.05 | AI75: 71 | AJ75: HE5DB0071 | AK75: 5Star | AL75: Sniper Arcadia | AM75: =IFERROR(VLOOKUP(VLOOKUP($AI75,$B$5:$AF$1416,AM$4,FALSE),'League Stats'!Y$39:AX$54,26,FALSE),"") -> Hellion | AN75: Fire | AO75: These are dark creatures known as Hellions who emerged from the bowels of the earth to win glory for the underworld! | AP75: Hellfire fist: Melee attack dealing an additional 2 wounds when you tackle an enemy. | AQ75: Fire Resistance: Immune to Fire effects. | AR75: DB | AS75: Speedy Shadow | AT75: Fast2 | AU75: 60 | AV75: 7 | AW75: 0.95 | AX75: 0.83 | AY75: 0.07 | AZ75: 0.15 | BA75: 0.12 | BB75: 0.06 | BC75: 0.05 | BD75: 0.05
